Workbook

Sheet فنيين
P2: =_xlfn.AGGREGATE(9,6,data.f[أساسي 7/2025]) -> 614516.0648 | Q2: =_xlfn.AGGREGATE(9,6,data.f[أجر مقطوع]) -> 0 | R2: =_xlfn.AGGREGATE(9,6,data.f[الحافز]) -> 829596.6874 | S2: =_xlfn.AGGREGATE(9,6,data.f[حافز أداء 15%]) -> 92177.40971 | T2: =_xlfn.AGGREGATE(9,6,data.f[حافز موانى]) -> 1083.035706 | U2: =_xlfn.AGGREGATE(9,6,data.f[بدل مخاطر مواني 30%]) -> 0 | V2: =_xlfn.AGGREGATE(9,6,data.f[بدل مخاطر]) -> 82164.78439 | W2: =_xlfn.AGGREGATE(9,6,data.f[بدل انتقال]) -> 107100 | X2: =_xlfn.AGGREGATE(9,6,data.f[بدل انتقال محامين]) -> 0 | Y2: =_xlfn.AGGREGATE(9,6,data.f[بدل اقامة]) -> 329.9 | Z2: =_xlfn.AGGREGATE(9,6,data.f[بدل نقدي]) -> 0 | AA2: =_xlfn.AGGREGATE(9,6,data.f[بدل خزينة]) -> 0 | AB2: =_xlfn.AGGREGATE(9,6,data.f[بدل غذاء]) -> 0 | AC2: =_xlfn.AGGREGATE(9,6,data.f[بدل مظهر]) -> 0 | AD2: =_xlfn.AGGREGATE(9,6,data.f[بدل تمثيل]) -> 0 | AE2: =_xlfn.AGGREGATE(9,6,data.f[بدل ضيافة]) -> 0 | AF2: =_xlfn.AGGREGATE(9,6,data.f[بدل شاشة]) -> 0 | AG2: =_xlfn.AGGREGATE(9,6,data.f[بدل تفرغ]) -> 0 | AH2: =_xlfn.AGGREGATE(9,6,data.f[بدل تباع]) -> 0 | AI2: =_xlfn.AGGREGATE(9,6,data.f[إجمالي بدلات]) -> 185937.6844 | AJ2: =_xlfn.AGGREGATE(9,6,data.f[علاوة 2014]) -> 10725.05309 | AK2: =_xlfn.AGGREGATE(9,6,data.f[علاوة 2015]) -> 11947.8706 | AL2: =_xlfn.AGGREGATE(9,6,data.f[علاوة 2016]) -> 15552.17842 | AM2: =_xlfn.AGGREGATE(9,6,data.f[ع م من 14 حتى 18]) -> 52422.84 | AN2: =_xlfn.AGGREGATE(9,6,data.f[علاوة استثنائية2018]) -> 53330 | AO2: =_xlfn.AGGREGATE(9,6,data.f[علاوة 2019]) -> 10974.25096 | AP2: =_xlfn.AGGREGATE(9,6,data.f[علاوة 2020]) -> 17797.18011 | AQ2: =_xlfn.AGGREGATE(9,6,data.f[علاوة 2021]) -> 22681.19292 | AR2: =_xlfn.AGGREGATE(9,6,data.f[علاوة 2022]) -> 32296.56518 | AS2: =_xlfn.AGGREGATE(9,6,data.f[علاوة 2023]) -> 34640.62216 | AT2: =_xlfn.AGGREGATE(9,6,data.f[علاوة 2024]) -> 38737.32879 | AU2: =_xlfn.AGGREGATE(9,6,data.f[إ.ع من14:24 أعمال]) -> 0 | AV2: =_xlfn.AGGREGATE(9,6,data.f[علاوة 2025]) -> 27264.96903 | AW2: =_xlfn.AGGREGATE(9,6,data.f[علاوة غلاء معيشة]) -> 199800 | AX2: =_xlfn.AGGREGATE(9,6,data.f[علاوة اجتماعية]) -> 3128 | AY2: =_xlfn.AGGREGATE(9,6,data.f[إجمالي علاوات]) -> 531298.0513 | AZ2: =_xlfn.AGGREGATE(9,6,data.f[م. عيد العمال]) -> 3570 | BA2: =_xlfn.AGGREGATE(9,6,data.f[عمود2]) -> 0 | BB2: =_xlfn.AGGREGATE(9,6,data.f[متوسط المنحة]) -> 106384.9925 | BC2: =_xlfn.AGGREGATE(9,6,data.f[رد مستحقات]) -> 0 | BD2: =_xlfn.AGGREGATE(9,6,data.f[بدل سهر]) -> 0 | BE2: =_xlfn.AGGREGATE(9,6,data.f[الإضافي]) -> 0 | BF2: =_xlfn.AGGREGATE(9,6,data.f[الإجمالي]) -> 2286054.331 | BG2: =_xlfn.AGGREGATE(9,6,data.f[مكمل الأجر]) -> 381422.8365 | BH2: =_xlfn.AGGREGATE(9,6,data.f[إجمالي المستحق]) -> 2667477.168 | BN2: =_xlfn.AGGREGATE(9,6,data.f[تامينات 2025]) -> 226537.4451 | BO2: =_xlfn.AGGREGATE(9,6,data.f[كسب عمل 2025]) -> 0 | BP2: =_xlfn.AGGREGATE(9,6,data.f[غياب بدل مخاطر]) -> 0 | BQ2: =_xlfn.AGGREGATE(9,6,data.f[غياب بدل انتقال]) -> 0 | BR2: =_xlfn.AGGREGATE(9,6,data.f[خصم غياب عام]) -> 0 | BS2: =_xlfn.AGGREGATE(9,6,data.f[غياب حصة العمل]) -> 0 | BT2: =_xlfn.AGGREGATE(9,6,data.f[خصم غياب من الحافز]) -> 0 | BU2: =_xlfn.AGGREGATE(9,6,data.f[خصم حافز]) -> 0 | BV2: =_xlfn.AGGREGATE(9,6,data.f[خصم حافز بعد السنوية]) -> 0 | BW2: =_xlfn.AGGREGATE(9,6,data.f[اشتراكات اجازات خاصة]) -> 679.76 | BX2: =_xlfn.AGGREGATE(9,6,data.f[مدة سابقة]) -> 246.24 | BY2: =_xlfn.AGGREGATE(9,6,data.f[إيجار سكن]) -> 150 | BZ2: =_xlfn.AGGREGATE(9,6,data.f[نقابة]) -> 1071 | CA2: =_xlfn.AGGREGATE(9,6,data.f[خصم نفقات]) -> 16794.04 | CB2: =_xlfn.AGGREGATE(9,6,data.f[أجر بالزيادة]) -> 0 | CC2: =_xlfn.AGGREGATE(9,6,data.f[سولار]) -> 0 | CD2: =_xlfn.AGGREGATE(9,6,data.f[عهد]) -> 0 | CE2: =_xlfn.AGGREGATE(9,6,data.f[تلفيات]) -> 0 | CF2: =_xlfn.AGGREGATE(9,6,data.f[عجز]) -> 0 | CG2: =_xlfn.AGGREGATE(9,6,data.f[نقليات]) -> 0 | CH2: =_xlfn.AGGREGATE(9,6,data.f[جزاءات]) -> 0 | CI2: =_xlfn.AGGREGATE(9,6,data.f[تنفيذ أحكام]) -> 0 | CJ2: =_xlfn.AGGREGATE(9,6,data.f[الشهداء]) -> 0 | CK2: =_xlfn.AGGREGATE(9,6,data.f[دعم ذوى الاعاقة]) -> 1280.84 | CL2: =_xlfn.AGGREGATE(9,6,data.f[تسويات مدينة]) -> 0 | CM2: =_xlfn.AGGREGATE(9,6,data.f[زمالة]) -> 0 | CN2: =_xlfn.AGGREGATE(9,6,data.f[حج وعمرة]) -> 0 | CO2: =_xlfn.AGGREGATE(9,6,data.f[قسط تأمينات]) -> 0 | CP2: =_xlfn.AGGREGATE(9,6,data.f[صندوق تكافل]) -> 0 | CQ2: =_xlfn.AGGREGATE(9,6,data.f[تأمين صحي بورسعيد]) -> 0 | CR2: =_xlfn.AGGREGATE(9,6,data.f[أخرى]) -> 0 | CS2: =_xlfn.AGGREGATE(9,6,data.f[عمود1]) -> 0 | CT2: =_xlfn.AGGREGATE(9,6,data.f[متوسط منح]) -> 106384.9925 | CU2: =_xlfn.AGGREGATE(9,6,data.f[إجمالي المستقطع]) -> 245914.3251 | CV2: =_xlfn.AGGREGATE(9,6,data.f[صافي الأجر]) -> 2421562.843
B3: كود الشركة | C3: كود البيرول | D3: التعامل المالي | E3: اسم الموظف | F3: الرقم القومي | G3: التصنيف الادارى | H3: الشركة المدمجة | I3: الدرجة | J3: ترقية 7/2025 | K3: الوظيفة | L3: مكان العمل | M3: مرجع بحث | N3: استعلام ترقية | O3: الأجر الأساسي | P3: أساسي 7/2025 | Q3: أجر مقطوع | R3: الحافز | S3: حافز أداء 15% | T3: حافز موانى | U3: بدل مخاطر مواني 30% | V3: بدل مخاطر | W3: بدل انتقال | X3: بدل انتقال محامين | Y3: بدل اقامة | Z3: بدل نقدي | AA3: بدل خزينة | AB3: بدل غذاء | AC3: بدل مظهر | AD3: بدل تمثيل | AE3: بدل ضيافة | AF3: بدل شاشة | AG3: بدل تفرغ | AH3: بدل تباع | AI3: إجمالي بدلات | AJ3: علاوة 2014 | AK3: علاوة 2015 | AL3: علاوة 2016 | AM3: ع م من 14 حتى 18 | AN3: علاوة استثنائية2018 | AO3: علاوة 2019 | AP3: علاوة 2020 | AQ3: علاوة 2021 | AR3: علاوة 2022 | AS3: علاوة 2023 | AT3: علاوة 2024 | AU3: إ.ع من14:24 أعمال | AV3: علاوة 2025 | AW3: علاوة غلاء معيشة | AX3: علاوة اجتماعية | AY3: إجمالي علاوات | AZ3: م. عيد العمال | BA3: عمود2 | BB3: متوسط المنحة | BC3: رد مستحقات | BD3: بدل سهر | BE3: الإضافي | BF3: الإجمالي | BG3: مكمل الأجر | BH3: إجمالي المستحق | BI3: عدد أيام الأجازات | BJ3: أيام أجازات بعد السنوية | BK3: أيام الغياب | BL3: ح. بدل انتقال | BM3: ح. بدل مخاطر | BN3: تامينات 2025 | BO3: كسب عمل 2025 | BP3: غياب بدل مخاطر | BQ3: غياب بدل انتقال | BR3: خصم غياب عام | BS3: غياب حصة العمل | BT3: خصم غياب من الحافز | BU3: خصم حافز | BV3: خصم حافز بعد السنوية | BW3: اشتراكات اجازات خاصة | BX3: مدة سابقة | BY3: إيجار سكن | BZ3: نقابة | CA3: خصم نفقات | CB3: أجر بالزيادة | CC3: سولار | CD3: عهد | CE3: تلفيات | CF3: عجز | CG3: نقليات | CH3: جزاءات | CI3: تنفيذ أحكام | CJ3: الشهداء | CK3: دعم ذوى الاعاقة | CL3: تسويات مدينة | CM3: زمالة | CN3: حج وعمرة | CO3: قسط تأمينات | CP3: صندوق تكافل | CQ3: تأمين صحي بورسعيد | CR3: أخرى | CS3: عمود1 | CT3: متوسط منح | CU3: إجمالي المستقطع | CV3: صافي الأجر
A4: =IF(D4='المقابل النقدي للفنين'!$F$2,COUNTIF($D$4:D4,D4),"") ->  | B4: 109007 | C4: 21704 | D4: =VLOOKUP(data.f[[#This Row],[كود الشركة]],'التعامل المالي'!$B$3:$E$1478,3,FALSE) -> بنك مصر 1 | E4: شحاتة موسى محمد خليل | F4: 27212212701016 | G4: ادارى | H4: المباشر | I4: الثالثة | J4: الثالثة | K4: حرفى لحام إطارات | L4: الاميرية | M4: =data.f[[#This Row],[كود الشركة]]&data.f[[#This Row],[اسم الموظف]]&data.f[[#This Row],[الشركة المدمجة]]&data.f[[#This Row],[الدرجة]]&data.f[[#This Row],[ترقية 7/2025]]&data.f[[#This Row],[الوظيفة]]&data.f[[#This Row],[مكان العمل]] -> 109007شحاتة موسى محمد خليلالمباشرالثالثةالثالثةحرفى لحام إطاراتالاميرية | N4: =IF(data.f[[#This Row],[ترقية 7/2025]]<>"","نعم","") -> نعم | O4: 2060.52 | P4: =IF(data.f[[#This Row],[استعلام ترقية]]="نعم",data.f[[#This Row],[الأجر الأساسي]]*110%+data.f[[#This Row],[الأجر الأساسي]]*7%,data.f[[#This Row],[الأجر الأساسي]]*110%) -> 2410.8084 | R4: =data.f[[#This Row],[أساسي 7/2025]]*135% -> 3254.59134 | S4: =data.f[[#This Row],[أساسي 7/2025]]*15% -> 361.62126 | T4: 0 | V4: =IF(data.f[[#This Row],[التصنيف الادارى]]="فنى",data.f[[#This Row],[أساسي 7/2025]]*15%,0) -> 0 | W4: 300 | AH4: 0 | AI4: =SUM(data.f[[#This Row],[بدل مخاطر مواني 30%]:[بدل تباع]]) -> 300 | AJ4: 72.95 | AK4: 81.44 | AL4: 97.23 | AM4: 0 | AN4: 200 | AO4: 41.19 | AP4: 73.46 | AQ4: 94.32 | AR4: 134.56 | AS4: 143.97 | AT4: 154.06 | AV4: 103.026 | AW4: 600 | AX4: 10 | AY4: =SUM(data.f[[#This Row],[علاوة 2014]:[علاوة اجتماعية]]) -> 1806.206 | AZ4: 10 | BB4: 433.7937 | BF4: =SUM(data.f[[#This Row],[أساسي 7/2025]:[حافز موانى]],data.f[[#This Row],[إجمالي بدلات]],data.f[[#This Row],[إجمالي علاوات]],data.f[[#This Row],[م. عيد العمال]:[متوسط المنحة]]) -> 8577.0207 | BG4: =IF(data.f[[#This Row],[الإجمالي]]<7000,7000-data.f[[#This Row],[الإجمالي]],0) -> 0 | BH4: =SUM(data.f[[#This Row],[رد مستحقات]:[مكمل الأجر]]) -> 8577.0207 | BL4: 18 | BM4: 18 | BN4: 792 | BR4: =((data.f[[#This Row],[إجمالي المستحق]]-(data.f[[#This Row],[الحافز]]+data.f[[#This Row],[عمود2]]+data.f[[#This Row],[متوسط المنحة]]))/30)*data.f[[#This Row],[أيام الغياب]] -> 0 | BS4: =(data.f[[#This Row],[عمود2]]/30)*data.f[[#This Row],[أيام الغياب]] -> 0 | BT4: =IF(data.f[[#This Row],[أيام الغياب]]=1,data.f[[#This Row],[الحافز]]*20%,IF(data.f[[#This Row],[أيام الغياب]]=2,data.f[[#This Row],[الحافز]]*30%,IF(data.f[[#This Row],[أيام الغياب]]>2,data.f[[#This Row],[الحافز]]*100%,""))) ->  | BU4: =IF(data.f[[#This Row],[عدد أيام الأجازات]]<=4,data.f[[#This Row],[الحافز]]*0,IF(data.f[[#This Row],[عدد أيام الأجازات]]=5,data.f[[#This Row],[الحافز]]*20%,IF(data.f[[#This Row],[عدد أيام الأجازات]]=6,data.f[[#This Row],[الحافز]]*40%,IF(data.f[[#This Row],[عدد أيام الأجازات]]=7,data.f[[#This Row],[الحافز]]*50%,IF(data.f[[#This Row],[عدد أيام الأجازات]]>7,data.f[[#This Row],[الحافز]]*100%,""))))) -> 0 | BV4: =IF(data.f[[#This Row],[أيام أجازات بعد السنوية]]<=2,data.f[[#This Row],[الحافز]]*0,IF(data.f[[#This Row],[أيام أجازات بعد السنوية]]=3,data.f[[#This Row],[الحافز]]*30%,IF(data.f[[#This Row],[أيام أجازات بعد السنوية]]=4,data.f[[#This Row],[الحافز]]*40%,IF(data.f[[#This Row],[أيام أجازات بعد السنوية]]=5,data.f[[#This Row],[الحافز]]*50%,IF(data.f[[#This Row],[أيام أجازات بعد السنوية]]>5,data.f[[#This Row],[الحافز]]*100%,""))))) -> 0 | BW4: 0 | BX4: 0 | BZ4: 3 | CA4: 0 | CK4: 3 | CT4: =data.f[[#This Row],[متوسط المنحة]] -> 433.7937 | CU4: =SUM(data.f[[#This Row],[تامينات 2025]:[عمود1]]) -> 798 | CV4: =data.f[[#This Row],[إجمالي المستحق]]-data.f[[#This Row],[إجمالي المستقطع]] -> 7779.0207
A5: =IF(D5='المقابل النقدي للفنين'!$F$2,COUNTIF($D$4:D5,D5),"") ->  | B5: 119003 | C5: 21439 | D5: =VLOOKUP(data.f[[#This Row],[كود الشركة]],'التعامل المالي'!$B$3:$E$1478,3,FALSE) -> بنك مصر 1 | E5: عبد الباسط فوزى مبارك عبد الجواد | F5: 26512012702271 | G5: ادارى | H5: المباشر | I5: الاولى | M5: =data.f[[#This Row],[كود الشركة]]&data.f[[#This Row],[اسم الموظف]]&data.f[[#This Row],[الشركة المدمجة]]&data.f[[#This Row],[الدرجة]]&data.f[[#This Row],[ترقية 7/2025]]&data.f[[#This Row],[الوظيفة]]&data.f[[#This Row],[مكان العمل]] -> 119003عبد الباسط فوزى مبارك عبد الجوادالمباشرالاولى | N5: =IF(data.f[[#This Row],[ترقية 7/2025]]<>"","نعم","") ->  | O5: 2652.96 | P5: =IF(data.f[[#This Row],[استعلام ترقية]]="نعم",data.f[[#This Row],[الأجر الأساسي]]*110%+data.f[[#This Row],[الأجر الأساسي]]*7%,data.f[[#This Row],[الأجر الأساسي]]*110%) -> 2918.256 | R5: =data.f[[#This Row],[أساسي 7/2025]]*135% -> 3939.6456 | S5: =data.f[[#This Row],[أساسي 7/2025]]*15% -> 437.7384 | T5: 0 | V5: =IF(data.f[[#This Row],[التصنيف الادارى]]="فنى",data.f[[#This Row],[أساسي 7/2025]]*15%,0) -> 0 | W5: 300 | Y5: 28.5 | AH5: 0 | AI5: =SUM(data.f[[#This Row],[بدل مخاطر مواني 30%]:[بدل تباع]]) -> 328.5 | AJ5: 87.21 | AK5: 97.38 | AL5: 116.98 | AM5: 0 | AN5: 190 | AO5: 53.03 | AP5: 94.58 | AQ5: 121.44 | AR5: 173.25 | AS5: 185.37 | AT5: 198.35 | AV5: 132.648 | AW5: 600 | AX5: 10 | AY5: =SUM(data.f[[#This Row],[علاوة 2014]:[علاوة اجتماعية]]) -> 2060.238 | AZ5: 10 | BB5: 558.5179 | BF5: =SUM(data.f[[#This Row],[أساسي 7/2025]:[حافز موانى]],data.f[[#This Row],[إجمالي بدلات]],data.f[[#This Row],[إجمالي علاوات]],data.f[[#This Row],[م. عيد العمال]:[متوسط المنحة]]) -> 10252.8959 | BG5: =IF(data.f[[#This Row],[الإجمالي]]<7000,7000-data.f[[#This Row],[الإجمالي]],0) -> 0 | BH5: =SUM(data.f[[#This Row],[رد مستحقات]:[مكمل الأجر]]) -> 10252.8959 | BL5: 18 | BM5: 18 | BN5: 990 | BR5: =((data.f[[#This Row],[إجمالي المستحق]]-(data.f[[#This Row],[الحافز]]+data.f[[#This Row],[عمود2]]+data.f[[#This Row],[متوسط المنحة]]))/30)*data.f[[#This Row],[أيام الغياب]] -> 0 | BS5: =(data.f[[#This Row],[عمود2]]/30)*data.f[[#This Row],[أيام الغياب]] -> 0 | BT5: =IF(data.f[[#This Row],[أيام الغياب]]=1,data.f[[#This Row],[الحافز]]*20%,IF(data.f[[#This Row],[أيام الغياب]]=2,data.f[[#This Row],[الحافز]]*30%,IF(data.f[[#This Row],[أيام الغياب]]>2,data.f[[#This Row],[الحافز]]*100%,""))) ->  | BU5: =IF(data.f[[#This Row],[عدد أيام الأجازات]]<=4,data.f[[#This Row],[الحافز]]*0,IF(data.f[[#This Row],[عدد أيام الأجازات]]=5,data.f[[#This Row],[الحافز]]*20%,IF(data.f[[#This Row],[عدد أيام الأجازات]]=6,data.f[[#This Row],[الحافز]]*40%,IF(data.f[[#This Row],[عدد أيام الأجازات]]=7,data.f[[#This Row],[الحافز]]*50%,IF(data.f[[#This Row],[عدد أيام الأجازات]]>7,data.f[[#This Row],[الحافز]]*100%,""))))) -> 0 | BV5: =IF(data.f[[#This Row],[أيام أجازات بعد السنوية]]<=2,data.f[[#This Row],[الحافز]]*0,IF(data.f[[#This Row],[أيام أجازات بعد السنوية]]=3,data.f[[#This Row],[الحافز]]*30%,IF(data.f[[#This Row],[أيام أجازات بعد السنوية]]=4,data.f[[#This Row],[الحافز]]*40%,IF(data.f[[#This Row],[أيام أجازات بعد السنوية]]=5,data.f[[#This Row],[الحافز]]*50%,IF(data.f[[#This Row],[أيام أجازات بعد السنوية]]>5,data.f[[#This Row],[الحافز]]*100%,""))))) -> 0 | BW5: 0 | BX5: 0 | BZ5: 3 | CA5: 0 | CK5: 5 | CT5: =data.f[[#This Row],[متوسط المنحة]] -> 558.5179 | CU5: =SUM(data.f[[#This Row],[تامينات 2025]:[عمود1]]) -> 998 | CV5: =data.f[[#This Row],[إجمالي المستحق]]-data.f[[#This Row],[إجمالي المستقطع]] -> 9254.8959
A6: =IF(D6='المقابل النقدي للفنين'!$F$2,COUNTIF($D$4:D6,D6),"") ->  | B6: 201014 | C6: 14085 | D6: =VLOOKUP(data.f[[#This Row],[كود الشركة]],'التعامل المالي'!$B$3:$E$1478,3,FALSE) -> البنك الاهلى | E6: احمد سعد محمد على | F6: 27303270103558 | G6: فنى | H6: أعمال | I6: الاولى | J6: الأولى | K6: فنى براد | L6: قطاع شئون الفنية | M6: =data.f[[#This Row],[كود الشركة]]&data.f[[#This Row],[اسم الموظف]]&data.f[[#This Row],[الشركة المدمجة]]&data.f[[#This Row],[الدرجة]]&data.f[[#This Row],[ترقية 7/2025]]&data.f[[#This Row],[الوظيفة]]&data.f[[#This Row],[مكان العمل]] -> 201014احمد سعد محمد علىأعمالالاولىالأولىفنى برادقطاع شئون الفنية | N6: =IF(data.f[[#This Row],[ترقية 7/2025]]<>"","نعم","") -> نعم | O6: 2090.04 | P6: =IF(data.f[[#This Row],[استعلام ترقية]]="نعم",data.f[[#This Row],[الأجر الأساسي]]*110%+data.f[[#This Row],[الأجر الأساسي]]*7%,data.f[[#This Row],[الأجر الأساسي]]*110%) -> 2445.3468 | R6: =data.f[[#This Row],[أساسي 7/2025]]*135% -> 3301.21818 | S6: =data.f[[#This Row],[أساسي 7/2025]]*15% -> 366.80202 | T6: 0 | V6: =IF(data.f[[#This Row],[التصنيف الادارى]]="فنى",data.f[[#This Row],[أساسي 7/2025]]*15%,0) -> 366.80202 | W6: 300 | AH6: 0 | AI6: =SUM(data.f[[#This Row],[بدل مخاطر مواني 30%]:[بدل تباع]]) -> 666.80202 | AJ6: 0 | AK6: 0 | AL6: 0 | AM6: 427.7 | AN6: 0 | AO6: 41.78 | AP6: 74.51 | AQ6: 95.67 | AR6: 136.55 | AS6: 146.04 | AT6: 156.26 | AV6: 104.502 | AW6: 600 | AX6: 10 | AY6: =SUM(data.f[[#This Row],[علاوة 2014]:[علاوة اجتماعية]]) -> 1793.012 | AZ6: 10 | BB6: 440.0084 | BF6: =SUM(data.f[[#This Row],[أساسي 7/2025]:[حافز موانى]],data.f[[#This Row],[إجمالي بدلات]],data.f[[#This Row],[إجمالي علاوات]],data.f[[#This Row],[م. عيد العمال]:[متوسط المنحة]]) -> 9023.18942 | BG6: =IF(data.f[[#This Row],[الإجمالي]]<7000,7000-data.f[[#This Row],[الإجمالي]],0) -> 0 | BH6: =SUM(data.f[[#This Row],[رد مستحقات]:[مكمل الأجر]]) -> 9023.18942 | BL6: 18 | BM6: 18 | BN6: 797.6264893 | BR6: =((data.f[[#This Row],[إجمالي المستحق]]-(data.f[[#This Row],[الحافز]]+data.f[[#This Row],[عمود2]]+data.f[[#This Row],[متوسط المنحة]]))/30)*data.f[[#This Row],[أيام الغياب]] -> 0 | BS6: =(data.f[[#This Row],[عمود2]]/30)*data.f[[#This Row],[أيام الغياب]] -> 0 | BT6: =IF(data.f[[#This Row],[أيام الغياب]]=1,data.f[[#This Row],[الحافز]]*20%,IF(data.f[[#This Row],[أيام الغياب]]=2,data.f[[#This Row],[الحافز]]*30%,IF(data.f[[#This Row],[أيام الغياب]]>2,data.f[[#This Row],[الحافز]]*100%,""))) ->  | BU6: =IF(data.f[[#This Row],[عدد أيام الأجازات]]<=4,data.f[[#This Row],[الحافز]]*0,IF(data.f[[#This Row],[عدد أيام الأجازات]]=5,data.f[[#This Row],[الحافز]]*20%,IF(data.f[[#This Row],[عدد أيام الأجازات]]=6,data.f[[#This Row],[الحافز]]*40%,IF(data.f[[#This Row],[عدد أيام الأجازات]]=7,data.f[[#This Row],[الحافز]]*50%,IF(data.f[[#This Row],[عدد أيام الأجازات]]>7,data.f[[#This Row],[الحافز]]*100%,""))))) -> 0 | BV6: =IF(data.f[[#This Row],[أيام أجازات بعد السنوية]]<=2,data.f[[#This Row],[الحافز]]*0,IF(data.f[[#This Row],[أيام أجازات بعد السنوية]]=3,data.f[[#This Row],[الحافز]]*30%,IF(data.f[[#This Row],[أيام أجازات بعد السنوية]]=4,data.f[[#This Row],[الحافز]]*40%,IF(data.f[[#This Row],[أيام أجازات بعد السنوية]]=5,data.f[[#This Row],[الحافز]]*50%,IF(data.f[[#This Row],[أيام أجازات بعد السنوية]]>5,data.f[[#This Row],[الحافز]]*100%,""))))) -> 0 | BW6: 0 | BX6: 0 | BZ6: 3 | CA6: 0 | CK6: 5 | CT6: =data.f[[#This Row],[متوسط المنحة]] -> 440.0084 | CU6: =SUM(data.f[[#This Row],[تامينات 2025]:[عمود1]]) -> 805.6264893 | CV6: =data.f[[#This Row],[إجمالي المستحق]]-data.f[[#This Row],[إجمالي المستقطع]] -> 8217.562931
A7: =IF(D7='المقابل النقدي للفنين'!$F$2,COUNTIF($D$4:D7,D7),"") ->  | B7: 201015 | C7: 11034 | D7: =VLOOKUP(data.f[[#This Row],[كود الشركة]],'التعامل المالي'!$B$3:$E$1478,3,FALSE) -> البنك الاهلى | E7: احمد محمد عبد الله حسن | F7: 26605180103896 | G7: فنى | H7: أعمال | I7: الثانية | J7: الثانية | K7: ميكانيكى | L7: الادارة العامة بالورش المركزية | M7: =data.f[[#This Row],[كود الشركة]]&data.f[[#This Row],[اسم الموظف]]&data.f[[#This Row],[الشركة المدمجة]]&data.f[[#This Row],[الدرجة]]&data.f[[#This Row],[ترقية 7/2025]]&data.f[[#This Row],[الوظيفة]]&data.f[[#This Row],[مكان العمل]] -> 201015احمد محمد عبد الله حسنأعمالالثانيةالثانيةميكانيكى الادارة العامة بالورش المركزية | N7: =IF(data.f[[#This Row],[ترقية 7/2025]]<>"","نعم","") -> نعم | O7: 2164.44 | P7: =IF(data.f[[#This Row],[استعلام ترقية]]="نعم",data.f[[#This Row],[الأجر الأساسي]]*110%+data.f[[#This Row],[الأجر الأساسي]]*7%,data.f[[#This Row],[الأجر الأساسي]]*110%) -> 2532.3948 | R7: =data.f[[#This Row],[أساسي 7/2025]]*135% -> 3418.73298 | S7: =data.f[[#This Row],[أساسي 7/2025]]*15% -> 379.85922 | T7: 0 | V7: =IF(data.f[[#This Row],[التصنيف الادارى]]="فنى",data.f[[#This Row],[أساسي 7/2025]]*15%,0) -> 379.85922 | W7: 300 | AH7: 0 | AI7: =SUM(data.f[[#This Row],[بدل مخاطر مواني 30%]:[بدل تباع]]) -> 679.85922 | AJ7: 0 | AK7: 0 | AL7: 0 | AM7: 1736.59 | AN7: 0 | AO7: 0 | AP7: 0 | AQ7: 0 | AR7: 0 | AS7: 0 | AT7: 0 | AV7: 108.222 | AW7: 0 | AX7: 0 | AY7: =SUM(data.f[[#This Row],[علاوة 2014]:[علاوة اجتماعية]]) -> 1844.812 | AZ7: 10 | BB7: 455.6716 | BF7: =SUM(data.f[[#This Row],[أساسي 7/2025]:[حافز موانى]],data.f[[#This Row],[إجمالي بدلات]],data.f[[#This Row],[إجمالي علاوات]],data.f[[#This Row],[م. عيد العمال]:[متوسط المنحة]]) -> 9321.32982 | BG7: =IF(data.f[[#This Row],[الإجمالي]]<7000,7000-data.f[[#This Row],[الإجمالي]],0) -> 0 | BH7: =SUM(data.f[[#This Row],[رد مستحقات]:[مكمل الأجر]]) -> 9321.32982 | BL7: 18 | BM7: 18 | BN7: 824.6832129 | BR7: =((data.f[[#This Row],[إجمالي المستحق]]-(data.f[[#This Row],[الحافز]]+data.f[[#This Row],[عمود2]]+data.f[[#This Row],[متوسط المنحة]]))/30)*data.f[[#This Row],[أيام الغياب]] -> 0 | BS7: =(data.f[[#This Row],[عمود2]]/30)*data.f[[#This Row],[أيام الغياب]] -> 0 | BT7: =IF(data.f[[#This Row],[أيام الغياب]]=1,data.f[[#This Row],[الحافز]]*20%,IF(data.f[[#This Row],[أيام الغياب]]=2,data.f[[#This Row],[الحافز]]*30%,IF(data.f[[#This Row],[أيام الغياب]]>2,data.f[[#This Row],[الحافز]]*100%,""))) ->  | BU7: =IF(data.f[[#This Row],[عدد أيام الأجازات]]<=4,data.f[[#This Row],[الحافز]]*0,IF(data.f[[#This Row],[عدد أيام الأجازات]]=5,data.f[[#This Row],[الحافز]]*20%,IF(data.f[[#This Row],[عدد أيام الأجازات]]=6,data.f[[#This Row],[الحافز]]*40%,IF(data.f[[#This Row],[عدد أيام الأجازات]]=7,data.f[[#This Row],[الحافز]]*50%,IF(data.f[[#This Row],[عدد أيام الأجازات]]>7,data.f[[#This Row],[الحافز]]*100%,""))))) -> 0 | BV7: =IF(data.f[[#This Row],[أيام أجازات بعد السنوية]]<=2,data.f[[#This Row],[الحافز]]*0,IF(data.f[[#This Row],[أيام أجازات بعد السنوية]]=3,data.f[[#This Row],[الحافز]]*30%,IF(data.f[[#This Row],[أيام أجازات بعد السنوية]]=4,data.f[[#This Row],[الحافز]]*40%,IF(data.f[[#This Row],[أيام أجازات بعد السنوية]]=5,data.f[[#This Row],[الحافز]]*50%,IF(data.f[[#This Row],[أيام أجازات بعد السنوية]]>5,data.f[[#This Row],[الحافز]]*100%,""))))) -> 0 | BW7: 0 | BX7: 0 | BZ7: 3 | CA7: 0 | CK7: 3 | CT7: =data.f[[#This Row],[متوسط المنحة]] -> 455.6716 | CU7: =SUM(data.f[[#This Row],[تامينات 2025]:[عمود1]]) -> 830.6832129 | CV7: =data.f[[#This Row],[إجمالي المستحق]]-data.f[[#This Row],[إجمالي المستقطع]] -> 8490.646607
A8: =IF(D8='المقابل النقدي للفنين'!$F$2,COUNTIF($D$4:D8,D8),"") ->  | B8: 201016 | C8: 29999 | D8: =VLOOKUP(data.f[[#This Row],[كود الشركة]],'التعامل المالي'!$B$3:$E$1478,3,FALSE) -> البنك الاهلى | E8: حسام صادق عبدالعزيز | F8: 28111180101596 | G8: فنى | H8: أعمال | I8: الثالثة | J8: الثالثة | K8: فنى لحام | L8: الاميرية | M8: =data.f[[#This Row],[كود الشركة]]&data.f[[#This Row],[اسم الموظف]]&data.f[[#This Row],[الشركة المدمجة]]&data.f[[#This Row],[الدرجة]]&data.f[[#This Row],[ترقية 7/2025]]&data.f[[#This Row],[الوظيفة]]&data.f[[#This Row],[مكان العمل]] -> 201016حسام صادق عبدالعزيزأعمالالثالثةالثالثةفنى لحام الاميرية | N8: =IF(data.f[[#This Row],[ترقية 7/2025]]<>"","نعم","") -> نعم | O8: 642.66 | P8: =IF(data.f[[#This Row],[استعلام ترقية]]="نعم",data.f[[#This Row],[الأجر الأساسي]]*110%+data.f[[#This Row],[الأجر الأساسي]]*7%,data.f[[#This Row],[الأجر الأساسي]]*110%) -> 751.9122 | R8: =data.f[[#This Row],[أساسي 7/2025]]*135% -> 1015.08147 | S8: =data.f[[#This Row],[أساسي 7/2025]]*15% -> 112.78683 | T8: 0 | V8: =IF(data.f[[#This Row],[التصنيف الادارى]]="فنى",data.f[[#This Row],[أساسي 7/2025]]*15%,0) -> 112.78683 | W8: 300 | AH8: 0 | AI8: =SUM(data.f[[#This Row],[بدل مخاطر مواني 30%]:[بدل تباع]]) -> 412.78683 | AJ8: 0 | AK8: 0 | AL8: 0 | AM8: 1323.85 | AN8: 0 | AO8: 0 | AP8: 0 | AQ8: 0 | AR8: 0 | AS8: 0 | AT8: 0 | AV8: 85.734 | AW8: 0 | AX8: 6 | AY8: =SUM(data.f[[#This Row],[علاوة 2014]:[علاوة اجتماعية]]) -> 1415.584 | AZ8: 10 | BB8: 135.2968 | BF8: =SUM(data.f[[#This Row],[أساسي 7/2025]:[حافز موانى]],data.f[[#This Row],[إجمالي بدلات]],data.f[[#This Row],[إجمالي علاوات]],data.f[[#This Row],[م. عيد العمال]:[متوسط المنحة]]) -> 3853.44813 | BG8: =IF(data.f[[#This Row],[الإجمالي]]<7000,7000-data.f[[#This Row],[الإجمالي]],0) -> 3146.55187 | BH8: =SUM(data.f[[#This Row],[رد مستحقات]:[مكمل الأجر]]) -> 7000 | BL8: 18 | BM8: 18 | BN8: 513.1632129 | BR8: =((data.f[[#This Row],[إجمالي المستحق]]-(data.f[[#This Row],[الحافز]]+data.f[[#This Row],[عمود2]]+data.f[[#This Row],[متوسط المنحة]]))/30)*data.f[[#This Row],[أيام الغياب]] -> 0 | BS8: =(data.f[[#This Row],[عمود2]]/30)*data.f[[#This Row],[أيام الغياب]] -> 0 | BT8: =IF(data.f[[#This Row],[أيام الغياب]]=1,data.f[[#This Row],[الحافز]]*20%,IF(data.f[[#This Row],[أيام الغياب]]=2,data.f[[#This Row],[الحافز]]*30%,IF(data.f[[#This Row],[أيام الغياب]]>2,data.f[[#This Row],[الحافز]]*100%,""))) ->  | BU8: =IF(data.f[[#This Row],[عدد أيام الأجازات]]<=4,data.f[[#This Row],[الحافز]]*0,IF(data.f[[#This Row],[عدد أيام الأجازات]]=5,data.f[[#This Row],[الحافز]]*20%,IF(data.f[[#This Row],[عدد أيام الأجازات]]=6,data.f[[#This Row],[الحافز]]*40%,IF(data.f[[#This Row],[عدد أيام الأجازات]]=7,data.f[[#This Row],[الحافز]]*50%,IF(data.f[[#This Row],[عدد أيام الأجازات]]>7,data.f[[#This Row],[الحافز]]*100%,""))))) -> 0 | BV8: =IF(data.f[[#This Row],[أيام أجازات بعد السنوية]]<=2,data.f[[#This Row],[الحافز]]*0,IF(data.f[[#This Row],[أيام أجازات بعد السنوية]]=3,data.f[[#This Row],[الحافز]]*30%,IF(data.f[[#This Row],[أيام أجازات بعد السنوية]]=4,data.f[[#This Row],[الحافز]]*40%,IF(data.f[[#This Row],[أيام أجازات بعد السنوية]]=5,data.f[[#This Row],[الحافز]]*50%,IF(data.f[[#This Row],[أيام أجازات بعد السنوية]]>5,data.f[[#This Row],[الحافز]]*100%,""))))) -> 0 | BW8: 0 | BX8: 0 | BZ8: 3 | CA8: 0 | CK8: 3 | CT8: =data.f[[#This Row],[متوسط المنحة]] -> 135.2968 | CU8: =SUM(data.f[[#This Row],[تامينات 2025]:[عمود1]]) -> 519.1632129 | CV8: =data.f[[#This Row],[إجمالي المستحق]]-data.f[[#This Row],[إجمالي المستقطع]] -> 6480.836787
A9: =IF(D9='المقابل النقدي للفنين'!$F$2,COUNTIF($D$4:D9,D9),"") ->  | B9: 201017 | C9: 11070 | D9: =VLOOKUP(data.f[[#This Row],[كود الشركة]],'التعامل المالي'!$B$3:$E$1478,3,FALSE) -> البنك الاهلى | E9: رضا حنفى ابو سريع | F9: 28706070101276 | G9: فنى | H9: أعمال | I9: الخامسة | J9: الخامسة | K9: حرفى سمكرى | L9: الورش المركزية | M9: =data.f[[#This Row],[كود الشركة]]&data.f[[#This Row],[اسم الموظف]]&data.f[[#This Row],[الشركة المدمجة]]&data.f[[#This Row],[الدرجة]]&data.f[[#This Row],[ترقية 7/2025]]&data.f[[#This Row],[الوظيفة]]&data.f[[#This Row],[مكان العمل]] -> 201017رضا حنفى ابو سريع أعمالالخامسةالخامسةحرفى سمكرىالورش المركزية | N9: =IF(data.f[[#This Row],[ترقية 7/2025]]<>"","نعم","") -> نعم | O9: 919.47 | P9: =IF(data.f[[#This Row],[استعلام ترقية]]="نعم",data.f[[#This Row],[الأجر الأساسي]]*110%+data.f[[#This Row],[الأجر الأساسي]]*7%,data.f[[#This Row],[الأجر الأساسي]]*110%) -> 1075.7799 | R9: =data.f[[#This Row],[أساسي 7/2025]]*135% -> 1452.302865 | S9: =data.f[[#This Row],[أساسي 7/2025]]*15% -> 161.366985 | T9: 0 | V9: =IF(data.f[[#This Row],[التصنيف الادارى]]="فنى",data.f[[#This Row],[أساسي 7/2025]]*15%,0) -> 161.366985 | W9: 300 | AH9: 0 | AI9: =SUM(data.f[[#This Row],[بدل مخاطر مواني 30%]:[بدل تباع]]) -> 461.366985 | AJ9: 0 | AK9: 0 | AL9: 0 | AM9: 362.62 | AN9: 0 | AO9: 32.11 | AP9: 32.78 | AQ9: 42.09 | AR9: 60.04 | AS9: 68.78 | AT9: 89.85 | AV9: 58.053 | AW9: 600 | AX9: 10 | AY9: =SUM(data.f[[#This Row],[علاوة 2014]:[علاوة اجتماعية]]) -> 1356.323 | AZ9: 10 | BB9: 193.5726 | BF9: =SUM(data.f[[#This Row],[أساسي 7/2025]:[حافز موانى]],data.f[[#This Row],[إجمالي بدلات]],data.f[[#This Row],[إجمالي علاوات]],data.f[[#This Row],[م. عيد العمال]:[متوسط المنحة]]) -> 4710.712335 | BG9: =IF(data.f[[#This Row],[الإجمالي]]<7000,7000-data.f[[#This Row],[الإجمالي]],0) -> 2289.287665 | BH9: =SUM(data.f[[#This Row],[رد مستحقات]:[مكمل الأجر]]) -> 7000 | BL9: 18 | BM9: 18 | BN9: 523.1842236 | BR9: =((data.f[[#This Row],[إجمالي المستحق]]-(data.f[[#This Row],[الحافز]]+data.f[[#This Row],[عمود2]]+data.f[[#This Row],[متوسط المنحة]]))/30)*data.f[[#This Row],[أيام الغياب]] -> 0 | BS9: =(data.f[[#This Row],[عمود2]]/30)*data.f[[#This Row],[أيام الغياب]] -> 0 | BT9: =IF(data.f[[#This Row],[أيام الغياب]]=1,data.f[[#This Row],[الحافز]]*20%,IF(data.f[[#This Row],[أيام الغياب]]=2,data.f[[#This Row],[الحافز]]*30%,IF(data.f[[#This Row],[أيام الغياب]]>2,data.f[[#This Row],[الحافز]]*100%,""))) ->  | BU9: =IF(data.f[[#This Row],[عدد أيام الأجازات]]<=4,data.f[[#This Row],[الحافز]]*0,IF(data.f[[#This Row],[عدد أيام الأجازات]]=5,data.f[[#This Row],[الحافز]]*20%,IF(data.f[[#This Row],[عدد أيام الأجازات]]=6,data.f[[#This Row],[الحافز]]*40%,IF(data.f[[#This Row],[عدد أيام الأجازات]]=7,data.f[[#This Row],[الحافز]]*50%,IF(data.f[[#This Row],[عدد أيام الأجازات]]>7,data.f[[#This Row],[الحافز]]*100%,""))))) -> 0 | BV9: =IF(data.f[[#This Row],[أيام أجازات بعد السنوية]]<=2,data.f[[#This Row],[الحافز]]*0,IF(data.f[[#This Row],[أيام أجازات بعد السنوية]]=3,data.f[[#This Row],[الحافز]]*30%,IF(data.f[[#This Row],[أيام أجازات بعد السنوية]]=4,data.f[[#This Row],[الحافز]]*40%,IF(data.f[[#This Row],[أيام أجازات بعد السنوية]]=5,data.f[[#This Row],[الحافز]]*50%,IF(data.f[[#This Row],[أيام أجازات بعد السنوية]]>5,data.f[[#This Row],[الحافز]]*100%,""))))) -> 0 | BW9: 0 | BX9: 0 | BZ9: 3 | CA9: 0 | CK9: 3 | CT9: =data.f[[#This Row],[متوسط المنحة]] -> 193.5726 | CU9: =SUM(data.f[[#This Row],[تامينات 2025]:[عمود1]]) -> 529.1842236 | CV9: =data.f[[#This Row],[إجمالي المستحق]]-data.f[[#This Row],[إجمالي المستقطع]] -> 6470.815776
A10: =IF(D10='المقابل النقدي للفنين'!$F$2,COUNTIF($D$4:D10,D10),"") ->  | B10: 201018 | C10: 4416 | D10: =VLOOKUP(data.f[[#This Row],[كود الشركة]],'التعامل المالي'!$B$3:$E$1478,3,FALSE) -> بنك مصر 1 | E10: هانى على على على حجازى | F10: 27803170100775 | G10: فنى | H10: أعمال | I10: الخامسة | J10: الخامسة | K10: حرفى سمكرى | L10: الورش المركزية | M10: =data.f[[#This Row],[كود الشركة]]&data.f[[#This Row],[اسم الموظف]]&data.f[[#This Row],[الشركة المدمجة]]&data.f[[#This Row],[الدرجة]]&data.f[[#This Row],[ترقية 7/2025]]&data.f[[#This Row],[الوظيفة]]&data.f[[#This Row],[مكان العمل]] -> 201018هانى على على على حجازىأعمالالخامسةالخامسةحرفى سمكرىالورش المركزية | N10: =IF(data.f[[#This Row],[ترقية 7/2025]]<>"","نعم","") -> نعم | O10: 735.53 | P10: =IF(data.f[[#This Row],[استعلام ترقية]]="نعم",data.f[[#This Row],[الأجر الأساسي]]*110%+data.f[[#This Row],[الأجر الأساسي]]*7%,data.f[[#This Row],[الأجر الأساسي]]*110%) -> 860.5701 | R10: =data.f[[#This Row],[أساسي 7/2025]]*135% -> 1161.769635 | S10: =data.f[[#This Row],[أساسي 7/2025]]*15% -> 129.085515 | T10: 0 | V10: =IF(data.f[[#This Row],[التصنيف الادارى]]="فنى",data.f[[#This Row],[أساسي 7/2025]]*15%,0) -> 129.085515 | W10: 300 | AH10: 0 | AI10: =SUM(data.f[[#This Row],[بدل مخاطر مواني 30%]:[بدل تباع]]) -> 429.085515 | AJ10: 0 | AK10: 0 | AL10: 0 | AM10: 1287.4 | AN10: 0 | AO10: 0 | AP10: 0 | AQ10: 0 | AR10: 0 | AS10: 0 | AT10: 0 | AV10: 76.447 | AW10: 0 | AX10: 10 | AY10: =SUM(data.f[[#This Row],[علاوة 2014]:[علاوة اجتماعية]]) -> 1373.847 | AZ10: 10 | BB10: 154.8484 | BF10: =SUM(data.f[[#This Row],[أساسي 7/2025]:[حافز موانى]],data.f[[#This Row],[إجمالي بدلات]],data.f[[#This Row],[إجمالي علاوات]],data.f[[#This Row],[م. عيد العمال]:[متوسط المنحة]]) -> 4119.206165 | BG10: =IF(data.f[[#This Row],[الإجمالي]]<7000,7000-data.f[[#This Row],[الإجمالي]],0) -> 2880.793835 | BH10: =SUM(data.f[[#This Row],[رد مستحقات]:[مكمل الأجر]]) -> 7000 | BL10: 18 | BM10: 18 | BN10: 516.6425 | BR10: =((data.f[[#This Row],[إجمالي المستحق]]-(data.f[[#This Row],[الحافز]]+data.f[[#This Row],[عمود2]]+data.f[[#This Row],[متوسط المنحة]]))/30)*data.f[[#This Row],[أيام الغياب]] -> 0 | BS10: =(data.f[[#This Row],[عمود2]]/30)*data.f[[#This Row],[أيام الغياب]] -> 0 | BT10: =IF(data.f[[#This Row],[أيام الغياب]]=1,data.f[[#This Row],[الحافز]]*20%,IF(data.f[[#This Row],[أيام الغياب]]=2,data.f[[#This Row],[الحافز]]*30%,IF(data.f[[#This Row],[أيام الغياب]]>2,data.f[[#This Row],[الحافز]]*100%,""))) ->  | BU10: =IF(data.f[[#This Row],[عدد أيام الأجازات]]<=4,data.f[[#This Row],[الحافز]]*0,IF(data.f[[#This Row],[عدد أيام الأجازات]]=5,data.f[[#This Row],[الحافز]]*20%,IF(data.f[[#This Row],[عدد أيام الأجازات]]=6,data.f[[#This Row],[الحافز]]*40%,IF(data.f[[#This Row],[عدد أيام الأجازات]]=7,data.f[[#This Row],[الحافز]]*50%,IF(data.f[[#This Row],[عدد أيام الأجازات]]>7,data.f[[#This Row],[الحافز]]*100%,""))))) -> 0 | BV10: =IF(data.f[[#This Row],[أيام أجازات بعد السنوية]]<=2,data.f[[#This Row],[الحافز]]*0,IF(data.f[[#This Row],[أيام أجازات بعد السنوية]]=3,data.f[[#This Row],[الحافز]]*30%,IF(data.f[[#This Row],[أيام أجازات بعد السنوية]]=4,data.f[[#This Row],[الحافز]]*40%,IF(data.f[[#This Row],[أيام أجازات بعد السنوية]]=5,data.f[[#This Row],[الحافز]]*50%,IF(data.f[[#This Row],[أيام أجازات بعد السنوية]]>5,data.f[[#This Row],[الحافز]]*100%,""))))) -> 0 | BW10: 0 | BX10: 0 | BZ10: 3 | CA10: 0 | CK10: 3 | CT10: =data.f[[#This Row],[متوسط المنحة]] -> 154.8484 | CU10: =SUM(data.f[[#This Row],[تامينات 2025]:[عمود1]]) -> 522.6425 | CV10: =data.f[[#This Row],[إجمالي المستحق]]-data.f[[#This Row],[إجمالي المستقطع]] -> 6477.3575
A11: =IF(D11='المقابل النقدي للفنين'!$F$2,COUNTIF($D$4:D11,D11),"") ->  | B11: 201019 | C11: 3556 | D11: =VLOOKUP(data.f[[#This Row],[كود الشركة]],'التعامل المالي'!$B$3:$E$1478,3,FALSE) -> بنك مصر 1 | E11: عاطف سيد عباس عبده | F11: 27401250100694 | G11: فنى | H11: أعمال | I11: الرابعة | M11: =data.f[[#This Row],[كود الشركة]]&data.f[[#This Row],[اسم الموظف]]&data.f[[#This Row],[الشركة المدمجة]]&data.f[[#This Row],[الدرجة]]&data.f[[#This Row],[ترقية 7/2025]]&data.f[[#This Row],[الوظيفة]]&data.f[[#This Row],[مكان العمل]] -> 201019عاطف سيد عباس عبدهأعمالالرابعة | N11: =IF(data.f[[#This Row],[ترقية 7/2025]]<>"","نعم","") ->  | O11: 1312.46 | P11: =IF(data.f[[#This Row],[استعلام ترقية]]="نعم",data.f[[#This Row],[الأجر الأساسي]]*110%+data.f[[#This Row],[الأجر الأساسي]]*7%,data.f[[#This Row],[الأجر الأساسي]]*110%) -> 1443.706 | R11: =data.f[[#This Row],[أساسي 7/2025]]*135% -> 1949.0031 | S11: =data.f[[#This Row],[أساسي 7/2025]]*15% -> 216.5559 | T11: 0 | V11: =IF(data.f[[#This Row],[التصنيف الادارى]]="فنى",data.f[[#This Row],[أساسي 7/2025]]*15%,0) -> 216.5559 | W11: 300 | AH11: 0 | AI11: =SUM(data.f[[#This Row],[بدل مخاطر مواني 30%]:[بدل تباع]]) -> 516.5559 | AJ11: 0 | AK11: 0 | AL11: 0 | AM11: 360.28 | AN11: 0 | AO11: 26.24 | AP11: 46.79 | AQ11: 60.08 | AR11: 85.71 | AS11: 91.71 | AT11: 98.13 | AV11: 65.623 | AW11: 600 | AX11: 10 | AY11: =SUM(data.f[[#This Row],[علاوة 2014]:[علاوة اجتماعية]]) -> 1444.563 | AZ11: 10 | BB11: 276.3074 | BF11: =SUM(data.f[[#This Row],[أساسي 7/2025]:[حافز موانى]],data.f[[#This Row],[إجمالي بدلات]],data.f[[#This Row],[إجمالي علاوات]],data.f[[#This Row],[م. عيد العمال]:[متوسط المنحة]]) -> 5856.6913 | BG11: =IF(data.f[[#This Row],[الإجمالي]]<7000,7000-data.f[[#This Row],[الإجمالي]],0) -> 1143.3087 | BH11: =SUM(data.f[[#This Row],[رد مستحقات]:[مكمل الأجر]]) -> 7000 | BL11: 18 | BM11: 18 | BN11: 538.9977979 | BR11: =((data.f[[#This Row],[إجمالي المستحق]]-(data.f[[#This Row],[الحافز]]+data.f[[#This Row],[عمود2]]+data.f[[#This Row],[متوسط المنحة]]))/30)*data.f[[#This Row],[أيام الغياب]] -> 0 | BS11: =(data.f[[#This Row],[عمود2]]/30)*data.f[[#This Row],[أيام الغياب]] -> 0 | BT11: =IF(data.f[[#This Row],[أيام الغياب]]=1,data.f[[#This Row],[الحافز]]*20%,IF(data.f[[#This Row],[أيام الغياب]]=2,data.f[[#This Row],[الحافز]]*30%,IF(data.f[[#This Row],[أيام الغياب]]>2,data.f[[#This Row],[الحافز]]*100%,""))) ->  | BU11: =IF(data.f[[#This Row],[عدد أيام الأجازات]]<=4,data.f[[#This Row],[الحافز]]*0,IF(data.f[[#This Row],[عدد أيام الأجازات]]=5,data.f[[#This Row],[الحافز]]*20%,IF(data.f[[#This Row],[عدد أيام الأجازات]]=6,data.f[[#This Row],[الحافز]]*40%,IF(data.f[[#This Row],[عدد أيام الأجازات]]=7,data.f[[#This Row],[الحافز]]*50%,IF(data.f[[#This Row],[عدد أيام الأجازات]]>7,data.f[[#This Row],[الحافز]]*100%,""))))) -> 0 | BV11: =IF(data.f[[#This Row],[أيام أجازات بعد السنوية]]<=2,data.f[[#This Row],[الحافز]]*0,IF(data.f[[#This Row],[أيام أجازات بعد السنوية]]=3,data.f[[#This Row],[الحافز]]*30%,IF(data.f[[#This Row],[أيام أجازات بعد السنوية]]=4,data.f[[#This Row],[الحافز]]*40%,IF(data.f[[#This Row],[أيام أجازات بعد السنوية]]=5,data.f[[#This Row],[الحافز]]*50%,IF(data.f[[#This Row],[أيام أجازات بعد السنوية]]>5,data.f[[#This Row],[الحافز]]*100%,""))))) -> 0 | BW11: 0 | BX11: 0 | BZ11: 3 | CA11: 0 | CK11: 3 | CT11: =data.f[[#This Row],[متوسط المنحة]] -> 276.3074 | CU11: =SUM(data.f[[#This Row],[تامينات 2025]:[عمود1]]) -> 544.9977979 | CV11: =data.f[[#This Row],[إجمالي المستحق]]-data.f[[#This Row],[إجمالي المستقطع]] -> 6455.002202
A12: =IF(D12='المقابل النقدي للفنين'!$F$2,COUNTIF($D$4:D12,D12),"") ->  | B12: 201020 | C12: 29132 | D12: =VLOOKUP(data.f[[#This Row],[كود الشركة]],'التعامل المالي'!$B$3:$E$1478,3,FALSE) -> البنك الاهلى | E12: صابر حسان على حسان | F12: 27903041401071 | G12: فنى | H12: أعمال | I12: الخامسة | J12: الخامسة | K12: حرفى براد | L12: الورش المركزية | M12: =data.f[[#This Row],[كود الشركة]]&data.f[[#This Row],[اسم الموظف]]&data.f[[#This Row],[الشركة المدمجة]]&data.f[[#This Row],[الدرجة]]&data.f[[#This Row],[ترقية 7/2025]]&data.f[[#This Row],[الوظيفة]]&data.f[[#This Row],[مكان العمل]] -> 201020صابر حسان على حسانأعمالالخامسةالخامسةحرفى برادالورش المركزية | N12: =IF(data.f[[#This Row],[ترقية 7/2025]]<>"","نعم","") -> نعم | O12: 919.47 | P12: =IF(data.f[[#This Row],[استعلام ترقية]]="نعم",data.f[[#This Row],[الأجر الأساسي]]*110%+data.f[[#This Row],[الأجر الأساسي]]*7%,data.f[[#This Row],[الأجر الأساسي]]*110%) -> 1075.7799 | R12: =data.f[[#This Row],[أساسي 7/2025]]*135% -> 1452.302865 | S12: =data.f[[#This Row],[أساسي 7/2025]]*15% -> 161.366985 | T12: 0 | V12: =IF(data.f[[#This Row],[التصنيف الادارى]]="فنى",data.f[[#This Row],[أساسي 7/2025]]*15%,0) -> 161.366985 | W12: 300 | AH12: 0 | AI12: =SUM(data.f[[#This Row],[بدل مخاطر مواني 30%]:[بدل تباع]]) -> 461.366985 | AJ12: 0 | AK12: 0 | AL12: 0 | AM12: 332.32 | AN12: 0 | AO12: 32.11 | AP12: 32.78 | AQ12: 42.09 | AR12: 60.04 | AS12: 68.78 | AT12: 107.91 | AV12: 58.053 | AW12: 600 | AX12: 10 | AY12: =SUM(data.f[[#This Row],[علاوة 2014]:[علاوة اجتماعية]]) -> 1344.083 | AZ12: 10 | BB12: 193.5726 | BF12: =SUM(data.f[[#This Row],[أساسي 7/2025]:[حافز موانى]],data.f[[#This Row],[إجمالي بدلات]],data.f[[#This Row],[إجمالي علاوات]],data.f[[#This Row],[م. عيد العمال]:[متوسط المنحة]]) -> 4698.472335 | BG12: =IF(data.f[[#This Row],[الإجمالي]]<7000,7000-data.f[[#This Row],[الإجمالي]],0) -> 2301.527665 | BH12: =SUM(data.f[[#This Row],[رد مستحقات]:[مكمل الأجر]]) -> 7000 | BL12: 18 | BM12: 18 | BN12: 523.4020215 | BR12: =((data.f[[#This Row],[إجمالي المستحق]]-(data.f[[#This Row],[الحافز]]+data.f[[#This Row],[عمود2]]+data.f[[#This Row],[متوسط المنحة]]))/30)*data.f[[#This Row],[أيام الغياب]] -> 0 | BS12: =(data.f[[#This Row],[عمود2]]/30)*data.f[[#This Row],[أيام الغياب]] -> 0 | BT12: =IF(data.f[[#This Row],[أيام الغياب]]=1,data.f[[#This Row],[الحافز]]*20%,IF(data.f[[#This Row],[أيام الغياب]]=2,data.f[[#This Row],[الحافز]]*30%,IF(data.f[[#This Row],[أيام الغياب]]>2,data.f[[#This Row],[الحافز]]*100%,""))) ->  | BU12: =IF(data.f[[#This Row],[عدد أيام الأجازات]]<=4,data.f[[#This Row],[الحافز]]*0,IF(data.f[[#This Row],[عدد أيام الأجازات]]=5,data.f[[#This Row],[الحافز]]*20%,IF(data.f[[#This Row],[عدد أيام الأجازات]]=6,data.f[[#This Row],[الحافز]]*40%,IF(data.f[[#This Row],[عدد أيام الأجازات]]=7,data.f[[#This Row],[الحافز]]*50%,IF(data.f[[#This Row],[عدد أيام الأجازات]]>7,data.f[[#This Row],[الحافز]]*100%,""))))) -> 0 | BV12: =IF(data.f[[#This Row],[أيام أجازات بعد السنوية]]<=2,data.f[[#This Row],[الحافز]]*0,IF(data.f[[#This Row],[أيام أجازات بعد السنوية]]=3,data.f[[#This Row],[الحافز]]*30%,IF(data.f[[#This Row],[أيام أجازات بعد السنوية]]=4,data.f[[#This Row],[الحافز]]*40%,IF(data.f[[#This Row],[أيام أجازات بعد السنوية]]=5,data.f[[#This Row],[الحافز]]*50%,IF(data.f[[#This Row],[أيام أجازات بعد السنوية]]>5,data.f[[#This Row],[الحافز]]*100%,""))))) -> 0 | BW12: 0 | BX12: 0 | BZ12: 3 | CA12: 0 | CK12: 3 | CT12: =data.f[[#This Row],[متوسط المنحة]] -> 193.5726 | CU12: =SUM(data.f[[#This Row],[تامينات 2025]:[عمود1]]) -> 529.4020215 | CV12: =data.f[[#This Row],[إجمالي المستحق]]-data.f[[#This Row],[إجمالي المستقطع]] -> 6470.597979
A13: =IF(D13='المقابل النقدي للفنين'!$F$2,COUNTIF($D$4:D13,D13),"") ->  | B13: 201021 | C13: 1161 | D13: =VLOOKUP(data.f[[#This Row],[كود الشركة]],'التعامل المالي'!$B$3:$E$1478,3,FALSE) -> بنك مصر2 | E13: مجدي السيد حميدة عبد المجيد | F13: 27006050104079 | G13: ادارى | I13: الثالثة | J13: الثالثة | K13: حرفى ميكانيكى | L13: فرع الزقازيق | M13: =data.f[[#This Row],[كود الشركة]]&data.f[[#This Row],[اسم الموظف]]&data.f[[#This Row],[الشركة المدمجة]]&data.f[[#This Row],[الدرجة]]&data.f[[#This Row],[ترقية 7/2025]]&data.f[[#This Row],[الوظيفة]]&data.f[[#This Row],[مكان العمل]] -> 201021مجدي السيد حميدة عبد المجيدالثالثةالثالثةحرفى ميكانيكى فرع الزقازيق | N13: =IF(data.f[[#This Row],[ترقية 7/2025]]<>"","نعم","") -> نعم | O13: 1053.89 | P13: =IF(data.f[[#This Row],[استعلام ترقية]]="نعم",data.f[[#This Row],[الأجر الأساسي]]*110%+data.f[[#This Row],[الأجر الأساسي]]*7%,data.f[[#This Row],[الأجر الأساسي]]*110%) -> 1233.0513 | R13: =data.f[[#This Row],[أساسي 7/2025]]*135% -> 1664.619255 | S13: =data.f[[#This Row],[أساسي 7/2025]]*15% -> 184.957695 | T13: 0 | V13: =IF(data.f[[#This Row],[التصنيف الادارى]]="فنى",data.f[[#This Row],[أساسي 7/2025]]*15%,0) -> 0 | W13: 300 | AH13: 0 | AI13: =SUM(data.f[[#This Row],[بدل مخاطر مواني 30%]:[بدل تباع]]) -> 300 | AJ13: 37.42 | AK13: 41.54 | AL13: 65 | AM13: 0 | AN13: 200 | AO13: 25.84 | AP13: 37.57 | AQ13: 48.24 | AR13: 68.82 | AS13: 73.64 | AT13: 81.05 | AV13: 52.6945 | AW13: 600 | AX13: 8 | AY13: =SUM(data.f[[#This Row],[علاوة 2014]:[علاوة اجتماعية]]) -> 1339.8145 | AZ13: 10 | BB13: 222.48 | BF13: =SUM(data.f[[#This Row],[أساسي 7/2025]:[حافز موانى]],data.f[[#This Row],[إجمالي بدلات]],data.f[[#This Row],[إجمالي علاوات]],data.f[[#This Row],[م. عيد العمال]:[متوسط المنحة]]) -> 4954.92275 | BG13: =IF(data.f[[#This Row],[الإجمالي]]<7000,7000-data.f[[#This Row],[الإجمالي]],0) -> 2045.07725 | BH13: =SUM(data.f[[#This Row],[رد مستحقات]:[مكمل الأجر]]) -> 7000 | BL13: 18 | BM13: 18 | BN13: 570.5975 | BR13: =((data.f[[#This Row],[إجمالي المستحق]]-(data.f[[#This Row],[الحافز]]+data.f[[#This Row],[عمود2]]+data.f[[#This Row],[متوسط المنحة]]))/30)*data.f[[#This Row],[أيام الغياب]] -> 0 | BS13: =(data.f[[#This Row],[عمود2]]/30)*data.f[[#This Row],[أيام الغياب]] -> 0 | BT13: =IF(data.f[[#This Row],[أيام الغياب]]=1,data.f[[#This Row],[الحافز]]*20%,IF(data.f[[#This Row],[أيام الغياب]]=2,data.f[[#This Row],[الحافز]]*30%,IF(data.f[[#This Row],[أيام الغياب]]>2,data.f[[#This Row],[الحافز]]*100%,""))) ->  | BU13: =IF(data.f[[#This Row],[عدد أيام الأجازات]]<=4,data.f[[#This Row],[الحافز]]*0,IF(data.f[[#This Row],[عدد أيام الأجازات]]=5,data.f[[#This Row],[الحافز]]*20%,IF(data.f[[#This Row],[عدد أيام الأجازات]]=6,data.f[[#This Row],[الحافز]]*40%,IF(data.f[[#This Row],[عدد أيام الأجازات]]=7,data.f[[#This Row],[الحافز]]*50%,IF(data.f[[#This Row],[عدد أيام الأجازات]]>7,data.f[[#This Row],[الحافز]]*100%,""))))) -> 0 | BV13: =IF(data.f[[#This Row],[أيام أجازات بعد السنوية]]<=2,data.f[[#This Row],[الحافز]]*0,IF(data.f[[#This Row],[أيام أجازات بعد السنوية]]=3,data.f[[#This Row],[الحافز]]*30%,IF(data.f[[#This Row],[أيام أجازات بعد السنوية]]=4,data.f[[#This Row],[الحافز]]*40%,IF(data.f[[#This Row],[أيام أجازات بعد السنوية]]=5,data.f[[#This Row],[الحافز]]*50%,IF(data.f[[#This Row],[أيام أجازات بعد السنوية]]>5,data.f[[#This Row],[الحافز]]*100%,""))))) -> 0 | BW13: 0 | BX13: 0 | BZ13: 3 | CA13: 0 | CK13: 3 | CT13: =data.f[[#This Row],[متوسط المنحة]] -> 222.48 | CU13: =SUM(data.f[[#This Row],[تامينات 2025]:[عمود1]]) -> 576.5975 | CV13: =data.f[[#This Row],[إجمالي المستحق]]-data.f[[#This Row],[إجمالي المستقطع]] -> 6423.4025
A14: =IF(D14='المقابل النقدي للفنين'!$F$2,COUNTIF($D$4:D14,D14),"") ->  | B14: 201031 | C14: 22251 | D14: =VLOOKUP(data.f[[#This Row],[كود الشركة]],'التعامل المالي'!$B$3:$E$1478,3,FALSE) -> بنك مصر 1 | E14: احمد جابر اسماعيل حسن | F14: 27301220104879 | G14: فنى | I14: الرابعة | J14: الرابعة | K14: حرفى نجار | L14: الإدارة العامة | M14: =data.f[[#This Row],[كود الشركة]]&data.f[[#This Row],[اسم الموظف]]&data.f[[#This Row],[الشركة المدمجة]]&data.f[[#This Row],[الدرجة]]&data.f[[#This Row],[ترقية 7/2025]]&data.f[[#This Row],[الوظيفة]]&data.f[[#This Row],[مكان العمل]] -> 201031احمد جابر اسماعيل حسنالرابعةالرابعةحرفى نجارالإدارة العامة | N14: =IF(data.f[[#This Row],[ترقية 7/2025]]<>"","نعم","") -> نعم | O14: 1301.289 | P14: =IF(data.f[[#This Row],[استعلام ترقية]]="نعم",data.f[[#This Row],[الأجر الأساسي]]*110%+data.f[[#This Row],[الأجر الأساسي]]*7%,data.f[[#This Row],[الأجر الأساسي]]*110%) -> 1522.50813 | R14: =data.f[[#This Row],[أساسي 7/2025]]*135% -> 2055.385976 | S14: =data.f[[#This Row],[أساسي 7/2025]]*15% -> 228.3762195 | T14: 0 | V14: =IF(data.f[[#This Row],[التصنيف الادارى]]="فنى",data.f[[#This Row],[أساسي 7/2025]]*15%,0) -> 228.3762195 | W14: 300 | AH14: 0 | AI14: =SUM(data.f[[#This Row],[بدل مخاطر مواني 30%]:[بدل تباع]]) -> 528.3762195 | AJ14: 45.56962 | AK14: 50.86204 | AL14: 65 | AM14: 0 | AN14: 200 | AO14: 26.01311 | AP14: 46.39005 | AQ14: 59.56483 | AR14: 84.97916 | AS14: 90.9277 | AT14: 97.29265 | AV14: 65.06446 | AW14: 600 | AX14: 8 | AY14: =SUM(data.f[[#This Row],[علاوة 2014]:[علاوة اجتماعية]]) -> 1439.66362 | AZ14: 10 | BB14: 273.9556 | BF14: =SUM(data.f[[#This Row],[أساسي 7/2025]:[حافز موانى]],data.f[[#This Row],[إجمالي بدلات]],data.f[[#This Row],[إجمالي علاوات]],data.f[[#This Row],[م. عيد العمال]:[متوسط المنحة]]) -> 6058.265765 | BG14: =IF(data.f[[#This Row],[الإجمالي]]<7000,7000-data.f[[#This Row],[الإجمالي]],0) -> 941.7342355 | BH14: =SUM(data.f[[#This Row],[رد مستحقات]:[مكمل الأجر]]) -> 7000 | BL14: 18 | BM14: 18 | BN14: 542.0667871 | BR14: =((data.f[[#This Row],[إجمالي المستحق]]-(data.f[[#This Row],[الحافز]]+data.f[[#This Row],[عمود2]]+data.f[[#This Row],[متوسط المنحة]]))/30)*data.f[[#This Row],[أيام الغياب]] -> 0 | BS14: =(data.f[[#This Row],[عمود2]]/30)*data.f[[#This Row],[أيام الغياب]] -> 0 | BT14: =IF(data.f[[#This Row],[أيام الغياب]]=1,data.f[[#This Row],[الحافز]]*20%,IF(data.f[[#This Row],[أيام الغياب]]=2,data.f[[#This Row],[الحافز]]*30%,IF(data.f[[#This Row],[أيام الغياب]]>2,data.f[[#This Row],[الحافز]]*100%,""))) ->  | BU14: =IF(data.f[[#This Row],[عدد أيام الأجازات]]<=4,data.f[[#This Row],[الحافز]]*0,IF(data.f[[#This Row],[عدد أيام الأجازات]]=5,data.f[[#This Row],[الحافز]]*20%,IF(data.f[[#This Row],[عدد أيام الأجازات]]=6,data.f[[#This Row],[الحافز]]*40%,IF(data.f[[#This Row],[عدد أيام الأجازات]]=7,data.f[[#This Row],[الحافز]]*50%,IF(data.f[[#This Row],[عدد أيام الأجازات]]>7,data.f[[#This Row],[الحافز]]*100%,""))))) -> 0 | BV14: =IF(data.f[[#This Row],[أيام أجازات بعد السنوية]]<=2,data.f[[#This Row],[الحافز]]*0,IF(data.f[[#This Row],[أيام أجازات بعد السنوية]]=3,data.f[[#This Row],[الحافز]]*30%,IF(data.f[[#This Row],[أيام أجازات بعد السنوية]]=4,data.f[[#This Row],[الحافز]]*40%,IF(data.f[[#This Row],[أيام أجازات بعد السنوية]]=5,data.f[[#This Row],[الحافز]]*50%,IF(data.f[[#This Row],[أيام أجازات بعد السنوية]]>5,data.f[[#This Row],[الحافز]]*100%,""))))) -> 0 | BW14: 0 | BX14: 7.5 | BZ14: 3 | CA14: 0 | CK14: 5 | CT14: =data.f[[#This Row],[متوسط المنحة]] -> 273.9556 | CU14: =SUM(data.f[[#This Row],[تامينات 2025]:[عمود1]]) -> 557.5667871 | CV14: =data.f[[#This Row],[إجمالي المستحق]]-data.f[[#This Row],[إجمالي المستقطع]] -> 6442.433213
A15: =IF(D15='المقابل النقدي للفنين'!$F$2,COUNTIF($D$4:D15,D15),"") ->  | B15: 201040 | C15: 44063 | D15: =VLOOKUP(data.f[[#This Row],[كود الشركة]],'التعامل المالي'!$B$3:$E$1478,3,FALSE) -> بنك مصر 1 | E15: حمدى صبحى عبد القادر | F15: 28409170104839 | G15: فنى | H15: أعمال | I15: عقد مؤقت | M15: =data.f[[#This Row],[كود الشركة]]&data.f[[#This Row],[اسم الموظف]]&data.f[[#This Row],[الشركة المدمجة]]&data.f[[#This Row],[الدرجة]]&data.f[[#This Row],[ترقية 7/2025]]&data.f[[#This Row],[الوظيفة]]&data.f[[#This Row],[مكان العمل]] -> 201040حمدى صبحى عبد القادرأعمالعقد مؤقت | N15: =IF(data.f[[#This Row],[ترقية 7/2025]]<>"","نعم","") ->  | O15: 410.26 | P15: =IF(data.f[[#This Row],[استعلام ترقية]]="نعم",data.f[[#This Row],[الأجر الأساسي]]*110%+data.f[[#This Row],[الأجر الأساسي]]*7%,data.f[[#This Row],[الأجر الأساسي]]*110%) -> 451.286 | R15: =data.f[[#This Row],[أساسي 7/2025]]*135% -> 609.2361 | S15: =data.f[[#This Row],[أساسي 7/2025]]*15% -> 67.6929 | T15: 0 | V15: =IF(data.f[[#This Row],[التصنيف الادارى]]="فنى",data.f[[#This Row],[أساسي 7/2025]]*15%,0) -> 67.6929 | W15: 300 | AH15: 0 | AI15: =SUM(data.f[[#This Row],[بدل مخاطر مواني 30%]:[بدل تباع]]) -> 367.6929 | AJ15: 0 | AK15: 0 | AL15: 0 | AM15: 934.08 | AN15: 0 | AO15: 0 | AP15: 0 | AQ15: 0 | AR15: 0 | AS15: 0 | AT15: 0 | AV15: 108.974 | AW15: 0 | AX15: 0 | AY15: =SUM(data.f[[#This Row],[علاوة 2014]:[علاوة اجتماعية]]) -> 1043.054 | AZ15: 10 | BB15: 86.37053 | BF15: =SUM(data.f[[#This Row],[أساسي 7/2025]:[حافز موانى]],data.f[[#This Row],[إجمالي بدلات]],data.f[[#This Row],[إجمالي علاوات]],data.f[[#This Row],[م. عيد العمال]:[متوسط المنحة]]) -> 2635.33243 | BG15: =IF(data.f[[#This Row],[الإجمالي]]<7000,7000-data.f[[#This Row],[الإجمالي]],0) -> 4364.66757 | BH15: =SUM(data.f[[#This Row],[رد مستحقات]:[مكمل الأجر]]) -> 7000 | BL15: 18 | BM15: 18 | BN15: 500.4076172 | BR15: =((data.f[[#This Row],[إجمالي المستحق]]-(data.f[[#This Row],[الحافز]]+data.f[[#This Row],[عمود2]]+data.f[[#This Row],[متوسط المنحة]]))/30)*data.f[[#This Row],[أيام الغياب]] -> 0 | BS15: =(data.f[[#This Row],[عمود2]]/30)*data.f[[#This Row],[أيام الغياب]] -> 0 | BT15: =IF(data.f[[#This Row],[أيام الغياب]]=1,data.f[[#This Row],[الحافز]]*20%,IF(data.f[[#This Row],[أيام الغياب]]=2,data.f[[#This Row],[الحافز]]*30%,IF(data.f[[#This Row],[أيام الغياب]]>2,data.f[[#This Row],[الحافز]]*100%,""))) ->  | BU15: =IF(data.f[[#This Row],[عدد أيام الأجازات]]<=4,data.f[[#This Row],[الحافز]]*0,IF(data.f[[#This Row],[عدد أيام الأجازات]]=5,data.f[[#This Row],[الحافز]]*20%,IF(data.f[[#This Row],[عدد أيام الأجازات]]=6,data.f[[#This Row],[الحافز]]*40%,IF(data.f[[#This Row],[عدد أيام الأجازات]]=7,data.f[[#This Row],[الحافز]]*50%,IF(data.f[[#This Row],[عدد أيام الأجازات]]>7,data.f[[#This Row],[الحافز]]*100%,""))))) -> 0 | BV15: =IF(data.f[[#This Row],[أيام أجازات بعد السنوية]]<=2,data.f[[#This Row],[الحافز]]*0,IF(data.f[[#This Row],[أيام أجازات بعد السنوية]]=3,data.f[[#This Row],[الحافز]]*30%,IF(data.f[[#This Row],[أيام أجازات بعد السنوية]]=4,data.f[[#This Row],[الحافز]]*40%,IF(data.f[[#This Row],[أيام أجازات بعد السنوية]]=5,data.f[[#This Row],[الحافز]]*50%,IF(data.f[[#This Row],[أيام أجازات بعد السنوية]]>5,data.f[[#This Row],[الحافز]]*100%,""))))) -> 0 | BW15: 0 | BX15: 0 | BZ15: 3 | CA15: 1700 | CK15: 3 | CT15: =data.f[[#This Row],[متوسط المنحة]] -> 86.37053 | CU15: =SUM(data.f[[#This Row],[تامينات 2025]:[عمود1]]) -> 2206.407617 | CV15: =data.f[[#This Row],[إجمالي المستحق]]-data.f[[#This Row],[إجمالي المستقطع]] -> 4793.592383
A16: =IF(D16='المقابل النقدي للفنين'!$F$2,COUNTIF($D$4:D16,D16),"") ->  | B16: 201041 | C16: 3939 | D16: =VLOOKUP(data.f[[#This Row],[كود الشركة]],'التعامل المالي'!$B$3:$E$1478,3,FALSE) -> بنك مصر 1 | E16: هاشم محمود عبدالله منصور | F16: 27203140103896 | G16: فنى | H16: أعمال | I16: الخامسة | M16: =data.f[[#This Row],[كود الشركة]]&data.f[[#This Row],[اسم الموظف]]&data.f[[#This Row],[الشركة المدمجة]]&data.f[[#This Row],[الدرجة]]&data.f[[#This Row],[ترقية 7/2025]]&data.f[[#This Row],[الوظيفة]]&data.f[[#This Row],[مكان العمل]] -> 201041هاشم محمود عبدالله منصورأعمالالخامسة | N16: =IF(data.f[[#This Row],[ترقية 7/2025]]<>"","نعم","") ->  | O16: 735.53 | P16: =IF(data.f[[#This Row],[استعلام ترقية]]="نعم",data.f[[#This Row],[الأجر الأساسي]]*110%+data.f[[#This Row],[الأجر الأساسي]]*7%,data.f[[#This Row],[الأجر الأساسي]]*110%) -> 809.083 | R16: =data.f[[#This Row],[أساسي 7/2025]]*135% -> 1092.26205 | S16: =data.f[[#This Row],[أساسي 7/2025]]*15% -> 121.36245 | T16: 0 | V16: =IF(data.f[[#This Row],[التصنيف الادارى]]="فنى",data.f[[#This Row],[أساسي 7/2025]]*15%,0) -> 121.36245 | W16: 300 | AH16: 0 | AI16: =SUM(data.f[[#This Row],[بدل مخاطر مواني 30%]:[بدل تباع]]) -> 421.36245 | AJ16: 0 | AK16: 0 | AL16: 0 | AM16: 1281.41 | AN16: 0 | AO16: 0 | AP16: 0 | AQ16: 0 | AR16: 0 | AS16: 0 | AT16: 0 | AV16: 76.447 | AW16: 0 | AX16: 0 | AY16: =SUM(data.f[[#This Row],[علاوة 2014]:[علاوة اجتماعية]]) -> 1357.857 | AZ16: 10 | BB16: 154.8484 | BF16: =SUM(data.f[[#This Row],[أساسي 7/2025]:[حافز موانى]],data.f[[#This Row],[إجمالي بدلات]],data.f[[#This Row],[إجمالي علاوات]],data.f[[#This Row],[م. عيد العمال]:[متوسط المنحة]]) -> 3966.77535 | BG16: =IF(data.f[[#This Row],[الإجمالي]]<7000,7000-data.f[[#This Row],[الإجمالي]],0) -> 3033.22465 | BH16: =SUM(data.f[[#This Row],[رد مستحقات]:[مكمل الأجر]]) -> 7000 | BL16: 18 | BM16: 18 | BN16: 516.5688086 | BR16: =((data.f[[#This Row],[إجمالي المستحق]]-(data.f[[#This Row],[الحافز]]+data.f[[#This Row],[عمود2]]+data.f[[#This Row],[متوسط المنحة]]))/30)*data.f[[#This Row],[أيام الغياب]] -> 0 | BS16: =(data.f[[#This Row],[عمود2]]/30)*data.f[[#This Row],[أيام الغياب]] -> 0 | BT16: =IF(data.f[[#This Row],[أيام الغياب]]=1,data.f[[#This Row],[الحافز]]*20%,IF(data.f[[#This Row],[أيام الغياب]]=2,data.f[[#This Row],[الحافز]]*30%,IF(data.f[[#This Row],[أيام الغياب]]>2,data.f[[#This Row],[الحافز]]*100%,""))) ->  | BU16: =IF(data.f[[#This Row],[عدد أيام الأجازات]]<=4,data.f[[#This Row],[الحافز]]*0,IF(data.f[[#This Row],[عدد أيام الأجازات]]=5,data.f[[#This Row],[الحافز]]*20%,IF(data.f[[#This Row],[عدد أيام الأجازات]]=6,data.f[[#This Row],[الحافز]]*40%,IF(data.f[[#This Row],[عدد أيام الأجازات]]=7,data.f[[#This Row],[الحافز]]*50%,IF(data.f[[#This Row],[عدد أيام الأجازات]]>7,data.f[[#This Row],[الحافز]]*100%,""))))) -> 0 | BV16: =IF(data.f[[#This Row],[أيام أجازات بعد السنوية]]<=2,data.f[[#This Row],[الحافز]]*0,IF(data.f[[#This Row],[أيام أجازات بعد السنوية]]=3,data.f[[#This Row],[الحافز]]*30%,IF(data.f[[#This Row],[أيام أجازات بعد السنوية]]=4,data.f[[#This Row],[الحافز]]*40%,IF(data.f[[#This Row],[أيام أجازات بعد السنوية]]=5,data.f[[#This Row],[الحافز]]*50%,IF(data.f[[#This Row],[أيام أجازات بعد السنوية]]>5,data.f[[#This Row],[الحافز]]*100%,""))))) -> 0 | BW16: 0 | BX16: 0 | BZ16: 3 | CA16: 0 | CK16: 3 | CT16: =data.f[[#This Row],[متوسط المنحة]] -> 154.8484 | CU16: =SUM(data.f[[#This Row],[تامينات 2025]:[عمود1]]) -> 522.5688086 | CV16: =data.f[[#This Row],[إجمالي المستحق]]-data.f[[#This Row],[إجمالي المستقطع]] -> 6477.431191
A17: =IF(D17='المقابل النقدي للفنين'!$F$2,COUNTIF($D$4:D17,D17),"") ->  | B17: 201042 | C17: 1109 | D17: =VLOOKUP(data.f[[#This Row],[كود الشركة]],'التعامل المالي'!$B$3:$E$1478,3,FALSE) -> بنك مصر2 | E17: هشام إبراهيم عبد الفتاح | F17: 27205070100552 | G17: فنى | I17: الثانية | J17: الثانية | K17: نقاش دوكو | L17: الامن | M17: =data.f[[#This Row],[كود الشركة]]&data.f[[#This Row],[اسم الموظف]]&data.f[[#This Row],[الشركة المدمجة]]&data.f[[#This Row],[الدرجة]]&data.f[[#This Row],[ترقية 7/2025]]&data.f[[#This Row],[الوظيفة]]&data.f[[#This Row],[مكان العمل]] -> 201042هشام إبراهيم عبد الفتاحالثانيةالثانيةنقاش دوكوالامن | N17: =IF(data.f[[#This Row],[ترقية 7/2025]]<>"","نعم","") -> نعم | O17: 1879.01 | P17: =IF(data.f[[#This Row],[استعلام ترقية]]="نعم",data.f[[#This Row],[الأجر الأساسي]]*110%+data.f[[#This Row],[الأجر الأساسي]]*7%,data.f[[#This Row],[الأجر الأساسي]]*110%) -> 2198.4417 | R17: =data.f[[#This Row],[أساسي 7/2025]]*135% -> 2967.896295 | S17: =data.f[[#This Row],[أساسي 7/2025]]*15% -> 329.766255 | T17: 0 | V17: =IF(data.f[[#This Row],[التصنيف الادارى]]="فنى",data.f[[#This Row],[أساسي 7/2025]]*15%,0) -> 329.766255 | W17: 300 | AH17: 0 | AI17: =SUM(data.f[[#This Row],[بدل مخاطر مواني 30%]:[بدل تباع]]) -> 629.766255 | AJ17: 62.21 | AK17: 69.28 | AL17: 83.14 | AM17: 0 | AN17: 190 | AO17: 37.56 | AP17: 66.99 | AQ17: 86.01 | AR17: 122.71 | AS17: 131.3 | AT17: 140.49 | AV17: 93.9505 | AW17: 600 | AX17: 10 | AY17: =SUM(data.f[[#This Row],[علاوة 2014]:[علاوة اجتماعية]]) -> 1693.6405 | AZ17: 10 | BB17: 395.5811 | BF17: =SUM(data.f[[#This Row],[أساسي 7/2025]:[حافز موانى]],data.f[[#This Row],[إجمالي بدلات]],data.f[[#This Row],[إجمالي علاوات]],data.f[[#This Row],[م. عيد العمال]:[متوسط المنحة]]) -> 8225.092105 | BG17: =IF(data.f[[#This Row],[الإجمالي]]<7000,7000-data.f[[#This Row],[الإجمالي]],0) -> 0 | BH17: =SUM(data.f[[#This Row],[رد مستحقات]:[مكمل الأجر]]) -> 8225.092105 | BL17: 18 | BM17: 18 | BN17: 718.752085 | BR17: =((data.f[[#This Row],[إجمالي المستحق]]-(data.f[[#This Row],[الحافز]]+data.f[[#This Row],[عمود2]]+data.f[[#This Row],[متوسط المنحة]]))/30)*data.f[[#This Row],[أيام الغياب]] -> 0 | BS17: =(data.f[[#This Row],[عمود2]]/30)*data.f[[#This Row],[أيام الغياب]] -> 0 | BT17: =IF(data.f[[#This Row],[أيام الغياب]]=1,data.f[[#This Row],[الحافز]]*20%,IF(data.f[[#This Row],[أيام الغياب]]=2,data.f[[#This Row],[الحافز]]*30%,IF(data.f[[#This Row],[أيام الغياب]]>2,data.f[[#This Row],[الحافز]]*100%,""))) ->  | BU17: =IF(data.f[[#This Row],[عدد أيام الأجازات]]<=4,data.f[[#This Row],[الحافز]]*0,IF(data.f[[#This Row],[عدد أيام الأجازات]]=5,data.f[[#This Row],[الحافز]]*20%,IF(data.f[[#This Row],[عدد أيام الأجازات]]=6,data.f[[#This Row],[الحافز]]*40%,IF(data.f[[#This Row],[عدد أيام الأجازات]]=7,data.f[[#This Row],[الحافز]]*50%,IF(data.f[[#This Row],[عدد أيام الأجازات]]>7,data.f[[#This Row],[الحافز]]*100%,""))))) -> 0 | BV17: =IF(data.f[[#This Row],[أيام أجازات بعد السنوية]]<=2,data.f[[#This Row],[الحافز]]*0,IF(data.f[[#This Row],[أيام أجازات بعد السنوية]]=3,data.f[[#This Row],[الحافز]]*30%,IF(data.f[[#This Row],[أيام أجازات بعد السنوية]]=4,data.f[[#This Row],[الحافز]]*40%,IF(data.f[[#This Row],[أيام أجازات بعد السنوية]]=5,data.f[[#This Row],[الحافز]]*50%,IF(data.f[[#This Row],[أيام أجازات بعد السنوية]]>5,data.f[[#This Row],[الحافز]]*100%,""))))) -> 0 | BW17: 0 | BX17: 0 | BZ17: 3 | CA17: 0 | CK17: 3 | CT17: =data.f[[#This Row],[متوسط المنحة]] -> 395.5811 | CU17: =SUM(data.f[[#This Row],[تامينات 2025]:[عمود1]]) -> 724.752085 | CV17: =data.f[[#This Row],[إجمالي المستحق]]-data.f[[#This Row],[إجمالي المستقطع]] -> 7500.34002
A18: =IF(D18='المقابل النقدي للفنين'!$F$2,COUNTIF($D$4:D18,D18),"") ->  | B18: 202001 | C18: 25178 | D18: =VLOOKUP(data.f[[#This Row],[كود الشركة]],'التعامل المالي'!$B$3:$E$1478,3,FALSE) -> بنك مصر 1 | E18: مرسي محرم محمد عثمان | F18: 26605282400054 | G18: فنى | I18: الاولى | J18: الأولى | K18: حرفى لحام | L18: فرع الاميرية | M18: =data.f[[#This Row],[كود الشركة]]&data.f[[#This Row],[اسم الموظف]]&data.f[[#This Row],[الشركة المدمجة]]&data.f[[#This Row],[الدرجة]]&data.f[[#This Row],[ترقية 7/2025]]&data.f[[#This Row],[الوظيفة]]&data.f[[#This Row],[مكان العمل]] -> 202001مرسي محرم محمد عثمانالاولىالأولىحرفى لحام فرع الاميرية | N18: =IF(data.f[[#This Row],[ترقية 7/2025]]<>"","نعم","") -> نعم | O18: 2380.719 | P18: =IF(data.f[[#This Row],[استعلام ترقية]]="نعم",data.f[[#This Row],[الأجر الأساسي]]*110%+data.f[[#This Row],[الأجر الأساسي]]*7%,data.f[[#This Row],[الأجر الأساسي]]*110%) -> 2785.44123 | R18: =data.f[[#This Row],[أساسي 7/2025]]*135% -> 3760.345661 | S18: =data.f[[#This Row],[أساسي 7/2025]]*15% -> 417.8161845 | T18: 0 | V18: =IF(data.f[[#This Row],[التصنيف الادارى]]="فنى",data.f[[#This Row],[أساسي 7/2025]]*15%,0) -> 417.8161845 | W18: 300 | AH18: 0 | AI18: =SUM(data.f[[#This Row],[بدل مخاطر مواني 30%]:[بدل تباع]]) -> 717.8161845 | AJ18: 83.04 | AK18: 92.73 | AL18: 110.85 | AM18: 0 | AN18: 190 | AO18: 47.59121 | AP18: 84.87099 | AQ18: 108.9744 | AR18: 155.4701 | AS18: 166.353 | AT18: 177.9977 | AV18: 119.036 | AW18: 600 | AX18: 10 | AY18: =SUM(data.f[[#This Row],[علاوة 2014]:[علاوة اجتماعية]]) -> 1946.9134 | AZ18: 10 | BB18: 501.204 | BF18: =SUM(data.f[[#This Row],[أساسي 7/2025]:[حافز موانى]],data.f[[#This Row],[إجمالي بدلات]],data.f[[#This Row],[إجمالي علاوات]],data.f[[#This Row],[م. عيد العمال]:[متوسط المنحة]]) -> 10139.53666 | BG18: =IF(data.f[[#This Row],[الإجمالي]]<7000,7000-data.f[[#This Row],[الإجمالي]],0) -> 0 | BH18: =SUM(data.f[[#This Row],[رد مستحقات]:[مكمل الأجر]]) -> 10139.53666 | BL18: 18 | BM18: 18 | BN18: 884.5320215 | BR18: =((data.f[[#This Row],[إجمالي المستحق]]-(data.f[[#This Row],[الحافز]]+data.f[[#This Row],[عمود2]]+data.f[[#This Row],[متوسط المنحة]]))/30)*data.f[[#This Row],[أيام الغياب]] -> 0 | BS18: =(data.f[[#This Row],[عمود2]]/30)*data.f[[#This Row],[أيام الغياب]] -> 0 | BT18: =IF(data.f[[#This Row],[أيام الغياب]]=1,data.f[[#This Row],[الحافز]]*20%,IF(data.f[[#This Row],[أيام الغياب]]=2,data.f[[#This Row],[الحافز]]*30%,IF(data.f[[#This Row],[أيام الغياب]]>2,data.f[[#This Row],[الحافز]]*100%,""))) ->  | BU18: =IF(data.f[[#This Row],[عدد أيام الأجازات]]<=4,data.f[[#This Row],[الحافز]]*0,IF(data.f[[#This Row],[عدد أيام الأجازات]]=5,data.f[[#This Row],[الحافز]]*20%,IF(data.f[[#This Row],[عدد أيام الأجازات]]=6,data.f[[#This Row],[الحافز]]*40%,IF(data.f[[#This Row],[عدد أيام الأجازات]]=7,data.f[[#This Row],[الحافز]]*50%,IF(data.f[[#This Row],[عدد أيام الأجازات]]>7,data.f[[#This Row],[الحافز]]*100%,""))))) -> 0 | BV18: =IF(data.f[[#This Row],[أيام أجازات بعد السنوية]]<=2,data.f[[#This Row],[الحافز]]*0,IF(data.f[[#This Row],[أيام أجازات بعد السنوية]]=3,data.f[[#This Row],[الحافز]]*30%,IF(data.f[[#This Row],[أيام أجازات بعد السنوية]]=4,data.f[[#This Row],[الحافز]]*40%,IF(data.f[[#This Row],[أيام أجازات بعد السنوية]]=5,data.f[[#This Row],[الحافز]]*50%,IF(data.f[[#This Row],[أيام أجازات بعد السنوية]]>5,data.f[[#This Row],[الحافز]]*100%,""))))) -> 0 | BW18: 0 | BX18: 0 | BZ18: 3 | CA18: 0 | CK18: 5 | CT18: =data.f[[#This Row],[متوسط المنحة]] -> 501.204 | CU18: =SUM(data.f[[#This Row],[تامينات 2025]:[عمود1]]) -> 892.5320215 | CV18: =data.f[[#This Row],[إجمالي المستحق]]-data.f[[#This Row],[إجمالي المستقطع]] -> 9247.004638
A19: =IF(D19='المقابل النقدي للفنين'!$F$2,COUNTIF($D$4:D19,D19),"") ->  | B19: 202002 | C19: 22259 | D19: =VLOOKUP(data.f[[#This Row],[كود الشركة]],'التعامل المالي'!$B$3:$E$1478,3,FALSE) -> بنك مصر 1 | E19: عادل عبدالبر امين عبدالفتاح | F19: 27010061700711 | G19: فنى | I19: الثانية | J19: الثانية | K19: سروجى | L19: الاميرية | M19: =data.f[[#This Row],[كود الشركة]]&data.f[[#This Row],[اسم الموظف]]&data.f[[#This Row],[الشركة المدمجة]]&data.f[[#This Row],[الدرجة]]&data.f[[#This Row],[ترقية 7/2025]]&data.f[[#This Row],[الوظيفة]]&data.f[[#This Row],[مكان العمل]] -> 202002عادل عبدالبر امين عبدالفتاحالثانيةالثانيةسروجى الاميرية | N19: =IF(data.f[[#This Row],[ترقية 7/2025]]<>"","نعم","") -> نعم | O19: 1397.438 | P19: =IF(data.f[[#This Row],[استعلام ترقية]]="نعم",data.f[[#This Row],[الأجر الأساسي]]*110%+data.f[[#This Row],[الأجر الأساسي]]*7%,data.f[[#This Row],[الأجر الأساسي]]*110%) -> 1635.00246 | R19: =data.f[[#This Row],[أساسي 7/2025]]*135% -> 2207.253321 | S19: =data.f[[#This Row],[أساسي 7/2025]]*15% -> 245.250369 | T19: 0 | V19: =IF(data.f[[#This Row],[التصنيف الادارى]]="فنى",data.f[[#This Row],[أساسي 7/2025]]*15%,0) -> 245.250369 | W19: 300 | AH19: 0 | AI19: =SUM(data.f[[#This Row],[بدل مخاطر مواني 30%]:[بدل تباع]]) -> 545.250369 | AJ19: 48.99363 | AK19: 54.58533 | AL19: 65 | AM19: 0 | AN19: 190 | AO19: 27.93515 | AP19: 49.81769 | AQ19: 63.96592 | AR19: 91.25805 | AS19: 97.64611 | AT19: 104.4813 | AV19: 69.87189 | AW19: 600 | AX19: 10 | AY19: =SUM(data.f[[#This Row],[علاوة 2014]:[علاوة اجتماعية]]) -> 1473.55507 | AZ19: 10 | BB19: 294.1974 | BF19: =SUM(data.f[[#This Row],[أساسي 7/2025]:[حافز موانى]],data.f[[#This Row],[إجمالي بدلات]],data.f[[#This Row],[إجمالي علاوات]],data.f[[#This Row],[م. عيد العمال]:[متوسط المنحة]]) -> 6410.508989 | BG19: =IF(data.f[[#This Row],[الإجمالي]]<7000,7000-data.f[[#This Row],[الإجمالي]],0) -> 589.491011 | BH19: =SUM(data.f[[#This Row],[رد مستحقات]:[مكمل الأجر]]) -> 7000 | BL19: 18 | BM19: 18 | BN19: 531.6432129 | BR19: =((data.f[[#This Row],[إجمالي المستحق]]-(data.f[[#This Row],[الحافز]]+data.f[[#This Row],[عمود2]]+data.f[[#This Row],[متوسط المنحة]]))/30)*data.f[[#This Row],[أيام الغياب]] -> 0 | BS19: =(data.f[[#This Row],[عمود2]]/30)*data.f[[#This Row],[أيام الغياب]] -> 0 | BT19: =IF(data.f[[#This Row],[أيام الغياب]]=1,data.f[[#This Row],[الحافز]]*20%,IF(data.f[[#This Row],[أيام الغياب]]=2,data.f[[#This Row],[الحافز]]*30%,IF(data.f[[#This Row],[أيام الغياب]]>2,data.f[[#This Row],[الحافز]]*100%,""))) ->  | BU19: =IF(data.f[[#This Row],[عدد أيام الأجازات]]<=4,data.f[[#This Row],[الحافز]]*0,IF(data.f[[#This Row],[عدد أيام الأجازات]]=5,data.f[[#This Row],[الحافز]]*20%,IF(data.f[[#This Row],[عدد أيام الأجازات]]=6,data.f[[#This Row],[الحافز]]*40%,IF(data.f[[#This Row],[عدد أيام الأجازات]]=7,data.f[[#This Row],[الحافز]]*50%,IF(data.f[[#This Row],[عدد أيام الأجازات]]>7,data.f[[#This Row],[الحافز]]*100%,""))))) -> 0 | BV19: =IF(data.f[[#This Row],[أيام أجازات بعد السنوية]]<=2,data.f[[#This Row],[الحافز]]*0,IF(data.f[[#This Row],[أيام أجازات بعد السنوية]]=3,data.f[[#This Row],[الحافز]]*30%,IF(data.f[[#This Row],[أيام أجازات بعد السنوية]]=4,data.f[[#This Row],[الحافز]]*40%,IF(data.f[[#This Row],[أيام أجازات بعد السنوية]]=5,data.f[[#This Row],[الحافز]]*50%,IF(data.f[[#This Row],[أيام أجازات بعد السنوية]]>5,data.f[[#This Row],[الحافز]]*100%,""))))) -> 0 | BW19: 0 | BX19: 0 | BZ19: 3 | CA19: 0 | CK19: 5 | CT19: =data.f[[#This Row],[متوسط المنحة]] -> 294.1974 | CU19: =SUM(data.f[[#This Row],[تامينات 2025]:[عمود1]]) -> 539.6432129 | CV19: =data.f[[#This Row],[إجمالي المستحق]]-data.f[[#This Row],[إجمالي المستقطع]] -> 6460.356787
A20: =IF(D20='المقابل النقدي للفنين'!$F$2,COUNTIF($D$4:D20,D20),"") ->  | B20: 202003 | C20: 22280 | D20: =VLOOKUP(data.f[[#This Row],[كود الشركة]],'التعامل المالي'!$B$3:$E$1478,3,FALSE) -> بنك مصر 1 | E20: محمد عبد الفتاح على البربرى | F20: 27710110100379 | G20: فنى | I20: الثالثة | J20: الثالثة | K20: حرفي كهربائي | L20: فرع الزقازيق | M20: =data.f[[#This Row],[كود الشركة]]&data.f[[#This Row],[اسم الموظف]]&data.f[[#This Row],[الشركة المدمجة]]&data.f[[#This Row],[الدرجة]]&data.f[[#This Row],[ترقية 7/2025]]&data.f[[#This Row],[الوظيفة]]&data.f[[#This Row],[مكان العمل]] -> 202003محمد عبد الفتاح على البربرىالثالثةالثالثةحرفي كهربائي فرع الزقازيق | N20: =IF(data.f[[#This Row],[ترقية 7/2025]]<>"","نعم","") -> نعم | O20: 1365.973 | P20: =IF(data.f[[#This Row],[استعلام ترقية]]="نعم",data.f[[#This Row],[الأجر الأساسي]]*110%+data.f[[#This Row],[الأجر الأساسي]]*7%,data.f[[#This Row],[الأجر الأساسي]]*110%) -> 1598.18841 | R20: =data.f[[#This Row],[أساسي 7/2025]]*135% -> 2157.554354 | S20: =data.f[[#This Row],[أساسي 7/2025]]*15% -> 239.7282615 | T20: 0 | V20: =IF(data.f[[#This Row],[التصنيف الادارى]]="فنى",data.f[[#This Row],[أساسي 7/2025]]*15%,0) -> 239.7282615 | W20: 300 | AH20: 0 | AI20: =SUM(data.f[[#This Row],[بدل مخاطر مواني 30%]:[بدل تباع]]) -> 539.7282615 | AJ20: 47.60303 | AK20: 53.03779 | AL20: 65 | AM20: 0 | AN20: 200 | AO20: 27.30617 | AP20: 48.696 | AQ20: 62.52566 | AR20: 89.20328 | AS20: 95.44751 | AT20: 102.1288 | AV20: 68.29866 | AW20: 600 | AX20: 10 | AY20: =SUM(data.f[[#This Row],[علاوة 2014]:[علاوة اجتماعية]]) -> 1469.2469 | AZ20: 10 | BB20: 287.5733 | BF20: =SUM(data.f[[#This Row],[أساسي 7/2025]:[حافز موانى]],data.f[[#This Row],[إجمالي بدلات]],data.f[[#This Row],[إجمالي علاوات]],data.f[[#This Row],[م. عيد العمال]:[متوسط المنحة]]) -> 6302.019487 | BG20: =IF(data.f[[#This Row],[الإجمالي]]<7000,7000-data.f[[#This Row],[الإجمالي]],0) -> 697.9805135 | BH20: =SUM(data.f[[#This Row],[رد مستحقات]:[مكمل الأجر]]) -> 7000 | BL20: 18 | BM20: 18 | BN20: 546.1951172 | BR20: =((data.f[[#This Row],[إجمالي المستحق]]-(data.f[[#This Row],[الحافز]]+data.f[[#This Row],[عمود2]]+data.f[[#This Row],[متوسط المنحة]]))/30)*data.f[[#This Row],[أيام الغياب]] -> 0 | BS20: =(data.f[[#This Row],[عمود2]]/30)*data.f[[#This Row],[أيام الغياب]] -> 0 | BT20: =IF(data.f[[#This Row],[أيام الغياب]]=1,data.f[[#This Row],[الحافز]]*20%,IF(data.f[[#This Row],[أيام الغياب]]=2,data.f[[#This Row],[الحافز]]*30%,IF(data.f[[#This Row],[أيام الغياب]]>2,data.f[[#This Row],[الحافز]]*100%,""))) ->  | BU20: =IF(data.f[[#This Row],[عدد أيام الأجازات]]<=4,data.f[[#This Row],[الحافز]]*0,IF(data.f[[#This Row],[عدد أيام الأجازات]]=5,data.f[[#This Row],[الحافز]]*20%,IF(data.f[[#This Row],[عدد أيام الأجازات]]=6,data.f[[#This Row],[الحافز]]*40%,IF(data.f[[#This Row],[عدد أيام الأجازات]]=7,data.f[[#This Row],[الحافز]]*50%,IF(data.f[[#This Row],[عدد أيام الأجازات]]>7,data.f[[#This Row],[الحافز]]*100%,""))))) -> 0 | BV20: =IF(data.f[[#This Row],[أيام أجازات بعد السنوية]]<=2,data.f[[#This Row],[الحافز]]*0,IF(data.f[[#This Row],[أيام أجازات بعد السنوية]]=3,data.f[[#This Row],[الحافز]]*30%,IF(data.f[[#This Row],[أيام أجازات بعد السنوية]]=4,data.f[[#This Row],[الحافز]]*40%,IF(data.f[[#This Row],[أيام أجازات بعد السنوية]]=5,data.f[[#This Row],[الحافز]]*50%,IF(data.f[[#This Row],[أيام أجازات بعد السنوية]]>5,data.f[[#This Row],[الحافز]]*100%,""))))) -> 0 | BW20: 0 | BX20: 0 | BZ20: 3 | CA20: 0 | CK20: 5 | CT20: =data.f[[#This Row],[متوسط المنحة]] -> 287.5733 | CU20: =SUM(data.f[[#This Row],[تامينات 2025]:[عمود1]]) -> 554.1951172 | CV20: =data.f[[#This Row],[إجمالي المستحق]]-data.f[[#This Row],[إجمالي المستقطع]] -> 6445.804883
A21: =IF(D21='المقابل النقدي للفنين'!$F$2,COUNTIF($D$4:D21,D21),"") ->  | B21: 202004 | C21: 23294 | D21: =VLOOKUP(data.f[[#This Row],[كود الشركة]],'التعامل المالي'!$B$3:$E$1478,3,FALSE) -> بنك مصر 1 | E21: سيد صابر محمد امام | F21: 28410150103214 | G21: فنى | I21: الثانية | J21: الثانية | K21: فنى كهرباء | L21: الاميرية | M21: =data.f[[#This Row],[كود الشركة]]&data.f[[#This Row],[اسم الموظف]]&data.f[[#This Row],[الشركة المدمجة]]&data.f[[#This Row],[الدرجة]]&data.f[[#This Row],[ترقية 7/2025]]&data.f[[#This Row],[الوظيفة]]&data.f[[#This Row],[مكان العمل]] -> 202004سيد صابر محمد امامالثانيةالثانيةفنى كهرباء الاميرية | N21: =IF(data.f[[#This Row],[ترقية 7/2025]]<>"","نعم","") -> نعم | O21: 985.1828 | P21: =IF(data.f[[#This Row],[استعلام ترقية]]="نعم",data.f[[#This Row],[الأجر الأساسي]]*110%+data.f[[#This Row],[الأجر الأساسي]]*7%,data.f[[#This Row],[الأجر الأساسي]]*110%) -> 1152.663876 | R21: =data.f[[#This Row],[أساسي 7/2025]]*135% -> 1556.096233 | S21: =data.f[[#This Row],[أساسي 7/2025]]*15% -> 172.8995814 | T21: 0 | V21: =IF(data.f[[#This Row],[التصنيف الادارى]]="فنى",data.f[[#This Row],[أساسي 7/2025]]*15%,0) -> 172.8995814 | W21: 300 | AH21: 0 | AI21: =SUM(data.f[[#This Row],[بدل مخاطر مواني 30%]:[بدل تباع]]) -> 472.8995814 | AJ21: 34.04168 | AK21: 38.11584 | AL21: 65 | AM21: 0 | AN21: 190 | AO21: 29.04718 | AP21: 35.12109 | AQ21: 45.09547 | AR21: 64.3362 | AS21: 68.83974 | AT21: 85.55 | AV21: 51.48172 | AW21: 600 | AX21: 10 | AY21: =SUM(data.f[[#This Row],[علاوة 2014]:[علاوة اجتماعية]]) -> 1316.62892 | AZ21: 10 | BB21: 207.4069 | BF21: =SUM(data.f[[#This Row],[أساسي 7/2025]:[حافز موانى]],data.f[[#This Row],[إجمالي بدلات]],data.f[[#This Row],[إجمالي علاوات]],data.f[[#This Row],[م. عيد العمال]:[متوسط المنحة]]) -> 4888.595091 | BG21: =IF(data.f[[#This Row],[الإجمالي]]<7000,7000-data.f[[#This Row],[الإجمالي]],0) -> 2111.404909 | BH21: =SUM(data.f[[#This Row],[رد مستحقات]:[مكمل الأجر]]) -> 7000 | BL21: 18 | BM21: 18 | BN21: 530.3473828 | BR21: =((data.f[[#This Row],[إجمالي المستحق]]-(data.f[[#This Row],[الحافز]]+data.f[[#This Row],[عمود2]]+data.f[[#This Row],[متوسط المنحة]]))/30)*data.f[[#This Row],[أيام الغياب]] -> 0 | BS21: =(data.f[[#This Row],[عمود2]]/30)*data.f[[#This Row],[أيام الغياب]] -> 0 | BT21: =IF(data.f[[#This Row],[أيام الغياب]]=1,data.f[[#This Row],[الحافز]]*20%,IF(data.f[[#This Row],[أيام الغياب]]=2,data.f[[#This Row],[الحافز]]*30%,IF(data.f[[#This Row],[أيام الغياب]]>2,data.f[[#This Row],[الحافز]]*100%,""))) ->  | BU21: =IF(data.f[[#This Row],[عدد أيام الأجازات]]<=4,data.f[[#This Row],[الحافز]]*0,IF(data.f[[#This Row],[عدد أيام الأجازات]]=5,data.f[[#This Row],[الحافز]]*20%,IF(data.f[[#This Row],[عدد أيام الأجازات]]=6,data.f[[#This Row],[الحافز]]*40%,IF(data.f[[#This Row],[عدد أيام الأجازات]]=7,data.f[[#This Row],[الحافز]]*50%,IF(data.f[[#This Row],[عدد أيام الأجازات]]>7,data.f[[#This Row],[الحافز]]*100%,""))))) -> 0 | BV21: =IF(data.f[[#This Row],[أيام أجازات بعد السنوية]]<=2,data.f[[#This Row],[الحافز]]*0,IF(data.f[[#This Row],[أيام أجازات بعد السنوية]]=3,data.f[[#This Row],[الحافز]]*30%,IF(data.f[[#This Row],[أيام أجازات بعد السنوية]]=4,data.f[[#This Row],[الحافز]]*40%,IF(data.f[[#This Row],[أيام أجازات بعد السنوية]]=5,data.f[[#This Row],[الحافز]]*50%,IF(data.f[[#This Row],[أيام أجازات بعد السنوية]]>5,data.f[[#This Row],[الحافز]]*100%,""))))) -> 0 | BW21: 0 | BX21: 0 | BZ21: 3 | CA21: 0 | CK21: 5 | CT21: =data.f[[#This Row],[متوسط المنحة]] -> 207.4069 | CU21: =SUM(data.f[[#This Row],[تامينات 2025]:[عمود1]]) -> 538.3473828 | CV21: =data.f[[#This Row],[إجمالي المستحق]]-data.f[[#This Row],[إجمالي المستقطع]] -> 6461.652617
A22: =IF(D22='المقابل النقدي للفنين'!$F$2,COUNTIF($D$4:D22,D22),"") ->  | B22: 202005 | C22: 23295 | D22: =VLOOKUP(data.f[[#This Row],[كود الشركة]],'التعامل المالي'!$B$3:$E$1478,3,FALSE) -> بنك مصر 1 | E22: عطية عبده عطية محمدين | F22: 26804250102151 | G22: فنى | I22: الخامسة | J22: الخامسة | K22: حرفى ميكانيكى | L22: الاميرية | M22: =data.f[[#This Row],[كود الشركة]]&data.f[[#This Row],[اسم الموظف]]&data.f[[#This Row],[الشركة المدمجة]]&data.f[[#This Row],[الدرجة]]&data.f[[#This Row],[ترقية 7/2025]]&data.f[[#This Row],[الوظيفة]]&data.f[[#This Row],[مكان العمل]] -> 202005عطية عبده عطية محمدينالخامسةالخامسة حرفى ميكانيكىالاميرية | N22: =IF(data.f[[#This Row],[ترقية 7/2025]]<>"","نعم","") -> نعم | O22: 1040.884 | P22: =IF(data.f[[#This Row],[استعلام ترقية]]="نعم",data.f[[#This Row],[الأجر الأساسي]]*110%+data.f[[#This Row],[الأجر الأساسي]]*7%,data.f[[#This Row],[الأجر الأساسي]]*110%) -> 1217.83428 | R22: =data.f[[#This Row],[أساسي 7/2025]]*135% -> 1644.076278 | S22: =data.f[[#This Row],[أساسي 7/2025]]*15% -> 182.675142 | T22: 0 | V22: =IF(data.f[[#This Row],[التصنيف الادارى]]="فنى",data.f[[#This Row],[أساسي 7/2025]]*15%,0) -> 182.675142 | W22: 300 | AH22: 0 | AI22: =SUM(data.f[[#This Row],[بدل مخاطر مواني 30%]:[بدل تباع]]) -> 482.675142 | AJ22: 36.75438 | AK22: 40.88482 | AL22: 65 | AM22: 0 | AN22: 200 | AO22: 26.44905 | AP22: 37.1068 | AQ22: 47.64513 | AR22: 67.97372 | AS22: 72.73188 | AT22: 81.9 | AV22: 52.04421 | AW22: 600 | AX22: 10 | AY22: =SUM(data.f[[#This Row],[علاوة 2014]:[علاوة اجتماعية]]) -> 1338.48999 | AZ22: 10 | BB22: 219.1335 | BF22: =SUM(data.f[[#This Row],[أساسي 7/2025]:[حافز موانى]],data.f[[#This Row],[إجمالي بدلات]],data.f[[#This Row],[إجمالي علاوات]],data.f[[#This Row],[م. عيد العمال]:[متوسط المنحة]]) -> 5094.884332 | BG22: =IF(data.f[[#This Row],[الإجمالي]]<7000,7000-data.f[[#This Row],[الإجمالي]],0) -> 1905.115668 | BH22: =SUM(data.f[[#This Row],[رد مستحقات]:[مكمل الأجر]]) -> 7000 | BL22: 18 | BM22: 18 | BN22: 529.8194043 | BR22: =((data.f[[#This Row],[إجمالي المستحق]]-(data.f[[#This Row],[الحافز]]+data.f[[#This Row],[عمود2]]+data.f[[#This Row],[متوسط المنحة]]))/30)*data.f[[#This Row],[أيام الغياب]] -> 0 | BS22: =(data.f[[#This Row],[عمود2]]/30)*data.f[[#This Row],[أيام الغياب]] -> 0 | BT22: =IF(data.f[[#This Row],[أيام الغياب]]=1,data.f[[#This Row],[الحافز]]*20%,IF(data.f[[#This Row],[أيام الغياب]]=2,data.f[[#This Row],[الحافز]]*30%,IF(data.f[[#This Row],[أيام الغياب]]>2,data.f[[#This Row],[الحافز]]*100%,""))) ->  | BU22: =IF(data.f[[#This Row],[عدد أيام الأجازات]]<=4,data.f[[#This Row],[الحافز]]*0,IF(data.f[[#This Row],[عدد أيام الأجازات]]=5,data.f[[#This Row],[الحافز]]*20%,IF(data.f[[#This Row],[عدد أيام الأجازات]]=6,data.f[[#This Row],[الحافز]]*40%,IF(data.f[[#This Row],[عدد أيام الأجازات]]=7,data.f[[#This Row],[الحافز]]*50%,IF(data.f[[#This Row],[عدد أيام الأجازات]]>7,data.f[[#This Row],[الحافز]]*100%,""))))) -> 0 | BV22: =IF(data.f[[#This Row],[أيام أجازات بعد السنوية]]<=2,data.f[[#This Row],[الحافز]]*0,IF(data.f[[#This Row],[أيام أجازات بعد السنوية]]=3,data.f[[#This Row],[الحافز]]*30%,IF(data.f[[#This Row],[أيام أجازات بعد السنوية]]=4,data.f[[#This Row],[الحافز]]*40%,IF(data.f[[#This Row],[أيام أجازات بعد السنوية]]=5,data.f[[#This Row],[الحافز]]*50%,IF(data.f[[#This Row],[أيام أجازات بعد السنوية]]>5,data.f[[#This Row],[الحافز]]*100%,""))))) -> 0 | BW22: 0 | BX22: 0 | BZ22: 3 | CA22: 0 | CK22: 5 | CT22: =data.f[[#This Row],[متوسط المنحة]] -> 219.1335 | CU22: =SUM(data.f[[#This Row],[تامينات 2025]:[عمود1]]) -> 537.8194043 | CV22: =data.f[[#This Row],[إجمالي المستحق]]-data.f[[#This Row],[إجمالي المستقطع]] -> 6462.180596
A23: =IF(D23='المقابل النقدي للفنين'!$F$2,COUNTIF($D$4:D23,D23),"") -> 1 | B23: 202006 | C23: 22299 | D23: =VLOOKUP(data.f[[#This Row],[كود الشركة]],'التعامل المالي'!$B$3:$E$1478,3,FALSE) -> نقدى | E23: شعبان أحمد محمد عبد الرحمن | F23: 26512100105135 | G23: فنى | I23: الاولى | J23: الأولى | K23: حرفى ميكانيكى سيارات | L23: فرع الاميرية | M23: =data.f[[#This Row],[كود الشركة]]&data.f[[#This Row],[اسم الموظف]]&data.f[[#This Row],[الشركة المدمجة]]&data.f[[#This Row],[الدرجة]]&data.f[[#This Row],[ترقية 7/2025]]&data.f[[#This Row],[الوظيفة]]&data.f[[#This Row],[مكان العمل]] -> 202006شعبان أحمد محمد عبد الرحمنالاولىالأولىحرفى ميكانيكى سياراتفرع الاميرية | N23: =IF(data.f[[#This Row],[ترقية 7/2025]]<>"","نعم","") -> نعم | O23: 2337.418 | P23: =IF(data.f[[#This Row],[استعلام ترقية]]="نعم",data.f[[#This Row],[الأجر الأساسي]]*110%+data.f[[#This Row],[الأجر الأساسي]]*7%,data.f[[#This Row],[الأجر الأساسي]]*110%) -> 2734.77906 | R23: =data.f[[#This Row],[أساسي 7/2025]]*135% -> 3691.951731 | S23: =data.f[[#This Row],[أساسي 7/2025]]*15% -> 410.216859 | T23: 0 | V23: =IF(data.f[[#This Row],[التصنيف الادارى]]="فنى",data.f[[#This Row],[أساسي 7/2025]]*15%,0) -> 410.216859 | W23: 300 | AH23: 0 | AI23: =SUM(data.f[[#This Row],[بدل مخاطر مواني 30%]:[بدل تباع]]) -> 710.216859 | AJ23: 81.01429 | AK23: 90.46774 | AL23: 108.9407 | AM23: 0 | AN23: 190 | AO23: 46.72561 | AP23: 83.32735 | AQ23: 106.9923 | AR23: 152.6424 | AS23: 163.3273 | AT23: 174.7602 | AV23: 116.8709 | AW23: 600 | AX23: 10 | AY23: =SUM(data.f[[#This Row],[علاوة 2014]:[علاوة اجتماعية]]) -> 1925.06879 | AZ23: 10 | BB23: 492.088 | BF23: =SUM(data.f[[#This Row],[أساسي 7/2025]:[حافز موانى]],data.f[[#This Row],[إجمالي بدلات]],data.f[[#This Row],[إجمالي علاوات]],data.f[[#This Row],[م. عيد العمال]:[متوسط المنحة]]) -> 9974.321299 | BG23: =IF(data.f[[#This Row],[الإجمالي]]<7000,7000-data.f[[#This Row],[الإجمالي]],0) -> 0 | BH23: =SUM(data.f[[#This Row],[رد مستحقات]:[مكمل الأجر]]) -> 9974.321299 | BL23: 18 | BM23: 18 | BN23: 845.3708936 | BR23: =((data.f[[#This Row],[إجمالي المستحق]]-(data.f[[#This Row],[الحافز]]+data.f[[#This Row],[عمود2]]+data.f[[#This Row],[متوسط المنحة]]))/30)*data.f[[#This Row],[أيام الغياب]] -> 0 | BS23: =(data.f[[#This Row],[عمود2]]/30)*data.f[[#This Row],[أيام الغياب]] -> 0 | BT23: =IF(data.f[[#This Row],[أيام الغياب]]=1,data.f[[#This Row],[الحافز]]*20%,IF(data.f[[#This Row],[أيام الغياب]]=2,data.f[[#This Row],[الحافز]]*30%,IF(data.f[[#This Row],[أيام الغياب]]>2,data.f[[#This Row],[الحافز]]*100%,""))) ->  | BU23: =IF(data.f[[#This Row],[عدد أيام الأجازات]]<=4,data.f[[#This Row],[الحافز]]*0,IF(data.f[[#This Row],[عدد أيام الأجازات]]=5,data.f[[#This Row],[الحافز]]*20%,IF(data.f[[#This Row],[عدد أيام الأجازات]]=6,data.f[[#This Row],[الحافز]]*40%,IF(data.f[[#This Row],[عدد أيام الأجازات]]=7,data.f[[#This Row],[الحافز]]*50%,IF(data.f[[#This Row],[عدد أيام الأجازات]]>7,data.f[[#This Row],[الحافز]]*100%,""))))) -> 0 | BV23: =IF(data.f[[#This Row],[أيام أجازات بعد السنوية]]<=2,data.f[[#This Row],[الحافز]]*0,IF(data.f[[#This Row],[أيام أجازات بعد السنوية]]=3,data.f[[#This Row],[الحافز]]*30%,IF(data.f[[#This Row],[أيام أجازات بعد السنوية]]=4,data.f[[#This Row],[الحافز]]*40%,IF(data.f[[#This Row],[أيام أجازات بعد السنوية]]=5,data.f[[#This Row],[الحافز]]*50%,IF(data.f[[#This Row],[أيام أجازات بعد السنوية]]>5,data.f[[#This Row],[الحافز]]*100%,""))))) -> 0 | BW23: 0 | BX23: 0 | BZ23: 3 | CA23: 0 | CK23: 5 | CT23: =data.f[[#This Row],[متوسط المنحة]] -> 492.088 | CU23: =SUM(data.f[[#This Row],[تامينات 2025]:[عمود1]]) -> 853.3708936 | CV23: =data.f[[#This Row],[إجمالي المستحق]]-data.f[[#This Row],[إجمالي المستقطع]] -> 9120.950405
A24: =IF(D24='المقابل النقدي للفنين'!$F$2,COUNTIF($D$4:D24,D24),"") ->  | B24: 202007 | C24: 23321 | D24: =VLOOKUP(data.f[[#This Row],[كود الشركة]],'التعامل المالي'!$B$3:$E$1478,3,FALSE) -> بنك مصر 1 | E24: على عباس عبد الخالق احمد | F24: 26609292101671 | G24: فنى | I24: الثانية | J24: الثانية | K24: ميكانيكى | L24: الاميرية | M24: =data.f[[#This Row],[كود الشركة]]&data.f[[#This Row],[اسم الموظف]]&data.f[[#This Row],[الشركة المدمجة]]&data.f[[#This Row],[الدرجة]]&data.f[[#This Row],[ترقية 7/2025]]&data.f[[#This Row],[الوظيفة]]&data.f[[#This Row],[مكان العمل]] -> 202007على عباس عبد الخالق احمدالثانيةالثانيةميكانيكى الاميرية | N24: =IF(data.f[[#This Row],[ترقية 7/2025]]<>"","نعم","") -> نعم | O24: 2464.195 | P24: =IF(data.f[[#This Row],[استعلام ترقية]]="نعم",data.f[[#This Row],[الأجر الأساسي]]*110%+data.f[[#This Row],[الأجر الأساسي]]*7%,data.f[[#This Row],[الأجر الأساسي]]*110%) -> 2883.10815 | R24: =data.f[[#This Row],[أساسي 7/2025]]*135% -> 3892.196003 | S24: =data.f[[#This Row],[أساسي 7/2025]]*15% -> 432.4662225 | T24: 0 | V24: =IF(data.f[[#This Row],[التصنيف الادارى]]="فنى",data.f[[#This Row],[أساسي 7/2025]]*15%,0) -> 432.4662225 | W24: 300 | AH24: 0 | AI24: =SUM(data.f[[#This Row],[بدل مخاطر مواني 30%]:[بدل تباع]]) -> 732.4662225 | AJ24: 85.38567 | AK24: 95.37196 | AL24: 114.8779 | AM24: 0 | AN24: 190 | AO24: 49.25991 | AP24: 87.84685 | AQ24: 112.7953 | AR24: 160.9214 | AS24: 172.1859 | AT24: 184.2389 | AV24: 123.2097 | AW24: 600 | AX24: 8 | AY24: =SUM(data.f[[#This Row],[علاوة 2014]:[علاوة اجتماعية]]) -> 1984.09349 | AZ24: 10 | BB24: 518.7778 | BF24: =SUM(data.f[[#This Row],[أساسي 7/2025]:[حافز موانى]],data.f[[#This Row],[إجمالي بدلات]],data.f[[#This Row],[إجمالي علاوات]],data.f[[#This Row],[م. عيد العمال]:[متوسط المنحة]]) -> 10453.10789 | BG24: =IF(data.f[[#This Row],[الإجمالي]]<7000,7000-data.f[[#This Row],[الإجمالي]],0) -> 0 | BH24: =SUM(data.f[[#This Row],[رد مستحقات]:[مكمل الأجر]]) -> 10453.10789 | BL24: 18 | BM24: 18 | BN24: 912.1277344 | BR24: =((data.f[[#This Row],[إجمالي المستحق]]-(data.f[[#This Row],[الحافز]]+data.f[[#This Row],[عمود2]]+data.f[[#This Row],[متوسط المنحة]]))/30)*data.f[[#This Row],[أيام الغياب]] -> 0 | BS24: =(data.f[[#This Row],[عمود2]]/30)*data.f[[#This Row],[أيام الغياب]] -> 0 | BT24: =IF(data.f[[#This Row],[أيام الغياب]]=1,data.f[[#This Row],[الحافز]]*20%,IF(data.f[[#This Row],[أيام الغياب]]=2,data.f[[#This Row],[الحافز]]*30%,IF(data.f[[#This Row],[أيام الغياب]]>2,data.f[[#This Row],[الحافز]]*100%,""))) ->  | BU24: =IF(data.f[[#This Row],[عدد أيام الأجازات]]<=4,data.f[[#This Row],[الحافز]]*0,IF(data.f[[#This Row],[عدد أيام الأجازات]]=5,data.f[[#This Row],[الحافز]]*20%,IF(data.f[[#This Row],[عدد أيام الأجازات]]=6,data.f[[#This Row],[الحافز]]*40%,IF(data.f[[#This Row],[عدد أيام الأجازات]]=7,data.f[[#This Row],[الحافز]]*50%,IF(data.f[[#This Row],[عدد أيام الأجازات]]>7,data.f[[#This Row],[الحافز]]*100%,""))))) -> 0 | BV24: =IF(data.f[[#This Row],[أيام أجازات بعد السنوية]]<=2,data.f[[#This Row],[الحافز]]*0,IF(data.f[[#This Row],[أيام أجازات بعد السنوية]]=3,data.f[[#This Row],[الحافز]]*30%,IF(data.f[[#This Row],[أيام أجازات بعد السنوية]]=4,data.f[[#This Row],[الحافز]]*40%,IF(data.f[[#This Row],[أيام أجازات بعد السنوية]]=5,data.f[[#This Row],[الحافز]]*50%,IF(data.f[[#This Row],[أيام أجازات بعد السنوية]]>5,data.f[[#This Row],[الحافز]]*100%,""))))) -> 0 | BW24: 0 | BX24: 0 | BZ24: 3 | CA24: 0 | CK24: 5 | CT24: =data.f[[#This Row],[متوسط المنحة]] -> 518.7778 | CU24: =SUM(data.f[[#This Row],[تامينات 2025]:[عمود1]]) -> 920.1277344 | CV24: =data.f[[#This Row],[إجمالي المستحق]]-data.f[[#This Row],[إجمالي المستقطع]] -> 9532.980153
A25: =IF(D25='المقابل النقدي للفنين'!$F$2,COUNTIF($D$4:D25,D25),"") ->  | B25: 202008 | C25: 23327 | D25: =VLOOKUP(data.f[[#This Row],[كود الشركة]],'التعامل المالي'!$B$3:$E$1478,3,FALSE) -> بنك مصر 1 | E25: صبحى محمد سيد احمد | F25: 26603230103318 | G25: فنى | I25: الاولى | J25: الأولى | K25: حرفى ميكانيكى سيارات | L25: فرع الاميرية | M25: =data.f[[#This Row],[كود الشركة]]&data.f[[#This Row],[اسم الموظف]]&data.f[[#This Row],[الشركة المدمجة]]&data.f[[#This Row],[الدرجة]]&data.f[[#This Row],[ترقية 7/2025]]&data.f[[#This Row],[الوظيفة]]&data.f[[#This Row],[مكان العمل]] -> 202008صبحى محمد سيد احمدالاولىالأولىحرفى ميكانيكى سياراتفرع الاميرية | N25: =IF(data.f[[#This Row],[ترقية 7/2025]]<>"","نعم","") -> نعم | O25: 2390.469 | P25: =IF(data.f[[#This Row],[استعلام ترقية]]="نعم",data.f[[#This Row],[الأجر الأساسي]]*110%+data.f[[#This Row],[الأجر الأساسي]]*7%,data.f[[#This Row],[الأجر الأساسي]]*110%) -> 2796.84873 | R25: =data.f[[#This Row],[أساسي 7/2025]]*135% -> 3775.745786 | S25: =data.f[[#This Row],[أساسي 7/2025]]*15% -> 419.5273095 | T25: 0 | V25: =IF(data.f[[#This Row],[التصنيف الادارى]]="فنى",data.f[[#This Row],[أساسي 7/2025]]*15%,0) -> 419.5273095 | W25: 300 | AH25: 0 | AI25: =SUM(data.f[[#This Row],[بدل مخاطر مواني 30%]:[بدل تباع]]) -> 719.5273095 | AJ25: 83.3969 | AK25: 93.12494 | AL25: 111.3261 | AM25: 0 | AN25: 190 | AO25: 47.78612 | AP25: 85.21858 | AQ25: 109.4207 | AR25: 156.1068 | AS25: 167.0343 | AT25: 178.7267 | AV25: 119.5235 | AW25: 600 | AX25: 6 | AY25: =SUM(data.f[[#This Row],[علاوة 2014]:[علاوة اجتماعية]]) -> 1947.66464 | AZ25: 10 | BB25: 503.2567 | BF25: =SUM(data.f[[#This Row],[أساسي 7/2025]:[حافز موانى]],data.f[[#This Row],[إجمالي بدلات]],data.f[[#This Row],[إجمالي علاوات]],data.f[[#This Row],[م. عيد العمال]:[متوسط المنحة]]) -> 10172.57047 | BG25: =IF(data.f[[#This Row],[الإجمالي]]<7000,7000-data.f[[#This Row],[الإجمالي]],0) -> 0 | BH25: =SUM(data.f[[#This Row],[رد مستحقات]:[مكمل الأجر]]) -> 10172.57047 | BL25: 18 | BM25: 18 | BN25: 887.327085 | BR25: =((data.f[[#This Row],[إجمالي المستحق]]-(data.f[[#This Row],[الحافز]]+data.f[[#This Row],[عمود2]]+data.f[[#This Row],[متوسط المنحة]]))/30)*data.f[[#This Row],[أيام الغياب]] -> 0 | BS25: =(data.f[[#This Row],[عمود2]]/30)*data.f[[#This Row],[أيام الغياب]] -> 0 | BT25: =IF(data.f[[#This Row],[أيام الغياب]]=1,data.f[[#This Row],[الحافز]]*20%,IF(data.f[[#This Row],[أيام الغياب]]=2,data.f[[#This Row],[الحافز]]*30%,IF(data.f[[#This Row],[أيام الغياب]]>2,data.f[[#This Row],[الحافز]]*100%,""))) ->  | BU25: =IF(data.f[[#This Row],[عدد أيام الأجازات]]<=4,data.f[[#This Row],[الحافز]]*0,IF(data.f[[#This Row],[عدد أيام الأجازات]]=5,data.f[[#This Row],[الحافز]]*20%,IF(data.f[[#This Row],[عدد أيام الأجازات]]=6,data.f[[#This Row],[الحافز]]*40%,IF(data.f[[#This Row],[عدد أيام الأجازات]]=7,data.f[[#This Row],[الحافز]]*50%,IF(data.f[[#This Row],[عدد أيام الأجازات]]>7,data.f[[#This Row],[الحافز]]*100%,""))))) -> 0 | BV25: =IF(data.f[[#This Row],[أيام أجازات بعد السنوية]]<=2,data.f[[#This Row],[الحافز]]*0,IF(data.f[[#This Row],[أيام أجازات بعد السنوية]]=3,data.f[[#This Row],[الحافز]]*30%,IF(data.f[[#This Row],[أيام أجازات بعد السنوية]]=4,data.f[[#This Row],[الحافز]]*40%,IF(data.f[[#This Row],[أيام أجازات بعد السنوية]]=5,data.f[[#This Row],[الحافز]]*50%,IF(data.f[[#This Row],[أيام أجازات بعد السنوية]]>5,data.f[[#This Row],[الحافز]]*100%,""))))) -> 0 | BW25: 0 | BX25: 0 | BZ25: 3 | CA25: 0 | CK25: 5 | CT25: =data.f[[#This Row],[متوسط المنحة]] -> 503.2567 | CU25: =SUM(data.f[[#This Row],[تامينات 2025]:[عمود1]]) -> 895.327085 | CV25: =data.f[[#This Row],[إجمالي المستحق]]-data.f[[#This Row],[إجمالي المستقطع]] -> 9277.24339
A26: =IF(D26='المقابل النقدي للفنين'!$F$2,COUNTIF($D$4:D26,D26),"") ->  | B26: 202009 | D26: =VLOOKUP(data.f[[#This Row],[كود الشركة]],'التعامل المالي'!$B$3:$E$1478,3,FALSE) ->  | E26: اشرف عبد الفتاح عبد الحليم | F26: 26701091401432 | M26: =data.f[[#This Row],[كود الشركة]]&data.f[[#This Row],[اسم الموظف]]&data.f[[#This Row],[الشركة المدمجة]]&data.f[[#This Row],[الدرجة]]&data.f[[#This Row],[ترقية 7/2025]]&data.f[[#This Row],[الوظيفة]]&data.f[[#This Row],[مكان العمل]] -> 202009اشرف عبد الفتاح عبد الحليم | N26: =IF(data.f[[#This Row],[ترقية 7/2025]]<>"","نعم","") ->  | O26: 2333.503 | P26: =IF(data.f[[#This Row],[استعلام ترقية]]="نعم",data.f[[#This Row],[الأجر الأساسي]]*110%+data.f[[#This Row],[الأجر الأساسي]]*7%,data.f[[#This Row],[الأجر الأساسي]]*110%) -> 2566.8533 | R26: =data.f[[#This Row],[أساسي 7/2025]]*135% -> 3465.251955 | S26: =data.f[[#This Row],[أساسي 7/2025]]*15% -> 385.027995 | T26: 0 | V26: =IF(data.f[[#This Row],[التصنيف الادارى]]="فنى",data.f[[#This Row],[أساسي 7/2025]]*15%,0) ->  | W26: 300 | AH26: 0 | AI26: =SUM(data.f[[#This Row],[بدل مخاطر مواني 30%]:[بدل تباع]]) ->  | AY26: =SUM(data.f[[#This Row],[علاوة 2014]:[علاوة اجتماعية]]) -> 0 | AZ26: 10 | BF26: =SUM(data.f[[#This Row],[أساسي 7/2025]:[حافز موانى]],data.f[[#This Row],[إجمالي بدلات]],data.f[[#This Row],[إجمالي علاوات]],data.f[[#This Row],[م. عيد العمال]:[متوسط المنحة]]) ->  | BG26: =IF(data.f[[#This Row],[الإجمالي]]<7000,7000-data.f[[#This Row],[الإجمالي]],0) ->  | BH26: =SUM(data.f[[#This Row],[رد مستحقات]:[مكمل الأجر]]) ->  | BL26: 18 | BM26: 18 | BR26: =((data.f[[#This Row],[إجمالي المستحق]]-(data.f[[#This Row],[الحافز]]+data.f[[#This Row],[عمود2]]+data.f[[#This Row],[متوسط المنحة]]))/30)*data.f[[#This Row],[أيام الغياب]] ->  | BS26: =(data.f[[#This Row],[عمود2]]/30)*data.f[[#This Row],[أيام الغياب]] -> 0 | BT26: =IF(data.f[[#This Row],[أيام الغياب]]=1,data.f[[#This Row],[الحافز]]*20%,IF(data.f[[#This Row],[أيام الغياب]]=2,data.f[[#This Row],[الحافز]]*30%,IF(data.f[[#This Row],[أيام الغياب]]>2,data.f[[#This Row],[الحافز]]*100%,""))) ->  | BU26: =IF(data.f[[#This Row],[عدد أيام الأجازات]]<=4,data.f[[#This Row],[الحافز]]*0,IF(data.f[[#This Row],[عدد أيام الأجازات]]=5,data.f[[#This Row],[الحافز]]*20%,IF(data.f[[#This Row],[عدد أيام الأجازات]]=6,data.f[[#This Row],[الحافز]]*40%,IF(data.f[[#This Row],[عدد أيام الأجازات]]=7,data.f[[#This Row],[الحافز]]*50%,IF(data.f[[#This Row],[عدد أيام الأجازات]]>7,data.f[[#This Row],[الحافز]]*100%,""))))) -> 0 | BV26: =IF(data.f[[#This Row],[أيام أجازات بعد السنوية]]<=2,data.f[[#This Row],[الحافز]]*0,IF(data.f[[#This Row],[أيام أجازات بعد السنوية]]=3,data.f[[#This Row],[الحافز]]*30%,IF(data.f[[#This Row],[أيام أجازات بعد السنوية]]=4,data.f[[#This Row],[الحافز]]*40%,IF(data.f[[#This Row],[أيام أجازات بعد السنوية]]=5,data.f[[#This Row],[الحافز]]*50%,IF(data.f[[#This Row],[أيام أجازات بعد السنوية]]>5,data.f[[#This Row],[الحافز]]*100%,""))))) -> 0 | BZ26: 3 | CT26: =data.f[[#This Row],[متوسط المنحة]] ->  | CU26: =SUM(data.f[[#This Row],[تامينات 2025]:[عمود1]]) ->  | CV26: =data.f[[#This Row],[إجمالي المستحق]]-data.f[[#This Row],[إجمالي المستقطع]] -> 
A27: =IF(D27='المقابل النقدي للفنين'!$F$2,COUNTIF($D$4:D27,D27),"") ->  | B27: 202010 | C27: 23354 | D27: =VLOOKUP(data.f[[#This Row],[كود الشركة]],'التعامل المالي'!$B$3:$E$1478,3,FALSE) -> بنك مصر 1 | E27: اشرف احمد عبد الحميد موافى | F27: 26805310101091 | G27: فنى | I27: الاولى | J27: الأولى | K27: حرفى ميكانيكى سيارات | L27: فرع الاميرية | M27: =data.f[[#This Row],[كود الشركة]]&data.f[[#This Row],[اسم الموظف]]&data.f[[#This Row],[الشركة المدمجة]]&data.f[[#This Row],[الدرجة]]&data.f[[#This Row],[ترقية 7/2025]]&data.f[[#This Row],[الوظيفة]]&data.f[[#This Row],[مكان العمل]] -> 202010اشرف احمد عبد الحميد موافىالاولىالأولىحرفى ميكانيكى سياراتفرع الاميرية | N27: =IF(data.f[[#This Row],[ترقية 7/2025]]<>"","نعم","") -> نعم | O27: 2235.182 | P27: =IF(data.f[[#This Row],[استعلام ترقية]]="نعم",data.f[[#This Row],[الأجر الأساسي]]*110%+data.f[[#This Row],[الأجر الأساسي]]*7%,data.f[[#This Row],[الأجر الأساسي]]*110%) -> 2615.16294 | R27: =data.f[[#This Row],[أساسي 7/2025]]*135% -> 3530.469969 | S27: =data.f[[#This Row],[أساسي 7/2025]]*15% -> 392.274441 | T27: 0 | V27: =IF(data.f[[#This Row],[التصنيف الادارى]]="فنى",data.f[[#This Row],[أساسي 7/2025]]*15%,0) -> 392.274441 | W27: 300 | AH27: 0 | AI27: =SUM(data.f[[#This Row],[بدل مخاطر مواني 30%]:[بدل تباع]]) -> 692.274441 | AJ27: 78.01244 | AK27: 87.0984 | AL27: 104.0814 | AM27: 0 | AN27: 190 | AO27: 44.68188 | AP27: 79.68269 | AQ27: 102.3126 | AR27: 145.9659 | AS27: 156.1835 | AT27: 167.1164 | AV27: 111.7591 | AW27: 600 | AX27: 4 | AY27: =SUM(data.f[[#This Row],[علاوة 2014]:[علاوة اجتماعية]]) -> 1870.89431 | AZ27: 10 | BB27: 470.5646 | BF27: =SUM(data.f[[#This Row],[أساسي 7/2025]:[حافز موانى]],data.f[[#This Row],[إجمالي بدلات]],data.f[[#This Row],[إجمالي علاوات]],data.f[[#This Row],[م. عيد العمال]:[متوسط المنحة]]) -> 9581.640701 | BG27: =IF(data.f[[#This Row],[الإجمالي]]<7000,7000-data.f[[#This Row],[الإجمالي]],0) -> 0 | BH27: =SUM(data.f[[#This Row],[رد مستحقات]:[مكمل الأجر]]) -> 9581.640701 | BL27: 18 | BM27: 18 | BN27: 835.1892871 | BR27: =((data.f[[#This Row],[إجمالي المستحق]]-(data.f[[#This Row],[الحافز]]+data.f[[#This Row],[عمود2]]+data.f[[#This Row],[متوسط المنحة]]))/30)*data.f[[#This Row],[أيام الغياب]] -> 0 | BS27: =(data.f[[#This Row],[عمود2]]/30)*data.f[[#This Row],[أيام الغياب]] -> 0 | BT27: =IF(data.f[[#This Row],[أيام الغياب]]=1,data.f[[#This Row],[الحافز]]*20%,IF(data.f[[#This Row],[أيام الغياب]]=2,data.f[[#This Row],[الحافز]]*30%,IF(data.f[[#This Row],[أيام الغياب]]>2,data.f[[#This Row],[الحافز]]*100%,""))) ->  | BU27: =IF(data.f[[#This Row],[عدد أيام الأجازات]]<=4,data.f[[#This Row],[الحافز]]*0,IF(data.f[[#This Row],[عدد أيام الأجازات]]=5,data.f[[#This Row],[الحافز]]*20%,IF(data.f[[#This Row],[عدد أيام الأجازات]]=6,data.f[[#This Row],[الحافز]]*40%,IF(data.f[[#This Row],[عدد أيام الأجازات]]=7,data.f[[#This Row],[الحافز]]*50%,IF(data.f[[#This Row],[عدد أيام الأجازات]]>7,data.f[[#This Row],[الحافز]]*100%,""))))) -> 0 | BV27: =IF(data.f[[#This Row],[أيام أجازات بعد السنوية]]<=2,data.f[[#This Row],[الحافز]]*0,IF(data.f[[#This Row],[أيام أجازات بعد السنوية]]=3,data.f[[#This Row],[الحافز]]*30%,IF(data.f[[#This Row],[أيام أجازات بعد السنوية]]=4,data.f[[#This Row],[الحافز]]*40%,IF(data.f[[#This Row],[أيام أجازات بعد السنوية]]=5,data.f[[#This Row],[الحافز]]*50%,IF(data.f[[#This Row],[أيام أجازات بعد السنوية]]>5,data.f[[#This Row],[الحافز]]*100%,""))))) -> 0 | BW27: 0 | BX27: 0 | BZ27: 3 | CA27: 0 | CK27: 5 | CT27: =data.f[[#This Row],[متوسط المنحة]] -> 470.5646 | CU27: =SUM(data.f[[#This Row],[تامينات 2025]:[عمود1]]) -> 843.1892871 | CV27: =data.f[[#This Row],[إجمالي المستحق]]-data.f[[#This Row],[إجمالي المستقطع]] -> 8738.451414
A28: =IF(D28='المقابل النقدي للفنين'!$F$2,COUNTIF($D$4:D28,D28),"") ->  | B28: 202011 | C28: 23364 | D28: =VLOOKUP(data.f[[#This Row],[كود الشركة]],'التعامل المالي'!$B$3:$E$1478,3,FALSE) -> بنك مصر 1 | E28: محمد احمد عبد الرحيم حسن | F28: 26709060101571 | G28: فنى | I28: الاولى | J28: الأولى | K28: حرفى كهربائى | L28: فرع الاميرية | M28: =data.f[[#This Row],[كود الشركة]]&data.f[[#This Row],[اسم الموظف]]&data.f[[#This Row],[الشركة المدمجة]]&data.f[[#This Row],[الدرجة]]&data.f[[#This Row],[ترقية 7/2025]]&data.f[[#This Row],[الوظيفة]]&data.f[[#This Row],[مكان العمل]] -> 202011محمد احمد عبد الرحيم حسنالاولىالأولىحرفى كهربائى فرع الاميرية | N28: =IF(data.f[[#This Row],[ترقية 7/2025]]<>"","نعم","") -> نعم | O28: 2171.555 | P28: =IF(data.f[[#This Row],[استعلام ترقية]]="نعم",data.f[[#This Row],[الأجر الأساسي]]*110%+data.f[[#This Row],[الأجر الأساسي]]*7%,data.f[[#This Row],[الأجر الأساسي]]*110%) -> 2540.71935 | R28: =data.f[[#This Row],[أساسي 7/2025]]*135% -> 3429.971123 | S28: =data.f[[#This Row],[أساسي 7/2025]]*15% -> 381.1079025 | T28: 0 | V28: =IF(data.f[[#This Row],[التصنيف الادارى]]="فنى",data.f[[#This Row],[أساسي 7/2025]]*15%,0) -> 381.1079025 | W28: 300 | AH28: 0 | AI28: =SUM(data.f[[#This Row],[بدل مخاطر مواني 30%]:[بدل تباع]]) -> 681.1079025 | AJ28: 75.30946 | AK28: 84.09178 | AL28: 101.2115 | AM28: 0 | AN28: 190 | AO28: 43.40996 | AP28: 77.41443 | AQ28: 99.40013 | AR28: 141.8109 | AS28: 151.7376 | AT28: 162.3592 | AV28: 108.5777 | AW28: 600 | AX28: 10 | AY28: =SUM(data.f[[#This Row],[علاوة 2014]:[علاوة اجتماعية]]) -> 1845.32266 | AZ28: 10 | BB28: 457.1694 | BF28: =SUM(data.f[[#This Row],[أساسي 7/2025]:[حافز موانى]],data.f[[#This Row],[إجمالي بدلات]],data.f[[#This Row],[إجمالي علاوات]],data.f[[#This Row],[م. عيد العمال]:[متوسط المنحة]]) -> 9345.398338 | BG28: =IF(data.f[[#This Row],[الإجمالي]]<7000,7000-data.f[[#This Row],[الإجمالي]],0) -> 0 | BH28: =SUM(data.f[[#This Row],[رد مستحقات]:[مكمل الأجر]]) -> 9345.398338 | BL28: 18 | BM28: 18 | BN28: 814.4586914 | BR28: =((data.f[[#This Row],[إجمالي المستحق]]-(data.f[[#This Row],[الحافز]]+data.f[[#This Row],[عمود2]]+data.f[[#This Row],[متوسط المنحة]]))/30)*data.f[[#This Row],[أيام الغياب]] -> 0 | BS28: =(data.f[[#This Row],[عمود2]]/30)*data.f[[#This Row],[أيام الغياب]] -> 0 | BT28: =IF(data.f[[#This Row],[أيام الغياب]]=1,data.f[[#This Row],[الحافز]]*20%,IF(data.f[[#This Row],[أيام الغياب]]=2,data.f[[#This Row],[الحافز]]*30%,IF(data.f[[#This Row],[أيام الغياب]]>2,data.f[[#This Row],[الحافز]]*100%,""))) ->  | BU28: =IF(data.f[[#This Row],[عدد أيام الأجازات]]<=4,data.f[[#This Row],[الحافز]]*0,IF(data.f[[#This Row],[عدد أيام الأجازات]]=5,data.f[[#This Row],[الحافز]]*20%,IF(data.f[[#This Row],[عدد أيام الأجازات]]=6,data.f[[#This Row],[الحافز]]*40%,IF(data.f[[#This Row],[عدد أيام الأجازات]]=7,data.f[[#This Row],[الحافز]]*50%,IF(data.f[[#This Row],[عدد أيام الأجازات]]>7,data.f[[#This Row],[الحافز]]*100%,""))))) -> 0 | BV28: =IF(data.f[[#This Row],[أيام أجازات بعد السنوية]]<=2,data.f[[#This Row],[الحافز]]*0,IF(data.f[[#This Row],[أيام أجازات بعد السنوية]]=3,data.f[[#This Row],[الحافز]]*30%,IF(data.f[[#This Row],[أيام أجازات بعد السنوية]]=4,data.f[[#This Row],[الحافز]]*40%,IF(data.f[[#This Row],[أيام أجازات بعد السنوية]]=5,data.f[[#This Row],[الحافز]]*50%,IF(data.f[[#This Row],[أيام أجازات بعد السنوية]]>5,data.f[[#This Row],[الحافز]]*100%,""))))) -> 0 | BW28: 0 | BX28: 5.1 | BZ28: 3 | CA28: 0 | CK28: 5 | CT28: =data.f[[#This Row],[متوسط المنحة]] -> 457.1694 | CU28: =SUM(data.f[[#This Row],[تامينات 2025]:[عمود1]]) -> 827.5586914 | CV28: =data.f[[#This Row],[إجمالي المستحق]]-data.f[[#This Row],[إجمالي المستقطع]] -> 8517.839646
A29: =IF(D29='المقابل النقدي للفنين'!$F$2,COUNTIF($D$4:D29,D29),"") ->  | B29: 202012 | C29: 23388 | D29: =VLOOKUP(data.f[[#This Row],[كود الشركة]],'التعامل المالي'!$B$3:$E$1478,3,FALSE) -> بنك مصر 1 | E29: جمال محمد عامر مسعود | F29: 26610171700613 | G29: فنى | I29: الاولى | J29: الأولى | K29: حرفى عامل كاوتش | L29: فرع الاميرية | M29: =data.f[[#This Row],[كود الشركة]]&data.f[[#This Row],[اسم الموظف]]&data.f[[#This Row],[الشركة المدمجة]]&data.f[[#This Row],[الدرجة]]&data.f[[#This Row],[ترقية 7/2025]]&data.f[[#This Row],[الوظيفة]]&data.f[[#This Row],[مكان العمل]] -> 202012جمال محمد عامر مسعودالاولىالأولىحرفى عامل كاوتشفرع الاميرية | N29: =IF(data.f[[#This Row],[ترقية 7/2025]]<>"","نعم","") -> نعم | O29: 2219.658 | P29: =IF(data.f[[#This Row],[استعلام ترقية]]="نعم",data.f[[#This Row],[الأجر الأساسي]]*110%+data.f[[#This Row],[الأجر الأساسي]]*7%,data.f[[#This Row],[الأجر الأساسي]]*110%) -> 2596.99986 | R29: =data.f[[#This Row],[أساسي 7/2025]]*135% -> 3505.949811 | S29: =data.f[[#This Row],[أساسي 7/2025]]*15% -> 389.549979 | T29: 0 | V29: =IF(data.f[[#This Row],[التصنيف الادارى]]="فنى",data.f[[#This Row],[أساسي 7/2025]]*15%,0) -> 389.549979 | W29: 300 | AH29: 0 | AI29: =SUM(data.f[[#This Row],[بدل مخاطر مواني 30%]:[بدل تباع]]) -> 689.549979 | AJ29: 76.96461 | AK29: 85.94413 | AL29: 103.4571 | AM29: 0 | AN29: 190 | AO29: 44.37156 | AP29: 79.12929 | AQ29: 101.602 | AR29: 144.9522 | AS29: 155.0988 | AT29: 165.9558 | AV29: 110.9829 | AW29: 600 | AX29: 10 | AY29: =SUM(data.f[[#This Row],[علاوة 2014]:[علاوة اجتماعية]]) -> 1868.45839 | AZ29: 10 | BB29: 467.2965 | BF29: =SUM(data.f[[#This Row],[أساسي 7/2025]:[حافز موانى]],data.f[[#This Row],[إجمالي بدلات]],data.f[[#This Row],[إجمالي علاوات]],data.f[[#This Row],[م. عيد العمال]:[متوسط المنحة]]) -> 9527.804519 | BG29: =IF(data.f[[#This Row],[الإجمالي]]<7000,7000-data.f[[#This Row],[الإجمالي]],0) -> 0 | BH29: =SUM(data.f[[#This Row],[رد مستحقات]:[مكمل الأجر]]) -> 9527.804519 | BL29: 18 | BM29: 18 | BN29: 830.5495215 | BR29: =((data.f[[#This Row],[إجمالي المستحق]]-(data.f[[#This Row],[الحافز]]+data.f[[#This Row],[عمود2]]+data.f[[#This Row],[متوسط المنحة]]))/30)*data.f[[#This Row],[أيام الغياب]] -> 0 | BS29: =(data.f[[#This Row],[عمود2]]/30)*data.f[[#This Row],[أيام الغياب]] -> 0 | BT29: =IF(data.f[[#This Row],[أيام الغياب]]=1,data.f[[#This Row],[الحافز]]*20%,IF(data.f[[#This Row],[أيام الغياب]]=2,data.f[[#This Row],[الحافز]]*30%,IF(data.f[[#This Row],[أيام الغياب]]>2,data.f[[#This Row],[الحافز]]*100%,""))) ->  | BU29: =IF(data.f[[#This Row],[عدد أيام الأجازات]]<=4,data.f[[#This Row],[الحافز]]*0,IF(data.f[[#This Row],[عدد أيام الأجازات]]=5,data.f[[#This Row],[الحافز]]*20%,IF(data.f[[#This Row],[عدد أيام الأجازات]]=6,data.f[[#This Row],[الحافز]]*40%,IF(data.f[[#This Row],[عدد أيام الأجازات]]=7,data.f[[#This Row],[الحافز]]*50%,IF(data.f[[#This Row],[عدد أيام الأجازات]]>7,data.f[[#This Row],[الحافز]]*100%,""))))) -> 0 | BV29: =IF(data.f[[#This Row],[أيام أجازات بعد السنوية]]<=2,data.f[[#This Row],[الحافز]]*0,IF(data.f[[#This Row],[أيام أجازات بعد السنوية]]=3,data.f[[#This Row],[الحافز]]*30%,IF(data.f[[#This Row],[أيام أجازات بعد السنوية]]=4,data.f[[#This Row],[الحافز]]*40%,IF(data.f[[#This Row],[أيام أجازات بعد السنوية]]=5,data.f[[#This Row],[الحافز]]*50%,IF(data.f[[#This Row],[أيام أجازات بعد السنوية]]>5,data.f[[#This Row],[الحافز]]*100%,""))))) -> 0 | BW29: 0 | BX29: 0 | BZ29: 3 | CA29: 0 | CK29: 5 | CT29: =data.f[[#This Row],[متوسط المنحة]] -> 467.2965 | CU29: =SUM(data.f[[#This Row],[تامينات 2025]:[عمود1]]) -> 838.5495215 | CV29: =data.f[[#This Row],[إجمالي المستحق]]-data.f[[#This Row],[إجمالي المستقطع]] -> 8689.254998
A30: =IF(D30='المقابل النقدي للفنين'!$F$2,COUNTIF($D$4:D30,D30),"") ->  | B30: 202013 | C30: 23404 | D30: =VLOOKUP(data.f[[#This Row],[كود الشركة]],'التعامل المالي'!$B$3:$E$1478,3,FALSE) -> بنك مصر 1 | E30: عادل شوقي عبده محمد | F30: 27012241400654 | G30: فنى | I30: الثالثة | J30: الثالثة | K30: حرفى عامل كاوتش | L30: فرع المنيا | M30: =data.f[[#This Row],[كود الشركة]]&data.f[[#This Row],[اسم الموظف]]&data.f[[#This Row],[الشركة المدمجة]]&data.f[[#This Row],[الدرجة]]&data.f[[#This Row],[ترقية 7/2025]]&data.f[[#This Row],[الوظيفة]]&data.f[[#This Row],[مكان العمل]] -> 202013عادل شوقي عبده محمدالثالثةالثالثةحرفى عامل كاوتش فرع المنيا | N30: =IF(data.f[[#This Row],[ترقية 7/2025]]<>"","نعم","") -> نعم | O30: 1999.766 | P30: =IF(data.f[[#This Row],[استعلام ترقية]]="نعم",data.f[[#This Row],[الأجر الأساسي]]*110%+data.f[[#This Row],[الأجر الأساسي]]*7%,data.f[[#This Row],[الأجر الأساسي]]*110%) -> 2339.72622 | R30: =data.f[[#This Row],[أساسي 7/2025]]*135% -> 3158.630397 | S30: =data.f[[#This Row],[أساسي 7/2025]]*15% -> 350.958933 | T30: 0 | V30: =IF(data.f[[#This Row],[التصنيف الادارى]]="فنى",data.f[[#This Row],[أساسي 7/2025]]*15%,0) -> 350.958933 | W30: 300 | AH30: 0 | AI30: =SUM(data.f[[#This Row],[بدل مخاطر مواني 30%]:[بدل تباع]]) -> 650.958933 | AJ30: 69.93859 | AK30: 78.02959 | AL30: 93.11887 | AM30: 0 | AN30: 200 | AO30: 39.97585 | AP30: 71.29026 | AQ30: 91.5367 | AR30: 130.5923 | AS30: 139.7338 | AT30: 149.5152 | AV30: 99.98828 | AW30: 600 | AX30: 10 | AY30: =SUM(data.f[[#This Row],[علاوة 2014]:[علاوة اجتماعية]]) -> 1773.71944 | AZ30: 10 | BB30: 421.0033 | BF30: =SUM(data.f[[#This Row],[أساسي 7/2025]:[حافز موانى]],data.f[[#This Row],[إجمالي بدلات]],data.f[[#This Row],[إجمالي علاوات]],data.f[[#This Row],[م. عيد العمال]:[متوسط المنحة]]) -> 8704.997223 | BG30: =IF(data.f[[#This Row],[الإجمالي]]<7000,7000-data.f[[#This Row],[الإجمالي]],0) -> 0 | BH30: =SUM(data.f[[#This Row],[رد مستحقات]:[مكمل الأجر]]) -> 8704.997223 | BL30: 18 | BM30: 18 | BN30: 758.2101807 | BR30: =((data.f[[#This Row],[إجمالي المستحق]]-(data.f[[#This Row],[الحافز]]+data.f[[#This Row],[عمود2]]+data.f[[#This Row],[متوسط المنحة]]))/30)*data.f[[#This Row],[أيام الغياب]] -> 0 | BS30: =(data.f[[#This Row],[عمود2]]/30)*data.f[[#This Row],[أيام الغياب]] -> 0 | BT30: =IF(data.f[[#This Row],[أيام الغياب]]=1,data.f[[#This Row],[الحافز]]*20%,IF(data.f[[#This Row],[أيام الغياب]]=2,data.f[[#This Row],[الحافز]]*30%,IF(data.f[[#This Row],[أيام الغياب]]>2,data.f[[#This Row],[الحافز]]*100%,""))) ->  | BU30: =IF(data.f[[#This Row],[عدد أيام الأجازات]]<=4,data.f[[#This Row],[الحافز]]*0,IF(data.f[[#This Row],[عدد أيام الأجازات]]=5,data.f[[#This Row],[الحافز]]*20%,IF(data.f[[#This Row],[عدد أيام الأجازات]]=6,data.f[[#This Row],[الحافز]]*40%,IF(data.f[[#This Row],[عدد أيام الأجازات]]=7,data.f[[#This Row],[الحافز]]*50%,IF(data.f[[#This Row],[عدد أيام الأجازات]]>7,data.f[[#This Row],[الحافز]]*100%,""))))) -> 0 | BV30: =IF(data.f[[#This Row],[أيام أجازات بعد السنوية]]<=2,data.f[[#This Row],[الحافز]]*0,IF(data.f[[#This Row],[أيام أجازات بعد السنوية]]=3,data.f[[#This Row],[الحافز]]*30%,IF(data.f[[#This Row],[أيام أجازات بعد السنوية]]=4,data.f[[#This Row],[الحافز]]*40%,IF(data.f[[#This Row],[أيام أجازات بعد السنوية]]=5,data.f[[#This Row],[الحافز]]*50%,IF(data.f[[#This Row],[أيام أجازات بعد السنوية]]>5,data.f[[#This Row],[الحافز]]*100%,""))))) -> 0 | BW30: 0 | BX30: 0 | BZ30: 3 | CA30: 0 | CK30: 5 | CT30: =data.f[[#This Row],[متوسط المنحة]] -> 421.0033 | CU30: =SUM(data.f[[#This Row],[تامينات 2025]:[عمود1]]) -> 766.2101807 | CV30: =data.f[[#This Row],[إجمالي المستحق]]-data.f[[#This Row],[إجمالي المستقطع]] -> 7938.787042
A31: =IF(D31='المقابل النقدي للفنين'!$F$2,COUNTIF($D$4:D31,D31),"") ->  | B31: 202014 | C31: 23429 | D31: =VLOOKUP(data.f[[#This Row],[كود الشركة]],'التعامل المالي'!$B$3:$E$1478,3,FALSE) -> بنك مصر 1 | E31: صالح السيد احمد محمد | F31: 27108051301355 | G31: فنى | I31: الاولى | J31: الأولى | K31: حرفى نقاش | L31: فرع الاميرية | M31: =data.f[[#This Row],[كود الشركة]]&data.f[[#This Row],[اسم الموظف]]&data.f[[#This Row],[الشركة المدمجة]]&data.f[[#This Row],[الدرجة]]&data.f[[#This Row],[ترقية 7/2025]]&data.f[[#This Row],[الوظيفة]]&data.f[[#This Row],[مكان العمل]] -> 202014صالح السيد احمد محمدالاولىالأولىحرفى نقاشفرع الاميرية | N31: =IF(data.f[[#This Row],[ترقية 7/2025]]<>"","نعم","") -> نعم | O31: 2106.559 | P31: =IF(data.f[[#This Row],[استعلام ترقية]]="نعم",data.f[[#This Row],[الأجر الأساسي]]*110%+data.f[[#This Row],[الأجر الأساسي]]*7%,data.f[[#This Row],[الأجر الأساسي]]*110%) -> 2464.67403 | R31: =data.f[[#This Row],[أساسي 7/2025]]*135% -> 3327.309941 | S31: =data.f[[#This Row],[أساسي 7/2025]]*15% -> 369.7011045 | T31: 0 | V31: =IF(data.f[[#This Row],[التصنيف الادارى]]="فنى",data.f[[#This Row],[أساسي 7/2025]]*15%,0) -> 369.7011045 | W31: 300 | AH31: 0 | AI31: =SUM(data.f[[#This Row],[بدل مخاطر مواني 30%]:[بدل تباع]]) -> 669.7011045 | AJ31: 73.56142 | AK31: 82.11095 | AL31: 98.08092 | AM31: 0 | AN31: 190 | AO31: 42.11068 | AP31: 75.09739 | AQ31: 96.42505 | AR31: 137.5664 | AS31: 147.196 | AT31: 157.4998 | AV31: 105.328 | AW31: 600 | AX31: 10 | AY31: =SUM(data.f[[#This Row],[علاوة 2014]:[علاوة اجتماعية]]) -> 1814.97661 | AZ31: 10 | BB31: 443.4862 | BF31: =SUM(data.f[[#This Row],[أساسي 7/2025]:[حافز موانى]],data.f[[#This Row],[إجمالي بدلات]],data.f[[#This Row],[إجمالي علاوات]],data.f[[#This Row],[م. عيد العمال]:[متوسط المنحة]]) -> 9099.84899 | BG31: =IF(data.f[[#This Row],[الإجمالي]]<7000,7000-data.f[[#This Row],[الإجمالي]],0) -> 0 | BH31: =SUM(data.f[[#This Row],[رد مستحقات]:[مكمل الأجر]]) -> 9099.84899 | BL31: 18 | BM31: 18 | BN31: 792.8205957 | BR31: =((data.f[[#This Row],[إجمالي المستحق]]-(data.f[[#This Row],[الحافز]]+data.f[[#This Row],[عمود2]]+data.f[[#This Row],[متوسط المنحة]]))/30)*data.f[[#This Row],[أيام الغياب]] -> 0 | BS31: =(data.f[[#This Row],[عمود2]]/30)*data.f[[#This Row],[أيام الغياب]] -> 0 | BT31: =IF(data.f[[#This Row],[أيام الغياب]]=1,data.f[[#This Row],[الحافز]]*20%,IF(data.f[[#This Row],[أيام الغياب]]=2,data.f[[#This Row],[الحافز]]*30%,IF(data.f[[#This Row],[أيام الغياب]]>2,data.f[[#This Row],[الحافز]]*100%,""))) ->  | BU31: =IF(data.f[[#This Row],[عدد أيام الأجازات]]<=4,data.f[[#This Row],[الحافز]]*0,IF(data.f[[#This Row],[عدد أيام الأجازات]]=5,data.f[[#This Row],[الحافز]]*20%,IF(data.f[[#This Row],[عدد أيام الأجازات]]=6,data.f[[#This Row],[الحافز]]*40%,IF(data.f[[#This Row],[عدد أيام الأجازات]]=7,data.f[[#This Row],[الحافز]]*50%,IF(data.f[[#This Row],[عدد أيام الأجازات]]>7,data.f[[#This Row],[الحافز]]*100%,""))))) -> 0 | BV31: =IF(data.f[[#This Row],[أيام أجازات بعد السنوية]]<=2,data.f[[#This Row],[الحافز]]*0,IF(data.f[[#This Row],[أيام أجازات بعد السنوية]]=3,data.f[[#This Row],[الحافز]]*30%,IF(data.f[[#This Row],[أيام أجازات بعد السنوية]]=4,data.f[[#This Row],[الحافز]]*40%,IF(data.f[[#This Row],[أيام أجازات بعد السنوية]]=5,data.f[[#This Row],[الحافز]]*50%,IF(data.f[[#This Row],[أيام أجازات بعد السنوية]]>5,data.f[[#This Row],[الحافز]]*100%,""))))) -> 0 | BW31: 0 | BX31: 0 | BZ31: 3 | CA31: 0 | CK31: 5 | CT31: =data.f[[#This Row],[متوسط المنحة]] -> 443.4862 | CU31: =SUM(data.f[[#This Row],[تامينات 2025]:[عمود1]]) -> 800.8205957 | CV31: =data.f[[#This Row],[إجمالي المستحق]]-data.f[[#This Row],[إجمالي المستقطع]] -> 8299.028394
A32: =IF(D32='المقابل النقدي للفنين'!$F$2,COUNTIF($D$4:D32,D32),"") ->  | B32: 202015 | C32: 23756 | D32: =VLOOKUP(data.f[[#This Row],[كود الشركة]],'التعامل المالي'!$B$3:$E$1478,3,FALSE) -> بنك مصر 1 | E32: محمد عبد العزيز حسن غنيم | F32: 27612090101916 | G32: فنى | I32: الرابعة | J32: الرابعة | K32: حرفى حداد | L32: الاميرية | M32: =data.f[[#This Row],[كود الشركة]]&data.f[[#This Row],[اسم الموظف]]&data.f[[#This Row],[الشركة المدمجة]]&data.f[[#This Row],[الدرجة]]&data.f[[#This Row],[ترقية 7/2025]]&data.f[[#This Row],[الوظيفة]]&data.f[[#This Row],[مكان العمل]] -> 202015محمد عبد العزيز حسن غنيمالرابعةالرابعةحرفى حدادالاميرية | N32: =IF(data.f[[#This Row],[ترقية 7/2025]]<>"","نعم","") -> نعم | O32: 1011.144 | P32: =IF(data.f[[#This Row],[استعلام ترقية]]="نعم",data.f[[#This Row],[الأجر الأساسي]]*110%+data.f[[#This Row],[الأجر الأساسي]]*7%,data.f[[#This Row],[الأجر الأساسي]]*110%) -> 1183.03848 | R32: =data.f[[#This Row],[أساسي 7/2025]]*135% -> 1597.101948 | S32: =data.f[[#This Row],[أساسي 7/2025]]*15% -> 177.455772 | T32: 0 | V32: =IF(data.f[[#This Row],[التصنيف الادارى]]="فنى",data.f[[#This Row],[أساسي 7/2025]]*15%,0) -> 177.455772 | W32: 300 | AH32: 0 | AI32: =SUM(data.f[[#This Row],[بدل مخاطر مواني 30%]:[بدل تباع]]) -> 477.455772 | AJ32: 35.32604 | AK32: 39.35678 | AL32: 65 | AM32: 0 | AN32: 200 | AO32: 27.83623 | AP32: 36.04659 | AQ32: 46.28382 | AR32: 66.03159 | AS32: 70.6538 | AT32: 83.85 | AV32: 50.55721 | AW32: 600 | AX32: 8 | AY32: =SUM(data.f[[#This Row],[علاوة 2014]:[علاوة اجتماعية]]) -> 1328.94206 | AZ32: 10 | BB32: 212.8725 | BF32: =SUM(data.f[[#This Row],[أساسي 7/2025]:[حافز موانى]],data.f[[#This Row],[إجمالي بدلات]],data.f[[#This Row],[إجمالي علاوات]],data.f[[#This Row],[م. عيد العمال]:[متوسط المنحة]]) -> 4986.866532 | BG32: =IF(data.f[[#This Row],[الإجمالي]]<7000,7000-data.f[[#This Row],[الإجمالي]],0) -> 2013.133468 | BH32: =SUM(data.f[[#This Row],[رد مستحقات]:[مكمل الأجر]]) -> 7000 | BL32: 18 | BM32: 18 | BN32: 530.0492871 | BR32: =((data.f[[#This Row],[إجمالي المستحق]]-(data.f[[#This Row],[الحافز]]+data.f[[#This Row],[عمود2]]+data.f[[#This Row],[متوسط المنحة]]))/30)*data.f[[#This Row],[أيام الغياب]] -> 0 | BS32: =(data.f[[#This Row],[عمود2]]/30)*data.f[[#This Row],[أيام الغياب]] -> 0 | BT32: =IF(data.f[[#This Row],[أيام الغياب]]=1,data.f[[#This Row],[الحافز]]*20%,IF(data.f[[#This Row],[أيام الغياب]]=2,data.f[[#This Row],[الحافز]]*30%,IF(data.f[[#This Row],[أيام الغياب]]>2,data.f[[#This Row],[الحافز]]*100%,""))) ->  | BU32: =IF(data.f[[#This Row],[عدد أيام الأجازات]]<=4,data.f[[#This Row],[الحافز]]*0,IF(data.f[[#This Row],[عدد أيام الأجازات]]=5,data.f[[#This Row],[الحافز]]*20%,IF(data.f[[#This Row],[عدد أيام الأجازات]]=6,data.f[[#This Row],[الحافز]]*40%,IF(data.f[[#This Row],[عدد أيام الأجازات]]=7,data.f[[#This Row],[الحافز]]*50%,IF(data.f[[#This Row],[عدد أيام الأجازات]]>7,data.f[[#This Row],[الحافز]]*100%,""))))) -> 0 | BV32: =IF(data.f[[#This Row],[أيام أجازات بعد السنوية]]<=2,data.f[[#This Row],[الحافز]]*0,IF(data.f[[#This Row],[أيام أجازات بعد السنوية]]=3,data.f[[#This Row],[الحافز]]*30%,IF(data.f[[#This Row],[أيام أجازات بعد السنوية]]=4,data.f[[#This Row],[الحافز]]*40%,IF(data.f[[#This Row],[أيام أجازات بعد السنوية]]=5,data.f[[#This Row],[الحافز]]*50%,IF(data.f[[#This Row],[أيام أجازات بعد السنوية]]>5,data.f[[#This Row],[الحافز]]*100%,""))))) -> 0 | BW32: 0 | BX32: 0 | BZ32: 3 | CA32: 0 | CK32: 5 | CT32: =data.f[[#This Row],[متوسط المنحة]] -> 212.8725 | CU32: =SUM(data.f[[#This Row],[تامينات 2025]:[عمود1]]) -> 538.0492871 | CV32: =data.f[[#This Row],[إجمالي المستحق]]-data.f[[#This Row],[إجمالي المستقطع]] -> 6461.950713
A33: =IF(D33='المقابل النقدي للفنين'!$F$2,COUNTIF($D$4:D33,D33),"") ->  | B33: 202016 | C33: 23759 | D33: =VLOOKUP(data.f[[#This Row],[كود الشركة]],'التعامل المالي'!$B$3:$E$1478,3,FALSE) -> بنك مصر 1 | E33: عبد الواحد على عبد الواحد طلبه | F33: 27005240101835 | G33: فنى | I33: الثالثة | J33: الثالثة | K33: فنى ميكانيكى | L33: فرع الاسكندرية | M33: =data.f[[#This Row],[كود الشركة]]&data.f[[#This Row],[اسم الموظف]]&data.f[[#This Row],[الشركة المدمجة]]&data.f[[#This Row],[الدرجة]]&data.f[[#This Row],[ترقية 7/2025]]&data.f[[#This Row],[الوظيفة]]&data.f[[#This Row],[مكان العمل]] -> 202016عبد الواحد على عبد الواحد طلبهالثالثةالثالثةفنى ميكانيكى فرع الاسكندرية | N33: =IF(data.f[[#This Row],[ترقية 7/2025]]<>"","نعم","") -> نعم | O33: 1019.221 | P33: =IF(data.f[[#This Row],[استعلام ترقية]]="نعم",data.f[[#This Row],[الأجر الأساسي]]*110%+data.f[[#This Row],[الأجر الأساسي]]*7%,data.f[[#This Row],[الأجر الأساسي]]*110%) -> 1192.48857 | R33: =data.f[[#This Row],[أساسي 7/2025]]*135% -> 1609.85957 | S33: =data.f[[#This Row],[أساسي 7/2025]]*15% -> 178.8732855 | T33: 0 | V33: =IF(data.f[[#This Row],[التصنيف الادارى]]="فنى",data.f[[#This Row],[أساسي 7/2025]]*15%,0) -> 178.8732855 | W33: 300 | AH33: 0 | AI33: =SUM(data.f[[#This Row],[بدل مخاطر مواني 30%]:[بدل تباع]]) -> 478.8732855 | AJ33: 33.73 | AK33: 40.28387 | AL33: 65 | AM33: 0 | AN33: 200 | AO33: 27.45951 | AP33: 36.33451 | AQ33: 46.65352 | AR33: 66.55902 | AS33: 71.21815 | AT33: 83.32 | AV33: 50.96104 | AW33: 600 | AX33: 10 | AY33: =SUM(data.f[[#This Row],[علاوة 2014]:[علاوة اجتماعية]]) -> 1331.51962 | AZ33: 10 | BB33: 214.5728 | BF33: =SUM(data.f[[#This Row],[أساسي 7/2025]:[حافز موانى]],data.f[[#This Row],[إجمالي بدلات]],data.f[[#This Row],[إجمالي علاوات]],data.f[[#This Row],[م. عيد العمال]:[متوسط المنحة]]) -> 5016.18713 | BG33: =IF(data.f[[#This Row],[الإجمالي]]<7000,7000-data.f[[#This Row],[الإجمالي]],0) -> 1983.81287 | BH33: =SUM(data.f[[#This Row],[رد مستحقات]:[مكمل الأجر]]) -> 7000 | BL33: 18 | BM33: 18 | BN33: 529.9657129 | BR33: =((data.f[[#This Row],[إجمالي المستحق]]-(data.f[[#This Row],[الحافز]]+data.f[[#This Row],[عمود2]]+data.f[[#This Row],[متوسط المنحة]]))/30)*data.f[[#This Row],[أيام الغياب]] -> 0 | BS33: =(data.f[[#This Row],[عمود2]]/30)*data.f[[#This Row],[أيام الغياب]] -> 0 | BT33: =IF(data.f[[#This Row],[أيام الغياب]]=1,data.f[[#This Row],[الحافز]]*20%,IF(data.f[[#This Row],[أيام الغياب]]=2,data.f[[#This Row],[الحافز]]*30%,IF(data.f[[#This Row],[أيام الغياب]]>2,data.f[[#This Row],[الحافز]]*100%,""))) ->  | BU33: =IF(data.f[[#This Row],[عدد أيام الأجازات]]<=4,data.f[[#This Row],[الحافز]]*0,IF(data.f[[#This Row],[عدد أيام الأجازات]]=5,data.f[[#This Row],[الحافز]]*20%,IF(data.f[[#This Row],[عدد أيام الأجازات]]=6,data.f[[#This Row],[الحافز]]*40%,IF(data.f[[#This Row],[عدد أيام الأجازات]]=7,data.f[[#This Row],[الحافز]]*50%,IF(data.f[[#This Row],[عدد أيام الأجازات]]>7,data.f[[#This Row],[الحافز]]*100%,""))))) -> 0 | BV33: =IF(data.f[[#This Row],[أيام أجازات بعد السنوية]]<=2,data.f[[#This Row],[الحافز]]*0,IF(data.f[[#This Row],[أيام أجازات بعد السنوية]]=3,data.f[[#This Row],[الحافز]]*30%,IF(data.f[[#This Row],[أيام أجازات بعد السنوية]]=4,data.f[[#This Row],[الحافز]]*40%,IF(data.f[[#This Row],[أيام أجازات بعد السنوية]]=5,data.f[[#This Row],[الحافز]]*50%,IF(data.f[[#This Row],[أيام أجازات بعد السنوية]]>5,data.f[[#This Row],[الحافز]]*100%,""))))) -> 0 | BW33: 0 | BX33: 13.41 | BZ33: 3 | CA33: 0 | CK33: 5 | CT33: =data.f[[#This Row],[متوسط المنحة]] -> 214.5728 | CU33: =SUM(data.f[[#This Row],[تامينات 2025]:[عمود1]]) -> 551.3757129 | CV33: =data.f[[#This Row],[إجمالي المستحق]]-data.f[[#This Row],[إجمالي المستقطع]] -> 6448.624287
A34: =IF(D34='المقابل النقدي للفنين'!$F$2,COUNTIF($D$4:D34,D34),"") ->  | B34: 202017 | C34: 29330 | D34: =VLOOKUP(data.f[[#This Row],[كود الشركة]],'التعامل المالي'!$B$3:$E$1478,3,FALSE) -> البنك الاهلى | E34: اسماعيل احمد محمد مصطفي | F34: 27510300103456 | G34: فنى | H34: أعمال | I34: الثالثة | J34: الثالثة | K34: ميكانيكي | L34: الادارة العامة | M34: =data.f[[#This Row],[كود الشركة]]&data.f[[#This Row],[اسم الموظف]]&data.f[[#This Row],[الشركة المدمجة]]&data.f[[#This Row],[الدرجة]]&data.f[[#This Row],[ترقية 7/2025]]&data.f[[#This Row],[الوظيفة]]&data.f[[#This Row],[مكان العمل]] -> 202017اسماعيل احمد محمد مصطفيأعمالالثالثةالثالثةميكانيكيالادارة العامة | N34: =IF(data.f[[#This Row],[ترقية 7/2025]]<>"","نعم","") -> نعم | O34: 740.21 | P34: =IF(data.f[[#This Row],[استعلام ترقية]]="نعم",data.f[[#This Row],[الأجر الأساسي]]*110%+data.f[[#This Row],[الأجر الأساسي]]*7%,data.f[[#This Row],[الأجر الأساسي]]*110%) -> 866.0457 | R34: =data.f[[#This Row],[أساسي 7/2025]]*135% -> 1169.161695 | S34: =data.f[[#This Row],[أساسي 7/2025]]*15% -> 129.906855 | T34: 0 | V34: =IF(data.f[[#This Row],[التصنيف الادارى]]="فنى",data.f[[#This Row],[أساسي 7/2025]]*15%,0) -> 129.906855 | W34: 300 | AH34: 0 | AI34: =SUM(data.f[[#This Row],[بدل مخاطر مواني 30%]:[بدل تباع]]) -> 429.906855 | AJ34: 0 | AK34: 0 | AL34: 0 | AM34: 1289.66 | AN34: 0 | AO34: 0 | AP34: 0 | AQ34: 0 | AR34: 0 | AS34: 0 | AT34: 0 | AV34: 75.979 | AW34: 0 | AX34: 10 | AY34: =SUM(data.f[[#This Row],[علاوة 2014]:[علاوة اجتماعية]]) -> 1375.639 | AZ34: 10 | BB34: 155.8337 | BF34: =SUM(data.f[[#This Row],[أساسي 7/2025]:[حافز موانى]],data.f[[#This Row],[إجمالي بدلات]],data.f[[#This Row],[إجمالي علاوات]],data.f[[#This Row],[م. عيد العمال]:[متوسط المنحة]]) -> 4136.493805 | BG34: =IF(data.f[[#This Row],[الإجمالي]]<7000,7000-data.f[[#This Row],[الإجمالي]],0) -> 2863.506195 | BH34: =SUM(data.f[[#This Row],[رد مستحقات]:[مكمل الأجر]]) -> 7000 | BL34: 18 | BM34: 18 | BN34: 516.8404785 | BR34: =((data.f[[#This Row],[إجمالي المستحق]]-(data.f[[#This Row],[الحافز]]+data.f[[#This Row],[عمود2]]+data.f[[#This Row],[متوسط المنحة]]))/30)*data.f[[#This Row],[أيام الغياب]] -> 0 | BS34: =(data.f[[#This Row],[عمود2]]/30)*data.f[[#This Row],[أيام الغياب]] -> 0 | BT34: =IF(data.f[[#This Row],[أيام الغياب]]=1,data.f[[#This Row],[الحافز]]*20%,IF(data.f[[#This Row],[أيام الغياب]]=2,data.f[[#This Row],[الحافز]]*30%,IF(data.f[[#This Row],[أيام الغياب]]>2,data.f[[#This Row],[الحافز]]*100%,""))) ->  | BU34: =IF(data.f[[#This Row],[عدد أيام الأجازات]]<=4,data.f[[#This Row],[الحافز]]*0,IF(data.f[[#This Row],[عدد أيام الأجازات]]=5,data.f[[#This Row],[الحافز]]*20%,IF(data.f[[#This Row],[عدد أيام الأجازات]]=6,data.f[[#This Row],[الحافز]]*40%,IF(data.f[[#This Row],[عدد أيام الأجازات]]=7,data.f[[#This Row],[الحافز]]*50%,IF(data.f[[#This Row],[عدد أيام الأجازات]]>7,data.f[[#This Row],[الحافز]]*100%,""))))) -> 0 | BV34: =IF(data.f[[#This Row],[أيام أجازات بعد السنوية]]<=2,data.f[[#This Row],[الحافز]]*0,IF(data.f[[#This Row],[أيام أجازات بعد السنوية]]=3,data.f[[#This Row],[الحافز]]*30%,IF(data.f[[#This Row],[أيام أجازات بعد السنوية]]=4,data.f[[#This Row],[الحافز]]*40%,IF(data.f[[#This Row],[أيام أجازات بعد السنوية]]=5,data.f[[#This Row],[الحافز]]*50%,IF(data.f[[#This Row],[أيام أجازات بعد السنوية]]>5,data.f[[#This Row],[الحافز]]*100%,""))))) -> 0 | BW34: 0 | BX34: 0 | BZ34: 3 | CA34: 0 | CK34: 3 | CT34: =data.f[[#This Row],[متوسط المنحة]] -> 155.8337 | CU34: =SUM(data.f[[#This Row],[تامينات 2025]:[عمود1]]) -> 522.8404785 | CV34: =data.f[[#This Row],[إجمالي المستحق]]-data.f[[#This Row],[إجمالي المستقطع]] -> 6477.159521
A35: =IF(D35='المقابل النقدي للفنين'!$F$2,COUNTIF($D$4:D35,D35),"") ->  | B35: 202018 | C35: 4367 | D35: =VLOOKUP(data.f[[#This Row],[كود الشركة]],'التعامل المالي'!$B$3:$E$1478,3,FALSE) -> بنك مصر 1 | E35: عبدالعزيز محمد عبدالعزيز فرج | F35: 27012251300976 | G35: فنى | H35: أعمال | I35: الثالثة | J35: الثالثة | K35: حرفى عامل دوكو | L35: فرع بنى سويف | M35: =data.f[[#This Row],[كود الشركة]]&data.f[[#This Row],[اسم الموظف]]&data.f[[#This Row],[الشركة المدمجة]]&data.f[[#This Row],[الدرجة]]&data.f[[#This Row],[ترقية 7/2025]]&data.f[[#This Row],[الوظيفة]]&data.f[[#This Row],[مكان العمل]] -> 202018عبدالعزيز محمد عبدالعزيز فرجأعمالالثالثةالثالثةحرفى عامل دوكوفرع بنى سويف | N35: =IF(data.f[[#This Row],[ترقية 7/2025]]<>"","نعم","") -> نعم | O35: 1395.3 | P35: =IF(data.f[[#This Row],[استعلام ترقية]]="نعم",data.f[[#This Row],[الأجر الأساسي]]*110%+data.f[[#This Row],[الأجر الأساسي]]*7%,data.f[[#This Row],[الأجر الأساسي]]*110%) -> 1632.501 | R35: =data.f[[#This Row],[أساسي 7/2025]]*135% -> 2203.87635 | S35: =data.f[[#This Row],[أساسي 7/2025]]*15% -> 244.87515 | T35: 0 | V35: =IF(data.f[[#This Row],[التصنيف الادارى]]="فنى",data.f[[#This Row],[أساسي 7/2025]]*15%,0) -> 244.87515 | W35: 300 | AH35: 0 | AI35: =SUM(data.f[[#This Row],[بدل مخاطر مواني 30%]:[بدل تباع]]) -> 544.87515 | AJ35: 0 | AK35: 0 | AL35: 0 | AM35: 362.5 | AN35: 0 | AO35: 27.89 | AP35: 49.74 | AQ35: 63.87 | AR35: 91.12 | AS35: 97.5 | AT35: 104.32 | AV35: 69.765 | AW35: 600 | AX35: 10 | AY35: =SUM(data.f[[#This Row],[علاوة 2014]:[علاوة اجتماعية]]) -> 1476.705 | AZ35: 10 | BB35: 293.7474 | BF35: =SUM(data.f[[#This Row],[أساسي 7/2025]:[حافز موانى]],data.f[[#This Row],[إجمالي بدلات]],data.f[[#This Row],[إجمالي علاوات]],data.f[[#This Row],[م. عيد العمال]:[متوسط المنحة]]) -> 6406.58005 | BG35: =IF(data.f[[#This Row],[الإجمالي]]<7000,7000-data.f[[#This Row],[الإجمالي]],0) -> 593.41995 | BH35: =SUM(data.f[[#This Row],[رد مستحقات]:[مكمل الأجر]]) -> 7000 | BL35: 18 | BM35: 18 | BN35: 563.2638086 | BR35: =((data.f[[#This Row],[إجمالي المستحق]]-(data.f[[#This Row],[الحافز]]+data.f[[#This Row],[عمود2]]+data.f[[#This Row],[متوسط المنحة]]))/30)*data.f[[#This Row],[أيام الغياب]] -> 0 | BS35: =(data.f[[#This Row],[عمود2]]/30)*data.f[[#This Row],[أيام الغياب]] -> 0 | BT35: =IF(data.f[[#This Row],[أيام الغياب]]=1,data.f[[#This Row],[الحافز]]*20%,IF(data.f[[#This Row],[أيام الغياب]]=2,data.f[[#This Row],[الحافز]]*30%,IF(data.f[[#This Row],[أيام الغياب]]>2,data.f[[#This Row],[الحافز]]*100%,""))) ->  | BU35: =IF(data.f[[#This Row],[عدد أيام الأجازات]]<=4,data.f[[#This Row],[الحافز]]*0,IF(data.f[[#This Row],[عدد أيام الأجازات]]=5,data.f[[#This Row],[الحافز]]*20%,IF(data.f[[#This Row],[عدد أيام الأجازات]]=6,data.f[[#This Row],[الحافز]]*40%,IF(data.f[[#This Row],[عدد أيام الأجازات]]=7,data.f[[#This Row],[الحافز]]*50%,IF(data.f[[#This Row],[عدد أيام الأجازات]]>7,data.f[[#This Row],[الحافز]]*100%,""))))) -> 0 | BV35: =IF(data.f[[#This Row],[أيام أجازات بعد السنوية]]<=2,data.f[[#This Row],[الحافز]]*0,IF(data.f[[#This Row],[أيام أجازات بعد السنوية]]=3,data.f[[#This Row],[الحافز]]*30%,IF(data.f[[#This Row],[أيام أجازات بعد السنوية]]=4,data.f[[#This Row],[الحافز]]*40%,IF(data.f[[#This Row],[أيام أجازات بعد السنوية]]=5,data.f[[#This Row],[الحافز]]*50%,IF(data.f[[#This Row],[أيام أجازات بعد السنوية]]>5,data.f[[#This Row],[الحافز]]*100%,""))))) -> 0 | BW35: 0 | BX35: 0 | BZ35: 3 | CA35: 0 | CK35: 3 | CT35: =data.f[[#This Row],[متوسط المنحة]] -> 293.7474 | CU35: =SUM(data.f[[#This Row],[تامينات 2025]:[عمود1]]) -> 569.2638086 | CV35: =data.f[[#This Row],[إجمالي المستحق]]-data.f[[#This Row],[إجمالي المستقطع]] -> 6430.736191
A36: =IF(D36='المقابل النقدي للفنين'!$F$2,COUNTIF($D$4:D36,D36),"") ->  | B36: 202019 | C36: 29119 | D36: =VLOOKUP(data.f[[#This Row],[كود الشركة]],'التعامل المالي'!$B$3:$E$1478,3,FALSE) -> البنك الاهلى | E36: محمد فتحي عيد | F36: 28505211400935 | G36: فنى | H36: أعمال | I36: الثالثة | J36: الثالثة | K36: كهربائي | L36: فرع الاسكندرية | M36: =data.f[[#This Row],[كود الشركة]]&data.f[[#This Row],[اسم الموظف]]&data.f[[#This Row],[الشركة المدمجة]]&data.f[[#This Row],[الدرجة]]&data.f[[#This Row],[ترقية 7/2025]]&data.f[[#This Row],[الوظيفة]]&data.f[[#This Row],[مكان العمل]] -> 202019محمد فتحي عيد أعمالالثالثةالثالثةكهربائيفرع الاسكندرية | N36: =IF(data.f[[#This Row],[ترقية 7/2025]]<>"","نعم","") -> نعم | O36: 974.25 | P36: =IF(data.f[[#This Row],[استعلام ترقية]]="نعم",data.f[[#This Row],[الأجر الأساسي]]*110%+data.f[[#This Row],[الأجر الأساسي]]*7%,data.f[[#This Row],[الأجر الأساسي]]*110%) -> 1139.8725 | R36: =data.f[[#This Row],[أساسي 7/2025]]*135% -> 1538.827875 | S36: =data.f[[#This Row],[أساسي 7/2025]]*15% -> 170.980875 | T36: 0 | V36: =IF(data.f[[#This Row],[التصنيف الادارى]]="فنى",data.f[[#This Row],[أساسي 7/2025]]*15%,0) -> 170.980875 | W36: 300 | AH36: 0 | AI36: =SUM(data.f[[#This Row],[بدل مخاطر مواني 30%]:[بدل تباع]]) -> 470.980875 | AJ36: 0 | AK36: 0 | AL36: 0 | AM36: 336.73 | AN36: 0 | AO36: 29.56 | AP36: 34.73 | AQ36: 44.6 | AR36: 63.62 | AS36: 68.08 | AT36: 86.26 | AV36: 52.575 | AW36: 600 | AX36: 4 | AY36: =SUM(data.f[[#This Row],[علاوة 2014]:[علاوة اجتماعية]]) -> 1320.155 | AZ36: 10 | BB36: 205.1053 | BF36: =SUM(data.f[[#This Row],[أساسي 7/2025]:[حافز موانى]],data.f[[#This Row],[إجمالي بدلات]],data.f[[#This Row],[إجمالي علاوات]],data.f[[#This Row],[م. عيد العمال]:[متوسط المنحة]]) -> 4855.922425 | BG36: =IF(data.f[[#This Row],[الإجمالي]]<7000,7000-data.f[[#This Row],[الإجمالي]],0) -> 2144.077575 | BH36: =SUM(data.f[[#This Row],[رد مستحقات]:[مكمل الأجر]]) -> 7000 | BL36: 18 | BM36: 18 | BN36: 525.1982764 | BR36: =((data.f[[#This Row],[إجمالي المستحق]]-(data.f[[#This Row],[الحافز]]+data.f[[#This Row],[عمود2]]+data.f[[#This Row],[متوسط المنحة]]))/30)*data.f[[#This Row],[أيام الغياب]] -> 0 | BS36: =(data.f[[#This Row],[عمود2]]/30)*data.f[[#This Row],[أيام الغياب]] -> 0 | BT36: =IF(data.f[[#This Row],[أيام الغياب]]=1,data.f[[#This Row],[الحافز]]*20%,IF(data.f[[#This Row],[أيام الغياب]]=2,data.f[[#This Row],[الحافز]]*30%,IF(data.f[[#This Row],[أيام الغياب]]>2,data.f[[#This Row],[الحافز]]*100%,""))) ->  | BU36: =IF(data.f[[#This Row],[عدد أيام الأجازات]]<=4,data.f[[#This Row],[الحافز]]*0,IF(data.f[[#This Row],[عدد أيام الأجازات]]=5,data.f[[#This Row],[الحافز]]*20%,IF(data.f[[#This Row],[عدد أيام الأجازات]]=6,data.f[[#This Row],[الحافز]]*40%,IF(data.f[[#This Row],[عدد أيام الأجازات]]=7,data.f[[#This Row],[الحافز]]*50%,IF(data.f[[#This Row],[عدد أيام الأجازات]]>7,data.f[[#This Row],[الحافز]]*100%,""))))) -> 0 | BV36: =IF(data.f[[#This Row],[أيام أجازات بعد السنوية]]<=2,data.f[[#This Row],[الحافز]]*0,IF(data.f[[#This Row],[أيام أجازات بعد السنوية]]=3,data.f[[#This Row],[الحافز]]*30%,IF(data.f[[#This Row],[أيام أجازات بعد السنوية]]=4,data.f[[#This Row],[الحافز]]*40%,IF(data.f[[#This Row],[أيام أجازات بعد السنوية]]=5,data.f[[#This Row],[الحافز]]*50%,IF(data.f[[#This Row],[أيام أجازات بعد السنوية]]>5,data.f[[#This Row],[الحافز]]*100%,""))))) -> 0 | BW36: 0 | BX36: 0 | BZ36: 3 | CA36: 0 | CK36: 3 | CT36: =data.f[[#This Row],[متوسط المنحة]] -> 205.1053 | CU36: =SUM(data.f[[#This Row],[تامينات 2025]:[عمود1]]) -> 531.1982764 | CV36: =data.f[[#This Row],[إجمالي المستحق]]-data.f[[#This Row],[إجمالي المستقطع]] -> 6468.801724
A37: =IF(D37='المقابل النقدي للفنين'!$F$2,COUNTIF($D$4:D37,D37),"") ->  | B37: 202020 | C37: 30015 | D37: =VLOOKUP(data.f[[#This Row],[كود الشركة]],'التعامل المالي'!$B$3:$E$1478,3,FALSE) -> البنك الاهلى | E37: احمد محمد عبدالجواد حسن | F37: 26604200101732 | G37: فنى | H37: أعمال | I37: الرابعة | M37: =data.f[[#This Row],[كود الشركة]]&data.f[[#This Row],[اسم الموظف]]&data.f[[#This Row],[الشركة المدمجة]]&data.f[[#This Row],[الدرجة]]&data.f[[#This Row],[ترقية 7/2025]]&data.f[[#This Row],[الوظيفة]]&data.f[[#This Row],[مكان العمل]] -> 202020احمد محمد عبدالجواد حسن أعمالالرابعة | N37: =IF(data.f[[#This Row],[ترقية 7/2025]]<>"","نعم","") ->  | O37: 974.25 | P37: =IF(data.f[[#This Row],[استعلام ترقية]]="نعم",data.f[[#This Row],[الأجر الأساسي]]*110%+data.f[[#This Row],[الأجر الأساسي]]*7%,data.f[[#This Row],[الأجر الأساسي]]*110%) -> 1071.675 | R37: =data.f[[#This Row],[أساسي 7/2025]]*135% -> 1446.76125 | S37: =data.f[[#This Row],[أساسي 7/2025]]*15% -> 160.75125 | T37: 0 | V37: =IF(data.f[[#This Row],[التصنيف الادارى]]="فنى",data.f[[#This Row],[أساسي 7/2025]]*15%,0) -> 160.75125 | W37: 300 | AH37: 0 | AI37: =SUM(data.f[[#This Row],[بدل مخاطر مواني 30%]:[بدل تباع]]) -> 460.75125 | AJ37: 0 | AK37: 0 | AL37: 0 | AM37: 332.32 | AN37: 0 | AO37: 29.57 | AP37: 34.72 | AQ37: 44.58 | AR37: 63.6 | AS37: 68.05 | AT37: 86.26 | AV37: 52.575 | AW37: 600 | AX37: 10 | AY37: =SUM(data.f[[#This Row],[علاوة 2014]:[علاوة اجتماعية]]) -> 1321.675 | AZ37: 10 | BB37: 205.1053 | BF37: =SUM(data.f[[#This Row],[أساسي 7/2025]:[حافز موانى]],data.f[[#This Row],[إجمالي بدلات]],data.f[[#This Row],[إجمالي علاوات]],data.f[[#This Row],[م. عيد العمال]:[متوسط المنحة]]) -> 4676.71905 | BG37: =IF(data.f[[#This Row],[الإجمالي]]<7000,7000-data.f[[#This Row],[الإجمالي]],0) -> 2323.28095 | BH37: =SUM(data.f[[#This Row],[رد مستحقات]:[مكمل الأجر]]) -> 7000 | BL37: 18 | BM37: 18 | BN37: 525.2158936 | BR37: =((data.f[[#This Row],[إجمالي المستحق]]-(data.f[[#This Row],[الحافز]]+data.f[[#This Row],[عمود2]]+data.f[[#This Row],[متوسط المنحة]]))/30)*data.f[[#This Row],[أيام الغياب]] -> 0 | BS37: =(data.f[[#This Row],[عمود2]]/30)*data.f[[#This Row],[أيام الغياب]] -> 0 | BT37: =IF(data.f[[#This Row],[أيام الغياب]]=1,data.f[[#This Row],[الحافز]]*20%,IF(data.f[[#This Row],[أيام الغياب]]=2,data.f[[#This Row],[الحافز]]*30%,IF(data.f[[#This Row],[أيام الغياب]]>2,data.f[[#This Row],[الحافز]]*100%,""))) ->  | BU37: =IF(data.f[[#This Row],[عدد أيام الأجازات]]<=4,data.f[[#This Row],[الحافز]]*0,IF(data.f[[#This Row],[عدد أيام الأجازات]]=5,data.f[[#This Row],[الحافز]]*20%,IF(data.f[[#This Row],[عدد أيام الأجازات]]=6,data.f[[#This Row],[الحافز]]*40%,IF(data.f[[#This Row],[عدد أيام الأجازات]]=7,data.f[[#This Row],[الحافز]]*50%,IF(data.f[[#This Row],[عدد أيام الأجازات]]>7,data.f[[#This Row],[الحافز]]*100%,""))))) -> 0 | BV37: =IF(data.f[[#This Row],[أيام أجازات بعد السنوية]]<=2,data.f[[#This Row],[الحافز]]*0,IF(data.f[[#This Row],[أيام أجازات بعد السنوية]]=3,data.f[[#This Row],[الحافز]]*30%,IF(data.f[[#This Row],[أيام أجازات بعد السنوية]]=4,data.f[[#This Row],[الحافز]]*40%,IF(data.f[[#This Row],[أيام أجازات بعد السنوية]]=5,data.f[[#This Row],[الحافز]]*50%,IF(data.f[[#This Row],[أيام أجازات بعد السنوية]]>5,data.f[[#This Row],[الحافز]]*100%,""))))) -> 0 | BW37: 0 | BX37: 0 | BZ37: 3 | CA37: 0 | CK37: 3 | CT37: =data.f[[#This Row],[متوسط المنحة]] -> 205.1053 | CU37: =SUM(data.f[[#This Row],[تامينات 2025]:[عمود1]]) -> 531.2158936 | CV37: =data.f[[#This Row],[إجمالي المستحق]]-data.f[[#This Row],[إجمالي المستقطع]] -> 6468.784106
A38: =IF(D38='المقابل النقدي للفنين'!$F$2,COUNTIF($D$4:D38,D38),"") ->  | B38: 202021 | C38: 29050 | D38: =VLOOKUP(data.f[[#This Row],[كود الشركة]],'التعامل المالي'!$B$3:$E$1478,3,FALSE) -> البنك الاهلى | E38: محمد محمد عبيد عبدالله | F38: 26803160104094 | G38: فنى | H38: أعمال | I38: الرابعة | J38: الرابعة | K38: حرفى عامل كاوتش | L38: الاميرية | M38: =data.f[[#This Row],[كود الشركة]]&data.f[[#This Row],[اسم الموظف]]&data.f[[#This Row],[الشركة المدمجة]]&data.f[[#This Row],[الدرجة]]&data.f[[#This Row],[ترقية 7/2025]]&data.f[[#This Row],[الوظيفة]]&data.f[[#This Row],[مكان العمل]] -> 202021محمد محمد عبيد عبدالله أعمالالرابعةالرابعةحرفى عامل كاوتشالاميرية | N38: =IF(data.f[[#This Row],[ترقية 7/2025]]<>"","نعم","") -> نعم | O38: 1209.77 | P38: =IF(data.f[[#This Row],[استعلام ترقية]]="نعم",data.f[[#This Row],[الأجر الأساسي]]*110%+data.f[[#This Row],[الأجر الأساسي]]*7%,data.f[[#This Row],[الأجر الأساسي]]*110%) -> 1415.4309 | R38: =data.f[[#This Row],[أساسي 7/2025]]*135% -> 1910.831715 | S38: =data.f[[#This Row],[أساسي 7/2025]]*15% -> 212.314635 | T38: 0 | V38: =IF(data.f[[#This Row],[التصنيف الادارى]]="فنى",data.f[[#This Row],[أساسي 7/2025]]*15%,0) -> 212.314635 | W38: 300 | AH38: 0 | AI38: =SUM(data.f[[#This Row],[بدل مخاطر مواني 30%]:[بدل تباع]]) -> 512.314635 | AJ38: 0 | AK38: 0 | AL38: 0 | AM38: 355.84 | AN38: 0 | AO38: 24.18 | AP38: 43.13 | AQ38: 55.38 | AR38: 79 | AS38: 84.53 | AT38: 90.45 | AV38: 60.4885 | AW38: 600 | AX38: 10 | AY38: =SUM(data.f[[#This Row],[علاوة 2014]:[علاوة اجتماعية]]) -> 1402.9985 | AZ38: 10 | BB38: 254.6884 | BF38: =SUM(data.f[[#This Row],[أساسي 7/2025]:[حافز موانى]],data.f[[#This Row],[إجمالي بدلات]],data.f[[#This Row],[إجمالي علاوات]],data.f[[#This Row],[م. عيد العمال]:[متوسط المنحة]]) -> 5718.578785 | BG38: =IF(data.f[[#This Row],[الإجمالي]]<7000,7000-data.f[[#This Row],[الإجمالي]],0) -> 1281.421215 | BH38: =SUM(data.f[[#This Row],[رد مستحقات]:[مكمل الأجر]]) -> 7000 | BL38: 18 | BM38: 18 | BN38: 534.777085 | BR38: =((data.f[[#This Row],[إجمالي المستحق]]-(data.f[[#This Row],[الحافز]]+data.f[[#This Row],[عمود2]]+data.f[[#This Row],[متوسط المنحة]]))/30)*data.f[[#This Row],[أيام الغياب]] -> 0 | BS38: =(data.f[[#This Row],[عمود2]]/30)*data.f[[#This Row],[أيام الغياب]] -> 0 | BT38: =IF(data.f[[#This Row],[أيام الغياب]]=1,data.f[[#This Row],[الحافز]]*20%,IF(data.f[[#This Row],[أيام الغياب]]=2,data.f[[#This Row],[الحافز]]*30%,IF(data.f[[#This Row],[أيام الغياب]]>2,data.f[[#This Row],[الحافز]]*100%,""))) ->  | BU38: =IF(data.f[[#This Row],[عدد أيام الأجازات]]<=4,data.f[[#This Row],[الحافز]]*0,IF(data.f[[#This Row],[عدد أيام الأجازات]]=5,data.f[[#This Row],[الحافز]]*20%,IF(data.f[[#This Row],[عدد أيام الأجازات]]=6,data.f[[#This Row],[الحافز]]*40%,IF(data.f[[#This Row],[عدد أيام الأجازات]]=7,data.f[[#This Row],[الحافز]]*50%,IF(data.f[[#This Row],[عدد أيام الأجازات]]>7,data.f[[#This Row],[الحافز]]*100%,""))))) -> 0 | BV38: =IF(data.f[[#This Row],[أيام أجازات بعد السنوية]]<=2,data.f[[#This Row],[الحافز]]*0,IF(data.f[[#This Row],[أيام أجازات بعد السنوية]]=3,data.f[[#This Row],[الحافز]]*30%,IF(data.f[[#This Row],[أيام أجازات بعد السنوية]]=4,data.f[[#This Row],[الحافز]]*40%,IF(data.f[[#This Row],[أيام أجازات بعد السنوية]]=5,data.f[[#This Row],[الحافز]]*50%,IF(data.f[[#This Row],[أيام أجازات بعد السنوية]]>5,data.f[[#This Row],[الحافز]]*100%,""))))) -> 0 | BW38: 0 | BX38: 0 | BZ38: 3 | CA38: 0 | CK38: 3 | CT38: =data.f[[#This Row],[متوسط المنحة]] -> 254.6884 | CU38: =SUM(data.f[[#This Row],[تامينات 2025]:[عمود1]]) -> 540.777085 | CV38: =data.f[[#This Row],[إجمالي المستحق]]-data.f[[#This Row],[إجمالي المستقطع]] -> 6459.222915
A39: =IF(D39='المقابل النقدي للفنين'!$F$2,COUNTIF($D$4:D39,D39),"") ->  | B39: 202023 | C39: 44005 | D39: =VLOOKUP(data.f[[#This Row],[كود الشركة]],'التعامل المالي'!$B$3:$E$1478,3,FALSE) -> بنك مصر 1 | E39: احمد فتحى لاشين محمد | F39: 29211051701917 | G39: فنى | H39: أعمال | I39: عقد مؤقت | M39: =data.f[[#This Row],[كود الشركة]]&data.f[[#This Row],[اسم الموظف]]&data.f[[#This Row],[الشركة المدمجة]]&data.f[[#This Row],[الدرجة]]&data.f[[#This Row],[ترقية 7/2025]]&data.f[[#This Row],[الوظيفة]]&data.f[[#This Row],[مكان العمل]] -> 202023احمد فتحى لاشين محمدأعمالعقد مؤقت | N39: =IF(data.f[[#This Row],[ترقية 7/2025]]<>"","نعم","") ->  | O39: 518.44 | P39: =IF(data.f[[#This Row],[استعلام ترقية]]="نعم",data.f[[#This Row],[الأجر الأساسي]]*110%+data.f[[#This Row],[الأجر الأساسي]]*7%,data.f[[#This Row],[الأجر الأساسي]]*110%) -> 570.284 | R39: =data.f[[#This Row],[أساسي 7/2025]]*135% -> 769.8834 | S39: =data.f[[#This Row],[أساسي 7/2025]]*15% -> 85.5426 | T39: 0 | V39: =IF(data.f[[#This Row],[التصنيف الادارى]]="فنى",data.f[[#This Row],[أساسي 7/2025]]*15%,0) -> 85.5426 | W39: 300 | AH39: 0 | AI39: =SUM(data.f[[#This Row],[بدل مخاطر مواني 30%]:[بدل تباع]]) -> 385.5426 | AJ39: 0 | AK39: 0 | AL39: 0 | AM39: 333.58 | AN39: 0 | AO39: 0 | AP39: 0 | AQ39: 0 | AR39: 0 | AS39: 0 | AT39: 0 | AV39: 98.156 | AW39: 600 | AX39: 4 | AY39: =SUM(data.f[[#This Row],[علاوة 2014]:[علاوة اجتماعية]]) -> 1035.736 | AZ39: 10 | BB39: 109.1453 | BF39: =SUM(data.f[[#This Row],[أساسي 7/2025]:[حافز موانى]],data.f[[#This Row],[إجمالي بدلات]],data.f[[#This Row],[إجمالي علاوات]],data.f[[#This Row],[م. عيد العمال]:[متوسط المنحة]]) -> 2966.1339 | BG39: =IF(data.f[[#This Row],[الإجمالي]]<7000,7000-data.f[[#This Row],[الإجمالي]],0) -> 4033.8661 | BH39: =SUM(data.f[[#This Row],[رد مستحقات]:[مكمل الأجر]]) -> 7000 | BL39: 18 | BM39: 18 | BN39: 504.6161914 | BR39: =((data.f[[#This Row],[إجمالي المستحق]]-(data.f[[#This Row],[الحافز]]+data.f[[#This Row],[عمود2]]+data.f[[#This Row],[متوسط المنحة]]))/30)*data.f[[#This Row],[أيام الغياب]] -> 0 | BS39: =(data.f[[#This Row],[عمود2]]/30)*data.f[[#This Row],[أيام الغياب]] -> 0 | BT39: =IF(data.f[[#This Row],[أيام الغياب]]=1,data.f[[#This Row],[الحافز]]*20%,IF(data.f[[#This Row],[أيام الغياب]]=2,data.f[[#This Row],[الحافز]]*30%,IF(data.f[[#This Row],[أيام الغياب]]>2,data.f[[#This Row],[الحافز]]*100%,""))) ->  | BU39: =IF(data.f[[#This Row],[عدد أيام الأجازات]]<=4,data.f[[#This Row],[الحافز]]*0,IF(data.f[[#This Row],[عدد أيام الأجازات]]=5,data.f[[#This Row],[الحافز]]*20%,IF(data.f[[#This Row],[عدد أيام الأجازات]]=6,data.f[[#This Row],[الحافز]]*40%,IF(data.f[[#This Row],[عدد أيام الأجازات]]=7,data.f[[#This Row],[الحافز]]*50%,IF(data.f[[#This Row],[عدد أيام الأجازات]]>7,data.f[[#This Row],[الحافز]]*100%,""))))) -> 0 | BV39: =IF(data.f[[#This Row],[أيام أجازات بعد السنوية]]<=2,data.f[[#This Row],[الحافز]]*0,IF(data.f[[#This Row],[أيام أجازات بعد السنوية]]=3,data.f[[#This Row],[الحافز]]*30%,IF(data.f[[#This Row],[أيام أجازات بعد السنوية]]=4,data.f[[#This Row],[الحافز]]*40%,IF(data.f[[#This Row],[أيام أجازات بعد السنوية]]=5,data.f[[#This Row],[الحافز]]*50%,IF(data.f[[#This Row],[أيام أجازات بعد السنوية]]>5,data.f[[#This Row],[الحافز]]*100%,""))))) -> 0 | BW39: 0 | BX39: 0 | BZ39: 3 | CA39: 0 | CK39: 3 | CT39: =data.f[[#This Row],[متوسط المنحة]] -> 109.1453 | CU39: =SUM(data.f[[#This Row],[تامينات 2025]:[عمود1]]) -> 510.6161914 | CV39: =data.f[[#This Row],[إجمالي المستحق]]-data.f[[#This Row],[إجمالي المستقطع]] -> 6489.383809
A40: =IF(D40='المقابل النقدي للفنين'!$F$2,COUNTIF($D$4:D40,D40),"") ->  | B40: 202024 | C40: 35375 | D40: =VLOOKUP(data.f[[#This Row],[كود الشركة]],'التعامل المالي'!$B$3:$E$1478,3,FALSE) -> البنك الاهلى | E40: اشرف صلاح محمود سعد | F40: 27805050101631 | G40: فنى | H40: أعمال | I40: الثانية | J40: الثانية | K40: كهربائي سيارات | L40: الاميرية | M40: =data.f[[#This Row],[كود الشركة]]&data.f[[#This Row],[اسم الموظف]]&data.f[[#This Row],[الشركة المدمجة]]&data.f[[#This Row],[الدرجة]]&data.f[[#This Row],[ترقية 7/2025]]&data.f[[#This Row],[الوظيفة]]&data.f[[#This Row],[مكان العمل]] -> 202024اشرف صلاح محمود سعدأعمالالثانيةالثانيةكهربائي سيارات الاميرية | N40: =IF(data.f[[#This Row],[ترقية 7/2025]]<>"","نعم","") -> نعم | O40: 1402.84 | P40: =IF(data.f[[#This Row],[استعلام ترقية]]="نعم",data.f[[#This Row],[الأجر الأساسي]]*110%+data.f[[#This Row],[الأجر الأساسي]]*7%,data.f[[#This Row],[الأجر الأساسي]]*110%) -> 1641.3228 | R40: =data.f[[#This Row],[أساسي 7/2025]]*135% -> 2215.78578 | S40: =data.f[[#This Row],[أساسي 7/2025]]*15% -> 246.19842 | T40: 0 | V40: =IF(data.f[[#This Row],[التصنيف الادارى]]="فنى",data.f[[#This Row],[أساسي 7/2025]]*15%,0) -> 246.19842 | W40: 300 | AH40: 0 | AI40: =SUM(data.f[[#This Row],[بدل مخاطر مواني 30%]:[بدل تباع]]) -> 546.19842 | AJ40: 0 | AK40: 0 | AL40: 0 | AM40: 360.36 | AN40: 0 | AO40: 28.04 | AP40: 50.01 | AQ40: 64.21 | AR40: 91.61 | AS40: 98.02 | AT40: 104.89 | AV40: 70.142 | AW40: 600 | AX40: 10 | AY40: =SUM(data.f[[#This Row],[علاوة 2014]:[علاوة اجتماعية]]) -> 1477.282 | AZ40: 10 | BB40: 295.3347 | BF40: =SUM(data.f[[#This Row],[أساسي 7/2025]:[حافز موانى]],data.f[[#This Row],[إجمالي بدلات]],data.f[[#This Row],[إجمالي علاوات]],data.f[[#This Row],[م. عيد العمال]:[متوسط المنحة]]) -> 6432.12212 | BG40: =IF(data.f[[#This Row],[الإجمالي]]<7000,7000-data.f[[#This Row],[الإجمالي]],0) -> 567.87788 | BH40: =SUM(data.f[[#This Row],[رد مستحقات]:[مكمل الأجر]]) -> 7000 | BL40: 18 | BM40: 18 | BN40: 565.4935107 | BR40: =((data.f[[#This Row],[إجمالي المستحق]]-(data.f[[#This Row],[الحافز]]+data.f[[#This Row],[عمود2]]+data.f[[#This Row],[متوسط المنحة]]))/30)*data.f[[#This Row],[أيام الغياب]] -> 0 | BS40: =(data.f[[#This Row],[عمود2]]/30)*data.f[[#This Row],[أيام الغياب]] -> 0 | BT40: =IF(data.f[[#This Row],[أيام الغياب]]=1,data.f[[#This Row],[الحافز]]*20%,IF(data.f[[#This Row],[أيام الغياب]]=2,data.f[[#This Row],[الحافز]]*30%,IF(data.f[[#This Row],[أيام الغياب]]>2,data.f[[#This Row],[الحافز]]*100%,""))) ->  | BU40: =IF(data.f[[#This Row],[عدد أيام الأجازات]]<=4,data.f[[#This Row],[الحافز]]*0,IF(data.f[[#This Row],[عدد أيام الأجازات]]=5,data.f[[#This Row],[الحافز]]*20%,IF(data.f[[#This Row],[عدد أيام الأجازات]]=6,data.f[[#This Row],[الحافز]]*40%,IF(data.f[[#This Row],[عدد أيام الأجازات]]=7,data.f[[#This Row],[الحافز]]*50%,IF(data.f[[#This Row],[عدد أيام الأجازات]]>7,data.f[[#This Row],[الحافز]]*100%,""))))) -> 0 | BV40: =IF(data.f[[#This Row],[أيام أجازات بعد السنوية]]<=2,data.f[[#This Row],[الحافز]]*0,IF(data.f[[#This Row],[أيام أجازات بعد السنوية]]=3,data.f[[#This Row],[الحافز]]*30%,IF(data.f[[#This Row],[أيام أجازات بعد السنوية]]=4,data.f[[#This Row],[الحافز]]*40%,IF(data.f[[#This Row],[أيام أجازات بعد السنوية]]=5,data.f[[#This Row],[الحافز]]*50%,IF(data.f[[#This Row],[أيام أجازات بعد السنوية]]>5,data.f[[#This Row],[الحافز]]*100%,""))))) -> 0 | BW40: 0 | BX40: 0 | BZ40: 3 | CA40: 0 | CK40: 3 | CT40: =data.f[[#This Row],[متوسط المنحة]] -> 295.3347 | CU40: =SUM(data.f[[#This Row],[تامينات 2025]:[عمود1]]) -> 571.4935107 | CV40: =data.f[[#This Row],[إجمالي المستحق]]-data.f[[#This Row],[إجمالي المستقطع]] -> 6428.506489
A41: =IF(D41='المقابل النقدي للفنين'!$F$2,COUNTIF($D$4:D41,D41),"") ->  | B41: 202025 | C41: 29083 | D41: =VLOOKUP(data.f[[#This Row],[كود الشركة]],'التعامل المالي'!$B$3:$E$1478,3,FALSE) -> البنك الاهلى | E41: جمال فتحي ابراهيم عبدالله | F41: 27012030102576 | G41: فنى | H41: أعمال | I41: الثانية | J41: الثانية | K41: فني ميكانيكي | L41: الاميرية | M41: =data.f[[#This Row],[كود الشركة]]&data.f[[#This Row],[اسم الموظف]]&data.f[[#This Row],[الشركة المدمجة]]&data.f[[#This Row],[الدرجة]]&data.f[[#This Row],[ترقية 7/2025]]&data.f[[#This Row],[الوظيفة]]&data.f[[#This Row],[مكان العمل]] -> 202025جمال فتحي ابراهيم عبدالله أعمالالثانيةالثانيةفني ميكانيكيالاميرية | N41: =IF(data.f[[#This Row],[ترقية 7/2025]]<>"","نعم","") -> نعم | O41: 1186.23 | P41: =IF(data.f[[#This Row],[استعلام ترقية]]="نعم",data.f[[#This Row],[الأجر الأساسي]]*110%+data.f[[#This Row],[الأجر الأساسي]]*7%,data.f[[#This Row],[الأجر الأساسي]]*110%) -> 1387.8891 | R41: =data.f[[#This Row],[أساسي 7/2025]]*135% -> 1873.650285 | S41: =data.f[[#This Row],[أساسي 7/2025]]*15% -> 208.183365 | T41: 0 | V41: =IF(data.f[[#This Row],[التصنيف الادارى]]="فنى",data.f[[#This Row],[أساسي 7/2025]]*15%,0) -> 208.183365 | W41: 300 | AH41: 0 | AI41: =SUM(data.f[[#This Row],[بدل مخاطر مواني 30%]:[بدل تباع]]) -> 508.183365 | AJ41: 0 | AK41: 0 | AL41: 0 | AM41: 1334.27 | AN41: 0 | AO41: 0 | AP41: 0 | AQ41: 0 | AR41: 0 | AS41: 0 | AT41: 0 | AV41: 59.3115 | AW41: 0 | AX41: 0 | AY41: =SUM(data.f[[#This Row],[علاوة 2014]:[علاوة اجتماعية]]) -> 1393.5815 | AZ41: 10 | BB41: 249.7326 | BF41: =SUM(data.f[[#This Row],[أساسي 7/2025]:[حافز موانى]],data.f[[#This Row],[إجمالي بدلات]],data.f[[#This Row],[إجمالي علاوات]],data.f[[#This Row],[م. عيد العمال]:[متوسط المنحة]]) -> 5631.220215 | BG41: =IF(data.f[[#This Row],[الإجمالي]]<7000,7000-data.f[[#This Row],[الإجمالي]],0) -> 1368.779785 | BH41: =SUM(data.f[[#This Row],[رد مستحقات]:[مكمل الأجر]]) -> 7000 | BL41: 18 | BM41: 18 | BN41: 533.8101807 | BR41: =((data.f[[#This Row],[إجمالي المستحق]]-(data.f[[#This Row],[الحافز]]+data.f[[#This Row],[عمود2]]+data.f[[#This Row],[متوسط المنحة]]))/30)*data.f[[#This Row],[أيام الغياب]] -> 0 | BS41: =(data.f[[#This Row],[عمود2]]/30)*data.f[[#This Row],[أيام الغياب]] -> 0 | BT41: =IF(data.f[[#This Row],[أيام الغياب]]=1,data.f[[#This Row],[الحافز]]*20%,IF(data.f[[#This Row],[أيام الغياب]]=2,data.f[[#This Row],[الحافز]]*30%,IF(data.f[[#This Row],[أيام الغياب]]>2,data.f[[#This Row],[الحافز]]*100%,""))) ->  | BU41: =IF(data.f[[#This Row],[عدد أيام الأجازات]]<=4,data.f[[#This Row],[الحافز]]*0,IF(data.f[[#This Row],[عدد أيام الأجازات]]=5,data.f[[#This Row],[الحافز]]*20%,IF(data.f[[#This Row],[عدد أيام الأجازات]]=6,data.f[[#This Row],[الحافز]]*40%,IF(data.f[[#This Row],[عدد أيام الأجازات]]=7,data.f[[#This Row],[الحافز]]*50%,IF(data.f[[#This Row],[عدد أيام الأجازات]]>7,data.f[[#This Row],[الحافز]]*100%,""))))) -> 0 | BV41: =IF(data.f[[#This Row],[أيام أجازات بعد السنوية]]<=2,data.f[[#This Row],[الحافز]]*0,IF(data.f[[#This Row],[أيام أجازات بعد السنوية]]=3,data.f[[#This Row],[الحافز]]*30%,IF(data.f[[#This Row],[أيام أجازات بعد السنوية]]=4,data.f[[#This Row],[الحافز]]*40%,IF(data.f[[#This Row],[أيام أجازات بعد السنوية]]=5,data.f[[#This Row],[الحافز]]*50%,IF(data.f[[#This Row],[أيام أجازات بعد السنوية]]>5,data.f[[#This Row],[الحافز]]*100%,""))))) -> 0 | BW41: 0 | BX41: 0 | BZ41: 3 | CA41: 0 | CK41: 3 | CT41: =data.f[[#This Row],[متوسط المنحة]] -> 249.7326 | CU41: =SUM(data.f[[#This Row],[تامينات 2025]:[عمود1]]) -> 539.8101807 | CV41: =data.f[[#This Row],[إجمالي المستحق]]-data.f[[#This Row],[إجمالي المستقطع]] -> 6460.189819
A42: =IF(D42='المقابل النقدي للفنين'!$F$2,COUNTIF($D$4:D42,D42),"") ->  | B42: 202026 | C42: 2646 | D42: =VLOOKUP(data.f[[#This Row],[كود الشركة]],'التعامل المالي'!$B$3:$E$1478,3,FALSE) -> البنك الاهلى | E42: حمدي مصطفي محمد ابو الوفا | F42: 26606101200659 | G42: فنى | H42: أعمال | I42: الثالثة | M42: =data.f[[#This Row],[كود الشركة]]&data.f[[#This Row],[اسم الموظف]]&data.f[[#This Row],[الشركة المدمجة]]&data.f[[#This Row],[الدرجة]]&data.f[[#This Row],[ترقية 7/2025]]&data.f[[#This Row],[الوظيفة]]&data.f[[#This Row],[مكان العمل]] -> 202026حمدي مصطفي محمد ابو الوفاأعمالالثالثة | N42: =IF(data.f[[#This Row],[ترقية 7/2025]]<>"","نعم","") ->  | O42: 2115.53 | P42: =IF(data.f[[#This Row],[استعلام ترقية]]="نعم",data.f[[#This Row],[الأجر الأساسي]]*110%+data.f[[#This Row],[الأجر الأساسي]]*7%,data.f[[#This Row],[الأجر الأساسي]]*110%) -> 2327.083 | R42: =data.f[[#This Row],[أساسي 7/2025]]*135% -> 3141.56205 | S42: =data.f[[#This Row],[أساسي 7/2025]]*15% -> 349.06245 | T42: 0 | V42: =IF(data.f[[#This Row],[التصنيف الادارى]]="فنى",data.f[[#This Row],[أساسي 7/2025]]*15%,0) -> 349.06245 | W42: 300 | AH42: 0 | AI42: =SUM(data.f[[#This Row],[بدل مخاطر مواني 30%]:[بدل تباع]]) -> 649.06245 | AJ42: 0 | AK42: 0 | AL42: 0 | AM42: 440.57 | AN42: 0 | AO42: 42.29 | AP42: 75.42 | AQ42: 96.84 | AR42: 138.15 | AS42: 147.82 | AT42: 58.17 | AV42: 105.7765 | AW42: 600 | AX42: 10 | AY42: =SUM(data.f[[#This Row],[علاوة 2014]:[علاوة اجتماعية]]) -> 1715.0365 | AZ42: 10 | BB42: 445.3748 | BF42: =SUM(data.f[[#This Row],[أساسي 7/2025]:[حافز موانى]],data.f[[#This Row],[إجمالي بدلات]],data.f[[#This Row],[إجمالي علاوات]],data.f[[#This Row],[م. عيد العمال]:[متوسط المنحة]]) -> 8637.18125 | BG42: =IF(data.f[[#This Row],[الإجمالي]]<7000,7000-data.f[[#This Row],[الإجمالي]],0) -> 0 | BH42: =SUM(data.f[[#This Row],[رد مستحقات]:[مكمل الأجر]]) -> 8637.18125 | BL42: 18 | BM42: 18 | BN42: 796.3801807 | BR42: =((data.f[[#This Row],[إجمالي المستحق]]-(data.f[[#This Row],[الحافز]]+data.f[[#This Row],[عمود2]]+data.f[[#This Row],[متوسط المنحة]]))/30)*data.f[[#This Row],[أيام الغياب]] -> 0 | BS42: =(data.f[[#This Row],[عمود2]]/30)*data.f[[#This Row],[أيام الغياب]] -> 0 | BT42: =IF(data.f[[#This Row],[أيام الغياب]]=1,data.f[[#This Row],[الحافز]]*20%,IF(data.f[[#This Row],[أيام الغياب]]=2,data.f[[#This Row],[الحافز]]*30%,IF(data.f[[#This Row],[أيام الغياب]]>2,data.f[[#This Row],[الحافز]]*100%,""))) ->  | BU42: =IF(data.f[[#This Row],[عدد أيام الأجازات]]<=4,data.f[[#This Row],[الحافز]]*0,IF(data.f[[#This Row],[عدد أيام الأجازات]]=5,data.f[[#This Row],[الحافز]]*20%,IF(data.f[[#This Row],[عدد أيام الأجازات]]=6,data.f[[#This Row],[الحافز]]*40%,IF(data.f[[#This Row],[عدد أيام الأجازات]]=7,data.f[[#This Row],[الحافز]]*50%,IF(data.f[[#This Row],[عدد أيام الأجازات]]>7,data.f[[#This Row],[الحافز]]*100%,""))))) -> 0 | BV42: =IF(data.f[[#This Row],[أيام أجازات بعد السنوية]]<=2,data.f[[#This Row],[الحافز]]*0,IF(data.f[[#This Row],[أيام أجازات بعد السنوية]]=3,data.f[[#This Row],[الحافز]]*30%,IF(data.f[[#This Row],[أيام أجازات بعد السنوية]]=4,data.f[[#This Row],[الحافز]]*40%,IF(data.f[[#This Row],[أيام أجازات بعد السنوية]]=5,data.f[[#This Row],[الحافز]]*50%,IF(data.f[[#This Row],[أيام أجازات بعد السنوية]]>5,data.f[[#This Row],[الحافز]]*100%,""))))) -> 0 | BW42: 0 | BX42: 0 | BZ42: 3 | CA42: 0 | CK42: 3 | CT42: =data.f[[#This Row],[متوسط المنحة]] -> 445.3748 | CU42: =SUM(data.f[[#This Row],[تامينات 2025]:[عمود1]]) -> 802.3801807 | CV42: =data.f[[#This Row],[إجمالي المستحق]]-data.f[[#This Row],[إجمالي المستقطع]] -> 7834.801069
A43: =IF(D43='المقابل النقدي للفنين'!$F$2,COUNTIF($D$4:D43,D43),"") ->  | B43: 202027 | C43: 11041 | D43: =VLOOKUP(data.f[[#This Row],[كود الشركة]],'التعامل المالي'!$B$3:$E$1478,3,FALSE) -> البنك الاهلى | E43: سيد علي محمد علي | F43: 26608080100775 | G43: فنى | H43: أعمال | I43: الثالثة | J43: الثالثة | K43: حرفى حداد | L43: الادارة العامة | M43: =data.f[[#This Row],[كود الشركة]]&data.f[[#This Row],[اسم الموظف]]&data.f[[#This Row],[الشركة المدمجة]]&data.f[[#This Row],[الدرجة]]&data.f[[#This Row],[ترقية 7/2025]]&data.f[[#This Row],[الوظيفة]]&data.f[[#This Row],[مكان العمل]] -> 202027سيد علي محمد علي أعمالالثالثةالثالثةحرفى حدادالادارة العامة | N43: =IF(data.f[[#This Row],[ترقية 7/2025]]<>"","نعم","") -> نعم | O43: 1676.1 | P43: =IF(data.f[[#This Row],[استعلام ترقية]]="نعم",data.f[[#This Row],[الأجر الأساسي]]*110%+data.f[[#This Row],[الأجر الأساسي]]*7%,data.f[[#This Row],[الأجر الأساسي]]*110%) -> 1961.037 | R43: =data.f[[#This Row],[أساسي 7/2025]]*135% -> 2647.39995 | S43: =data.f[[#This Row],[أساسي 7/2025]]*15% -> 294.15555 | T43: 0 | V43: =IF(data.f[[#This Row],[التصنيف الادارى]]="فنى",data.f[[#This Row],[أساسي 7/2025]]*15%,0) -> 294.15555 | W43: 300 | AH43: 0 | AI43: =SUM(data.f[[#This Row],[بدل مخاطر مواني 30%]:[بدل تباع]]) -> 594.15555 | AJ43: 0 | AK43: 0 | AL43: 0 | AM43: 395.65 | AN43: 0 | AO43: 33.51 | AP43: 59.75 | AQ43: 76.72 | AR43: 109.46 | AS43: 117.12 | AT43: 125.32 | AV43: 83.805 | AW43: 600 | AX43: 8 | AY43: =SUM(data.f[[#This Row],[علاوة 2014]:[علاوة اجتماعية]]) -> 1609.335 | AZ43: 10 | BB43: 352.8632 | BF43: =SUM(data.f[[#This Row],[أساسي 7/2025]:[حافز موانى]],data.f[[#This Row],[إجمالي بدلات]],data.f[[#This Row],[إجمالي علاوات]],data.f[[#This Row],[م. عيد العمال]:[متوسط المنحة]]) -> 7468.94625 | BG43: =IF(data.f[[#This Row],[الإجمالي]]<7000,7000-data.f[[#This Row],[الإجمالي]],0) -> 0 | BH43: =SUM(data.f[[#This Row],[رد مستحقات]:[مكمل الأجر]]) -> 7468.94625 | BL43: 18 | BM43: 18 | BN43: 659.1794043 | BR43: =((data.f[[#This Row],[إجمالي المستحق]]-(data.f[[#This Row],[الحافز]]+data.f[[#This Row],[عمود2]]+data.f[[#This Row],[متوسط المنحة]]))/30)*data.f[[#This Row],[أيام الغياب]] -> 0 | BS43: =(data.f[[#This Row],[عمود2]]/30)*data.f[[#This Row],[أيام الغياب]] -> 0 | BT43: =IF(data.f[[#This Row],[أيام الغياب]]=1,data.f[[#This Row],[الحافز]]*20%,IF(data.f[[#This Row],[أيام الغياب]]=2,data.f[[#This Row],[الحافز]]*30%,IF(data.f[[#This Row],[أيام الغياب]]>2,data.f[[#This Row],[الحافز]]*100%,""))) ->  | BU43: =IF(data.f[[#This Row],[عدد أيام الأجازات]]<=4,data.f[[#This Row],[الحافز]]*0,IF(data.f[[#This Row],[عدد أيام الأجازات]]=5,data.f[[#This Row],[الحافز]]*20%,IF(data.f[[#This Row],[عدد أيام الأجازات]]=6,data.f[[#This Row],[الحافز]]*40%,IF(data.f[[#This Row],[عدد أيام الأجازات]]=7,data.f[[#This Row],[الحافز]]*50%,IF(data.f[[#This Row],[عدد أيام الأجازات]]>7,data.f[[#This Row],[الحافز]]*100%,""))))) -> 0 | BV43: =IF(data.f[[#This Row],[أيام أجازات بعد السنوية]]<=2,data.f[[#This Row],[الحافز]]*0,IF(data.f[[#This Row],[أيام أجازات بعد السنوية]]=3,data.f[[#This Row],[الحافز]]*30%,IF(data.f[[#This Row],[أيام أجازات بعد السنوية]]=4,data.f[[#This Row],[الحافز]]*40%,IF(data.f[[#This Row],[أيام أجازات بعد السنوية]]=5,data.f[[#This Row],[الحافز]]*50%,IF(data.f[[#This Row],[أيام أجازات بعد السنوية]]>5,data.f[[#This Row],[الحافز]]*100%,""))))) -> 0 | BW43: 0 | BX43: 0 | BZ43: 3 | CA43: 0 | CK43: 3 | CT43: =data.f[[#This Row],[متوسط المنحة]] -> 352.8632 | CU43: =SUM(data.f[[#This Row],[تامينات 2025]:[عمود1]]) -> 665.1794043 | CV43: =data.f[[#This Row],[إجمالي المستحق]]-data.f[[#This Row],[إجمالي المستقطع]] -> 6803.766846
A44: =IF(D44='المقابل النقدي للفنين'!$F$2,COUNTIF($D$4:D44,D44),"") ->  | B44: 202028 | C44: 29089 | D44: =VLOOKUP(data.f[[#This Row],[كود الشركة]],'التعامل المالي'!$B$3:$E$1478,3,FALSE) -> البنك الاهلى | E44: محمد صلاح كمال محمد | F44: 28105151402196 | G44: فنى | H44: أعمال | I44: الثانية | M44: =data.f[[#This Row],[كود الشركة]]&data.f[[#This Row],[اسم الموظف]]&data.f[[#This Row],[الشركة المدمجة]]&data.f[[#This Row],[الدرجة]]&data.f[[#This Row],[ترقية 7/2025]]&data.f[[#This Row],[الوظيفة]]&data.f[[#This Row],[مكان العمل]] -> 202028محمد صلاح كمال محمد أعمالالثانية | N44: =IF(data.f[[#This Row],[ترقية 7/2025]]<>"","نعم","") ->  | O44: 1142.25 | P44: =IF(data.f[[#This Row],[استعلام ترقية]]="نعم",data.f[[#This Row],[الأجر الأساسي]]*110%+data.f[[#This Row],[الأجر الأساسي]]*7%,data.f[[#This Row],[الأجر الأساسي]]*110%) -> 1256.475 | R44: =data.f[[#This Row],[أساسي 7/2025]]*135% -> 1696.24125 | S44: =data.f[[#This Row],[أساسي 7/2025]]*15% -> 188.47125 | T44: 0 | V44: =IF(data.f[[#This Row],[التصنيف الادارى]]="فنى",data.f[[#This Row],[أساسي 7/2025]]*15%,0) -> 188.47125 | W44: 300 | AH44: 0 | AI44: =SUM(data.f[[#This Row],[بدل مخاطر مواني 30%]:[بدل تباع]]) -> 488.47125 | AJ44: 0 | AK44: 0 | AL44: 0 | AM44: 339.04 | AN44: 0 | AO44: 22.83 | AP44: 40.72 | AQ44: 52.29 | AR44: 74.59 | AS44: 79.82 | AT44: 85.4 | AV44: 57.1125 | AW44: 600 | AX44: 8 | AY44: =SUM(data.f[[#This Row],[علاوة 2014]:[علاوة اجتماعية]]) -> 1359.8025 | AZ44: 10 | BB44: 240.4737 | BF44: =SUM(data.f[[#This Row],[أساسي 7/2025]:[حافز موانى]],data.f[[#This Row],[إجمالي بدلات]],data.f[[#This Row],[إجمالي علاوات]],data.f[[#This Row],[م. عيد العمال]:[متوسط المنحة]]) -> 5239.93495 | BG44: =IF(data.f[[#This Row],[الإجمالي]]<7000,7000-data.f[[#This Row],[الإجمالي]],0) -> 1760.06505 | BH44: =SUM(data.f[[#This Row],[رد مستحقات]:[مكمل الأجر]]) -> 7000 | BL44: 18 | BM44: 18 | BN44: 531.810415 | BR44: =((data.f[[#This Row],[إجمالي المستحق]]-(data.f[[#This Row],[الحافز]]+data.f[[#This Row],[عمود2]]+data.f[[#This Row],[متوسط المنحة]]))/30)*data.f[[#This Row],[أيام الغياب]] -> 0 | BS44: =(data.f[[#This Row],[عمود2]]/30)*data.f[[#This Row],[أيام الغياب]] -> 0 | BT44: =IF(data.f[[#This Row],[أيام الغياب]]=1,data.f[[#This Row],[الحافز]]*20%,IF(data.f[[#This Row],[أيام الغياب]]=2,data.f[[#This Row],[الحافز]]*30%,IF(data.f[[#This Row],[أيام الغياب]]>2,data.f[[#This Row],[الحافز]]*100%,""))) ->  | BU44: =IF(data.f[[#This Row],[عدد أيام الأجازات]]<=4,data.f[[#This Row],[الحافز]]*0,IF(data.f[[#This Row],[عدد أيام الأجازات]]=5,data.f[[#This Row],[الحافز]]*20%,IF(data.f[[#This Row],[عدد أيام الأجازات]]=6,data.f[[#This Row],[الحافز]]*40%,IF(data.f[[#This Row],[عدد أيام الأجازات]]=7,data.f[[#This Row],[الحافز]]*50%,IF(data.f[[#This Row],[عدد أيام الأجازات]]>7,data.f[[#This Row],[الحافز]]*100%,""))))) -> 0 | BV44: =IF(data.f[[#This Row],[أيام أجازات بعد السنوية]]<=2,data.f[[#This Row],[الحافز]]*0,IF(data.f[[#This Row],[أيام أجازات بعد السنوية]]=3,data.f[[#This Row],[الحافز]]*30%,IF(data.f[[#This Row],[أيام أجازات بعد السنوية]]=4,data.f[[#This Row],[الحافز]]*40%,IF(data.f[[#This Row],[أيام أجازات بعد السنوية]]=5,data.f[[#This Row],[الحافز]]*50%,IF(data.f[[#This Row],[أيام أجازات بعد السنوية]]>5,data.f[[#This Row],[الحافز]]*100%,""))))) -> 0 | BW44: 0 | BX44: 0 | BZ44: 3 | CA44: 0 | CK44: 3 | CT44: =data.f[[#This Row],[متوسط المنحة]] -> 240.4737 | CU44: =SUM(data.f[[#This Row],[تامينات 2025]:[عمود1]]) -> 537.810415 | CV44: =data.f[[#This Row],[إجمالي المستحق]]-data.f[[#This Row],[إجمالي المستقطع]] -> 6462.189585
A45: =IF(D45='المقابل النقدي للفنين'!$F$2,COUNTIF($D$4:D45,D45),"") ->  | B45: 202029 | C45: 29105 | D45: =VLOOKUP(data.f[[#This Row],[كود الشركة]],'التعامل المالي'!$B$3:$E$1478,3,FALSE) -> البنك الاهلى | E45: ابراهيم بدوي ابراهيم | F45: 27102240100559 | G45: فنى | H45: أعمال | I45: الثالثة | J45: الثالثة | K45: ميكانيكي | L45: الاميرية | M45: =data.f[[#This Row],[كود الشركة]]&data.f[[#This Row],[اسم الموظف]]&data.f[[#This Row],[الشركة المدمجة]]&data.f[[#This Row],[الدرجة]]&data.f[[#This Row],[ترقية 7/2025]]&data.f[[#This Row],[الوظيفة]]&data.f[[#This Row],[مكان العمل]] -> 202029ابراهيم بدوي ابراهيم أعمالالثالثةالثالثةميكانيكيالاميرية | N45: =IF(data.f[[#This Row],[ترقية 7/2025]]<>"","نعم","") -> نعم | O45: 974.25 | P45: =IF(data.f[[#This Row],[استعلام ترقية]]="نعم",data.f[[#This Row],[الأجر الأساسي]]*110%+data.f[[#This Row],[الأجر الأساسي]]*7%,data.f[[#This Row],[الأجر الأساسي]]*110%) -> 1139.8725 | R45: =data.f[[#This Row],[أساسي 7/2025]]*135% -> 1538.827875 | S45: =data.f[[#This Row],[أساسي 7/2025]]*15% -> 170.980875 | T45: 0 | V45: =IF(data.f[[#This Row],[التصنيف الادارى]]="فنى",data.f[[#This Row],[أساسي 7/2025]]*15%,0) -> 170.980875 | W45: 300 | AH45: 0 | AI45: =SUM(data.f[[#This Row],[بدل مخاطر مواني 30%]:[بدل تباع]]) -> 470.980875 | AJ45: 0 | AK45: 0 | AL45: 0 | AM45: 336.32 | AN45: 0 | AO45: 29.56 | AP45: 34.73 | AQ45: 44.6 | AR45: 63.62 | AS45: 68.08 | AT45: 86.26 | AV45: 52.575 | AW45: 600 | AX45: 10 | AY45: =SUM(data.f[[#This Row],[علاوة 2014]:[علاوة اجتماعية]]) -> 1325.745 | AZ45: 10 | BB45: 205.1053 | BF45: =SUM(data.f[[#This Row],[أساسي 7/2025]:[حافز موانى]],data.f[[#This Row],[إجمالي بدلات]],data.f[[#This Row],[إجمالي علاوات]],data.f[[#This Row],[م. عيد العمال]:[متوسط المنحة]]) -> 4861.512425 | BG45: =IF(data.f[[#This Row],[الإجمالي]]<7000,7000-data.f[[#This Row],[الإجمالي]],0) -> 2138.487575 | BH45: =SUM(data.f[[#This Row],[رد مستحقات]:[مكمل الأجر]]) -> 7000 | BL45: 18 | BM45: 18 | BN45: 525.2698193 | BR45: =((data.f[[#This Row],[إجمالي المستحق]]-(data.f[[#This Row],[الحافز]]+data.f[[#This Row],[عمود2]]+data.f[[#This Row],[متوسط المنحة]]))/30)*data.f[[#This Row],[أيام الغياب]] -> 0 | BS45: =(data.f[[#This Row],[عمود2]]/30)*data.f[[#This Row],[أيام الغياب]] -> 0 | BT45: =IF(data.f[[#This Row],[أيام الغياب]]=1,data.f[[#This Row],[الحافز]]*20%,IF(data.f[[#This Row],[أيام الغياب]]=2,data.f[[#This Row],[الحافز]]*30%,IF(data.f[[#This Row],[أيام الغياب]]>2,data.f[[#This Row],[الحافز]]*100%,""))) ->  | BU45: =IF(data.f[[#This Row],[عدد أيام الأجازات]]<=4,data.f[[#This Row],[الحافز]]*0,IF(data.f[[#This Row],[عدد أيام الأجازات]]=5,data.f[[#This Row],[الحافز]]*20%,IF(data.f[[#This Row],[عدد أيام الأجازات]]=6,data.f[[#This Row],[الحافز]]*40%,IF(data.f[[#This Row],[عدد أيام الأجازات]]=7,data.f[[#This Row],[الحافز]]*50%,IF(data.f[[#This Row],[عدد أيام الأجازات]]>7,data.f[[#This Row],[الحافز]]*100%,""))))) -> 0 | BV45: =IF(data.f[[#This Row],[أيام أجازات بعد السنوية]]<=2,data.f[[#This Row],[الحافز]]*0,IF(data.f[[#This Row],[أيام أجازات بعد السنوية]]=3,data.f[[#This Row],[الحافز]]*30%,IF(data.f[[#This Row],[أيام أجازات بعد السنوية]]=4,data.f[[#This Row],[الحافز]]*40%,IF(data.f[[#This Row],[أيام أجازات بعد السنوية]]=5,data.f[[#This Row],[الحافز]]*50%,IF(data.f[[#This Row],[أيام أجازات بعد السنوية]]>5,data.f[[#This Row],[الحافز]]*100%,""))))) -> 0 | BW45: 0 | BX45: 0 | BZ45: 3 | CA45: 0 | CK45: 3 | CT45: =data.f[[#This Row],[متوسط المنحة]] -> 205.1053 | CU45: =SUM(data.f[[#This Row],[تامينات 2025]:[عمود1]]) -> 531.2698193 | CV45: =data.f[[#This Row],[إجمالي المستحق]]-data.f[[#This Row],[إجمالي المستقطع]] -> 6468.730181
A46: =IF(D46='المقابل النقدي للفنين'!$F$2,COUNTIF($D$4:D46,D46),"") ->  | B46: 202030 | C46: 4238 | D46: =VLOOKUP(data.f[[#This Row],[كود الشركة]],'التعامل المالي'!$B$3:$E$1478,3,FALSE) -> بنك مصر 1 | E46: احمد هاني السيد سالم | F46: 29108060104896 | G46: فنى | H46: أعمال | I46: الثالثة | J46: الثالثة | K46: حداد | L46: فرع بنى سويف | M46: =data.f[[#This Row],[كود الشركة]]&data.f[[#This Row],[اسم الموظف]]&data.f[[#This Row],[الشركة المدمجة]]&data.f[[#This Row],[الدرجة]]&data.f[[#This Row],[ترقية 7/2025]]&data.f[[#This Row],[الوظيفة]]&data.f[[#This Row],[مكان العمل]] -> 202030احمد هاني السيد سالمأعمالالثالثةالثالثةحدادفرع بنى سويف | N46: =IF(data.f[[#This Row],[ترقية 7/2025]]<>"","نعم","") -> نعم | O46: 937.14 | P46: =IF(data.f[[#This Row],[استعلام ترقية]]="نعم",data.f[[#This Row],[الأجر الأساسي]]*110%+data.f[[#This Row],[الأجر الأساسي]]*7%,data.f[[#This Row],[الأجر الأساسي]]*110%) -> 1096.4538 | R46: =data.f[[#This Row],[أساسي 7/2025]]*135% -> 1480.21263 | S46: =data.f[[#This Row],[أساسي 7/2025]]*15% -> 164.46807 | T46: 0 | V46: =IF(data.f[[#This Row],[التصنيف الادارى]]="فنى",data.f[[#This Row],[أساسي 7/2025]]*15%,0) -> 164.46807 | W46: 300 | AH46: 0 | AI46: =SUM(data.f[[#This Row],[بدل مخاطر مواني 30%]:[بدل تباع]]) -> 464.46807 | AJ46: 0 | AK46: 0 | AL46: 0 | AM46: 333.09 | AN46: 0 | AO46: 31.29 | AP46: 33.41 | AQ46: 42.9 | AR46: 61.2 | AS46: 67.7 | AT46: 88.69 | AV46: 56.286 | AW46: 600 | AX46: 8 | AY46: =SUM(data.f[[#This Row],[علاوة 2014]:[علاوة اجتماعية]]) -> 1322.566 | AZ46: 10 | BB46: 197.2926 | BF46: =SUM(data.f[[#This Row],[أساسي 7/2025]:[حافز موانى]],data.f[[#This Row],[إجمالي بدلات]],data.f[[#This Row],[إجمالي علاوات]],data.f[[#This Row],[م. عيد العمال]:[متوسط المنحة]]) -> 4735.46117 | BG46: =IF(data.f[[#This Row],[الإجمالي]]<7000,7000-data.f[[#This Row],[الإجمالي]],0) -> 2264.53883 | BH46: =SUM(data.f[[#This Row],[رد مستحقات]:[مكمل الأجر]]) -> 7000 | BL46: 18 | BM46: 18 | BN46: 523.8145215 | BR46: =((data.f[[#This Row],[إجمالي المستحق]]-(data.f[[#This Row],[الحافز]]+data.f[[#This Row],[عمود2]]+data.f[[#This Row],[متوسط المنحة]]))/30)*data.f[[#This Row],[أيام الغياب]] -> 0 | BS46: =(data.f[[#This Row],[عمود2]]/30)*data.f[[#This Row],[أيام الغياب]] -> 0 | BT46: =IF(data.f[[#This Row],[أيام الغياب]]=1,data.f[[#This Row],[الحافز]]*20%,IF(data.f[[#This Row],[أيام الغياب]]=2,data.f[[#This Row],[الحافز]]*30%,IF(data.f[[#This Row],[أيام الغياب]]>2,data.f[[#This Row],[الحافز]]*100%,""))) ->  | BU46: =IF(data.f[[#This Row],[عدد أيام الأجازات]]<=4,data.f[[#This Row],[الحافز]]*0,IF(data.f[[#This Row],[عدد أيام الأجازات]]=5,data.f[[#This Row],[الحافز]]*20%,IF(data.f[[#This Row],[عدد أيام الأجازات]]=6,data.f[[#This Row],[الحافز]]*40%,IF(data.f[[#This Row],[عدد أيام الأجازات]]=7,data.f[[#This Row],[الحافز]]*50%,IF(data.f[[#This Row],[عدد أيام الأجازات]]>7,data.f[[#This Row],[الحافز]]*100%,""))))) -> 0 | BV46: =IF(data.f[[#This Row],[أيام أجازات بعد السنوية]]<=2,data.f[[#This Row],[الحافز]]*0,IF(data.f[[#This Row],[أيام أجازات بعد السنوية]]=3,data.f[[#This Row],[الحافز]]*30%,IF(data.f[[#This Row],[أيام أجازات بعد السنوية]]=4,data.f[[#This Row],[الحافز]]*40%,IF(data.f[[#This Row],[أيام أجازات بعد السنوية]]=5,data.f[[#This Row],[الحافز]]*50%,IF(data.f[[#This Row],[أيام أجازات بعد السنوية]]>5,data.f[[#This Row],[الحافز]]*100%,""))))) -> 0 | BW46: 0 | BX46: 0 | BZ46: 3 | CA46: 0 | CK46: 3 | CT46: =data.f[[#This Row],[متوسط المنحة]] -> 197.2926 | CU46: =SUM(data.f[[#This Row],[تامينات 2025]:[عمود1]]) -> 529.8145215 | CV46: =data.f[[#This Row],[إجمالي المستحق]]-data.f[[#This Row],[إجمالي المستقطع]] -> 6470.185479
A47: =IF(D47='المقابل النقدي للفنين'!$F$2,COUNTIF($D$4:D47,D47),"") ->  | B47: 202031 | C47: 14087 | D47: =VLOOKUP(data.f[[#This Row],[كود الشركة]],'التعامل المالي'!$B$3:$E$1478,3,FALSE) -> البنك الاهلى | E47: ايمن صلاح عبدالرازق | F47: 29201011409258 | G47: فنى | H47: أعمال | I47: الثالثة | J47: الثالثة | K47: فني تشحيم | L47: فرع بنى سويف | M47: =data.f[[#This Row],[كود الشركة]]&data.f[[#This Row],[اسم الموظف]]&data.f[[#This Row],[الشركة المدمجة]]&data.f[[#This Row],[الدرجة]]&data.f[[#This Row],[ترقية 7/2025]]&data.f[[#This Row],[الوظيفة]]&data.f[[#This Row],[مكان العمل]] -> 202031ايمن صلاح عبدالرازق أعمالالثالثةالثالثةفني تشحيم فرع بنى سويف | N47: =IF(data.f[[#This Row],[ترقية 7/2025]]<>"","نعم","") -> نعم | O47: 974.25 | P47: =IF(data.f[[#This Row],[استعلام ترقية]]="نعم",data.f[[#This Row],[الأجر الأساسي]]*110%+data.f[[#This Row],[الأجر الأساسي]]*7%,data.f[[#This Row],[الأجر الأساسي]]*110%) -> 1139.8725 | R47: =data.f[[#This Row],[أساسي 7/2025]]*135% -> 1538.827875 | S47: =data.f[[#This Row],[أساسي 7/2025]]*15% -> 170.980875 | T47: 0 | V47: =IF(data.f[[#This Row],[التصنيف الادارى]]="فنى",data.f[[#This Row],[أساسي 7/2025]]*15%,0) -> 170.980875 | W47: 300 | AH47: 0 | AI47: =SUM(data.f[[#This Row],[بدل مخاطر مواني 30%]:[بدل تباع]]) -> 470.980875 | AJ47: 0 | AK47: 0 | AL47: 0 | AM47: 336.73 | AN47: 0 | AO47: 29.56 | AP47: 34.73 | AQ47: 44.6 | AR47: 63.62 | AS47: 68.08 | AT47: 86.26 | AV47: 52.575 | AW47: 600 | AX47: 8 | AY47: =SUM(data.f[[#This Row],[علاوة 2014]:[علاوة اجتماعية]]) -> 1324.155 | AZ47: 10 | BB47: 205.1053 | BF47: =SUM(data.f[[#This Row],[أساسي 7/2025]:[حافز موانى]],data.f[[#This Row],[إجمالي بدلات]],data.f[[#This Row],[إجمالي علاوات]],data.f[[#This Row],[م. عيد العمال]:[متوسط المنحة]]) -> 4859.922425 | BG47: =IF(data.f[[#This Row],[الإجمالي]]<7000,7000-data.f[[#This Row],[الإجمالي]],0) -> 2140.077575 | BH47: =SUM(data.f[[#This Row],[رد مستحقات]:[مكمل الأجر]]) -> 7000 | BL47: 18 | BM47: 18 | BN47: 525.2455957 | BR47: =((data.f[[#This Row],[إجمالي المستحق]]-(data.f[[#This Row],[الحافز]]+data.f[[#This Row],[عمود2]]+data.f[[#This Row],[متوسط المنحة]]))/30)*data.f[[#This Row],[أيام الغياب]] -> 0 | BS47: =(data.f[[#This Row],[عمود2]]/30)*data.f[[#This Row],[أيام الغياب]] -> 0 | BT47: =IF(data.f[[#This Row],[أيام الغياب]]=1,data.f[[#This Row],[الحافز]]*20%,IF(data.f[[#This Row],[أيام الغياب]]=2,data.f[[#This Row],[الحافز]]*30%,IF(data.f[[#This Row],[أيام الغياب]]>2,data.f[[#This Row],[الحافز]]*100%,""))) ->  | BU47: =IF(data.f[[#This Row],[عدد أيام الأجازات]]<=4,data.f[[#This Row],[الحافز]]*0,IF(data.f[[#This Row],[عدد أيام الأجازات]]=5,data.f[[#This Row],[الحافز]]*20%,IF(data.f[[#This Row],[عدد أيام الأجازات]]=6,data.f[[#This Row],[الحافز]]*40%,IF(data.f[[#This Row],[عدد أيام الأجازات]]=7,data.f[[#This Row],[الحافز]]*50%,IF(data.f[[#This Row],[عدد أيام الأجازات]]>7,data.f[[#This Row],[الحافز]]*100%,""))))) -> 0 | BV47: =IF(data.f[[#This Row],[أيام أجازات بعد السنوية]]<=2,data.f[[#This Row],[الحافز]]*0,IF(data.f[[#This Row],[أيام أجازات بعد السنوية]]=3,data.f[[#This Row],[الحافز]]*30%,IF(data.f[[#This Row],[أيام أجازات بعد السنوية]]=4,data.f[[#This Row],[الحافز]]*40%,IF(data.f[[#This Row],[أيام أجازات بعد السنوية]]=5,data.f[[#This Row],[الحافز]]*50%,IF(data.f[[#This Row],[أيام أجازات بعد السنوية]]>5,data.f[[#This Row],[الحافز]]*100%,""))))) -> 0 | BW47: 0 | BX47: 0 | BZ47: 3 | CA47: 0 | CK47: 3 | CT47: =data.f[[#This Row],[متوسط المنحة]] -> 205.1053 | CU47: =SUM(data.f[[#This Row],[تامينات 2025]:[عمود1]]) -> 531.2455957 | CV47: =data.f[[#This Row],[إجمالي المستحق]]-data.f[[#This Row],[إجمالي المستقطع]] -> 6468.754404
A48: =IF(D48='المقابل النقدي للفنين'!$F$2,COUNTIF($D$4:D48,D48),"") ->  | B48: 202032 | C48: 29186 | D48: =VLOOKUP(data.f[[#This Row],[كود الشركة]],'التعامل المالي'!$B$3:$E$1478,3,FALSE) -> البنك الاهلى | E48: خالد وجدي محمدي | F48: 28606050101755 | G48: فنى | H48: أعمال | I48: الثالثة | M48: =data.f[[#This Row],[كود الشركة]]&data.f[[#This Row],[اسم الموظف]]&data.f[[#This Row],[الشركة المدمجة]]&data.f[[#This Row],[الدرجة]]&data.f[[#This Row],[ترقية 7/2025]]&data.f[[#This Row],[الوظيفة]]&data.f[[#This Row],[مكان العمل]] -> 202032خالد وجدي محمدي أعمالالثالثة | N48: =IF(data.f[[#This Row],[ترقية 7/2025]]<>"","نعم","") ->  | O48: 937.14 | P48: =IF(data.f[[#This Row],[استعلام ترقية]]="نعم",data.f[[#This Row],[الأجر الأساسي]]*110%+data.f[[#This Row],[الأجر الأساسي]]*7%,data.f[[#This Row],[الأجر الأساسي]]*110%) -> 1030.854 | R48: =data.f[[#This Row],[أساسي 7/2025]]*135% -> 1391.6529 | S48: =data.f[[#This Row],[أساسي 7/2025]]*15% -> 154.6281 | T48: 0 | V48: =IF(data.f[[#This Row],[التصنيف الادارى]]="فنى",data.f[[#This Row],[أساسي 7/2025]]*15%,0) -> 154.6281 | W48: 300 | AH48: 0 | AI48: =SUM(data.f[[#This Row],[بدل مخاطر مواني 30%]:[بدل تباع]]) -> 454.6281 | AJ48: 0 | AK48: 0 | AL48: 0 | AM48: 333.09 | AN48: 0 | AO48: 31.29 | AP48: 33.41 | AQ48: 42.9 | AR48: 61.2 | AS48: 67.7 | AT48: 88.69 | AV48: 56.286 | AW48: 600 | AX48: 10 | AY48: =SUM(data.f[[#This Row],[علاوة 2014]:[علاوة اجتماعية]]) -> 1324.566 | AZ48: 10 | BB48: 197.2926 | BF48: =SUM(data.f[[#This Row],[أساسي 7/2025]:[حافز موانى]],data.f[[#This Row],[إجمالي بدلات]],data.f[[#This Row],[إجمالي علاوات]],data.f[[#This Row],[م. عيد العمال]:[متوسط المنحة]]) -> 4563.6217 | BG48: =IF(data.f[[#This Row],[الإجمالي]]<7000,7000-data.f[[#This Row],[الإجمالي]],0) -> 2436.3783 | BH48: =SUM(data.f[[#This Row],[رد مستحقات]:[مكمل الأجر]]) -> 7000 | BL48: 18 | BM48: 18 | BN48: 523.8386914 | BR48: =((data.f[[#This Row],[إجمالي المستحق]]-(data.f[[#This Row],[الحافز]]+data.f[[#This Row],[عمود2]]+data.f[[#This Row],[متوسط المنحة]]))/30)*data.f[[#This Row],[أيام الغياب]] -> 0 | BS48: =(data.f[[#This Row],[عمود2]]/30)*data.f[[#This Row],[أيام الغياب]] -> 0 | BT48: =IF(data.f[[#This Row],[أيام الغياب]]=1,data.f[[#This Row],[الحافز]]*20%,IF(data.f[[#This Row],[أيام الغياب]]=2,data.f[[#This Row],[الحافز]]*30%,IF(data.f[[#This Row],[أيام الغياب]]>2,data.f[[#This Row],[الحافز]]*100%,""))) ->  | BU48: =IF(data.f[[#This Row],[عدد أيام الأجازات]]<=4,data.f[[#This Row],[الحافز]]*0,IF(data.f[[#This Row],[عدد أيام الأجازات]]=5,data.f[[#This Row],[الحافز]]*20%,IF(data.f[[#This Row],[عدد أيام الأجازات]]=6,data.f[[#This Row],[الحافز]]*40%,IF(data.f[[#This Row],[عدد أيام الأجازات]]=7,data.f[[#This Row],[الحافز]]*50%,IF(data.f[[#This Row],[عدد أيام الأجازات]]>7,data.f[[#This Row],[الحافز]]*100%,""))))) -> 0 | BV48: =IF(data.f[[#This Row],[أيام أجازات بعد السنوية]]<=2,data.f[[#This Row],[الحافز]]*0,IF(data.f[[#This Row],[أيام أجازات بعد السنوية]]=3,data.f[[#This Row],[الحافز]]*30%,IF(data.f[[#This Row],[أيام أجازات بعد السنوية]]=4,data.f[[#This Row],[الحافز]]*40%,IF(data.f[[#This Row],[أيام أجازات بعد السنوية]]=5,data.f[[#This Row],[الحافز]]*50%,IF(data.f[[#This Row],[أيام أجازات بعد السنوية]]>5,data.f[[#This Row],[الحافز]]*100%,""))))) -> 0 | BW48: 0 | BX48: 0 | BZ48: 3 | CA48: 0 | CK48: 3 | CT48: =data.f[[#This Row],[متوسط المنحة]] -> 197.2926 | CU48: =SUM(data.f[[#This Row],[تامينات 2025]:[عمود1]]) -> 529.8386914 | CV48: =data.f[[#This Row],[إجمالي المستحق]]-data.f[[#This Row],[إجمالي المستقطع]] -> 6470.161309
A49: =IF(D49='المقابل النقدي للفنين'!$F$2,COUNTIF($D$4:D49,D49),"") ->  | B49: 202033 | C49: 2648 | D49: =VLOOKUP(data.f[[#This Row],[كود الشركة]],'التعامل المالي'!$B$3:$E$1478,3,FALSE) -> البنك الاهلى | E49: سيد محمد زينهم رفاعي | F49: 27203142300036 | G49: فنى | H49: أعمال | I49: الثالثة | J49: الثالثة | K49: حرفى سمكري | L49: الاميرية | M49: =data.f[[#This Row],[كود الشركة]]&data.f[[#This Row],[اسم الموظف]]&data.f[[#This Row],[الشركة المدمجة]]&data.f[[#This Row],[الدرجة]]&data.f[[#This Row],[ترقية 7/2025]]&data.f[[#This Row],[الوظيفة]]&data.f[[#This Row],[مكان العمل]] -> 202033سيد محمد زينهم رفاعي أعمالالثالثةالثالثةحرفى سمكريالاميرية | N49: =IF(data.f[[#This Row],[ترقية 7/2025]]<>"","نعم","") -> نعم | O49: 1947.76 | P49: =IF(data.f[[#This Row],[استعلام ترقية]]="نعم",data.f[[#This Row],[الأجر الأساسي]]*110%+data.f[[#This Row],[الأجر الأساسي]]*7%,data.f[[#This Row],[الأجر الأساسي]]*110%) -> 2278.8792 | R49: =data.f[[#This Row],[أساسي 7/2025]]*135% -> 3076.48692 | S49: =data.f[[#This Row],[أساسي 7/2025]]*15% -> 341.83188 | T49: 0 | V49: =IF(data.f[[#This Row],[التصنيف الادارى]]="فنى",data.f[[#This Row],[أساسي 7/2025]]*15%,0) -> 341.83188 | W49: 300 | AH49: 0 | AI49: =SUM(data.f[[#This Row],[بدل مخاطر مواني 30%]:[بدل تباع]]) -> 641.83188 | AJ49: 0 | AK49: 0 | AL49: 0 | AM49: 436.55 | AN49: 0 | AO49: 38.94 | AP49: 69.44 | AQ49: 89.16 | AR49: 127.2 | AS49: 136.1 | AT49: 145.63 | AV49: 97.388 | AW49: 600 | AX49: 8 | AY49: =SUM(data.f[[#This Row],[علاوة 2014]:[علاوة اجتماعية]]) -> 1748.408 | AZ49: 10 | BB49: 410.0547 | BF49: =SUM(data.f[[#This Row],[أساسي 7/2025]:[حافز موانى]],data.f[[#This Row],[إجمالي بدلات]],data.f[[#This Row],[إجمالي علاوات]],data.f[[#This Row],[م. عيد العمال]:[متوسط المنحة]]) -> 8507.49258 | BG49: =IF(data.f[[#This Row],[الإجمالي]]<7000,7000-data.f[[#This Row],[الإجمالي]],0) -> 0 | BH49: =SUM(data.f[[#This Row],[رد مستحقات]:[مكمل الأجر]]) -> 8507.49258 | BL49: 18 | BM49: 18 | BN49: 751.8554785 | BR49: =((data.f[[#This Row],[إجمالي المستحق]]-(data.f[[#This Row],[الحافز]]+data.f[[#This Row],[عمود2]]+data.f[[#This Row],[متوسط المنحة]]))/30)*data.f[[#This Row],[أيام الغياب]] -> 0 | BS49: =(data.f[[#This Row],[عمود2]]/30)*data.f[[#This Row],[أيام الغياب]] -> 0 | BT49: =IF(data.f[[#This Row],[أيام الغياب]]=1,data.f[[#This Row],[الحافز]]*20%,IF(data.f[[#This Row],[أيام الغياب]]=2,data.f[[#This Row],[الحافز]]*30%,IF(data.f[[#This Row],[أيام الغياب]]>2,data.f[[#This Row],[الحافز]]*100%,""))) ->  | BU49: =IF(data.f[[#This Row],[عدد أيام الأجازات]]<=4,data.f[[#This Row],[الحافز]]*0,IF(data.f[[#This Row],[عدد أيام الأجازات]]=5,data.f[[#This Row],[الحافز]]*20%,IF(data.f[[#This Row],[عدد أيام الأجازات]]=6,data.f[[#This Row],[الحافز]]*40%,IF(data.f[[#This Row],[عدد أيام الأجازات]]=7,data.f[[#This Row],[الحافز]]*50%,IF(data.f[[#This Row],[عدد أيام الأجازات]]>7,data.f[[#This Row],[الحافز]]*100%,""))))) -> 0 | BV49: =IF(data.f[[#This Row],[أيام أجازات بعد السنوية]]<=2,data.f[[#This Row],[الحافز]]*0,IF(data.f[[#This Row],[أيام أجازات بعد السنوية]]=3,data.f[[#This Row],[الحافز]]*30%,IF(data.f[[#This Row],[أيام أجازات بعد السنوية]]=4,data.f[[#This Row],[الحافز]]*40%,IF(data.f[[#This Row],[أيام أجازات بعد السنوية]]=5,data.f[[#This Row],[الحافز]]*50%,IF(data.f[[#This Row],[أيام أجازات بعد السنوية]]>5,data.f[[#This Row],[الحافز]]*100%,""))))) -> 0 | BW49: 0 | BX49: 0 | BZ49: 3 | CA49: 0 | CK49: 3 | CT49: =data.f[[#This Row],[متوسط المنحة]] -> 410.0547 | CU49: =SUM(data.f[[#This Row],[تامينات 2025]:[عمود1]]) -> 757.8554785 | CV49: =data.f[[#This Row],[إجمالي المستحق]]-data.f[[#This Row],[إجمالي المستقطع]] -> 7749.637101
A50: =IF(D50='المقابل النقدي للفنين'!$F$2,COUNTIF($D$4:D50,D50),"") ->  | B50: 202034 | C50: 4115 | D50: =VLOOKUP(data.f[[#This Row],[كود الشركة]],'التعامل المالي'!$B$3:$E$1478,3,FALSE) -> بنك مصر 1 | E50: احمد ابراهيم احمد محمد ابراهيم | F50: 28606060105295 | G50: فنى | H50: أعمال | I50: الرابعة | M50: =data.f[[#This Row],[كود الشركة]]&data.f[[#This Row],[اسم الموظف]]&data.f[[#This Row],[الشركة المدمجة]]&data.f[[#This Row],[الدرجة]]&data.f[[#This Row],[ترقية 7/2025]]&data.f[[#This Row],[الوظيفة]]&data.f[[#This Row],[مكان العمل]] -> 202034احمد ابراهيم احمد محمد ابراهيمأعمالالرابعة | N50: =IF(data.f[[#This Row],[ترقية 7/2025]]<>"","نعم","") ->  | O50: 735.53 | P50: =IF(data.f[[#This Row],[استعلام ترقية]]="نعم",data.f[[#This Row],[الأجر الأساسي]]*110%+data.f[[#This Row],[الأجر الأساسي]]*7%,data.f[[#This Row],[الأجر الأساسي]]*110%) -> 809.083 | R50: =data.f[[#This Row],[أساسي 7/2025]]*135% -> 1092.26205 | S50: =data.f[[#This Row],[أساسي 7/2025]]*15% -> 121.36245 | T50: 0 | V50: =IF(data.f[[#This Row],[التصنيف الادارى]]="فنى",data.f[[#This Row],[أساسي 7/2025]]*15%,0) -> 121.36245 | W50: 300 | AH50: 0 | AI50: =SUM(data.f[[#This Row],[بدل مخاطر مواني 30%]:[بدل تباع]]) -> 421.36245 | AJ50: 0 | AK50: 0 | AL50: 0 | AM50: 322.83 | AN50: 0 | AO50: 40.69 | AP50: 38.29 | AQ50: 35.72 | AR50: 57.97 | AS50: 80.03 | AT50: 101.88 | AV50: 76.447 | AW50: 600 | AX50: 4 | AY50: =SUM(data.f[[#This Row],[علاوة 2014]:[علاوة اجتماعية]]) -> 1357.857 | AZ50: 10 | BB50: 154.8484 | BF50: =SUM(data.f[[#This Row],[أساسي 7/2025]:[حافز موانى]],data.f[[#This Row],[إجمالي بدلات]],data.f[[#This Row],[إجمالي علاوات]],data.f[[#This Row],[م. عيد العمال]:[متوسط المنحة]]) -> 3966.77535 | BG50: =IF(data.f[[#This Row],[الإجمالي]]<7000,7000-data.f[[#This Row],[الإجمالي]],0) -> 3033.22465 | BH50: =SUM(data.f[[#This Row],[رد مستحقات]:[مكمل الأجر]]) -> 7000 | BL50: 18 | BM50: 18 | BN50: 516.5698828 | BR50: =((data.f[[#This Row],[إجمالي المستحق]]-(data.f[[#This Row],[الحافز]]+data.f[[#This Row],[عمود2]]+data.f[[#This Row],[متوسط المنحة]]))/30)*data.f[[#This Row],[أيام الغياب]] -> 0 | BS50: =(data.f[[#This Row],[عمود2]]/30)*data.f[[#This Row],[أيام الغياب]] -> 0 | BT50: =IF(data.f[[#This Row],[أيام الغياب]]=1,data.f[[#This Row],[الحافز]]*20%,IF(data.f[[#This Row],[أيام الغياب]]=2,data.f[[#This Row],[الحافز]]*30%,IF(data.f[[#This Row],[أيام الغياب]]>2,data.f[[#This Row],[الحافز]]*100%,""))) ->  | BU50: =IF(data.f[[#This Row],[عدد أيام الأجازات]]<=4,data.f[[#This Row],[الحافز]]*0,IF(data.f[[#This Row],[عدد أيام الأجازات]]=5,data.f[[#This Row],[الحافز]]*20%,IF(data.f[[#This Row],[عدد أيام الأجازات]]=6,data.f[[#This Row],[الحافز]]*40%,IF(data.f[[#This Row],[عدد أيام الأجازات]]=7,data.f[[#This Row],[الحافز]]*50%,IF(data.f[[#This Row],[عدد أيام الأجازات]]>7,data.f[[#This Row],[الحافز]]*100%,""))))) -> 0 | BV50: =IF(data.f[[#This Row],[أيام أجازات بعد السنوية]]<=2,data.f[[#This Row],[الحافز]]*0,IF(data.f[[#This Row],[أيام أجازات بعد السنوية]]=3,data.f[[#This Row],[الحافز]]*30%,IF(data.f[[#This Row],[أيام أجازات بعد السنوية]]=4,data.f[[#This Row],[الحافز]]*40%,IF(data.f[[#This Row],[أيام أجازات بعد السنوية]]=5,data.f[[#This Row],[الحافز]]*50%,IF(data.f[[#This Row],[أيام أجازات بعد السنوية]]>5,data.f[[#This Row],[الحافز]]*100%,""))))) -> 0 | BW50: 0 | BX50: 0 | BZ50: 3 | CA50: 0 | CK50: 3 | CT50: =data.f[[#This Row],[متوسط المنحة]] -> 154.8484 | CU50: =SUM(data.f[[#This Row],[تامينات 2025]:[عمود1]]) -> 522.5698828 | CV50: =data.f[[#This Row],[إجمالي المستحق]]-data.f[[#This Row],[إجمالي المستقطع]] -> 6477.430117
A51: =IF(D51='المقابل النقدي للفنين'!$F$2,COUNTIF($D$4:D51,D51),"") ->  | B51: 202035 | C51: 30055 | D51: =VLOOKUP(data.f[[#This Row],[كود الشركة]],'التعامل المالي'!$B$3:$E$1478,3,FALSE) -> البنك الاهلى | E51: عادل فتحي عيد مجاهد | F51: 294403031400119 | G51: فنى | H51: أعمال | I51: الخامسة | J51: الخامسة | K51: حرفى ميكانيكى | L51: الاميرية | M51: =data.f[[#This Row],[كود الشركة]]&data.f[[#This Row],[اسم الموظف]]&data.f[[#This Row],[الشركة المدمجة]]&data.f[[#This Row],[الدرجة]]&data.f[[#This Row],[ترقية 7/2025]]&data.f[[#This Row],[الوظيفة]]&data.f[[#This Row],[مكان العمل]] -> 202035عادل فتحي عيد مجاهدأعمالالخامسةالخامسةحرفى ميكانيكىالاميرية | N51: =IF(data.f[[#This Row],[ترقية 7/2025]]<>"","نعم","") -> نعم | O51: 735.53 | P51: =IF(data.f[[#This Row],[استعلام ترقية]]="نعم",data.f[[#This Row],[الأجر الأساسي]]*110%+data.f[[#This Row],[الأجر الأساسي]]*7%,data.f[[#This Row],[الأجر الأساسي]]*110%) -> 860.5701 | R51: =data.f[[#This Row],[أساسي 7/2025]]*135% -> 1161.769635 | S51: =data.f[[#This Row],[أساسي 7/2025]]*15% -> 129.085515 | T51: 0 | V51: =IF(data.f[[#This Row],[التصنيف الادارى]]="فنى",data.f[[#This Row],[أساسي 7/2025]]*15%,0) -> 129.085515 | W51: 300 | AH51: 0 | AI51: =SUM(data.f[[#This Row],[بدل مخاطر مواني 30%]:[بدل تباع]]) -> 429.085515 | AJ51: 0 | AK51: 0 | AL51: 0 | AM51: 1285.41 | AN51: 0 | AO51: 0 | AP51: 0 | AQ51: 0 | AR51: 0 | AS51: 0 | AT51: 0 | AV51: 76.447 | AW51: 0 | AX51: 0 | AY51: =SUM(data.f[[#This Row],[علاوة 2014]:[علاوة اجتماعية]]) -> 1361.857 | AZ51: 10 | BB51: 154.8484 | BF51: =SUM(data.f[[#This Row],[أساسي 7/2025]:[حافز موانى]],data.f[[#This Row],[إجمالي بدلات]],data.f[[#This Row],[إجمالي علاوات]],data.f[[#This Row],[م. عيد العمال]:[متوسط المنحة]]) -> 4107.216165 | BG51: =IF(data.f[[#This Row],[الإجمالي]]<7000,7000-data.f[[#This Row],[الإجمالي]],0) -> 2892.783835 | BH51: =SUM(data.f[[#This Row],[رد مستحقات]:[مكمل الأجر]]) -> 7000 | BL51: 18 | BM51: 18 | BN51: 516.6182764 | BR51: =((data.f[[#This Row],[إجمالي المستحق]]-(data.f[[#This Row],[الحافز]]+data.f[[#This Row],[عمود2]]+data.f[[#This Row],[متوسط المنحة]]))/30)*data.f[[#This Row],[أيام الغياب]] -> 0 | BS51: =(data.f[[#This Row],[عمود2]]/30)*data.f[[#This Row],[أيام الغياب]] -> 0 | BT51: =IF(data.f[[#This Row],[أيام الغياب]]=1,data.f[[#This Row],[الحافز]]*20%,IF(data.f[[#This Row],[أيام الغياب]]=2,data.f[[#This Row],[الحافز]]*30%,IF(data.f[[#This Row],[أيام الغياب]]>2,data.f[[#This Row],[الحافز]]*100%,""))) ->  | BU51: =IF(data.f[[#This Row],[عدد أيام الأجازات]]<=4,data.f[[#This Row],[الحافز]]*0,IF(data.f[[#This Row],[عدد أيام الأجازات]]=5,data.f[[#This Row],[الحافز]]*20%,IF(data.f[[#This Row],[عدد أيام الأجازات]]=6,data.f[[#This Row],[الحافز]]*40%,IF(data.f[[#This Row],[عدد أيام الأجازات]]=7,data.f[[#This Row],[الحافز]]*50%,IF(data.f[[#This Row],[عدد أيام الأجازات]]>7,data.f[[#This Row],[الحافز]]*100%,""))))) -> 0 | BV51: =IF(data.f[[#This Row],[أيام أجازات بعد السنوية]]<=2,data.f[[#This Row],[الحافز]]*0,IF(data.f[[#This Row],[أيام أجازات بعد السنوية]]=3,data.f[[#This Row],[الحافز]]*30%,IF(data.f[[#This Row],[أيام أجازات بعد السنوية]]=4,data.f[[#This Row],[الحافز]]*40%,IF(data.f[[#This Row],[أيام أجازات بعد السنوية]]=5,data.f[[#This Row],[الحافز]]*50%,IF(data.f[[#This Row],[أيام أجازات بعد السنوية]]>5,data.f[[#This Row],[الحافز]]*100%,""))))) -> 0 | BW51: 0 | BX51: 0 | BZ51: 3 | CA51: 0 | CK51: 3 | CT51: =data.f[[#This Row],[متوسط المنحة]] -> 154.8484 | CU51: =SUM(data.f[[#This Row],[تامينات 2025]:[عمود1]]) -> 522.6182764 | CV51: =data.f[[#This Row],[إجمالي المستحق]]-data.f[[#This Row],[إجمالي المستقطع]] -> 6477.381724
A52: =IF(D52='المقابل النقدي للفنين'!$F$2,COUNTIF($D$4:D52,D52),"") ->  | B52: 202036 | C52: 28501 | D52: =VLOOKUP(data.f[[#This Row],[كود الشركة]],'التعامل المالي'!$B$3:$E$1478,3,FALSE) -> البنك الاهلى | E52: نور سيد محمد زينهم | F52: 29301011403556 | G52: فنى | H52: أعمال | I52: الخامسة | J52: الخامسة | K52: حرفى ميكانيكى | L52: الاميرية | M52: =data.f[[#This Row],[كود الشركة]]&data.f[[#This Row],[اسم الموظف]]&data.f[[#This Row],[الشركة المدمجة]]&data.f[[#This Row],[الدرجة]]&data.f[[#This Row],[ترقية 7/2025]]&data.f[[#This Row],[الوظيفة]]&data.f[[#This Row],[مكان العمل]] -> 202036نور سيد محمد زينهم أعمالالخامسةالخامسةحرفى ميكانيكىالاميرية | N52: =IF(data.f[[#This Row],[ترقية 7/2025]]<>"","نعم","") -> نعم | O52: 884.46 | P52: =IF(data.f[[#This Row],[استعلام ترقية]]="نعم",data.f[[#This Row],[الأجر الأساسي]]*110%+data.f[[#This Row],[الأجر الأساسي]]*7%,data.f[[#This Row],[الأجر الأساسي]]*110%) -> 1034.8182 | R52: =data.f[[#This Row],[أساسي 7/2025]]*135% -> 1397.00457 | S52: =data.f[[#This Row],[أساسي 7/2025]]*15% -> 155.22273 | T52: 0 | V52: =IF(data.f[[#This Row],[التصنيف الادارى]]="فنى",data.f[[#This Row],[أساسي 7/2025]]*15%,0) -> 155.22273 | W52: 300 | AH52: 0 | AI52: =SUM(data.f[[#This Row],[بدل مخاطر مواني 30%]:[بدل تباع]]) -> 455.22273 | AJ52: 0 | AK52: 0 | AL52: 0 | AM52: 328.87 | AN52: 0 | AO52: 33.75 | AP52: 31.53 | AQ52: 40.49 | AR52: 57.76 | AS52: 70.92 | AT52: 92.14 | AV52: 61.55399 | AW52: 600 | AX52: 6 | AY52: =SUM(data.f[[#This Row],[علاوة 2014]:[علاوة اجتماعية]]) -> 1323.01399 | AZ52: 10 | BB52: 186.2021 | BF52: =SUM(data.f[[#This Row],[أساسي 7/2025]:[حافز موانى]],data.f[[#This Row],[إجمالي بدلات]],data.f[[#This Row],[إجمالي علاوات]],data.f[[#This Row],[م. عيد العمال]:[متوسط المنحة]]) -> 4561.48432 | BG52: =IF(data.f[[#This Row],[الإجمالي]]<7000,7000-data.f[[#This Row],[الإجمالي]],0) -> 2438.51568 | BH52: =SUM(data.f[[#This Row],[رد مستحقات]:[مكمل الأجر]]) -> 7000 | BL52: 18 | BM52: 18 | BN52: 521.8169043 | BR52: =((data.f[[#This Row],[إجمالي المستحق]]-(data.f[[#This Row],[الحافز]]+data.f[[#This Row],[عمود2]]+data.f[[#This Row],[متوسط المنحة]]))/30)*data.f[[#This Row],[أيام الغياب]] -> 0 | BS52: =(data.f[[#This Row],[عمود2]]/30)*data.f[[#This Row],[أيام الغياب]] -> 0 | BT52: =IF(data.f[[#This Row],[أيام الغياب]]=1,data.f[[#This Row],[الحافز]]*20%,IF(data.f[[#This Row],[أيام الغياب]]=2,data.f[[#This Row],[الحافز]]*30%,IF(data.f[[#This Row],[أيام الغياب]]>2,data.f[[#This Row],[الحافز]]*100%,""))) ->  | BU52: =IF(data.f[[#This Row],[عدد أيام الأجازات]]<=4,data.f[[#This Row],[الحافز]]*0,IF(data.f[[#This Row],[عدد أيام الأجازات]]=5,data.f[[#This Row],[الحافز]]*20%,IF(data.f[[#This Row],[عدد أيام الأجازات]]=6,data.f[[#This Row],[الحافز]]*40%,IF(data.f[[#This Row],[عدد أيام الأجازات]]=7,data.f[[#This Row],[الحافز]]*50%,IF(data.f[[#This Row],[عدد أيام الأجازات]]>7,data.f[[#This Row],[الحافز]]*100%,""))))) -> 0 | BV52: =IF(data.f[[#This Row],[أيام أجازات بعد السنوية]]<=2,data.f[[#This Row],[الحافز]]*0,IF(data.f[[#This Row],[أيام أجازات بعد السنوية]]=3,data.f[[#This Row],[الحافز]]*30%,IF(data.f[[#This Row],[أيام أجازات بعد السنوية]]=4,data.f[[#This Row],[الحافز]]*40%,IF(data.f[[#This Row],[أيام أجازات بعد السنوية]]=5,data.f[[#This Row],[الحافز]]*50%,IF(data.f[[#This Row],[أيام أجازات بعد السنوية]]>5,data.f[[#This Row],[الحافز]]*100%,""))))) -> 0 | BW52: 0 | BX52: 0 | BZ52: 3 | CA52: 0 | CK52: 3 | CT52: =data.f[[#This Row],[متوسط المنحة]] -> 186.2021 | CU52: =SUM(data.f[[#This Row],[تامينات 2025]:[عمود1]]) -> 527.8169043 | CV52: =data.f[[#This Row],[إجمالي المستحق]]-data.f[[#This Row],[إجمالي المستقطع]] -> 6472.183096
A53: =IF(D53='المقابل النقدي للفنين'!$F$2,COUNTIF($D$4:D53,D53),"") ->  | B53: 202038 | C53: 29033 | D53: =VLOOKUP(data.f[[#This Row],[كود الشركة]],'التعامل المالي'!$B$3:$E$1478,3,FALSE) -> البنك الاهلى | E53: احمد محمد احمد حسن | F53: 276120201101858 | G53: فنى | H53: أعمال | I53: الرابعة | J53: الرابعة | K53: حرفى سمكرى | L53: الاميرية | M53: =data.f[[#This Row],[كود الشركة]]&data.f[[#This Row],[اسم الموظف]]&data.f[[#This Row],[الشركة المدمجة]]&data.f[[#This Row],[الدرجة]]&data.f[[#This Row],[ترقية 7/2025]]&data.f[[#This Row],[الوظيفة]]&data.f[[#This Row],[مكان العمل]] -> 202038احمد محمد احمد حسن أعمالالرابعةالرابعةحرفى سمكرىالاميرية | N53: =IF(data.f[[#This Row],[ترقية 7/2025]]<>"","نعم","") -> نعم | O53: 1209.77 | P53: =IF(data.f[[#This Row],[استعلام ترقية]]="نعم",data.f[[#This Row],[الأجر الأساسي]]*110%+data.f[[#This Row],[الأجر الأساسي]]*7%,data.f[[#This Row],[الأجر الأساسي]]*110%) -> 1415.4309 | R53: =data.f[[#This Row],[أساسي 7/2025]]*135% -> 1910.831715 | S53: =data.f[[#This Row],[أساسي 7/2025]]*15% -> 212.314635 | T53: 0 | V53: =IF(data.f[[#This Row],[التصنيف الادارى]]="فنى",data.f[[#This Row],[أساسي 7/2025]]*15%,0) -> 212.314635 | W53: 300 | AH53: 0 | AI53: =SUM(data.f[[#This Row],[بدل مخاطر مواني 30%]:[بدل تباع]]) -> 512.314635 | AJ53: 0 | AK53: 0 | AL53: 0 | AM53: 355.82 | AN53: 0 | AO53: 24.18 | AP53: 43.13 | AQ53: 55.38 | AR53: 79 | AS53: 84.53 | AT53: 90.45 | AV53: 60.4885 | AW53: 600 | AX53: 10 | AY53: =SUM(data.f[[#This Row],[علاوة 2014]:[علاوة اجتماعية]]) -> 1402.9785 | AZ53: 10 | BB53: 254.6884 | BF53: =SUM(data.f[[#This Row],[أساسي 7/2025]:[حافز موانى]],data.f[[#This Row],[إجمالي بدلات]],data.f[[#This Row],[إجمالي علاوات]],data.f[[#This Row],[م. عيد العمال]:[متوسط المنحة]]) -> 5718.558785 | BG53: =IF(data.f[[#This Row],[الإجمالي]]<7000,7000-data.f[[#This Row],[الإجمالي]],0) -> 1281.441215 | BH53: =SUM(data.f[[#This Row],[رد مستحقات]:[مكمل الأجر]]) -> 7000 | BL53: 18 | BM53: 18 | BN53: 534.7760107 | BR53: =((data.f[[#This Row],[إجمالي المستحق]]-(data.f[[#This Row],[الحافز]]+data.f[[#This Row],[عمود2]]+data.f[[#This Row],[متوسط المنحة]]))/30)*data.f[[#This Row],[أيام الغياب]] -> 0 | BS53: =(data.f[[#This Row],[عمود2]]/30)*data.f[[#This Row],[أيام الغياب]] -> 0 | BT53: =IF(data.f[[#This Row],[أيام الغياب]]=1,data.f[[#This Row],[الحافز]]*20%,IF(data.f[[#This Row],[أيام الغياب]]=2,data.f[[#This Row],[الحافز]]*30%,IF(data.f[[#This Row],[أيام الغياب]]>2,data.f[[#This Row],[الحافز]]*100%,""))) ->  | BU53: =IF(data.f[[#This Row],[عدد أيام الأجازات]]<=4,data.f[[#This Row],[الحافز]]*0,IF(data.f[[#This Row],[عدد أيام الأجازات]]=5,data.f[[#This Row],[الحافز]]*20%,IF(data.f[[#This Row],[عدد أيام الأجازات]]=6,data.f[[#This Row],[الحافز]]*40%,IF(data.f[[#This Row],[عدد أيام الأجازات]]=7,data.f[[#This Row],[الحافز]]*50%,IF(data.f[[#This Row],[عدد أيام الأجازات]]>7,data.f[[#This Row],[الحافز]]*100%,""))))) -> 0 | BV53: =IF(data.f[[#This Row],[أيام أجازات بعد السنوية]]<=2,data.f[[#This Row],[الحافز]]*0,IF(data.f[[#This Row],[أيام أجازات بعد السنوية]]=3,data.f[[#This Row],[الحافز]]*30%,IF(data.f[[#This Row],[أيام أجازات بعد السنوية]]=4,data.f[[#This Row],[الحافز]]*40%,IF(data.f[[#This Row],[أيام أجازات بعد السنوية]]=5,data.f[[#This Row],[الحافز]]*50%,IF(data.f[[#This Row],[أيام أجازات بعد السنوية]]>5,data.f[[#This Row],[الحافز]]*100%,""))))) -> 0 | BW53: 0 | BX53: 0 | BZ53: 3 | CA53: 0 | CK53: 3 | CT53: =data.f[[#This Row],[متوسط المنحة]] -> 254.6884 | CU53: =SUM(data.f[[#This Row],[تامينات 2025]:[عمود1]]) -> 540.7760107 | CV53: =data.f[[#This Row],[إجمالي المستحق]]-data.f[[#This Row],[إجمالي المستقطع]] -> 6459.223989
A54: =IF(D54='المقابل النقدي للفنين'!$F$2,COUNTIF($D$4:D54,D54),"") ->  | B54: 202039 | C54: 44003 | D54: =VLOOKUP(data.f[[#This Row],[كود الشركة]],'التعامل المالي'!$B$3:$E$1478,3,FALSE) -> بنك مصر 1 | E54: احمد اشرف عبد المحسن حسن | F54: 29809010104311 | G54: فنى | H54: أعمال | I54: عقد مؤقت | M54: =data.f[[#This Row],[كود الشركة]]&data.f[[#This Row],[اسم الموظف]]&data.f[[#This Row],[الشركة المدمجة]]&data.f[[#This Row],[الدرجة]]&data.f[[#This Row],[ترقية 7/2025]]&data.f[[#This Row],[الوظيفة]]&data.f[[#This Row],[مكان العمل]] -> 202039احمد اشرف عبد المحسن حسنأعمالعقد مؤقت | N54: =IF(data.f[[#This Row],[ترقية 7/2025]]<>"","نعم","") ->  | O54: 401.32 | P54: =IF(data.f[[#This Row],[استعلام ترقية]]="نعم",data.f[[#This Row],[الأجر الأساسي]]*110%+data.f[[#This Row],[الأجر الأساسي]]*7%,data.f[[#This Row],[الأجر الأساسي]]*110%) -> 441.452 | R54: =data.f[[#This Row],[أساسي 7/2025]]*135% -> 595.9602 | S54: =data.f[[#This Row],[أساسي 7/2025]]*15% -> 66.2178 | T54: 0 | V54: =IF(data.f[[#This Row],[التصنيف الادارى]]="فنى",data.f[[#This Row],[أساسي 7/2025]]*15%,0) -> 66.2178 | W54: 300 | AH54: 0 | AI54: =SUM(data.f[[#This Row],[بدل مخاطر مواني 30%]:[بدل تباع]]) -> 366.2178 | AJ54: 0 | AK54: 0 | AL54: 0 | AM54: 926.82 | AN54: 0 | AO54: 0 | AP54: 0 | AQ54: 0 | AR54: 0 | AS54: 0 | AT54: 0 | AV54: 109.868 | AW54: 600 | AX54: 0 | AY54: =SUM(data.f[[#This Row],[علاوة 2014]:[علاوة اجتماعية]]) -> 1636.688 | AZ54: 10 | BB54: 84.48843 | BF54: =SUM(data.f[[#This Row],[أساسي 7/2025]:[حافز موانى]],data.f[[#This Row],[إجمالي بدلات]],data.f[[#This Row],[إجمالي علاوات]],data.f[[#This Row],[م. عيد العمال]:[متوسط المنحة]]) -> 3201.02423 | BG54: =IF(data.f[[#This Row],[الإجمالي]]<7000,7000-data.f[[#This Row],[الإجمالي]],0) -> 3798.97577 | BH54: =SUM(data.f[[#This Row],[رد مستحقات]:[مكمل الأجر]]) -> 7000 | BL54: 18 | BM54: 18 | BN54: 499.9885107 | BR54: =((data.f[[#This Row],[إجمالي المستحق]]-(data.f[[#This Row],[الحافز]]+data.f[[#This Row],[عمود2]]+data.f[[#This Row],[متوسط المنحة]]))/30)*data.f[[#This Row],[أيام الغياب]] -> 0 | BS54: =(data.f[[#This Row],[عمود2]]/30)*data.f[[#This Row],[أيام الغياب]] -> 0 | BT54: =IF(data.f[[#This Row],[أيام الغياب]]=1,data.f[[#This Row],[الحافز]]*20%,IF(data.f[[#This Row],[أيام الغياب]]=2,data.f[[#This Row],[الحافز]]*30%,IF(data.f[[#This Row],[أيام الغياب]]>2,data.f[[#This Row],[الحافز]]*100%,""))) ->  | BU54: =IF(data.f[[#This Row],[عدد أيام الأجازات]]<=4,data.f[[#This Row],[الحافز]]*0,IF(data.f[[#This Row],[عدد أيام الأجازات]]=5,data.f[[#This Row],[الحافز]]*20%,IF(data.f[[#This Row],[عدد أيام الأجازات]]=6,data.f[[#This Row],[الحافز]]*40%,IF(data.f[[#This Row],[عدد أيام الأجازات]]=7,data.f[[#This Row],[الحافز]]*50%,IF(data.f[[#This Row],[عدد أيام الأجازات]]>7,data.f[[#This Row],[الحافز]]*100%,""))))) -> 0 | BV54: =IF(data.f[[#This Row],[أيام أجازات بعد السنوية]]<=2,data.f[[#This Row],[الحافز]]*0,IF(data.f[[#This Row],[أيام أجازات بعد السنوية]]=3,data.f[[#This Row],[الحافز]]*30%,IF(data.f[[#This Row],[أيام أجازات بعد السنوية]]=4,data.f[[#This Row],[الحافز]]*40%,IF(data.f[[#This Row],[أيام أجازات بعد السنوية]]=5,data.f[[#This Row],[الحافز]]*50%,IF(data.f[[#This Row],[أيام أجازات بعد السنوية]]>5,data.f[[#This Row],[الحافز]]*100%,""))))) -> 0 | BW54: 0 | BX54: 0 | BZ54: 3 | CA54: 0 | CK54: 3 | CT54: =data.f[[#This Row],[متوسط المنحة]] -> 84.48843 | CU54: =SUM(data.f[[#This Row],[تامينات 2025]:[عمود1]]) -> 505.9885107 | CV54: =data.f[[#This Row],[إجمالي المستحق]]-data.f[[#This Row],[إجمالي المستقطع]] -> 6494.011489
A55: =IF(D55='المقابل النقدي للفنين'!$F$2,COUNTIF($D$4:D55,D55),"") ->  | B55: 202040 | C55: 22152 | D55: =VLOOKUP(data.f[[#This Row],[كود الشركة]],'التعامل المالي'!$B$3:$E$1478,3,FALSE) -> بنك مصر 1 | E55: رمضان امين محمد عبد الله | F55: 27417150102733 | G55: فنى | H55: المباشر | I55: الرابعة | J55: الرابعة | K55: حرفى نقاش | L55: الاميرية | M55: =data.f[[#This Row],[كود الشركة]]&data.f[[#This Row],[اسم الموظف]]&data.f[[#This Row],[الشركة المدمجة]]&data.f[[#This Row],[الدرجة]]&data.f[[#This Row],[ترقية 7/2025]]&data.f[[#This Row],[الوظيفة]]&data.f[[#This Row],[مكان العمل]] -> 202040رمضان امين محمد عبد اللهالمباشرالرابعةالرابعةحرفى نقاشالاميرية | N55: =IF(data.f[[#This Row],[ترقية 7/2025]]<>"","نعم","") -> نعم | O55: 1090.62 | P55: =IF(data.f[[#This Row],[استعلام ترقية]]="نعم",data.f[[#This Row],[الأجر الأساسي]]*110%+data.f[[#This Row],[الأجر الأساسي]]*7%,data.f[[#This Row],[الأجر الأساسي]]*110%) -> 1276.0254 | R55: =data.f[[#This Row],[أساسي 7/2025]]*135% -> 1722.63429 | S55: =data.f[[#This Row],[أساسي 7/2025]]*15% -> 191.40381 | T55: 0 | V55: =IF(data.f[[#This Row],[التصنيف الادارى]]="فنى",data.f[[#This Row],[أساسي 7/2025]]*15%,0) -> 191.40381 | W55: 300 | AH55: 0 | AI55: =SUM(data.f[[#This Row],[بدل مخاطر مواني 30%]:[بدل تباع]]) -> 491.40381 | AJ55: 36.27 | AK55: 40.47 | AL55: 65 | AM55: 0 | AN55: 200 | AO55: 24.13 | AP55: 38.88 | AQ55: 49.92 | AR55: 71.22 | AS55: 76.21 | AT55: 81.54 | AV55: 54.531 | AW55: 600 | AX55: 10 | AY55: =SUM(data.f[[#This Row],[علاوة 2014]:[علاوة اجتماعية]]) -> 1348.171 | AZ55: 10 | BB55: 229.6042 | BF55: =SUM(data.f[[#This Row],[أساسي 7/2025]:[حافز موانى]],data.f[[#This Row],[إجمالي بدلات]],data.f[[#This Row],[إجمالي علاوات]],data.f[[#This Row],[م. عيد العمال]:[متوسط المنحة]]) -> 5269.24251 | BG55: =IF(data.f[[#This Row],[الإجمالي]]<7000,7000-data.f[[#This Row],[الإجمالي]],0) -> 1730.75749 | BH55: =SUM(data.f[[#This Row],[رد مستحقات]:[مكمل الأجر]]) -> 7000 | BL55: 18 | BM55: 18 | BN55: 550 | BR55: =((data.f[[#This Row],[إجمالي المستحق]]-(data.f[[#This Row],[الحافز]]+data.f[[#This Row],[عمود2]]+data.f[[#This Row],[متوسط المنحة]]))/30)*data.f[[#This Row],[أيام الغياب]] -> 0 | BS55: =(data.f[[#This Row],[عمود2]]/30)*data.f[[#This Row],[أيام الغياب]] -> 0 | BT55: =IF(data.f[[#This Row],[أيام الغياب]]=1,data.f[[#This Row],[الحافز]]*20%,IF(data.f[[#This Row],[أيام الغياب]]=2,data.f[[#This Row],[الحافز]]*30%,IF(data.f[[#This Row],[أيام الغياب]]>2,data.f[[#This Row],[الحافز]]*100%,""))) ->  | BU55: =IF(data.f[[#This Row],[عدد أيام الأجازات]]<=4,data.f[[#This Row],[الحافز]]*0,IF(data.f[[#This Row],[عدد أيام الأجازات]]=5,data.f[[#This Row],[الحافز]]*20%,IF(data.f[[#This Row],[عدد أيام الأجازات]]=6,data.f[[#This Row],[الحافز]]*40%,IF(data.f[[#This Row],[عدد أيام الأجازات]]=7,data.f[[#This Row],[الحافز]]*50%,IF(data.f[[#This Row],[عدد أيام الأجازات]]>7,data.f[[#This Row],[الحافز]]*100%,""))))) -> 0 | BV55: =IF(data.f[[#This Row],[أيام أجازات بعد السنوية]]<=2,data.f[[#This Row],[الحافز]]*0,IF(data.f[[#This Row],[أيام أجازات بعد السنوية]]=3,data.f[[#This Row],[الحافز]]*30%,IF(data.f[[#This Row],[أيام أجازات بعد السنوية]]=4,data.f[[#This Row],[الحافز]]*40%,IF(data.f[[#This Row],[أيام أجازات بعد السنوية]]=5,data.f[[#This Row],[الحافز]]*50%,IF(data.f[[#This Row],[أيام أجازات بعد السنوية]]>5,data.f[[#This Row],[الحافز]]*100%,""))))) -> 0 | BW55: 0 | BX55: 0 | BZ55: 3 | CA55: 0 | CK55: 3 | CT55: =data.f[[#This Row],[متوسط المنحة]] -> 229.6042 | CU55: =SUM(data.f[[#This Row],[تامينات 2025]:[عمود1]]) -> 556 | CV55: =data.f[[#This Row],[إجمالي المستحق]]-data.f[[#This Row],[إجمالي المستقطع]] -> 6444
A56: =IF(D56='المقابل النقدي للفنين'!$F$2,COUNTIF($D$4:D56,D56),"") ->  | B56: 202041 | C56: 21890 | D56: =VLOOKUP(data.f[[#This Row],[كود الشركة]],'التعامل المالي'!$B$3:$E$1478,3,FALSE) -> بنك مصر 1 | E56: وليد احمد عبده ابراهيم | F56: 27211020101311 | G56: فنى | H56: المباشر | I56: الاولى | J56: الأولى | K56: فنى كهربائى سيارات | L56: قطاع شئون الفنية | M56: =data.f[[#This Row],[كود الشركة]]&data.f[[#This Row],[اسم الموظف]]&data.f[[#This Row],[الشركة المدمجة]]&data.f[[#This Row],[الدرجة]]&data.f[[#This Row],[ترقية 7/2025]]&data.f[[#This Row],[الوظيفة]]&data.f[[#This Row],[مكان العمل]] -> 202041وليد احمد عبده ابراهيمالمباشرالاولىالأولىفنى كهربائى سياراتقطاع شئون الفنية | N56: =IF(data.f[[#This Row],[ترقية 7/2025]]<>"","نعم","") -> نعم | O56: 2267.84 | P56: =IF(data.f[[#This Row],[استعلام ترقية]]="نعم",data.f[[#This Row],[الأجر الأساسي]]*110%+data.f[[#This Row],[الأجر الأساسي]]*7%,data.f[[#This Row],[الأجر الأساسي]]*110%) -> 2653.3728 | R56: =data.f[[#This Row],[أساسي 7/2025]]*135% -> 3582.05328 | S56: =data.f[[#This Row],[أساسي 7/2025]]*15% -> 398.00592 | T56: 0 | V56: =IF(data.f[[#This Row],[التصنيف الادارى]]="فنى",data.f[[#This Row],[أساسي 7/2025]]*15%,0) -> 398.00592 | W56: 300 | AH56: 0 | AI56: =SUM(data.f[[#This Row],[بدل مخاطر مواني 30%]:[بدل تباع]]) -> 698.00592 | AJ56: 74.27 | AK56: 83.17 | AL56: 100.05 | AM56: 0 | AN56: 190 | AO56: 45.33 | AP56: 80.84 | AQ56: 103.81 | AR56: 148.1 | AS56: 158.47 | AT56: 169.56 | AV56: 113.392 | AW56: 600 | AX56: 10 | AY56: =SUM(data.f[[#This Row],[علاوة 2014]:[علاوة اجتماعية]]) -> 1876.992 | AZ56: 10 | BB56: 477.44 | BF56: =SUM(data.f[[#This Row],[أساسي 7/2025]:[حافز موانى]],data.f[[#This Row],[إجمالي بدلات]],data.f[[#This Row],[إجمالي علاوات]],data.f[[#This Row],[م. عيد العمال]:[متوسط المنحة]]) -> 9695.86992 | BG56: =IF(data.f[[#This Row],[الإجمالي]]<7000,7000-data.f[[#This Row],[الإجمالي]],0) -> 0 | BH56: =SUM(data.f[[#This Row],[رد مستحقات]:[مكمل الأجر]]) -> 9695.86992 | BL56: 18 | BM56: 18 | BN56: 858 | BR56: =((data.f[[#This Row],[إجمالي المستحق]]-(data.f[[#This Row],[الحافز]]+data.f[[#This Row],[عمود2]]+data.f[[#This Row],[متوسط المنحة]]))/30)*data.f[[#This Row],[أيام الغياب]] -> 0 | BS56: =(data.f[[#This Row],[عمود2]]/30)*data.f[[#This Row],[أيام الغياب]] -> 0 | BT56: =IF(data.f[[#This Row],[أيام الغياب]]=1,data.f[[#This Row],[الحافز]]*20%,IF(data.f[[#This Row],[أيام الغياب]]=2,data.f[[#This Row],[الحافز]]*30%,IF(data.f[[#This Row],[أيام الغياب]]>2,data.f[[#This Row],[الحافز]]*100%,""))) ->  | BU56: =IF(data.f[[#This Row],[عدد أيام الأجازات]]<=4,data.f[[#This Row],[الحافز]]*0,IF(data.f[[#This Row],[عدد أيام الأجازات]]=5,data.f[[#This Row],[الحافز]]*20%,IF(data.f[[#This Row],[عدد أيام الأجازات]]=6,data.f[[#This Row],[الحافز]]*40%,IF(data.f[[#This Row],[عدد أيام الأجازات]]=7,data.f[[#This Row],[الحافز]]*50%,IF(data.f[[#This Row],[عدد أيام الأجازات]]>7,data.f[[#This Row],[الحافز]]*100%,""))))) -> 0 | BV56: =IF(data.f[[#This Row],[أيام أجازات بعد السنوية]]<=2,data.f[[#This Row],[الحافز]]*0,IF(data.f[[#This Row],[أيام أجازات بعد السنوية]]=3,data.f[[#This Row],[الحافز]]*30%,IF(data.f[[#This Row],[أيام أجازات بعد السنوية]]=4,data.f[[#This Row],[الحافز]]*40%,IF(data.f[[#This Row],[أيام أجازات بعد السنوية]]=5,data.f[[#This Row],[الحافز]]*50%,IF(data.f[[#This Row],[أيام أجازات بعد السنوية]]>5,data.f[[#This Row],[الحافز]]*100%,""))))) -> 0 | BW56: 4.12 | BX56: 0 | BZ56: 3 | CA56: 0 | CK56: 5 | CT56: =data.f[[#This Row],[متوسط المنحة]] -> 477.44 | CU56: =SUM(data.f[[#This Row],[تامينات 2025]:[عمود1]]) -> 870.12 | CV56: =data.f[[#This Row],[إجمالي المستحق]]-data.f[[#This Row],[إجمالي المستقطع]] -> 8825.74992
A57: =IF(D57='المقابل النقدي للفنين'!$F$2,COUNTIF($D$4:D57,D57),"") ->  | B57: 202042 | C57: 21730 | D57: =VLOOKUP(data.f[[#This Row],[كود الشركة]],'التعامل المالي'!$B$3:$E$1478,3,FALSE) -> بنك مصر 1 | E57: عصام الدين عفيفي محمود عفيفى | F57: 26610291000772 | G57: ادارى | H57: المباشر | I57: الثانية | M57: =data.f[[#This Row],[كود الشركة]]&data.f[[#This Row],[اسم الموظف]]&data.f[[#This Row],[الشركة المدمجة]]&data.f[[#This Row],[الدرجة]]&data.f[[#This Row],[ترقية 7/2025]]&data.f[[#This Row],[الوظيفة]]&data.f[[#This Row],[مكان العمل]] -> 202042عصام الدين عفيفي محمود عفيفىالمباشرالثانية | N57: =IF(data.f[[#This Row],[ترقية 7/2025]]<>"","نعم","") ->  | O57: 2254.16 | P57: =IF(data.f[[#This Row],[استعلام ترقية]]="نعم",data.f[[#This Row],[الأجر الأساسي]]*110%+data.f[[#This Row],[الأجر الأساسي]]*7%,data.f[[#This Row],[الأجر الأساسي]]*110%) -> 2479.576 | R57: =data.f[[#This Row],[أساسي 7/2025]]*135% -> 3347.4276 | S57: =data.f[[#This Row],[أساسي 7/2025]]*15% -> 371.9364 | T57: 0 | V57: =IF(data.f[[#This Row],[التصنيف الادارى]]="فنى",data.f[[#This Row],[أساسي 7/2025]]*15%,0) -> 0 | W57: 300 | AH57: 0 | AI57: =SUM(data.f[[#This Row],[بدل مخاطر مواني 30%]:[بدل تباع]]) -> 300 | AJ57: 79.09 | AK57: 88.3 | AL57: 106 | AM57: 0 | AN57: 190 | AO57: 45.06 | AP57: 80.36 | AQ57: 103.18 | AR57: 147.2 | AS57: 157.51 | AT57: 168.54 | AV57: 112.708 | AW57: 600 | AX57: 6 | AY57: =SUM(data.f[[#This Row],[علاوة 2014]:[علاوة اجتماعية]]) -> 1883.948 | AZ57: 10 | BB57: 474.56 | BF57: =SUM(data.f[[#This Row],[أساسي 7/2025]:[حافز موانى]],data.f[[#This Row],[إجمالي بدلات]],data.f[[#This Row],[إجمالي علاوات]],data.f[[#This Row],[م. عيد العمال]:[متوسط المنحة]]) -> 8867.448 | BG57: =IF(data.f[[#This Row],[الإجمالي]]<7000,7000-data.f[[#This Row],[الإجمالي]],0) -> 0 | BH57: =SUM(data.f[[#This Row],[رد مستحقات]:[مكمل الأجر]]) -> 8867.448 | BL57: 18 | BM57: 18 | BN57: 847 | BR57: =((data.f[[#This Row],[إجمالي المستحق]]-(data.f[[#This Row],[الحافز]]+data.f[[#This Row],[عمود2]]+data.f[[#This Row],[متوسط المنحة]]))/30)*data.f[[#This Row],[أيام الغياب]] -> 0 | BS57: =(data.f[[#This Row],[عمود2]]/30)*data.f[[#This Row],[أيام الغياب]] -> 0 | BT57: =IF(data.f[[#This Row],[أيام الغياب]]=1,data.f[[#This Row],[الحافز]]*20%,IF(data.f[[#This Row],[أيام الغياب]]=2,data.f[[#This Row],[الحافز]]*30%,IF(data.f[[#This Row],[أيام الغياب]]>2,data.f[[#This Row],[الحافز]]*100%,""))) ->  | BU57: =IF(data.f[[#This Row],[عدد أيام الأجازات]]<=4,data.f[[#This Row],[الحافز]]*0,IF(data.f[[#This Row],[عدد أيام الأجازات]]=5,data.f[[#This Row],[الحافز]]*20%,IF(data.f[[#This Row],[عدد أيام الأجازات]]=6,data.f[[#This Row],[الحافز]]*40%,IF(data.f[[#This Row],[عدد أيام الأجازات]]=7,data.f[[#This Row],[الحافز]]*50%,IF(data.f[[#This Row],[عدد أيام الأجازات]]>7,data.f[[#This Row],[الحافز]]*100%,""))))) -> 0 | BV57: =IF(data.f[[#This Row],[أيام أجازات بعد السنوية]]<=2,data.f[[#This Row],[الحافز]]*0,IF(data.f[[#This Row],[أيام أجازات بعد السنوية]]=3,data.f[[#This Row],[الحافز]]*30%,IF(data.f[[#This Row],[أيام أجازات بعد السنوية]]=4,data.f[[#This Row],[الحافز]]*40%,IF(data.f[[#This Row],[أيام أجازات بعد السنوية]]=5,data.f[[#This Row],[الحافز]]*50%,IF(data.f[[#This Row],[أيام أجازات بعد السنوية]]>5,data.f[[#This Row],[الحافز]]*100%,""))))) -> 0 | BW57: 172.82 | BX57: 0 | BZ57: 3 | CA57: 750 | CK57: 3 | CT57: =data.f[[#This Row],[متوسط المنحة]] -> 474.56 | CU57: =SUM(data.f[[#This Row],[تامينات 2025]:[عمود1]]) -> 1775.82 | CV57: =data.f[[#This Row],[إجمالي المستحق]]-data.f[[#This Row],[إجمالي المستقطع]] -> 7091.628
A58: =IF(D58='المقابل النقدي للفنين'!$F$2,COUNTIF($D$4:D58,D58),"") ->  | B58: 202043 | C58: 21813 | D58: =VLOOKUP(data.f[[#This Row],[كود الشركة]],'التعامل المالي'!$B$3:$E$1478,3,FALSE) -> بنك مصر 1 | E58: محرم فكرى جلال عبد الباقى | F58: 27503162101777 | G58: فنى | H58: المباشر | I58: الثالثة | J58: الثالثة | K58: حرفى ميكانيكى | L58: الاميرية | M58: =data.f[[#This Row],[كود الشركة]]&data.f[[#This Row],[اسم الموظف]]&data.f[[#This Row],[الشركة المدمجة]]&data.f[[#This Row],[الدرجة]]&data.f[[#This Row],[ترقية 7/2025]]&data.f[[#This Row],[الوظيفة]]&data.f[[#This Row],[مكان العمل]] -> 202043محرم فكرى جلال عبد الباقىالمباشرالثالثةالثالثةحرفى ميكانيكى الاميرية | N58: =IF(data.f[[#This Row],[ترقية 7/2025]]<>"","نعم","") -> نعم | O58: 1998.07 | P58: =IF(data.f[[#This Row],[استعلام ترقية]]="نعم",data.f[[#This Row],[الأجر الأساسي]]*110%+data.f[[#This Row],[الأجر الأساسي]]*7%,data.f[[#This Row],[الأجر الأساسي]]*110%) -> 2337.7419 | R58: =data.f[[#This Row],[أساسي 7/2025]]*135% -> 3155.951565 | S58: =data.f[[#This Row],[أساسي 7/2025]]*15% -> 350.661285 | T58: 0 | V58: =IF(data.f[[#This Row],[التصنيف الادارى]]="فنى",data.f[[#This Row],[أساسي 7/2025]]*15%,0) -> 350.661285 | W58: 300 | AH58: 0 | AI58: =SUM(data.f[[#This Row],[بدل مخاطر مواني 30%]:[بدل تباع]]) -> 650.661285 | AJ58: 70.76 | AK58: 78.98 | AL58: 94.28 | AM58: 0 | AN58: 200 | AO58: 39.94 | AP58: 71.23 | AQ58: 91.46 | AR58: 130.48 | AS58: 139.62 | AT58: 149.39 | AV58: 99.9035 | AW58: 600 | AX58: 10 | AY58: =SUM(data.f[[#This Row],[علاوة 2014]:[علاوة اجتماعية]]) -> 1776.0435 | AZ58: 10 | BB58: 420.6463 | BF58: =SUM(data.f[[#This Row],[أساسي 7/2025]:[حافز موانى]],data.f[[#This Row],[إجمالي بدلات]],data.f[[#This Row],[إجمالي علاوات]],data.f[[#This Row],[م. عيد العمال]:[متوسط المنحة]]) -> 8701.705835 | BG58: =IF(data.f[[#This Row],[الإجمالي]]<7000,7000-data.f[[#This Row],[الإجمالي]],0) -> 0 | BH58: =SUM(data.f[[#This Row],[رد مستحقات]:[مكمل الأجر]]) -> 8701.705835 | BL58: 18 | BM58: 18 | BN58: 770 | BR58: =((data.f[[#This Row],[إجمالي المستحق]]-(data.f[[#This Row],[الحافز]]+data.f[[#This Row],[عمود2]]+data.f[[#This Row],[متوسط المنحة]]))/30)*data.f[[#This Row],[أيام الغياب]] -> 0 | BS58: =(data.f[[#This Row],[عمود2]]/30)*data.f[[#This Row],[أيام الغياب]] -> 0 | BT58: =IF(data.f[[#This Row],[أيام الغياب]]=1,data.f[[#This Row],[الحافز]]*20%,IF(data.f[[#This Row],[أيام الغياب]]=2,data.f[[#This Row],[الحافز]]*30%,IF(data.f[[#This Row],[أيام الغياب]]>2,data.f[[#This Row],[الحافز]]*100%,""))) ->  | BU58: =IF(data.f[[#This Row],[عدد أيام الأجازات]]<=4,data.f[[#This Row],[الحافز]]*0,IF(data.f[[#This Row],[عدد أيام الأجازات]]=5,data.f[[#This Row],[الحافز]]*20%,IF(data.f[[#This Row],[عدد أيام الأجازات]]=6,data.f[[#This Row],[الحافز]]*40%,IF(data.f[[#This Row],[عدد أيام الأجازات]]=7,data.f[[#This Row],[الحافز]]*50%,IF(data.f[[#This Row],[عدد أيام الأجازات]]>7,data.f[[#This Row],[الحافز]]*100%,""))))) -> 0 | BV58: =IF(data.f[[#This Row],[أيام أجازات بعد السنوية]]<=2,data.f[[#This Row],[الحافز]]*0,IF(data.f[[#This Row],[أيام أجازات بعد السنوية]]=3,data.f[[#This Row],[الحافز]]*30%,IF(data.f[[#This Row],[أيام أجازات بعد السنوية]]=4,data.f[[#This Row],[الحافز]]*40%,IF(data.f[[#This Row],[أيام أجازات بعد السنوية]]=5,data.f[[#This Row],[الحافز]]*50%,IF(data.f[[#This Row],[أيام أجازات بعد السنوية]]>5,data.f[[#This Row],[الحافز]]*100%,""))))) -> 0 | BW58: 0 | BX58: 0 | BZ58: 3 | CA58: 0 | CK58: 3 | CT58: =data.f[[#This Row],[متوسط المنحة]] -> 420.6463 | CU58: =SUM(data.f[[#This Row],[تامينات 2025]:[عمود1]]) -> 776 | CV58: =data.f[[#This Row],[إجمالي المستحق]]-data.f[[#This Row],[إجمالي المستقطع]] -> 7925.705835
A59: =IF(D59='المقابل النقدي للفنين'!$F$2,COUNTIF($D$4:D59,D59),"") ->  | B59: 202044 | C59: 22120 | D59: =VLOOKUP(data.f[[#This Row],[كود الشركة]],'التعامل المالي'!$B$3:$E$1478,3,FALSE) -> بنك مصر 1 | E59: علاء الدين عبد الغنى عبد الرحمن | F59: 27809282102272 | G59: فنى | H59: المباشر | I59: الثالثة | J59: الثالثة | K59: حرفى ميكانيكى | L59: الاميرية | M59: =data.f[[#This Row],[كود الشركة]]&data.f[[#This Row],[اسم الموظف]]&data.f[[#This Row],[الشركة المدمجة]]&data.f[[#This Row],[الدرجة]]&data.f[[#This Row],[ترقية 7/2025]]&data.f[[#This Row],[الوظيفة]]&data.f[[#This Row],[مكان العمل]] -> 202044علاء الدين عبد الغنى عبد الرحمن المباشرالثالثةالثالثةحرفى ميكانيكى الاميرية | N59: =IF(data.f[[#This Row],[ترقية 7/2025]]<>"","نعم","") -> نعم | O59: 1660.9 | P59: =IF(data.f[[#This Row],[استعلام ترقية]]="نعم",data.f[[#This Row],[الأجر الأساسي]]*110%+data.f[[#This Row],[الأجر الأساسي]]*7%,data.f[[#This Row],[الأجر الأساسي]]*110%) -> 1943.253 | R59: =data.f[[#This Row],[أساسي 7/2025]]*135% -> 2623.39155 | S59: =data.f[[#This Row],[أساسي 7/2025]]*15% -> 291.48795 | T59: 0 | V59: =IF(data.f[[#This Row],[التصنيف الادارى]]="فنى",data.f[[#This Row],[أساسي 7/2025]]*15%,0) -> 291.48795 | W59: 300 | AH59: 0 | AI59: =SUM(data.f[[#This Row],[بدل مخاطر مواني 30%]:[بدل تباع]]) -> 591.48795 | AJ59: 59.01 | AK59: 65.8 | AL59: 78.36 | AM59: 0 | AN59: 200 | AO59: 33.2 | AP59: 59.21 | AQ59: 76.03 | AR59: 108.46 | AS59: 116.06 | AT59: 124.18 | AV59: 83.045 | AW59: 600 | AX59: 10 | AY59: =SUM(data.f[[#This Row],[علاوة 2014]:[علاوة اجتماعية]]) -> 1613.355 | AZ59: 10 | BB59: 349.6632 | BF59: =SUM(data.f[[#This Row],[أساسي 7/2025]:[حافز موانى]],data.f[[#This Row],[إجمالي بدلات]],data.f[[#This Row],[إجمالي علاوات]],data.f[[#This Row],[م. عيد العمال]:[متوسط المنحة]]) -> 7422.63865 | BG59: =IF(data.f[[#This Row],[الإجمالي]]<7000,7000-data.f[[#This Row],[الإجمالي]],0) -> 0 | BH59: =SUM(data.f[[#This Row],[رد مستحقات]:[مكمل الأجر]]) -> 7422.63865 | BL59: 18 | BM59: 18 | BN59: 649 | BR59: =((data.f[[#This Row],[إجمالي المستحق]]-(data.f[[#This Row],[الحافز]]+data.f[[#This Row],[عمود2]]+data.f[[#This Row],[متوسط المنحة]]))/30)*data.f[[#This Row],[أيام الغياب]] -> 0 | BS59: =(data.f[[#This Row],[عمود2]]/30)*data.f[[#This Row],[أيام الغياب]] -> 0 | BT59: =IF(data.f[[#This Row],[أيام الغياب]]=1,data.f[[#This Row],[الحافز]]*20%,IF(data.f[[#This Row],[أيام الغياب]]=2,data.f[[#This Row],[الحافز]]*30%,IF(data.f[[#This Row],[أيام الغياب]]>2,data.f[[#This Row],[الحافز]]*100%,""))) ->  | BU59: =IF(data.f[[#This Row],[عدد أيام الأجازات]]<=4,data.f[[#This Row],[الحافز]]*0,IF(data.f[[#This Row],[عدد أيام الأجازات]]=5,data.f[[#This Row],[الحافز]]*20%,IF(data.f[[#This Row],[عدد أيام الأجازات]]=6,data.f[[#This Row],[الحافز]]*40%,IF(data.f[[#This Row],[عدد أيام الأجازات]]=7,data.f[[#This Row],[الحافز]]*50%,IF(data.f[[#This Row],[عدد أيام الأجازات]]>7,data.f[[#This Row],[الحافز]]*100%,""))))) -> 0 | BV59: =IF(data.f[[#This Row],[أيام أجازات بعد السنوية]]<=2,data.f[[#This Row],[الحافز]]*0,IF(data.f[[#This Row],[أيام أجازات بعد السنوية]]=3,data.f[[#This Row],[الحافز]]*30%,IF(data.f[[#This Row],[أيام أجازات بعد السنوية]]=4,data.f[[#This Row],[الحافز]]*40%,IF(data.f[[#This Row],[أيام أجازات بعد السنوية]]=5,data.f[[#This Row],[الحافز]]*50%,IF(data.f[[#This Row],[أيام أجازات بعد السنوية]]>5,data.f[[#This Row],[الحافز]]*100%,""))))) -> 0 | BW59: 0 | BX59: 0 | BZ59: 3 | CA59: 0 | CK59: 3 | CT59: =data.f[[#This Row],[متوسط المنحة]] -> 349.6632 | CU59: =SUM(data.f[[#This Row],[تامينات 2025]:[عمود1]]) -> 655 | CV59: =data.f[[#This Row],[إجمالي المستحق]]-data.f[[#This Row],[إجمالي المستقطع]] -> 6767.63865
A60: =IF(D60='المقابل النقدي للفنين'!$F$2,COUNTIF($D$4:D60,D60),"") ->  | B60: 202045 | C60: 21983 | D60: =VLOOKUP(data.f[[#This Row],[كود الشركة]],'التعامل المالي'!$B$3:$E$1478,3,FALSE) -> بنك مصر 1 | E60: محمد عبد المقصود محمد عفيفى | F60: 27505230100418 | G60: فنى | H60: المباشر | I60: الثالثة | J60: الثالثة | K60: حرفى خراط | L60: الاميرية | M60: =data.f[[#This Row],[كود الشركة]]&data.f[[#This Row],[اسم الموظف]]&data.f[[#This Row],[الشركة المدمجة]]&data.f[[#This Row],[الدرجة]]&data.f[[#This Row],[ترقية 7/2025]]&data.f[[#This Row],[الوظيفة]]&data.f[[#This Row],[مكان العمل]] -> 202045محمد عبد المقصود محمد عفيفىالمباشرالثالثةالثالثةحرفى خراطالاميرية | N60: =IF(data.f[[#This Row],[ترقية 7/2025]]<>"","نعم","") -> نعم | O60: 1893.84 | P60: =IF(data.f[[#This Row],[استعلام ترقية]]="نعم",data.f[[#This Row],[الأجر الأساسي]]*110%+data.f[[#This Row],[الأجر الأساسي]]*7%,data.f[[#This Row],[الأجر الأساسي]]*110%) -> 2215.7928 | R60: =data.f[[#This Row],[أساسي 7/2025]]*135% -> 2991.32028 | S60: =data.f[[#This Row],[أساسي 7/2025]]*15% -> 332.36892 | T60: 0 | V60: =IF(data.f[[#This Row],[التصنيف الادارى]]="فنى",data.f[[#This Row],[أساسي 7/2025]]*15%,0) -> 332.36892 | W60: 300 | AH60: 0 | AI60: =SUM(data.f[[#This Row],[بدل مخاطر مواني 30%]:[بدل تباع]]) -> 632.36892 | AJ60: 67.21 | AK60: 74.98 | AL60: 89.38 | AM60: 0 | AN60: 200 | AO60: 37.86 | AP60: 67.51 | AQ60: 86.69 | AR60: 123.67 | AS60: 132.33 | AT60: 141.6 | AV60: 94.692 | AW60: 600 | AX60: 8 | AY60: =SUM(data.f[[#This Row],[علاوة 2014]:[علاوة اجتماعية]]) -> 1723.922 | AZ60: 10 | BB60: 398.7032 | BF60: =SUM(data.f[[#This Row],[أساسي 7/2025]:[حافز موانى]],data.f[[#This Row],[إجمالي بدلات]],data.f[[#This Row],[إجمالي علاوات]],data.f[[#This Row],[م. عيد العمال]:[متوسط المنحة]]) -> 8304.47612 | BG60: =IF(data.f[[#This Row],[الإجمالي]]<7000,7000-data.f[[#This Row],[الإجمالي]],0) -> 0 | BH60: =SUM(data.f[[#This Row],[رد مستحقات]:[مكمل الأجر]]) -> 8304.47612 | BL60: 18 | BM60: 18 | BN60: 737 | BR60: =((data.f[[#This Row],[إجمالي المستحق]]-(data.f[[#This Row],[الحافز]]+data.f[[#This Row],[عمود2]]+data.f[[#This Row],[متوسط المنحة]]))/30)*data.f[[#This Row],[أيام الغياب]] -> 0 | BS60: =(data.f[[#This Row],[عمود2]]/30)*data.f[[#This Row],[أيام الغياب]] -> 0 | BT60: =IF(data.f[[#This Row],[أيام الغياب]]=1,data.f[[#This Row],[الحافز]]*20%,IF(data.f[[#This Row],[أيام الغياب]]=2,data.f[[#This Row],[الحافز]]*30%,IF(data.f[[#This Row],[أيام الغياب]]>2,data.f[[#This Row],[الحافز]]*100%,""))) ->  | BU60: =IF(data.f[[#This Row],[عدد أيام الأجازات]]<=4,data.f[[#This Row],[الحافز]]*0,IF(data.f[[#This Row],[عدد أيام الأجازات]]=5,data.f[[#This Row],[الحافز]]*20%,IF(data.f[[#This Row],[عدد أيام الأجازات]]=6,data.f[[#This Row],[الحافز]]*40%,IF(data.f[[#This Row],[عدد أيام الأجازات]]=7,data.f[[#This Row],[الحافز]]*50%,IF(data.f[[#This Row],[عدد أيام الأجازات]]>7,data.f[[#This Row],[الحافز]]*100%,""))))) -> 0 | BV60: =IF(data.f[[#This Row],[أيام أجازات بعد السنوية]]<=2,data.f[[#This Row],[الحافز]]*0,IF(data.f[[#This Row],[أيام أجازات بعد السنوية]]=3,data.f[[#This Row],[الحافز]]*30%,IF(data.f[[#This Row],[أيام أجازات بعد السنوية]]=4,data.f[[#This Row],[الحافز]]*40%,IF(data.f[[#This Row],[أيام أجازات بعد السنوية]]=5,data.f[[#This Row],[الحافز]]*50%,IF(data.f[[#This Row],[أيام أجازات بعد السنوية]]>5,data.f[[#This Row],[الحافز]]*100%,""))))) -> 0 | BW60: 0 | BX60: 0 | BZ60: 3 | CA60: 0 | CK60: 3 | CT60: =data.f[[#This Row],[متوسط المنحة]] -> 398.7032 | CU60: =SUM(data.f[[#This Row],[تامينات 2025]:[عمود1]]) -> 743 | CV60: =data.f[[#This Row],[إجمالي المستحق]]-data.f[[#This Row],[إجمالي المستقطع]] -> 7561.47612
A61: =IF(D61='المقابل النقدي للفنين'!$F$2,COUNTIF($D$4:D61,D61),"") ->  | B61: 202046 | C61: 21833 | D61: =VLOOKUP(data.f[[#This Row],[كود الشركة]],'التعامل المالي'!$B$3:$E$1478,3,FALSE) -> بنك مصر 1 | E61: دياب على محمد ابراهيم | F61: 27506290100758 | G61: فنى | H61: المباشر | I61: الثالثة | J61: الثالثة | K61: حرفى ميكانيكى | L61: الاميرية | M61: =data.f[[#This Row],[كود الشركة]]&data.f[[#This Row],[اسم الموظف]]&data.f[[#This Row],[الشركة المدمجة]]&data.f[[#This Row],[الدرجة]]&data.f[[#This Row],[ترقية 7/2025]]&data.f[[#This Row],[الوظيفة]]&data.f[[#This Row],[مكان العمل]] -> 202046دياب على محمد ابراهيم المباشرالثالثةالثالثةحرفى ميكانيكى الاميرية | N61: =IF(data.f[[#This Row],[ترقية 7/2025]]<>"","نعم","") -> نعم | O61: 1979.69 | P61: =IF(data.f[[#This Row],[استعلام ترقية]]="نعم",data.f[[#This Row],[الأجر الأساسي]]*110%+data.f[[#This Row],[الأجر الأساسي]]*7%,data.f[[#This Row],[الأجر الأساسي]]*110%) -> 2316.2373 | R61: =data.f[[#This Row],[أساسي 7/2025]]*135% -> 3126.920355 | S61: =data.f[[#This Row],[أساسي 7/2025]]*15% -> 347.435595 | T61: 0 | V61: =IF(data.f[[#This Row],[التصنيف الادارى]]="فنى",data.f[[#This Row],[أساسي 7/2025]]*15%,0) -> 347.435595 | W61: 300 | AH61: 0 | AI61: =SUM(data.f[[#This Row],[بدل مخاطر مواني 30%]:[بدل تباع]]) -> 647.435595 | AJ61: 70.23 | AK61: 78.36 | AL61: 93.44 | AM61: 0 | AN61: 200 | AO61: 39.57 | AP61: 70.57 | AQ61: 90.62 | AR61: 129.28 | AS61: 138.33 | AT61: 148.01 | AV61: 98.9845 | AW61: 600 | AX61: 10 | AY61: =SUM(data.f[[#This Row],[علاوة 2014]:[علاوة اجتماعية]]) -> 1767.3945 | AZ61: 10 | BB61: 416.7768 | BF61: =SUM(data.f[[#This Row],[أساسي 7/2025]:[حافز موانى]],data.f[[#This Row],[إجمالي بدلات]],data.f[[#This Row],[إجمالي علاوات]],data.f[[#This Row],[م. عيد العمال]:[متوسط المنحة]]) -> 8632.200145 | BG61: =IF(data.f[[#This Row],[الإجمالي]]<7000,7000-data.f[[#This Row],[الإجمالي]],0) -> 0 | BH61: =SUM(data.f[[#This Row],[رد مستحقات]:[مكمل الأجر]]) -> 8632.200145 | BL61: 18 | BM61: 18 | BN61: 759 | BR61: =((data.f[[#This Row],[إجمالي المستحق]]-(data.f[[#This Row],[الحافز]]+data.f[[#This Row],[عمود2]]+data.f[[#This Row],[متوسط المنحة]]))/30)*data.f[[#This Row],[أيام الغياب]] -> 0 | BS61: =(data.f[[#This Row],[عمود2]]/30)*data.f[[#This Row],[أيام الغياب]] -> 0 | BT61: =IF(data.f[[#This Row],[أيام الغياب]]=1,data.f[[#This Row],[الحافز]]*20%,IF(data.f[[#This Row],[أيام الغياب]]=2,data.f[[#This Row],[الحافز]]*30%,IF(data.f[[#This Row],[أيام الغياب]]>2,data.f[[#This Row],[الحافز]]*100%,""))) ->  | BU61: =IF(data.f[[#This Row],[عدد أيام الأجازات]]<=4,data.f[[#This Row],[الحافز]]*0,IF(data.f[[#This Row],[عدد أيام الأجازات]]=5,data.f[[#This Row],[الحافز]]*20%,IF(data.f[[#This Row],[عدد أيام الأجازات]]=6,data.f[[#This Row],[الحافز]]*40%,IF(data.f[[#This Row],[عدد أيام الأجازات]]=7,data.f[[#This Row],[الحافز]]*50%,IF(data.f[[#This Row],[عدد أيام الأجازات]]>7,data.f[[#This Row],[الحافز]]*100%,""))))) -> 0 | BV61: =IF(data.f[[#This Row],[أيام أجازات بعد السنوية]]<=2,data.f[[#This Row],[الحافز]]*0,IF(data.f[[#This Row],[أيام أجازات بعد السنوية]]=3,data.f[[#This Row],[الحافز]]*30%,IF(data.f[[#This Row],[أيام أجازات بعد السنوية]]=4,data.f[[#This Row],[الحافز]]*40%,IF(data.f[[#This Row],[أيام أجازات بعد السنوية]]=5,data.f[[#This Row],[الحافز]]*50%,IF(data.f[[#This Row],[أيام أجازات بعد السنوية]]>5,data.f[[#This Row],[الحافز]]*100%,""))))) -> 0 | BW61: 0 | BX61: 0 | BZ61: 3 | CA61: 0 | CK61: 3 | CT61: =data.f[[#This Row],[متوسط المنحة]] -> 416.7768 | CU61: =SUM(data.f[[#This Row],[تامينات 2025]:[عمود1]]) -> 765 | CV61: =data.f[[#This Row],[إجمالي المستحق]]-data.f[[#This Row],[إجمالي المستقطع]] -> 7867.200145
A62: =IF(D62='المقابل النقدي للفنين'!$F$2,COUNTIF($D$4:D62,D62),"") ->  | B62: 202048 | C62: 21306 | D62: =VLOOKUP(data.f[[#This Row],[كود الشركة]],'التعامل المالي'!$B$3:$E$1478,3,FALSE) -> بنك مصر 1 | E62: عماد عبد الرازق سيد على | F62: 27110310100911 | G62: فنى | H62: المباشر | I62: الثالثة | J62: الثالثة | K62: حرفى ميكانيكى | L62: السويس | M62: =data.f[[#This Row],[كود الشركة]]&data.f[[#This Row],[اسم الموظف]]&data.f[[#This Row],[الشركة المدمجة]]&data.f[[#This Row],[الدرجة]]&data.f[[#This Row],[ترقية 7/2025]]&data.f[[#This Row],[الوظيفة]]&data.f[[#This Row],[مكان العمل]] -> 202048عماد عبد الرازق سيد على المباشرالثالثةالثالثةحرفى ميكانيكى السويس | N62: =IF(data.f[[#This Row],[ترقية 7/2025]]<>"","نعم","") -> نعم | O62: 2041.57 | P62: =IF(data.f[[#This Row],[استعلام ترقية]]="نعم",data.f[[#This Row],[الأجر الأساسي]]*110%+data.f[[#This Row],[الأجر الأساسي]]*7%,data.f[[#This Row],[الأجر الأساسي]]*110%) -> 2388.6369 | R62: =data.f[[#This Row],[أساسي 7/2025]]*135% -> 3224.659815 | S62: =data.f[[#This Row],[أساسي 7/2025]]*15% -> 358.295535 | T62: 0 | V62: =IF(data.f[[#This Row],[التصنيف الادارى]]="فنى",data.f[[#This Row],[أساسي 7/2025]]*15%,0) -> 358.295535 | W62: 300 | AH62: 0 | AI62: =SUM(data.f[[#This Row],[بدل مخاطر مواني 30%]:[بدل تباع]]) -> 658.295535 | AJ62: 72.29 | AK62: 80.69 | AL62: 96.33 | AM62: 0 | AN62: 200 | AO62: 40.81 | AP62: 72.78 | AQ62: 93.45 | AR62: 133.32 | AS62: 142.66 | AT62: 152.64 | AV62: 102.0785 | AW62: 600 | AX62: 10 | AY62: =SUM(data.f[[#This Row],[علاوة 2014]:[علاوة اجتماعية]]) -> 1797.0485 | AZ62: 10 | BB62: 429.8042 | BF62: =SUM(data.f[[#This Row],[أساسي 7/2025]:[حافز موانى]],data.f[[#This Row],[إجمالي بدلات]],data.f[[#This Row],[إجمالي علاوات]],data.f[[#This Row],[م. عيد العمال]:[متوسط المنحة]]) -> 8866.740485 | BG62: =IF(data.f[[#This Row],[الإجمالي]]<7000,7000-data.f[[#This Row],[الإجمالي]],0) -> 0 | BH62: =SUM(data.f[[#This Row],[رد مستحقات]:[مكمل الأجر]]) -> 8866.740485 | BL62: 18 | BM62: 18 | BN62: 781 | BR62: =((data.f[[#This Row],[إجمالي المستحق]]-(data.f[[#This Row],[الحافز]]+data.f[[#This Row],[عمود2]]+data.f[[#This Row],[متوسط المنحة]]))/30)*data.f[[#This Row],[أيام الغياب]] -> 0 | BS62: =(data.f[[#This Row],[عمود2]]/30)*data.f[[#This Row],[أيام الغياب]] -> 0 | BT62: =IF(data.f[[#This Row],[أيام الغياب]]=1,data.f[[#This Row],[الحافز]]*20%,IF(data.f[[#This Row],[أيام الغياب]]=2,data.f[[#This Row],[الحافز]]*30%,IF(data.f[[#This Row],[أيام الغياب]]>2,data.f[[#This Row],[الحافز]]*100%,""))) ->  | BU62: =IF(data.f[[#This Row],[عدد أيام الأجازات]]<=4,data.f[[#This Row],[الحافز]]*0,IF(data.f[[#This Row],[عدد أيام الأجازات]]=5,data.f[[#This Row],[الحافز]]*20%,IF(data.f[[#This Row],[عدد أيام الأجازات]]=6,data.f[[#This Row],[الحافز]]*40%,IF(data.f[[#This Row],[عدد أيام الأجازات]]=7,data.f[[#This Row],[الحافز]]*50%,IF(data.f[[#This Row],[عدد أيام الأجازات]]>7,data.f[[#This Row],[الحافز]]*100%,""))))) -> 0 | BV62: =IF(data.f[[#This Row],[أيام أجازات بعد السنوية]]<=2,data.f[[#This Row],[الحافز]]*0,IF(data.f[[#This Row],[أيام أجازات بعد السنوية]]=3,data.f[[#This Row],[الحافز]]*30%,IF(data.f[[#This Row],[أيام أجازات بعد السنوية]]=4,data.f[[#This Row],[الحافز]]*40%,IF(data.f[[#This Row],[أيام أجازات بعد السنوية]]=5,data.f[[#This Row],[الحافز]]*50%,IF(data.f[[#This Row],[أيام أجازات بعد السنوية]]>5,data.f[[#This Row],[الحافز]]*100%,""))))) -> 0 | BW62: 0 | BX62: 0 | BZ62: 3 | CA62: 0 | CK62: 3 | CT62: =data.f[[#This Row],[متوسط المنحة]] -> 429.8042 | CU62: =SUM(data.f[[#This Row],[تامينات 2025]:[عمود1]]) -> 787 | CV62: =data.f[[#This Row],[إجمالي المستحق]]-data.f[[#This Row],[إجمالي المستقطع]] -> 8079.740485
A63: =IF(D63='المقابل النقدي للفنين'!$F$2,COUNTIF($D$4:D63,D63),"") ->  | B63: 202049 | C63: 21542 | D63: =VLOOKUP(data.f[[#This Row],[كود الشركة]],'التعامل المالي'!$B$3:$E$1478,3,FALSE) -> بنك مصر 1 | E63: رجب فتحى اسماعيل على | F63: 27208261500673 | G63: فنى | H63: المباشر | I63: الثانية | J63: الثانية | K63: ميكانيكى | L63: الهندسي | M63: =data.f[[#This Row],[كود الشركة]]&data.f[[#This Row],[اسم الموظف]]&data.f[[#This Row],[الشركة المدمجة]]&data.f[[#This Row],[الدرجة]]&data.f[[#This Row],[ترقية 7/2025]]&data.f[[#This Row],[الوظيفة]]&data.f[[#This Row],[مكان العمل]] -> 202049رجب فتحى اسماعيل علىالمباشرالثانيةالثانيةميكانيكى الهندسي | N63: =IF(data.f[[#This Row],[ترقية 7/2025]]<>"","نعم","") -> نعم | O63: 2148.85 | P63: =IF(data.f[[#This Row],[استعلام ترقية]]="نعم",data.f[[#This Row],[الأجر الأساسي]]*110%+data.f[[#This Row],[الأجر الأساسي]]*7%,data.f[[#This Row],[الأجر الأساسي]]*110%) -> 2514.1545 | R63: =data.f[[#This Row],[أساسي 7/2025]]*135% -> 3394.108575 | S63: =data.f[[#This Row],[أساسي 7/2025]]*15% -> 377.123175 | T63: 0 | V63: =IF(data.f[[#This Row],[التصنيف الادارى]]="فنى",data.f[[#This Row],[أساسي 7/2025]]*15%,0) -> 377.123175 | W63: 300 | AH63: 0 | AI63: =SUM(data.f[[#This Row],[بدل مخاطر مواني 30%]:[بدل تباع]]) -> 677.123175 | AJ63: 76.06 | AK63: 84.91 | AL63: 101.41 | AM63: 0 | AN63: 190 | AO63: 42.96 | AP63: 76.6 | AQ63: 98.36 | AR63: 140.33 | AS63: 150.15 | AT63: 160.66 | AV63: 107.4425 | AW63: 600 | AX63: 10 | AY63: =SUM(data.f[[#This Row],[علاوة 2014]:[علاوة اجتماعية]]) -> 1838.8825 | AZ63: 10 | BB63: 452.3895 | BF63: =SUM(data.f[[#This Row],[أساسي 7/2025]:[حافز موانى]],data.f[[#This Row],[إجمالي بدلات]],data.f[[#This Row],[إجمالي علاوات]],data.f[[#This Row],[م. عيد العمال]:[متوسط المنحة]]) -> 9263.781425 | BG63: =IF(data.f[[#This Row],[الإجمالي]]<7000,7000-data.f[[#This Row],[الإجمالي]],0) -> 0 | BH63: =SUM(data.f[[#This Row],[رد مستحقات]:[مكمل الأجر]]) -> 9263.781425 | BL63: 18 | BM63: 18 | BN63: 814 | BR63: =((data.f[[#This Row],[إجمالي المستحق]]-(data.f[[#This Row],[الحافز]]+data.f[[#This Row],[عمود2]]+data.f[[#This Row],[متوسط المنحة]]))/30)*data.f[[#This Row],[أيام الغياب]] -> 0 | BS63: =(data.f[[#This Row],[عمود2]]/30)*data.f[[#This Row],[أيام الغياب]] -> 0 | BT63: =IF(data.f[[#This Row],[أيام الغياب]]=1,data.f[[#This Row],[الحافز]]*20%,IF(data.f[[#This Row],[أيام الغياب]]=2,data.f[[#This Row],[الحافز]]*30%,IF(data.f[[#This Row],[أيام الغياب]]>2,data.f[[#This Row],[الحافز]]*100%,""))) ->  | BU63: =IF(data.f[[#This Row],[عدد أيام الأجازات]]<=4,data.f[[#This Row],[الحافز]]*0,IF(data.f[[#This Row],[عدد أيام الأجازات]]=5,data.f[[#This Row],[الحافز]]*20%,IF(data.f[[#This Row],[عدد أيام الأجازات]]=6,data.f[[#This Row],[الحافز]]*40%,IF(data.f[[#This Row],[عدد أيام الأجازات]]=7,data.f[[#This Row],[الحافز]]*50%,IF(data.f[[#This Row],[عدد أيام الأجازات]]>7,data.f[[#This Row],[الحافز]]*100%,""))))) -> 0 | BV63: =IF(data.f[[#This Row],[أيام أجازات بعد السنوية]]<=2,data.f[[#This Row],[الحافز]]*0,IF(data.f[[#This Row],[أيام أجازات بعد السنوية]]=3,data.f[[#This Row],[الحافز]]*30%,IF(data.f[[#This Row],[أيام أجازات بعد السنوية]]=4,data.f[[#This Row],[الحافز]]*40%,IF(data.f[[#This Row],[أيام أجازات بعد السنوية]]=5,data.f[[#This Row],[الحافز]]*50%,IF(data.f[[#This Row],[أيام أجازات بعد السنوية]]>5,data.f[[#This Row],[الحافز]]*100%,""))))) -> 0 | BW63: 0 | BX63: 0 | BZ63: 3 | CA63: 0 | CK63: 3 | CT63: =data.f[[#This Row],[متوسط المنحة]] -> 452.3895 | CU63: =SUM(data.f[[#This Row],[تامينات 2025]:[عمود1]]) -> 820 | CV63: =data.f[[#This Row],[إجمالي المستحق]]-data.f[[#This Row],[إجمالي المستقطع]] -> 8443.781425
A64: =IF(D64='المقابل النقدي للفنين'!$F$2,COUNTIF($D$4:D64,D64),"") ->  | B64: 202050 | C64: 22036 | D64: =VLOOKUP(data.f[[#This Row],[كود الشركة]],'التعامل المالي'!$B$3:$E$1478,3,FALSE) -> بنك مصر 1 | E64: محمد فؤاد فؤاد السيد | F64: 27740401004517 | G64: فنى | H64: المباشر | I64: الثالثة | J64: الثالثة | K64: حرفى سمكرى | L64: الاميرية | M64: =data.f[[#This Row],[كود الشركة]]&data.f[[#This Row],[اسم الموظف]]&data.f[[#This Row],[الشركة المدمجة]]&data.f[[#This Row],[الدرجة]]&data.f[[#This Row],[ترقية 7/2025]]&data.f[[#This Row],[الوظيفة]]&data.f[[#This Row],[مكان العمل]] -> 202050محمد فؤاد فؤاد السيد المباشرالثالثةالثالثةحرفى سمكرىالاميرية | N64: =IF(data.f[[#This Row],[ترقية 7/2025]]<>"","نعم","") -> نعم | O64: 1824.3 | P64: =IF(data.f[[#This Row],[استعلام ترقية]]="نعم",data.f[[#This Row],[الأجر الأساسي]]*110%+data.f[[#This Row],[الأجر الأساسي]]*7%,data.f[[#This Row],[الأجر الأساسي]]*110%) -> 2134.431 | R64: =data.f[[#This Row],[أساسي 7/2025]]*135% -> 2881.48185 | S64: =data.f[[#This Row],[أساسي 7/2025]]*15% -> 320.16465 | T64: 0 | V64: =IF(data.f[[#This Row],[التصنيف الادارى]]="فنى",data.f[[#This Row],[أساسي 7/2025]]*15%,0) -> 320.16465 | W64: 300 | AH64: 0 | AI64: =SUM(data.f[[#This Row],[بدل مخاطر مواني 30%]:[بدل تباع]]) -> 620.16465 | AJ64: 64.76 | AK64: 72.24 | AL64: 86.09 | AM64: 0 | AN64: 200 | AO64: 36.47 | AP64: 65.03 | AQ64: 83.5 | AR64: 119.13 | AS64: 127.47 | AT64: 136.4 | AV64: 91.215 | AW64: 600 | AX64: 8 | AY64: =SUM(data.f[[#This Row],[علاوة 2014]:[علاوة اجتماعية]]) -> 1690.305 | AZ64: 10 | BB64: 384.0632 | BF64: =SUM(data.f[[#This Row],[أساسي 7/2025]:[حافز موانى]],data.f[[#This Row],[إجمالي بدلات]],data.f[[#This Row],[إجمالي علاوات]],data.f[[#This Row],[م. عيد العمال]:[متوسط المنحة]]) -> 8040.61035 | BG64: =IF(data.f[[#This Row],[الإجمالي]]<7000,7000-data.f[[#This Row],[الإجمالي]],0) -> 0 | BH64: =SUM(data.f[[#This Row],[رد مستحقات]:[مكمل الأجر]]) -> 8040.61035 | BL64: 18 | BM64: 18 | BN64: 704 | BR64: =((data.f[[#This Row],[إجمالي المستحق]]-(data.f[[#This Row],[الحافز]]+data.f[[#This Row],[عمود2]]+data.f[[#This Row],[متوسط المنحة]]))/30)*data.f[[#This Row],[أيام الغياب]] -> 0 | BS64: =(data.f[[#This Row],[عمود2]]/30)*data.f[[#This Row],[أيام الغياب]] -> 0 | BT64: =IF(data.f[[#This Row],[أيام الغياب]]=1,data.f[[#This Row],[الحافز]]*20%,IF(data.f[[#This Row],[أيام الغياب]]=2,data.f[[#This Row],[الحافز]]*30%,IF(data.f[[#This Row],[أيام الغياب]]>2,data.f[[#This Row],[الحافز]]*100%,""))) ->  | BU64: =IF(data.f[[#This Row],[عدد أيام الأجازات]]<=4,data.f[[#This Row],[الحافز]]*0,IF(data.f[[#This Row],[عدد أيام الأجازات]]=5,data.f[[#This Row],[الحافز]]*20%,IF(data.f[[#This Row],[عدد أيام الأجازات]]=6,data.f[[#This Row],[الحافز]]*40%,IF(data.f[[#This Row],[عدد أيام الأجازات]]=7,data.f[[#This Row],[الحافز]]*50%,IF(data.f[[#This Row],[عدد أيام الأجازات]]>7,data.f[[#This Row],[الحافز]]*100%,""))))) -> 0 | BV64: =IF(data.f[[#This Row],[أيام أجازات بعد السنوية]]<=2,data.f[[#This Row],[الحافز]]*0,IF(data.f[[#This Row],[أيام أجازات بعد السنوية]]=3,data.f[[#This Row],[الحافز]]*30%,IF(data.f[[#This Row],[أيام أجازات بعد السنوية]]=4,data.f[[#This Row],[الحافز]]*40%,IF(data.f[[#This Row],[أيام أجازات بعد السنوية]]=5,data.f[[#This Row],[الحافز]]*50%,IF(data.f[[#This Row],[أيام أجازات بعد السنوية]]>5,data.f[[#This Row],[الحافز]]*100%,""))))) -> 0 | BW64: 0 | BX64: 0 | BZ64: 3 | CA64: 0 | CK64: 3 | CT64: =data.f[[#This Row],[متوسط المنحة]] -> 384.0632 | CU64: =SUM(data.f[[#This Row],[تامينات 2025]:[عمود1]]) -> 710 | CV64: =data.f[[#This Row],[إجمالي المستحق]]-data.f[[#This Row],[إجمالي المستقطع]] -> 7330.61035
A65: =IF(D65='المقابل النقدي للفنين'!$F$2,COUNTIF($D$4:D65,D65),"") ->  | B65: 202053 | C65: 21897 | D65: =VLOOKUP(data.f[[#This Row],[كود الشركة]],'التعامل المالي'!$B$3:$E$1478,3,FALSE) -> بنك مصر 1 | E65: صفوت كمال عبد العظيم رفاعى | F65: 27401300102391 | G65: فنى | H65: المباشر | I65: الثالثة | J65: الثالثة | K65: حرفى ميكانيكى | L65: الاميرية | M65: =data.f[[#This Row],[كود الشركة]]&data.f[[#This Row],[اسم الموظف]]&data.f[[#This Row],[الشركة المدمجة]]&data.f[[#This Row],[الدرجة]]&data.f[[#This Row],[ترقية 7/2025]]&data.f[[#This Row],[الوظيفة]]&data.f[[#This Row],[مكان العمل]] -> 202053صفوت كمال عبد العظيم رفاعىالمباشرالثالثةالثالثةحرفى ميكانيكى الاميرية | N65: =IF(data.f[[#This Row],[ترقية 7/2025]]<>"","نعم","") -> نعم | O65: 1890.74 | P65: =IF(data.f[[#This Row],[استعلام ترقية]]="نعم",data.f[[#This Row],[الأجر الأساسي]]*110%+data.f[[#This Row],[الأجر الأساسي]]*7%,data.f[[#This Row],[الأجر الأساسي]]*110%) -> 2212.1658 | R65: =data.f[[#This Row],[أساسي 7/2025]]*135% -> 2986.42383 | S65: =data.f[[#This Row],[أساسي 7/2025]]*15% -> 331.82487 | T65: 0 | V65: =IF(data.f[[#This Row],[التصنيف الادارى]]="فنى",data.f[[#This Row],[أساسي 7/2025]]*15%,0) -> 331.82487 | W65: 300 | AH65: 0 | AI65: =SUM(data.f[[#This Row],[بدل مخاطر مواني 30%]:[بدل تباع]]) -> 631.82487 | AJ65: 62.31 | AK65: 69.52 | AL65: 83.32 | AM65: 0 | AN65: 200 | AO65: 37.8 | AP65: 67.4 | AQ65: 86.55 | AR65: 123.47 | AS65: 132.12 | AT65: 141.36 | AV65: 94.537 | AW65: 600 | AX65: 10 | AY65: =SUM(data.f[[#This Row],[علاوة 2014]:[علاوة اجتماعية]]) -> 1708.387 | AZ65: 10 | BB65: 398.0505 | BF65: =SUM(data.f[[#This Row],[أساسي 7/2025]:[حافز موانى]],data.f[[#This Row],[إجمالي بدلات]],data.f[[#This Row],[إجمالي علاوات]],data.f[[#This Row],[م. عيد العمال]:[متوسط المنحة]]) -> 8278.67687 | BG65: =IF(data.f[[#This Row],[الإجمالي]]<7000,7000-data.f[[#This Row],[الإجمالي]],0) -> 0 | BH65: =SUM(data.f[[#This Row],[رد مستحقات]:[مكمل الأجر]]) -> 8278.67687 | BL65: 18 | BM65: 18 | BN65: 726 | BR65: =((data.f[[#This Row],[إجمالي المستحق]]-(data.f[[#This Row],[الحافز]]+data.f[[#This Row],[عمود2]]+data.f[[#This Row],[متوسط المنحة]]))/30)*data.f[[#This Row],[أيام الغياب]] -> 0 | BS65: =(data.f[[#This Row],[عمود2]]/30)*data.f[[#This Row],[أيام الغياب]] -> 0 | BT65: =IF(data.f[[#This Row],[أيام الغياب]]=1,data.f[[#This Row],[الحافز]]*20%,IF(data.f[[#This Row],[أيام الغياب]]=2,data.f[[#This Row],[الحافز]]*30%,IF(data.f[[#This Row],[أيام الغياب]]>2,data.f[[#This Row],[الحافز]]*100%,""))) ->  | BU65: =IF(data.f[[#This Row],[عدد أيام الأجازات]]<=4,data.f[[#This Row],[الحافز]]*0,IF(data.f[[#This Row],[عدد أيام الأجازات]]=5,data.f[[#This Row],[الحافز]]*20%,IF(data.f[[#This Row],[عدد أيام الأجازات]]=6,data.f[[#This Row],[الحافز]]*40%,IF(data.f[[#This Row],[عدد أيام الأجازات]]=7,data.f[[#This Row],[الحافز]]*50%,IF(data.f[[#This Row],[عدد أيام الأجازات]]>7,data.f[[#This Row],[الحافز]]*100%,""))))) -> 0 | BV65: =IF(data.f[[#This Row],[أيام أجازات بعد السنوية]]<=2,data.f[[#This Row],[الحافز]]*0,IF(data.f[[#This Row],[أيام أجازات بعد السنوية]]=3,data.f[[#This Row],[الحافز]]*30%,IF(data.f[[#This Row],[أيام أجازات بعد السنوية]]=4,data.f[[#This Row],[الحافز]]*40%,IF(data.f[[#This Row],[أيام أجازات بعد السنوية]]=5,data.f[[#This Row],[الحافز]]*50%,IF(data.f[[#This Row],[أيام أجازات بعد السنوية]]>5,data.f[[#This Row],[الحافز]]*100%,""))))) -> 0 | BW65: 58.64 | BX65: 0 | BZ65: 3 | CA65: 0 | CK65: 3 | CT65: =data.f[[#This Row],[متوسط المنحة]] -> 398.0505 | CU65: =SUM(data.f[[#This Row],[تامينات 2025]:[عمود1]]) -> 790.64 | CV65: =data.f[[#This Row],[إجمالي المستحق]]-data.f[[#This Row],[إجمالي المستقطع]] -> 7488.03687
A66: =IF(D66='المقابل النقدي للفنين'!$F$2,COUNTIF($D$4:D66,D66),"") ->  | B66: 202054 | C66: 1130 | D66: =VLOOKUP(data.f[[#This Row],[كود الشركة]],'التعامل المالي'!$B$3:$E$1478,3,FALSE) -> بنك مصر2 | E66: عبد النبي محمد عبد الحميد علي | F66: 27306251301194 | G66: فنى | I66: الثانية | J66: الثانية | K66: سمكرى | L66: الامن | M66: =data.f[[#This Row],[كود الشركة]]&data.f[[#This Row],[اسم الموظف]]&data.f[[#This Row],[الشركة المدمجة]]&data.f[[#This Row],[الدرجة]]&data.f[[#This Row],[ترقية 7/2025]]&data.f[[#This Row],[الوظيفة]]&data.f[[#This Row],[مكان العمل]] -> 202054عبد النبي محمد عبد الحميد عليالثانيةالثانيةسمكرىالامن | N66: =IF(data.f[[#This Row],[ترقية 7/2025]]<>"","نعم","") -> نعم | O66: 1879.01 | P66: =IF(data.f[[#This Row],[استعلام ترقية]]="نعم",data.f[[#This Row],[الأجر الأساسي]]*110%+data.f[[#This Row],[الأجر الأساسي]]*7%,data.f[[#This Row],[الأجر الأساسي]]*110%) -> 2198.4417 | R66: =data.f[[#This Row],[أساسي 7/2025]]*135% -> 2967.896295 | S66: =data.f[[#This Row],[أساسي 7/2025]]*15% -> 329.766255 | T66: 0 | V66: =IF(data.f[[#This Row],[التصنيف الادارى]]="فنى",data.f[[#This Row],[أساسي 7/2025]]*15%,0) -> 329.766255 | W66: 300 | AH66: 0 | AI66: =SUM(data.f[[#This Row],[بدل مخاطر مواني 30%]:[بدل تباع]]) -> 629.766255 | AJ66: 62.21 | AK66: 69.28 | AL66: 83.14 | AM66: 0 | AN66: 190 | AO66: 37.56 | AP66: 66.99 | AQ66: 86.01 | AR66: 122.71 | AS66: 131.3 | AT66: 140.49 | AV66: 93.9505 | AW66: 600 | AX66: 10 | AY66: =SUM(data.f[[#This Row],[علاوة 2014]:[علاوة اجتماعية]]) -> 1693.6405 | AZ66: 10 | BB66: 397.68 | BF66: =SUM(data.f[[#This Row],[أساسي 7/2025]:[حافز موانى]],data.f[[#This Row],[إجمالي بدلات]],data.f[[#This Row],[إجمالي علاوات]],data.f[[#This Row],[م. عيد العمال]:[متوسط المنحة]]) -> 8227.191005 | BG66: =IF(data.f[[#This Row],[الإجمالي]]<7000,7000-data.f[[#This Row],[الإجمالي]],0) -> 0 | BH66: =SUM(data.f[[#This Row],[رد مستحقات]:[مكمل الأجر]]) -> 8227.191005 | BL66: 18 | BM66: 18 | BN66: 718.752085 | BR66: =((data.f[[#This Row],[إجمالي المستحق]]-(data.f[[#This Row],[الحافز]]+data.f[[#This Row],[عمود2]]+data.f[[#This Row],[متوسط المنحة]]))/30)*data.f[[#This Row],[أيام الغياب]] -> 0 | BS66: =(data.f[[#This Row],[عمود2]]/30)*data.f[[#This Row],[أيام الغياب]] -> 0 | BT66: =IF(data.f[[#This Row],[أيام الغياب]]=1,data.f[[#This Row],[الحافز]]*20%,IF(data.f[[#This Row],[أيام الغياب]]=2,data.f[[#This Row],[الحافز]]*30%,IF(data.f[[#This Row],[أيام الغياب]]>2,data.f[[#This Row],[الحافز]]*100%,""))) ->  | BU66: =IF(data.f[[#This Row],[عدد أيام الأجازات]]<=4,data.f[[#This Row],[الحافز]]*0,IF(data.f[[#This Row],[عدد أيام الأجازات]]=5,data.f[[#This Row],[الحافز]]*20%,IF(data.f[[#This Row],[عدد أيام الأجازات]]=6,data.f[[#This Row],[الحافز]]*40%,IF(data.f[[#This Row],[عدد أيام الأجازات]]=7,data.f[[#This Row],[الحافز]]*50%,IF(data.f[[#This Row],[عدد أيام الأجازات]]>7,data.f[[#This Row],[الحافز]]*100%,""))))) -> 0 | BV66: =IF(data.f[[#This Row],[أيام أجازات بعد السنوية]]<=2,data.f[[#This Row],[الحافز]]*0,IF(data.f[[#This Row],[أيام أجازات بعد السنوية]]=3,data.f[[#This Row],[الحافز]]*30%,IF(data.f[[#This Row],[أيام أجازات بعد السنوية]]=4,data.f[[#This Row],[الحافز]]*40%,IF(data.f[[#This Row],[أيام أجازات بعد السنوية]]=5,data.f[[#This Row],[الحافز]]*50%,IF(data.f[[#This Row],[أيام أجازات بعد السنوية]]>5,data.f[[#This Row],[الحافز]]*100%,""))))) -> 0 | BW66: 0 | BX66: 0 | BZ66: 3 | CA66: 0 | CK66: 4 | CT66: =data.f[[#This Row],[متوسط المنحة]] -> 397.68 | CU66: =SUM(data.f[[#This Row],[تامينات 2025]:[عمود1]]) -> 725.752085 | CV66: =data.f[[#This Row],[إجمالي المستحق]]-data.f[[#This Row],[إجمالي المستقطع]] -> 7501.43892
A67: =IF(D67='المقابل النقدي للفنين'!$F$2,COUNTIF($D$4:D67,D67),"") ->  | B67: 202055 | C67: 1151 | D67: =VLOOKUP(data.f[[#This Row],[كود الشركة]],'التعامل المالي'!$B$3:$E$1478,3,FALSE) -> بنك مصر2 | E67: أسامة محمد كمال أحمد | F67: 16908080101856 | G67: فنى | I67: الاولى | M67: =data.f[[#This Row],[كود الشركة]]&data.f[[#This Row],[اسم الموظف]]&data.f[[#This Row],[الشركة المدمجة]]&data.f[[#This Row],[الدرجة]]&data.f[[#This Row],[ترقية 7/2025]]&data.f[[#This Row],[الوظيفة]]&data.f[[#This Row],[مكان العمل]] -> 202055أسامة محمد كمال أحمدالاولى | N67: =IF(data.f[[#This Row],[ترقية 7/2025]]<>"","نعم","") ->  | O67: 2141.78 | P67: =IF(data.f[[#This Row],[استعلام ترقية]]="نعم",data.f[[#This Row],[الأجر الأساسي]]*110%+data.f[[#This Row],[الأجر الأساسي]]*7%,data.f[[#This Row],[الأجر الأساسي]]*110%) -> 2355.958 | R67: =data.f[[#This Row],[أساسي 7/2025]]*135% -> 3180.5433 | S67: =data.f[[#This Row],[أساسي 7/2025]]*15% -> 353.3937 | T67: 0 | V67: =IF(data.f[[#This Row],[التصنيف الادارى]]="فنى",data.f[[#This Row],[أساسي 7/2025]]*15%,0) -> 353.3937 | W67: 300 | AH67: 0 | AI67: =SUM(data.f[[#This Row],[بدل مخاطر مواني 30%]:[بدل تباع]]) -> 653.3937 | AJ67: 70.84 | AK67: 78.92 | AL67: 94.79 | AM67: 0 | AN67: 190 | AO67: 42.81 | AP67: 76.35 | AQ67: 98.04 | AR67: 139.87 | AS67: 149.66 | AT67: 160.13 | AV67: 107.089 | AW67: 600 | AX67: 10 | AY67: =SUM(data.f[[#This Row],[علاوة 2014]:[علاوة اجتماعية]]) -> 1818.499 | AZ67: 10 | BB67: 450.9011 | BF67: =SUM(data.f[[#This Row],[أساسي 7/2025]:[حافز موانى]],data.f[[#This Row],[إجمالي بدلات]],data.f[[#This Row],[إجمالي علاوات]],data.f[[#This Row],[م. عيد العمال]:[متوسط المنحة]]) -> 8822.6888 | BG67: =IF(data.f[[#This Row],[الإجمالي]]<7000,7000-data.f[[#This Row],[الإجمالي]],0) -> 0 | BH67: =SUM(data.f[[#This Row],[رد مستحقات]:[مكمل الأجر]]) -> 8822.6888 | BL67: 18 | BM67: 18 | BN67: 806.7939258 | BR67: =((data.f[[#This Row],[إجمالي المستحق]]-(data.f[[#This Row],[الحافز]]+data.f[[#This Row],[عمود2]]+data.f[[#This Row],[متوسط المنحة]]))/30)*data.f[[#This Row],[أيام الغياب]] -> 0 | BS67: =(data.f[[#This Row],[عمود2]]/30)*data.f[[#This Row],[أيام الغياب]] -> 0 | BT67: =IF(data.f[[#This Row],[أيام الغياب]]=1,data.f[[#This Row],[الحافز]]*20%,IF(data.f[[#This Row],[أيام الغياب]]=2,data.f[[#This Row],[الحافز]]*30%,IF(data.f[[#This Row],[أيام الغياب]]>2,data.f[[#This Row],[الحافز]]*100%,""))) ->  | BU67: =IF(data.f[[#This Row],[عدد أيام الأجازات]]<=4,data.f[[#This Row],[الحافز]]*0,IF(data.f[[#This Row],[عدد أيام الأجازات]]=5,data.f[[#This Row],[الحافز]]*20%,IF(data.f[[#This Row],[عدد أيام الأجازات]]=6,data.f[[#This Row],[الحافز]]*40%,IF(data.f[[#This Row],[عدد أيام الأجازات]]=7,data.f[[#This Row],[الحافز]]*50%,IF(data.f[[#This Row],[عدد أيام الأجازات]]>7,data.f[[#This Row],[الحافز]]*100%,""))))) -> 0 | BV67: =IF(data.f[[#This Row],[أيام أجازات بعد السنوية]]<=2,data.f[[#This Row],[الحافز]]*0,IF(data.f[[#This Row],[أيام أجازات بعد السنوية]]=3,data.f[[#This Row],[الحافز]]*30%,IF(data.f[[#This Row],[أيام أجازات بعد السنوية]]=4,data.f[[#This Row],[الحافز]]*40%,IF(data.f[[#This Row],[أيام أجازات بعد السنوية]]=5,data.f[[#This Row],[الحافز]]*50%,IF(data.f[[#This Row],[أيام أجازات بعد السنوية]]>5,data.f[[#This Row],[الحافز]]*100%,""))))) -> 0 | BW67: 0 | BX67: 0 | BZ67: 3 | CA67: 0 | CK67: 5 | CT67: =data.f[[#This Row],[متوسط المنحة]] -> 450.9011 | CU67: =SUM(data.f[[#This Row],[تامينات 2025]:[عمود1]]) -> 814.7939258 | CV67: =data.f[[#This Row],[إجمالي المستحق]]-data.f[[#This Row],[إجمالي المستقطع]] -> 8007.894874
A68: =IF(D68='المقابل النقدي للفنين'!$F$2,COUNTIF($D$4:D68,D68),"") ->  | B68: 202056 | C68: 1137 | D68: =VLOOKUP(data.f[[#This Row],[كود الشركة]],'التعامل المالي'!$B$3:$E$1478,3,FALSE) -> بنك مصر2 | E68: ياسر عبد اللطيف النور محمد | F68: 28201012800313 | G68: فنى | I68: الثالثة | J68: الثالثة | K68: فنى حداه | L68: كفر الزيات | M68: =data.f[[#This Row],[كود الشركة]]&data.f[[#This Row],[اسم الموظف]]&data.f[[#This Row],[الشركة المدمجة]]&data.f[[#This Row],[الدرجة]]&data.f[[#This Row],[ترقية 7/2025]]&data.f[[#This Row],[الوظيفة]]&data.f[[#This Row],[مكان العمل]] -> 202056ياسر عبد اللطيف النور محمد الثالثةالثالثةفنى حداه كفر الزيات | N68: =IF(data.f[[#This Row],[ترقية 7/2025]]<>"","نعم","") -> نعم | O68: 895.8 | P68: =IF(data.f[[#This Row],[استعلام ترقية]]="نعم",data.f[[#This Row],[الأجر الأساسي]]*110%+data.f[[#This Row],[الأجر الأساسي]]*7%,data.f[[#This Row],[الأجر الأساسي]]*110%) -> 1048.086 | R68: =data.f[[#This Row],[أساسي 7/2025]]*135% -> 1414.9161 | S68: =data.f[[#This Row],[أساسي 7/2025]]*15% -> 157.2129 | T68: 0 | V68: =IF(data.f[[#This Row],[التصنيف الادارى]]="فنى",data.f[[#This Row],[أساسي 7/2025]]*15%,0) -> 157.2129 | W68: 300 | AH68: 0 | AI68: =SUM(data.f[[#This Row],[بدل مخاطر مواني 30%]:[بدل تباع]]) -> 457.2129 | AJ68: 30.03 | AK68: 33.71 | AL68: 65 | AM68: 0 | AN68: 200 | AO68: 33.93 | AP68: 31.93 | AQ68: 41 | AR68: 58.5 | AS68: 70.23 | AT68: 91.4 | AV68: 60.42 | AW68: 600 | AX68: 8 | AY68: =SUM(data.f[[#This Row],[علاوة 2014]:[علاوة اجتماعية]]) -> 1324.15 | AZ68: 10 | BB68: 189.11 | BF68: =SUM(data.f[[#This Row],[أساسي 7/2025]:[حافز موانى]],data.f[[#This Row],[إجمالي بدلات]],data.f[[#This Row],[إجمالي علاوات]],data.f[[#This Row],[م. عيد العمال]:[متوسط المنحة]]) -> 4600.6879 | BG68: =IF(data.f[[#This Row],[الإجمالي]]<7000,7000-data.f[[#This Row],[الإجمالي]],0) -> 2399.3121 | BH68: =SUM(data.f[[#This Row],[رد مستحقات]:[مكمل الأجر]]) -> 7000 | BL68: 18 | BM68: 18 | BN68: 576.4923828 | BR68: =((data.f[[#This Row],[إجمالي المستحق]]-(data.f[[#This Row],[الحافز]]+data.f[[#This Row],[عمود2]]+data.f[[#This Row],[متوسط المنحة]]))/30)*data.f[[#This Row],[أيام الغياب]] -> 0 | BS68: =(data.f[[#This Row],[عمود2]]/30)*data.f[[#This Row],[أيام الغياب]] -> 0 | BT68: =IF(data.f[[#This Row],[أيام الغياب]]=1,data.f[[#This Row],[الحافز]]*20%,IF(data.f[[#This Row],[أيام الغياب]]=2,data.f[[#This Row],[الحافز]]*30%,IF(data.f[[#This Row],[أيام الغياب]]>2,data.f[[#This Row],[الحافز]]*100%,""))) ->  | BU68: =IF(data.f[[#This Row],[عدد أيام الأجازات]]<=4,data.f[[#This Row],[الحافز]]*0,IF(data.f[[#This Row],[عدد أيام الأجازات]]=5,data.f[[#This Row],[الحافز]]*20%,IF(data.f[[#This Row],[عدد أيام الأجازات]]=6,data.f[[#This Row],[الحافز]]*40%,IF(data.f[[#This Row],[عدد أيام الأجازات]]=7,data.f[[#This Row],[الحافز]]*50%,IF(data.f[[#This Row],[عدد أيام الأجازات]]>7,data.f[[#This Row],[الحافز]]*100%,""))))) -> 0 | BV68: =IF(data.f[[#This Row],[أيام أجازات بعد السنوية]]<=2,data.f[[#This Row],[الحافز]]*0,IF(data.f[[#This Row],[أيام أجازات بعد السنوية]]=3,data.f[[#This Row],[الحافز]]*30%,IF(data.f[[#This Row],[أيام أجازات بعد السنوية]]=4,data.f[[#This Row],[الحافز]]*40%,IF(data.f[[#This Row],[أيام أجازات بعد السنوية]]=5,data.f[[#This Row],[الحافز]]*50%,IF(data.f[[#This Row],[أيام أجازات بعد السنوية]]>5,data.f[[#This Row],[الحافز]]*100%,""))))) -> 0 | BW68: 0 | BX68: 0 | BZ68: 3 | CA68: 0 | CK68: 2.84 | CT68: =data.f[[#This Row],[متوسط المنحة]] -> 189.11 | CU68: =SUM(data.f[[#This Row],[تامينات 2025]:[عمود1]]) -> 582.3323828 | CV68: =data.f[[#This Row],[إجمالي المستحق]]-data.f[[#This Row],[إجمالي المستقطع]] -> 6417.667617
A69: =IF(D69='المقابل النقدي للفنين'!$F$2,COUNTIF($D$4:D69,D69),"") ->  | B69: 202057 | C69: 1166 | D69: =VLOOKUP(data.f[[#This Row],[كود الشركة]],'التعامل المالي'!$B$3:$E$1478,3,FALSE) -> بنك مصر2 | E69: عماد سعيد سيد على | F69: 28206120102551 | G69: فنى | I69: الرابعة | J69: الرابعة | K69: حرفى خراط | L69: الورش | M69: =data.f[[#This Row],[كود الشركة]]&data.f[[#This Row],[اسم الموظف]]&data.f[[#This Row],[الشركة المدمجة]]&data.f[[#This Row],[الدرجة]]&data.f[[#This Row],[ترقية 7/2025]]&data.f[[#This Row],[الوظيفة]]&data.f[[#This Row],[مكان العمل]] -> 202057عماد سعيد سيد علىالرابعةالرابعةحرفى خراطالورش | N69: =IF(data.f[[#This Row],[ترقية 7/2025]]<>"","نعم","") -> نعم | O69: 575.41 | P69: =IF(data.f[[#This Row],[استعلام ترقية]]="نعم",data.f[[#This Row],[الأجر الأساسي]]*110%+data.f[[#This Row],[الأجر الأساسي]]*7%,data.f[[#This Row],[الأجر الأساسي]]*110%) -> 673.2297 | R69: =data.f[[#This Row],[أساسي 7/2025]]*135% -> 908.860095 | S69: =data.f[[#This Row],[أساسي 7/2025]]*15% -> 100.984455 | T69: 0 | V69: =IF(data.f[[#This Row],[التصنيف الادارى]]="فنى",data.f[[#This Row],[أساسي 7/2025]]*15%,0) -> 100.984455 | W69: 300 | AH69: 0 | AI69: =SUM(data.f[[#This Row],[بدل مخاطر مواني 30%]:[بدل تباع]]) -> 400.984455 | AJ69: 28.89 | AK69: 30.29 | AL69: 65 | AM69: 0 | AN69: 200 | AO69: 0 | AP69: 46.28 | AQ69: 44.27 | AR69: 67.12 | AS69: 89.82 | AT69: 112.36 | AV69: 92.459 | AW69: 600 | AX69: 10 | AY69: =SUM(data.f[[#This Row],[علاوة 2014]:[علاوة اجتماعية]]) -> 1386.489 | AZ69: 10 | BB69: 121.1389 | BF69: =SUM(data.f[[#This Row],[أساسي 7/2025]:[حافز موانى]],data.f[[#This Row],[إجمالي بدلات]],data.f[[#This Row],[إجمالي علاوات]],data.f[[#This Row],[م. عيد العمال]:[متوسط المنحة]]) -> 3601.686605 | BG69: =IF(data.f[[#This Row],[الإجمالي]]<7000,7000-data.f[[#This Row],[الإجمالي]],0) -> 3398.313395 | BH69: =SUM(data.f[[#This Row],[رد مستحقات]:[مكمل الأجر]]) -> 7000 | BL69: 18 | BM69: 18 | BN69: 576.3933936 | BR69: =((data.f[[#This Row],[إجمالي المستحق]]-(data.f[[#This Row],[الحافز]]+data.f[[#This Row],[عمود2]]+data.f[[#This Row],[متوسط المنحة]]))/30)*data.f[[#This Row],[أيام الغياب]] -> 0 | BS69: =(data.f[[#This Row],[عمود2]]/30)*data.f[[#This Row],[أيام الغياب]] -> 0 | BT69: =IF(data.f[[#This Row],[أيام الغياب]]=1,data.f[[#This Row],[الحافز]]*20%,IF(data.f[[#This Row],[أيام الغياب]]=2,data.f[[#This Row],[الحافز]]*30%,IF(data.f[[#This Row],[أيام الغياب]]>2,data.f[[#This Row],[الحافز]]*100%,""))) ->  | BU69: =IF(data.f[[#This Row],[عدد أيام الأجازات]]<=4,data.f[[#This Row],[الحافز]]*0,IF(data.f[[#This Row],[عدد أيام الأجازات]]=5,data.f[[#This Row],[الحافز]]*20%,IF(data.f[[#This Row],[عدد أيام الأجازات]]=6,data.f[[#This Row],[الحافز]]*40%,IF(data.f[[#This Row],[عدد أيام الأجازات]]=7,data.f[[#This Row],[الحافز]]*50%,IF(data.f[[#This Row],[عدد أيام الأجازات]]>7,data.f[[#This Row],[الحافز]]*100%,""))))) -> 0 | BV69: =IF(data.f[[#This Row],[أيام أجازات بعد السنوية]]<=2,data.f[[#This Row],[الحافز]]*0,IF(data.f[[#This Row],[أيام أجازات بعد السنوية]]=3,data.f[[#This Row],[الحافز]]*30%,IF(data.f[[#This Row],[أيام أجازات بعد السنوية]]=4,data.f[[#This Row],[الحافز]]*40%,IF(data.f[[#This Row],[أيام أجازات بعد السنوية]]=5,data.f[[#This Row],[الحافز]]*50%,IF(data.f[[#This Row],[أيام أجازات بعد السنوية]]>5,data.f[[#This Row],[الحافز]]*100%,""))))) -> 0 | BW69: 0 | BX69: 0 | BZ69: 3 | CA69: 0 | CK69: 3 | CT69: =data.f[[#This Row],[متوسط المنحة]] -> 121.1389 | CU69: =SUM(data.f[[#This Row],[تامينات 2025]:[عمود1]]) -> 582.3933936 | CV69: =data.f[[#This Row],[إجمالي المستحق]]-data.f[[#This Row],[إجمالي المستقطع]] -> 6417.606606
A70: =IF(D70='المقابل النقدي للفنين'!$F$2,COUNTIF($D$4:D70,D70),"") ->  | B70: 202058 | C70: 1139 | D70: =VLOOKUP(data.f[[#This Row],[كود الشركة]],'التعامل المالي'!$B$3:$E$1478,3,FALSE) -> بنك مصر2 | E70: محمود علي محمد احمد محمد | F70: 2880101130077 | G70: فنى | I70: الرابعة | J70: الرابعة | K70: حرفى ميكانيكى | L70: الاميرية | M70: =data.f[[#This Row],[كود الشركة]]&data.f[[#This Row],[اسم الموظف]]&data.f[[#This Row],[الشركة المدمجة]]&data.f[[#This Row],[الدرجة]]&data.f[[#This Row],[ترقية 7/2025]]&data.f[[#This Row],[الوظيفة]]&data.f[[#This Row],[مكان العمل]] -> 202058محمود علي محمد احمد محمدالرابعةالرابعةحرفى ميكانيكىالاميرية | N70: =IF(data.f[[#This Row],[ترقية 7/2025]]<>"","نعم","") -> نعم | O70: 825.24 | P70: =IF(data.f[[#This Row],[استعلام ترقية]]="نعم",data.f[[#This Row],[الأجر الأساسي]]*110%+data.f[[#This Row],[الأجر الأساسي]]*7%,data.f[[#This Row],[الأجر الأساسي]]*110%) -> 965.5308 | R70: =data.f[[#This Row],[أساسي 7/2025]]*135% -> 1303.46658 | S70: =data.f[[#This Row],[أساسي 7/2025]]*15% -> 144.82962 | T70: 0 | V70: =IF(data.f[[#This Row],[التصنيف الادارى]]="فنى",data.f[[#This Row],[أساسي 7/2025]]*15%,0) -> 144.82962 | W70: 300 | AH70: 0 | AI70: =SUM(data.f[[#This Row],[بدل مخاطر مواني 30%]:[بدل تباع]]) -> 444.82962 | AJ70: 28.79 | AK70: 30.29 | AL70: 65 | AM70: 0 | AN70: 200 | AO70: 36.51 | AP70: 33.81 | AQ70: 37.77 | AR70: 53.89 | AS70: 74.54 | AT70: 96.01 | AV70: 67.476 | AW70: 600 | AX70: 4 | AY70: =SUM(data.f[[#This Row],[علاوة 2014]:[علاوة اجتماعية]]) -> 1328.086 | AZ70: 10 | BB70: 173.7347 | BF70: =SUM(data.f[[#This Row],[أساسي 7/2025]:[حافز موانى]],data.f[[#This Row],[إجمالي بدلات]],data.f[[#This Row],[إجمالي علاوات]],data.f[[#This Row],[م. عيد العمال]:[متوسط المنحة]]) -> 4370.47732 | BG70: =IF(data.f[[#This Row],[الإجمالي]]<7000,7000-data.f[[#This Row],[الإجمالي]],0) -> 2629.52268 | BH70: =SUM(data.f[[#This Row],[رد مستحقات]:[مكمل الأجر]]) -> 7000 | BL70: 18 | BM70: 18 | BN70: 583.8382129 | BR70: =((data.f[[#This Row],[إجمالي المستحق]]-(data.f[[#This Row],[الحافز]]+data.f[[#This Row],[عمود2]]+data.f[[#This Row],[متوسط المنحة]]))/30)*data.f[[#This Row],[أيام الغياب]] -> 0 | BS70: =(data.f[[#This Row],[عمود2]]/30)*data.f[[#This Row],[أيام الغياب]] -> 0 | BT70: =IF(data.f[[#This Row],[أيام الغياب]]=1,data.f[[#This Row],[الحافز]]*20%,IF(data.f[[#This Row],[أيام الغياب]]=2,data.f[[#This Row],[الحافز]]*30%,IF(data.f[[#This Row],[أيام الغياب]]>2,data.f[[#This Row],[الحافز]]*100%,""))) ->  | BU70: =IF(data.f[[#This Row],[عدد أيام الأجازات]]<=4,data.f[[#This Row],[الحافز]]*0,IF(data.f[[#This Row],[عدد أيام الأجازات]]=5,data.f[[#This Row],[الحافز]]*20%,IF(data.f[[#This Row],[عدد أيام الأجازات]]=6,data.f[[#This Row],[الحافز]]*40%,IF(data.f[[#This Row],[عدد أيام الأجازات]]=7,data.f[[#This Row],[الحافز]]*50%,IF(data.f[[#This Row],[عدد أيام الأجازات]]>7,data.f[[#This Row],[الحافز]]*100%,""))))) -> 0 | BV70: =IF(data.f[[#This Row],[أيام أجازات بعد السنوية]]<=2,data.f[[#This Row],[الحافز]]*0,IF(data.f[[#This Row],[أيام أجازات بعد السنوية]]=3,data.f[[#This Row],[الحافز]]*30%,IF(data.f[[#This Row],[أيام أجازات بعد السنوية]]=4,data.f[[#This Row],[الحافز]]*40%,IF(data.f[[#This Row],[أيام أجازات بعد السنوية]]=5,data.f[[#This Row],[الحافز]]*50%,IF(data.f[[#This Row],[أيام أجازات بعد السنوية]]>5,data.f[[#This Row],[الحافز]]*100%,""))))) -> 0 | BW70: 0 | BX70: 0 | BZ70: 3 | CA70: 0 | CK70: 3 | CT70: =data.f[[#This Row],[متوسط المنحة]] -> 173.7347 | CU70: =SUM(data.f[[#This Row],[تامينات 2025]:[عمود1]]) -> 589.8382129 | CV70: =data.f[[#This Row],[إجمالي المستحق]]-data.f[[#This Row],[إجمالي المستقطع]] -> 6410.161787
A71: =IF(D71='المقابل النقدي للفنين'!$F$2,COUNTIF($D$4:D71,D71),"") ->  | B71: 202059 | C71: 1261 | D71: =VLOOKUP(data.f[[#This Row],[كود الشركة]],'التعامل المالي'!$B$3:$E$1478,3,FALSE) -> بنك مصر2 | E71: محمد كامل محمد مصطفى | F71: 27506031401413 | G71: فنى | I71: الرابعة | J71: الرابعة | K71: حرفى عامل بطاريات | L71: الورش | M71: =data.f[[#This Row],[كود الشركة]]&data.f[[#This Row],[اسم الموظف]]&data.f[[#This Row],[الشركة المدمجة]]&data.f[[#This Row],[الدرجة]]&data.f[[#This Row],[ترقية 7/2025]]&data.f[[#This Row],[الوظيفة]]&data.f[[#This Row],[مكان العمل]] -> 202059محمد كامل محمد مصطفىالرابعةالرابعةحرفى عامل بطارياتالورش | N71: =IF(data.f[[#This Row],[ترقية 7/2025]]<>"","نعم","") -> نعم | O71: 862.29 | P71: =IF(data.f[[#This Row],[استعلام ترقية]]="نعم",data.f[[#This Row],[الأجر الأساسي]]*110%+data.f[[#This Row],[الأجر الأساسي]]*7%,data.f[[#This Row],[الأجر الأساسي]]*110%) -> 1008.8793 | R71: =data.f[[#This Row],[أساسي 7/2025]]*135% -> 1361.987055 | S71: =data.f[[#This Row],[أساسي 7/2025]]*15% -> 151.331895 | T71: 0 | V71: =IF(data.f[[#This Row],[التصنيف الادارى]]="فنى",data.f[[#This Row],[أساسي 7/2025]]*15%,0) -> 151.331895 | W71: 300 | AH71: 0 | AI71: =SUM(data.f[[#This Row],[بدل مخاطر مواني 30%]:[بدل تباع]]) -> 451.331895 | AJ71: 28.74 | AK71: 32.31 | AL71: 65 | AM71: 0 | AN71: 200 | AO71: 34.78 | AP71: 31.96 | AQ71: 39.47 | AR71: 56.31 | AS71: 72.28 | AT71: 93.59 | AV71: 63.771 | AW71: 600 | AX71: 10 | AY71: =SUM(data.f[[#This Row],[علاوة 2014]:[علاوة اجتماعية]]) -> 1328.211 | AZ71: 10 | BB71: 181.5347 | BF71: =SUM(data.f[[#This Row],[أساسي 7/2025]:[حافز موانى]],data.f[[#This Row],[إجمالي بدلات]],data.f[[#This Row],[إجمالي علاوات]],data.f[[#This Row],[م. عيد العمال]:[متوسط المنحة]]) -> 4493.275845 | BG71: =IF(data.f[[#This Row],[الإجمالي]]<7000,7000-data.f[[#This Row],[الإجمالي]],0) -> 2506.724155 | BH71: =SUM(data.f[[#This Row],[رد مستحقات]:[مكمل الأجر]]) -> 7000 | BL71: 18 | BM71: 18 | BN71: 577.3647021 | BR71: =((data.f[[#This Row],[إجمالي المستحق]]-(data.f[[#This Row],[الحافز]]+data.f[[#This Row],[عمود2]]+data.f[[#This Row],[متوسط المنحة]]))/30)*data.f[[#This Row],[أيام الغياب]] -> 0 | BS71: =(data.f[[#This Row],[عمود2]]/30)*data.f[[#This Row],[أيام الغياب]] -> 0 | BT71: =IF(data.f[[#This Row],[أيام الغياب]]=1,data.f[[#This Row],[الحافز]]*20%,IF(data.f[[#This Row],[أيام الغياب]]=2,data.f[[#This Row],[الحافز]]*30%,IF(data.f[[#This Row],[أيام الغياب]]>2,data.f[[#This Row],[الحافز]]*100%,""))) ->  | BU71: =IF(data.f[[#This Row],[عدد أيام الأجازات]]<=4,data.f[[#This Row],[الحافز]]*0,IF(data.f[[#This Row],[عدد أيام الأجازات]]=5,data.f[[#This Row],[الحافز]]*20%,IF(data.f[[#This Row],[عدد أيام الأجازات]]=6,data.f[[#This Row],[الحافز]]*40%,IF(data.f[[#This Row],[عدد أيام الأجازات]]=7,data.f[[#This Row],[الحافز]]*50%,IF(data.f[[#This Row],[عدد أيام الأجازات]]>7,data.f[[#This Row],[الحافز]]*100%,""))))) -> 0 | BV71: =IF(data.f[[#This Row],[أيام أجازات بعد السنوية]]<=2,data.f[[#This Row],[الحافز]]*0,IF(data.f[[#This Row],[أيام أجازات بعد السنوية]]=3,data.f[[#This Row],[الحافز]]*30%,IF(data.f[[#This Row],[أيام أجازات بعد السنوية]]=4,data.f[[#This Row],[الحافز]]*40%,IF(data.f[[#This Row],[أيام أجازات بعد السنوية]]=5,data.f[[#This Row],[الحافز]]*50%,IF(data.f[[#This Row],[أيام أجازات بعد السنوية]]>5,data.f[[#This Row],[الحافز]]*100%,""))))) -> 0 | BW71: 0 | BX71: 0 | BZ71: 3 | CA71: 0 | CK71: 5 | CT71: =data.f[[#This Row],[متوسط المنحة]] -> 181.5347 | CU71: =SUM(data.f[[#This Row],[تامينات 2025]:[عمود1]]) -> 585.3647021 | CV71: =data.f[[#This Row],[إجمالي المستحق]]-data.f[[#This Row],[إجمالي المستقطع]] -> 6414.635298
A72: =IF(D72='المقابل النقدي للفنين'!$F$2,COUNTIF($D$4:D72,D72),"") ->  | B72: 202060 | C72: 1164 | D72: =VLOOKUP(data.f[[#This Row],[كود الشركة]],'التعامل المالي'!$B$3:$E$1478,3,FALSE) -> بنك مصر2 | E72: رمضان راضى محمود محسب | F72: 28007280104019 | G72: فنى | I72: الرابعة | J72: الرابعة | K72: حرفى حداد | L72: الورش | M72: =data.f[[#This Row],[كود الشركة]]&data.f[[#This Row],[اسم الموظف]]&data.f[[#This Row],[الشركة المدمجة]]&data.f[[#This Row],[الدرجة]]&data.f[[#This Row],[ترقية 7/2025]]&data.f[[#This Row],[الوظيفة]]&data.f[[#This Row],[مكان العمل]] -> 202060رمضان راضى محمود محسبالرابعةالرابعةحرفى حدادالورش | N72: =IF(data.f[[#This Row],[ترقية 7/2025]]<>"","نعم","") -> نعم | O72: 713.26 | P72: =IF(data.f[[#This Row],[استعلام ترقية]]="نعم",data.f[[#This Row],[الأجر الأساسي]]*110%+data.f[[#This Row],[الأجر الأساسي]]*7%,data.f[[#This Row],[الأجر الأساسي]]*110%) -> 834.5142 | R72: =data.f[[#This Row],[أساسي 7/2025]]*135% -> 1126.59417 | S72: =data.f[[#This Row],[أساسي 7/2025]]*15% -> 125.17713 | T72: 0 | V72: =IF(data.f[[#This Row],[التصنيف الادارى]]="فنى",data.f[[#This Row],[أساسي 7/2025]]*15%,0) -> 125.17713 | W72: 300 | AH72: 0 | AI72: =SUM(data.f[[#This Row],[بدل مخاطر مواني 30%]:[بدل تباع]]) -> 425.17713 | AJ72: 28.79 | AK72: 30.79 | AL72: 65 | AM72: 0 | AN72: 200 | AO72: 41.73 | AP72: 39.4 | AQ72: 36.91 | AR72: 59.24 | AS72: 81.39 | AT72: 103.34 | AV72: 78.674 | AW72: 600 | AX72: 10 | AY72: =SUM(data.f[[#This Row],[علاوة 2014]:[علاوة اجتماعية]]) -> 1375.264 | AZ72: 10 | BB72: 150.08 | BF72: =SUM(data.f[[#This Row],[أساسي 7/2025]:[حافز موانى]],data.f[[#This Row],[إجمالي بدلات]],data.f[[#This Row],[إجمالي علاوات]],data.f[[#This Row],[م. عيد العمال]:[متوسط المنحة]]) -> 4046.80663 | BG72: =IF(data.f[[#This Row],[الإجمالي]]<7000,7000-data.f[[#This Row],[الإجمالي]],0) -> 2953.19337 | BH72: =SUM(data.f[[#This Row],[رد مستحقات]:[مكمل الأجر]]) -> 7000 | BL72: 18 | BM72: 18 | BN72: 574.4980957 | BR72: =((data.f[[#This Row],[إجمالي المستحق]]-(data.f[[#This Row],[الحافز]]+data.f[[#This Row],[عمود2]]+data.f[[#This Row],[متوسط المنحة]]))/30)*data.f[[#This Row],[أيام الغياب]] -> 0 | BS72: =(data.f[[#This Row],[عمود2]]/30)*data.f[[#This Row],[أيام الغياب]] -> 0 | BT72: =IF(data.f[[#This Row],[أيام الغياب]]=1,data.f[[#This Row],[الحافز]]*20%,IF(data.f[[#This Row],[أيام الغياب]]=2,data.f[[#This Row],[الحافز]]*30%,IF(data.f[[#This Row],[أيام الغياب]]>2,data.f[[#This Row],[الحافز]]*100%,""))) ->  | BU72: =IF(data.f[[#This Row],[عدد أيام الأجازات]]<=4,data.f[[#This Row],[الحافز]]*0,IF(data.f[[#This Row],[عدد أيام الأجازات]]=5,data.f[[#This Row],[الحافز]]*20%,IF(data.f[[#This Row],[عدد أيام الأجازات]]=6,data.f[[#This Row],[الحافز]]*40%,IF(data.f[[#This Row],[عدد أيام الأجازات]]=7,data.f[[#This Row],[الحافز]]*50%,IF(data.f[[#This Row],[عدد أيام الأجازات]]>7,data.f[[#This Row],[الحافز]]*100%,""))))) -> 0 | BV72: =IF(data.f[[#This Row],[أيام أجازات بعد السنوية]]<=2,data.f[[#This Row],[الحافز]]*0,IF(data.f[[#This Row],[أيام أجازات بعد السنوية]]=3,data.f[[#This Row],[الحافز]]*30%,IF(data.f[[#This Row],[أيام أجازات بعد السنوية]]=4,data.f[[#This Row],[الحافز]]*40%,IF(data.f[[#This Row],[أيام أجازات بعد السنوية]]=5,data.f[[#This Row],[الحافز]]*50%,IF(data.f[[#This Row],[أيام أجازات بعد السنوية]]>5,data.f[[#This Row],[الحافز]]*100%,""))))) -> 0 | BW72: 0 | BX72: 0 | BZ72: 3 | CA72: 0 | CK72: 3 | CT72: =data.f[[#This Row],[متوسط المنحة]] -> 150.08 | CU72: =SUM(data.f[[#This Row],[تامينات 2025]:[عمود1]]) -> 580.4980957 | CV72: =data.f[[#This Row],[إجمالي المستحق]]-data.f[[#This Row],[إجمالي المستقطع]] -> 6419.501904
A73: =IF(D73='المقابل النقدي للفنين'!$F$2,COUNTIF($D$4:D73,D73),"") ->  | B73: 202061 | C73: 1169 | D73: =VLOOKUP(data.f[[#This Row],[كود الشركة]],'التعامل المالي'!$B$3:$E$1478,3,FALSE) -> بنك مصر2 | E73: مصطفى أحمد إبراهيم أحمد | F73: 26707231701651 | G73: فنى | I73: الثانية | J73: الثانية | K73: ميكانيكى | L73: الملاكى | M73: =data.f[[#This Row],[كود الشركة]]&data.f[[#This Row],[اسم الموظف]]&data.f[[#This Row],[الشركة المدمجة]]&data.f[[#This Row],[الدرجة]]&data.f[[#This Row],[ترقية 7/2025]]&data.f[[#This Row],[الوظيفة]]&data.f[[#This Row],[مكان العمل]] -> 202061مصطفى أحمد إبراهيم أحمدالثانيةالثانيةميكانيكىالملاكى | N73: =IF(data.f[[#This Row],[ترقية 7/2025]]<>"","نعم","") -> نعم | O73: 1810.9 | P73: =IF(data.f[[#This Row],[استعلام ترقية]]="نعم",data.f[[#This Row],[الأجر الأساسي]]*110%+data.f[[#This Row],[الأجر الأساسي]]*7%,data.f[[#This Row],[الأجر الأساسي]]*110%) -> 2118.753 | R73: =data.f[[#This Row],[أساسي 7/2025]]*135% -> 2860.31655 | S73: =data.f[[#This Row],[أساسي 7/2025]]*15% -> 317.81295 | T73: 0 | V73: =IF(data.f[[#This Row],[التصنيف الادارى]]="فنى",data.f[[#This Row],[أساسي 7/2025]]*15%,0) -> 317.81295 | W73: 300 | AH73: 0 | AI73: =SUM(data.f[[#This Row],[بدل مخاطر مواني 30%]:[بدل تباع]]) -> 617.81295 | AJ73: 63.67 | AK73: 70.91 | AL73: 85.11 | AM73: 0 | AN73: 190 | AO73: 36.2 | AP73: 64.56 | AQ73: 82.86 | AR73: 118.26 | AS73: 126.54 | AT73: 135.39 | AV73: 90.545 | AW73: 600 | AX73: 10 | AY73: =SUM(data.f[[#This Row],[علاوة 2014]:[علاوة اجتماعية]]) -> 1674.045 | AZ73: 10 | BB73: 381.2421 | BF73: =SUM(data.f[[#This Row],[أساسي 7/2025]:[حافز موانى]],data.f[[#This Row],[إجمالي بدلات]],data.f[[#This Row],[إجمالي علاوات]],data.f[[#This Row],[م. عيد العمال]:[متوسط المنحة]]) -> 7979.98255 | BG73: =IF(data.f[[#This Row],[الإجمالي]]<7000,7000-data.f[[#This Row],[الإجمالي]],0) -> 0 | BH73: =SUM(data.f[[#This Row],[رد مستحقات]:[مكمل الأجر]]) -> 7979.98255 | BL73: 18 | BM73: 18 | BN73: 697.3702979 | BR73: =((data.f[[#This Row],[إجمالي المستحق]]-(data.f[[#This Row],[الحافز]]+data.f[[#This Row],[عمود2]]+data.f[[#This Row],[متوسط المنحة]]))/30)*data.f[[#This Row],[أيام الغياب]] -> 0 | BS73: =(data.f[[#This Row],[عمود2]]/30)*data.f[[#This Row],[أيام الغياب]] -> 0 | BT73: =IF(data.f[[#This Row],[أيام الغياب]]=1,data.f[[#This Row],[الحافز]]*20%,IF(data.f[[#This Row],[أيام الغياب]]=2,data.f[[#This Row],[الحافز]]*30%,IF(data.f[[#This Row],[أيام الغياب]]>2,data.f[[#This Row],[الحافز]]*100%,""))) ->  | BU73: =IF(data.f[[#This Row],[عدد أيام الأجازات]]<=4,data.f[[#This Row],[الحافز]]*0,IF(data.f[[#This Row],[عدد أيام الأجازات]]=5,data.f[[#This Row],[الحافز]]*20%,IF(data.f[[#This Row],[عدد أيام الأجازات]]=6,data.f[[#This Row],[الحافز]]*40%,IF(data.f[[#This Row],[عدد أيام الأجازات]]=7,data.f[[#This Row],[الحافز]]*50%,IF(data.f[[#This Row],[عدد أيام الأجازات]]>7,data.f[[#This Row],[الحافز]]*100%,""))))) -> 0 | BV73: =IF(data.f[[#This Row],[أيام أجازات بعد السنوية]]<=2,data.f[[#This Row],[الحافز]]*0,IF(data.f[[#This Row],[أيام أجازات بعد السنوية]]=3,data.f[[#This Row],[الحافز]]*30%,IF(data.f[[#This Row],[أيام أجازات بعد السنوية]]=4,data.f[[#This Row],[الحافز]]*40%,IF(data.f[[#This Row],[أيام أجازات بعد السنوية]]=5,data.f[[#This Row],[الحافز]]*50%,IF(data.f[[#This Row],[أيام أجازات بعد السنوية]]>5,data.f[[#This Row],[الحافز]]*100%,""))))) -> 0 | BW73: 0 | BX73: 1.25 | BZ73: 3 | CA73: 0 | CK73: 3 | CT73: =data.f[[#This Row],[متوسط المنحة]] -> 381.2421 | CU73: =SUM(data.f[[#This Row],[تامينات 2025]:[عمود1]]) -> 704.6202979 | CV73: =data.f[[#This Row],[إجمالي المستحق]]-data.f[[#This Row],[إجمالي المستقطع]] -> 7275.362252
A74: =IF(D74='المقابل النقدي للفنين'!$F$2,COUNTIF($D$4:D74,D74),"") ->  | B74: 202062 | C74: 1162 | D74: =VLOOKUP(data.f[[#This Row],[كود الشركة]],'التعامل المالي'!$B$3:$E$1478,3,FALSE) -> بنك مصر2 | E74: هاني سمير خلة غبريال | F74: 27711220105593 | G74: فنى | I74: الرابعة | J74: الرابعة | K74: حرفى كهربائى سيارات | L74: الورش | M74: =data.f[[#This Row],[كود الشركة]]&data.f[[#This Row],[اسم الموظف]]&data.f[[#This Row],[الشركة المدمجة]]&data.f[[#This Row],[الدرجة]]&data.f[[#This Row],[ترقية 7/2025]]&data.f[[#This Row],[الوظيفة]]&data.f[[#This Row],[مكان العمل]] -> 202062هاني سمير خلة غبريالالرابعةالرابعةحرفى كهربائى سياراتالورش | N74: =IF(data.f[[#This Row],[ترقية 7/2025]]<>"","نعم","") -> نعم | O74: 1070.48 | P74: =IF(data.f[[#This Row],[استعلام ترقية]]="نعم",data.f[[#This Row],[الأجر الأساسي]]*110%+data.f[[#This Row],[الأجر الأساسي]]*7%,data.f[[#This Row],[الأجر الأساسي]]*110%) -> 1252.4616 | R74: =data.f[[#This Row],[أساسي 7/2025]]*135% -> 1690.82316 | S74: =data.f[[#This Row],[أساسي 7/2025]]*15% -> 187.86924 | T74: 0 | V74: =IF(data.f[[#This Row],[التصنيف الادارى]]="فنى",data.f[[#This Row],[أساسي 7/2025]]*15%,0) -> 187.86924 | W74: 300 | AH74: 0 | AI74: =SUM(data.f[[#This Row],[بدل مخاطر مواني 30%]:[بدل تباع]]) -> 487.86924 | AJ74: 38.27 | AK74: 42.47 | AL74: 65 | AM74: 0 | AN74: 200 | AO74: 25.07 | AP74: 38.16 | AQ74: 49 | AR74: 69.91 | AS74: 74.8 | AT74: 80 | AV74: 53.524 | AW74: 600 | AX74: 10 | AY74: =SUM(data.f[[#This Row],[علاوة 2014]:[علاوة اجتماعية]]) -> 1346.204 | AZ74: 10 | BB74: 225.3642 | BF74: =SUM(data.f[[#This Row],[أساسي 7/2025]:[حافز موانى]],data.f[[#This Row],[إجمالي بدلات]],data.f[[#This Row],[إجمالي علاوات]],data.f[[#This Row],[م. عيد العمال]:[متوسط المنحة]]) -> 5200.59144 | BG74: =IF(data.f[[#This Row],[الإجمالي]]<7000,7000-data.f[[#This Row],[الإجمالي]],0) -> 1799.40856 | BH74: =SUM(data.f[[#This Row],[رد مستحقات]:[مكمل الأجر]]) -> 7000 | BL74: 18 | BM74: 18 | BN74: 569.0707129 | BR74: =((data.f[[#This Row],[إجمالي المستحق]]-(data.f[[#This Row],[الحافز]]+data.f[[#This Row],[عمود2]]+data.f[[#This Row],[متوسط المنحة]]))/30)*data.f[[#This Row],[أيام الغياب]] -> 0 | BS74: =(data.f[[#This Row],[عمود2]]/30)*data.f[[#This Row],[أيام الغياب]] -> 0 | BT74: =IF(data.f[[#This Row],[أيام الغياب]]=1,data.f[[#This Row],[الحافز]]*20%,IF(data.f[[#This Row],[أيام الغياب]]=2,data.f[[#This Row],[الحافز]]*30%,IF(data.f[[#This Row],[أيام الغياب]]>2,data.f[[#This Row],[الحافز]]*100%,""))) ->  | BU74: =IF(data.f[[#This Row],[عدد أيام الأجازات]]<=4,data.f[[#This Row],[الحافز]]*0,IF(data.f[[#This Row],[عدد أيام الأجازات]]=5,data.f[[#This Row],[الحافز]]*20%,IF(data.f[[#This Row],[عدد أيام الأجازات]]=6,data.f[[#This Row],[الحافز]]*40%,IF(data.f[[#This Row],[عدد أيام الأجازات]]=7,data.f[[#This Row],[الحافز]]*50%,IF(data.f[[#This Row],[عدد أيام الأجازات]]>7,data.f[[#This Row],[الحافز]]*100%,""))))) -> 0 | BV74: =IF(data.f[[#This Row],[أيام أجازات بعد السنوية]]<=2,data.f[[#This Row],[الحافز]]*0,IF(data.f[[#This Row],[أيام أجازات بعد السنوية]]=3,data.f[[#This Row],[الحافز]]*30%,IF(data.f[[#This Row],[أيام أجازات بعد السنوية]]=4,data.f[[#This Row],[الحافز]]*40%,IF(data.f[[#This Row],[أيام أجازات بعد السنوية]]=5,data.f[[#This Row],[الحافز]]*50%,IF(data.f[[#This Row],[أيام أجازات بعد السنوية]]>5,data.f[[#This Row],[الحافز]]*100%,""))))) -> 0 | BW74: 0 | BX74: 0 | BZ74: 3 | CA74: 0 | CK74: 3 | CT74: =data.f[[#This Row],[متوسط المنحة]] -> 225.3642 | CU74: =SUM(data.f[[#This Row],[تامينات 2025]:[عمود1]]) -> 575.0707129 | CV74: =data.f[[#This Row],[إجمالي المستحق]]-data.f[[#This Row],[إجمالي المستقطع]] -> 6424.929287
A75: =IF(D75='المقابل النقدي للفنين'!$F$2,COUNTIF($D$4:D75,D75),"") ->  | B75: 202063 | C75: 1087 | D75: =VLOOKUP(data.f[[#This Row],[كود الشركة]],'التعامل المالي'!$B$3:$E$1478,3,FALSE) -> بنك مصر2 | E75: عادل سمير بشاي سليمان | F75: 28011090105458 | G75: فنى | I75: الثانية | J75: الثانية | K75: فنى كهربائى توصيلات | L75: الادارة العامة | M75: =data.f[[#This Row],[كود الشركة]]&data.f[[#This Row],[اسم الموظف]]&data.f[[#This Row],[الشركة المدمجة]]&data.f[[#This Row],[الدرجة]]&data.f[[#This Row],[ترقية 7/2025]]&data.f[[#This Row],[الوظيفة]]&data.f[[#This Row],[مكان العمل]] -> 202063عادل سمير بشاي سليمانالثانيةالثانيةفنى كهربائى توصيلات الادارة العامة | N75: =IF(data.f[[#This Row],[ترقية 7/2025]]<>"","نعم","") -> نعم | O75: 1137.36 | P75: =IF(data.f[[#This Row],[استعلام ترقية]]="نعم",data.f[[#This Row],[الأجر الأساسي]]*110%+data.f[[#This Row],[الأجر الأساسي]]*7%,data.f[[#This Row],[الأجر الأساسي]]*110%) -> 1330.7112 | R75: =data.f[[#This Row],[أساسي 7/2025]]*135% -> 1796.46012 | S75: =data.f[[#This Row],[أساسي 7/2025]]*15% -> 199.60668 | T75: 0 | V75: =IF(data.f[[#This Row],[التصنيف الادارى]]="فنى",data.f[[#This Row],[أساسي 7/2025]]*15%,0) -> 199.60668 | W75: 300 | AH75: 0 | AI75: =SUM(data.f[[#This Row],[بدل مخاطر مواني 30%]:[بدل تباع]]) -> 499.60668 | AJ75: 40.59 | AK75: 45.02 | AL75: 65 | AM75: 0 | AN75: 190 | AO75: 22.74 | AP75: 40.55 | AQ75: 52.06 | AR75: 74.27 | AS75: 79.47 | AT75: 85.04 | AV75: 56.868 | AW75: 600 | AX75: 8 | AY75: =SUM(data.f[[#This Row],[علاوة 2014]:[علاوة اجتماعية]]) -> 1359.608 | AZ75: 10 | BB75: 240.1 | BF75: =SUM(data.f[[#This Row],[أساسي 7/2025]:[حافز موانى]],data.f[[#This Row],[إجمالي بدلات]],data.f[[#This Row],[إجمالي علاوات]],data.f[[#This Row],[م. عيد العمال]:[متوسط المنحة]]) -> 5436.09268 | BG75: =IF(data.f[[#This Row],[الإجمالي]]<7000,7000-data.f[[#This Row],[الإجمالي]],0) -> 1563.90732 | BH75: =SUM(data.f[[#This Row],[رد مستحقات]:[مكمل الأجر]]) -> 7000 | BL75: 18 | BM75: 18 | BN75: 567.2876172 | BR75: =((data.f[[#This Row],[إجمالي المستحق]]-(data.f[[#This Row],[الحافز]]+data.f[[#This Row],[عمود2]]+data.f[[#This Row],[متوسط المنحة]]))/30)*data.f[[#This Row],[أيام الغياب]] -> 0 | BS75: =(data.f[[#This Row],[عمود2]]/30)*data.f[[#This Row],[أيام الغياب]] -> 0 | BT75: =IF(data.f[[#This Row],[أيام الغياب]]=1,data.f[[#This Row],[الحافز]]*20%,IF(data.f[[#This Row],[أيام الغياب]]=2,data.f[[#This Row],[الحافز]]*30%,IF(data.f[[#This Row],[أيام الغياب]]>2,data.f[[#This Row],[الحافز]]*100%,""))) ->  | BU75: =IF(data.f[[#This Row],[عدد أيام الأجازات]]<=4,data.f[[#This Row],[الحافز]]*0,IF(data.f[[#This Row],[عدد أيام الأجازات]]=5,data.f[[#This Row],[الحافز]]*20%,IF(data.f[[#This Row],[عدد أيام الأجازات]]=6,data.f[[#This Row],[الحافز]]*40%,IF(data.f[[#This Row],[عدد أيام الأجازات]]=7,data.f[[#This Row],[الحافز]]*50%,IF(data.f[[#This Row],[عدد أيام الأجازات]]>7,data.f[[#This Row],[الحافز]]*100%,""))))) -> 0 | BV75: =IF(data.f[[#This Row],[أيام أجازات بعد السنوية]]<=2,data.f[[#This Row],[الحافز]]*0,IF(data.f[[#This Row],[أيام أجازات بعد السنوية]]=3,data.f[[#This Row],[الحافز]]*30%,IF(data.f[[#This Row],[أيام أجازات بعد السنوية]]=4,data.f[[#This Row],[الحافز]]*40%,IF(data.f[[#This Row],[أيام أجازات بعد السنوية]]=5,data.f[[#This Row],[الحافز]]*50%,IF(data.f[[#This Row],[أيام أجازات بعد السنوية]]>5,data.f[[#This Row],[الحافز]]*100%,""))))) -> 0 | BW75: 0 | BX75: 0 | BZ75: 3 | CA75: 0 | CK75: 3 | CT75: =data.f[[#This Row],[متوسط المنحة]] -> 240.1 | CU75: =SUM(data.f[[#This Row],[تامينات 2025]:[عمود1]]) -> 573.2876172 | CV75: =data.f[[#This Row],[إجمالي المستحق]]-data.f[[#This Row],[إجمالي المستقطع]] -> 6426.712383
A76: =IF(D76='المقابل النقدي للفنين'!$F$2,COUNTIF($D$4:D76,D76),"") ->  | B76: 202064 | C76: 1133 | D76: =VLOOKUP(data.f[[#This Row],[كود الشركة]],'التعامل المالي'!$B$3:$E$1478,3,FALSE) -> بنك مصر2 | E76: محمد ذكر الله السيد ذكر الله | F76: 28701170102715 | G76: فنى | I76: الثانية | J76: الثانية | K76: فني ميكانيكي | L76: الاميرية | M76: =data.f[[#This Row],[كود الشركة]]&data.f[[#This Row],[اسم الموظف]]&data.f[[#This Row],[الشركة المدمجة]]&data.f[[#This Row],[الدرجة]]&data.f[[#This Row],[ترقية 7/2025]]&data.f[[#This Row],[الوظيفة]]&data.f[[#This Row],[مكان العمل]] -> 202064محمد ذكر الله السيد ذكر الله الثانيةالثانيةفني ميكانيكيالاميرية | N76: =IF(data.f[[#This Row],[ترقية 7/2025]]<>"","نعم","") -> نعم | O76: 1095.96 | P76: =IF(data.f[[#This Row],[استعلام ترقية]]="نعم",data.f[[#This Row],[الأجر الأساسي]]*110%+data.f[[#This Row],[الأجر الأساسي]]*7%,data.f[[#This Row],[الأجر الأساسي]]*110%) -> 1282.2732 | R76: =data.f[[#This Row],[أساسي 7/2025]]*135% -> 1731.06882 | S76: =data.f[[#This Row],[أساسي 7/2025]]*15% -> 192.34098 | T76: 0 | V76: =IF(data.f[[#This Row],[التصنيف الادارى]]="فنى",data.f[[#This Row],[أساسي 7/2025]]*15%,0) -> 192.34098 | W76: 300 | AH76: 0 | AI76: =SUM(data.f[[#This Row],[بدل مخاطر مواني 30%]:[بدل تباع]]) -> 492.34098 | AJ76: 39.04 | AK76: 43.35 | AL76: 65 | AM76: 0 | AN76: 190 | AO76: 23.88 | AP76: 39.07 | AQ76: 50.17 | AR76: 71.57 | AS76: 76.58 | AT76: 81.94 | AV76: 54.798 | AW76: 600 | AX76: 6 | AY76: =SUM(data.f[[#This Row],[علاوة 2014]:[علاوة اجتماعية]]) -> 1341.398 | AZ76: 10 | BB76: 230.7284 | BF76: =SUM(data.f[[#This Row],[أساسي 7/2025]:[حافز موانى]],data.f[[#This Row],[إجمالي بدلات]],data.f[[#This Row],[إجمالي علاوات]],data.f[[#This Row],[م. عيد العمال]:[متوسط المنحة]]) -> 5280.15038 | BG76: =IF(data.f[[#This Row],[الإجمالي]]<7000,7000-data.f[[#This Row],[الإجمالي]],0) -> 1719.84962 | BH76: =SUM(data.f[[#This Row],[رد مستحقات]:[مكمل الأجر]]) -> 7000 | BL76: 18 | BM76: 18 | BN76: 568.6725 | BR76: =((data.f[[#This Row],[إجمالي المستحق]]-(data.f[[#This Row],[الحافز]]+data.f[[#This Row],[عمود2]]+data.f[[#This Row],[متوسط المنحة]]))/30)*data.f[[#This Row],[أيام الغياب]] -> 0 | BS76: =(data.f[[#This Row],[عمود2]]/30)*data.f[[#This Row],[أيام الغياب]] -> 0 | BT76: =IF(data.f[[#This Row],[أيام الغياب]]=1,data.f[[#This Row],[الحافز]]*20%,IF(data.f[[#This Row],[أيام الغياب]]=2,data.f[[#This Row],[الحافز]]*30%,IF(data.f[[#This Row],[أيام الغياب]]>2,data.f[[#This Row],[الحافز]]*100%,""))) ->  | BU76: =IF(data.f[[#This Row],[عدد أيام الأجازات]]<=4,data.f[[#This Row],[الحافز]]*0,IF(data.f[[#This Row],[عدد أيام الأجازات]]=5,data.f[[#This Row],[الحافز]]*20%,IF(data.f[[#This Row],[عدد أيام الأجازات]]=6,data.f[[#This Row],[الحافز]]*40%,IF(data.f[[#This Row],[عدد أيام الأجازات]]=7,data.f[[#This Row],[الحافز]]*50%,IF(data.f[[#This Row],[عدد أيام الأجازات]]>7,data.f[[#This Row],[الحافز]]*100%,""))))) -> 0 | BV76: =IF(data.f[[#This Row],[أيام أجازات بعد السنوية]]<=2,data.f[[#This Row],[الحافز]]*0,IF(data.f[[#This Row],[أيام أجازات بعد السنوية]]=3,data.f[[#This Row],[الحافز]]*30%,IF(data.f[[#This Row],[أيام أجازات بعد السنوية]]=4,data.f[[#This Row],[الحافز]]*40%,IF(data.f[[#This Row],[أيام أجازات بعد السنوية]]=5,data.f[[#This Row],[الحافز]]*50%,IF(data.f[[#This Row],[أيام أجازات بعد السنوية]]>5,data.f[[#This Row],[الحافز]]*100%,""))))) -> 0 | BW76: 0 | BX76: 0 | BZ76: 3 | CA76: 0 | CK76: 3 | CT76: =data.f[[#This Row],[متوسط المنحة]] -> 230.7284 | CU76: =SUM(data.f[[#This Row],[تامينات 2025]:[عمود1]]) -> 574.6725 | CV76: =data.f[[#This Row],[إجمالي المستحق]]-data.f[[#This Row],[إجمالي المستقطع]] -> 6425.3275
A77: =IF(D77='المقابل النقدي للفنين'!$F$2,COUNTIF($D$4:D77,D77),"") ->  | B77: 202065 | C77: 1159 | D77: =VLOOKUP(data.f[[#This Row],[كود الشركة]],'التعامل المالي'!$B$3:$E$1478,3,FALSE) -> بنك مصر2 | E77: حاتم إبراهيم مدبولي سعدون | F77: 27001030102515 | G77: فنى | I77: الثالثة | J77: الثالثة | K77: حرفى لحام | L77: فرع الاسكندرية | M77: =data.f[[#This Row],[كود الشركة]]&data.f[[#This Row],[اسم الموظف]]&data.f[[#This Row],[الشركة المدمجة]]&data.f[[#This Row],[الدرجة]]&data.f[[#This Row],[ترقية 7/2025]]&data.f[[#This Row],[الوظيفة]]&data.f[[#This Row],[مكان العمل]] -> 202065حاتم إبراهيم مدبولي سعدونالثالثةالثالثةحرفى لحامفرع الاسكندرية | N77: =IF(data.f[[#This Row],[ترقية 7/2025]]<>"","نعم","") -> نعم | O77: 1092.43 | P77: =IF(data.f[[#This Row],[استعلام ترقية]]="نعم",data.f[[#This Row],[الأجر الأساسي]]*110%+data.f[[#This Row],[الأجر الأساسي]]*7%,data.f[[#This Row],[الأجر الأساسي]]*110%) -> 1278.1431 | R77: =data.f[[#This Row],[أساسي 7/2025]]*135% -> 1725.493185 | S77: =data.f[[#This Row],[أساسي 7/2025]]*15% -> 191.721465 | T77: 0 | V77: =IF(data.f[[#This Row],[التصنيف الادارى]]="فنى",data.f[[#This Row],[أساسي 7/2025]]*15%,0) -> 191.721465 | W77: 300 | AH77: 0 | AI77: =SUM(data.f[[#This Row],[بدل مخاطر مواني 30%]:[بدل تباع]]) -> 491.721465 | AJ77: 38.89 | AK77: 43.11 | AL77: 65 | AM77: 0 | AN77: 200 | AO77: 24.04 | AP77: 38.94 | AQ77: 50 | AR77: 71.34 | AS77: 76.33 | AT77: 81.68 | AV77: 54.6215 | AW77: 600 | AX77: 10 | AY77: =SUM(data.f[[#This Row],[علاوة 2014]:[علاوة اجتماعية]]) -> 1353.9515 | AZ77: 10 | BB77: 229.9853 | BF77: =SUM(data.f[[#This Row],[أساسي 7/2025]:[حافز موانى]],data.f[[#This Row],[إجمالي بدلات]],data.f[[#This Row],[إجمالي علاوات]],data.f[[#This Row],[م. عيد العمال]:[متوسط المنحة]]) -> 5281.016015 | BG77: =IF(data.f[[#This Row],[الإجمالي]]<7000,7000-data.f[[#This Row],[الإجمالي]],0) -> 1718.983985 | BH77: =SUM(data.f[[#This Row],[رد مستحقات]:[مكمل الأجر]]) -> 7000 | BL77: 18 | BM77: 18 | BN77: 568.4822021 | BR77: =((data.f[[#This Row],[إجمالي المستحق]]-(data.f[[#This Row],[الحافز]]+data.f[[#This Row],[عمود2]]+data.f[[#This Row],[متوسط المنحة]]))/30)*data.f[[#This Row],[أيام الغياب]] -> 0 | BS77: =(data.f[[#This Row],[عمود2]]/30)*data.f[[#This Row],[أيام الغياب]] -> 0 | BT77: =IF(data.f[[#This Row],[أيام الغياب]]=1,data.f[[#This Row],[الحافز]]*20%,IF(data.f[[#This Row],[أيام الغياب]]=2,data.f[[#This Row],[الحافز]]*30%,IF(data.f[[#This Row],[أيام الغياب]]>2,data.f[[#This Row],[الحافز]]*100%,""))) ->  | BU77: =IF(data.f[[#This Row],[عدد أيام الأجازات]]<=4,data.f[[#This Row],[الحافز]]*0,IF(data.f[[#This Row],[عدد أيام الأجازات]]=5,data.f[[#This Row],[الحافز]]*20%,IF(data.f[[#This Row],[عدد أيام الأجازات]]=6,data.f[[#This Row],[الحافز]]*40%,IF(data.f[[#This Row],[عدد أيام الأجازات]]=7,data.f[[#This Row],[الحافز]]*50%,IF(data.f[[#This Row],[عدد أيام الأجازات]]>7,data.f[[#This Row],[الحافز]]*100%,""))))) -> 0 | BV77: =IF(data.f[[#This Row],[أيام أجازات بعد السنوية]]<=2,data.f[[#This Row],[الحافز]]*0,IF(data.f[[#This Row],[أيام أجازات بعد السنوية]]=3,data.f[[#This Row],[الحافز]]*30%,IF(data.f[[#This Row],[أيام أجازات بعد السنوية]]=4,data.f[[#This Row],[الحافز]]*40%,IF(data.f[[#This Row],[أيام أجازات بعد السنوية]]=5,data.f[[#This Row],[الحافز]]*50%,IF(data.f[[#This Row],[أيام أجازات بعد السنوية]]>5,data.f[[#This Row],[الحافز]]*100%,""))))) -> 0 | BW77: 0 | BX77: 0 | BZ77: 3 | CA77: 0 | CK77: 3 | CT77: =data.f[[#This Row],[متوسط المنحة]] -> 229.9853 | CU77: =SUM(data.f[[#This Row],[تامينات 2025]:[عمود1]]) -> 574.4822021 | CV77: =data.f[[#This Row],[إجمالي المستحق]]-data.f[[#This Row],[إجمالي المستقطع]] -> 6425.517798
A78: =IF(D78='المقابل النقدي للفنين'!$F$2,COUNTIF($D$4:D78,D78),"") ->  | B78: 202066 | C78: 31333 | D78: =VLOOKUP(data.f[[#This Row],[كود الشركة]],'التعامل المالي'!$B$3:$E$1478,3,FALSE) -> بنك مصر 1 | E78: عاطف خليل محمود جاد | F78: 27311230102535 | G78: فنى | I78: الثالثة | J78: الثالثة | K78: حرفى كهربائى | L78: الاميرية | M78: =data.f[[#This Row],[كود الشركة]]&data.f[[#This Row],[اسم الموظف]]&data.f[[#This Row],[الشركة المدمجة]]&data.f[[#This Row],[الدرجة]]&data.f[[#This Row],[ترقية 7/2025]]&data.f[[#This Row],[الوظيفة]]&data.f[[#This Row],[مكان العمل]] -> 202066عاطف خليل محمود جادالثالثةالثالثةحرفى كهربائىالاميرية | N78: =IF(data.f[[#This Row],[ترقية 7/2025]]<>"","نعم","") -> نعم | O78: 1092.43 | P78: =IF(data.f[[#This Row],[استعلام ترقية]]="نعم",data.f[[#This Row],[الأجر الأساسي]]*110%+data.f[[#This Row],[الأجر الأساسي]]*7%,data.f[[#This Row],[الأجر الأساسي]]*110%) -> 1278.1431 | R78: =data.f[[#This Row],[أساسي 7/2025]]*135% -> 1725.493185 | S78: =data.f[[#This Row],[أساسي 7/2025]]*15% -> 191.721465 | T78: 0 | V78: =IF(data.f[[#This Row],[التصنيف الادارى]]="فنى",data.f[[#This Row],[أساسي 7/2025]]*15%,0) -> 191.721465 | W78: 300 | AH78: 0 | AI78: =SUM(data.f[[#This Row],[بدل مخاطر مواني 30%]:[بدل تباع]]) -> 491.721465 | AJ78: 38.89 | AK78: 43.11 | AL78: 65 | AM78: 0 | AN78: 200 | AO78: 24.04 | AP78: 38.94 | AQ78: 50 | AR78: 71.34 | AS78: 76.33 | AT78: 81.68 | AV78: 54.6215 | AW78: 600 | AX78: 10 | AY78: =SUM(data.f[[#This Row],[علاوة 2014]:[علاوة اجتماعية]]) -> 1353.9515 | AZ78: 10 | BB78: 232 | BF78: =SUM(data.f[[#This Row],[أساسي 7/2025]:[حافز موانى]],data.f[[#This Row],[إجمالي بدلات]],data.f[[#This Row],[إجمالي علاوات]],data.f[[#This Row],[م. عيد العمال]:[متوسط المنحة]]) -> 5283.030715 | BG78: =IF(data.f[[#This Row],[الإجمالي]]<7000,7000-data.f[[#This Row],[الإجمالي]],0) -> 1716.969285 | BH78: =SUM(data.f[[#This Row],[رد مستحقات]:[مكمل الأجر]]) -> 7000 | BL78: 18 | BM78: 18 | BN78: 568.464585 | BR78: =((data.f[[#This Row],[إجمالي المستحق]]-(data.f[[#This Row],[الحافز]]+data.f[[#This Row],[عمود2]]+data.f[[#This Row],[متوسط المنحة]]))/30)*data.f[[#This Row],[أيام الغياب]] -> 0 | BS78: =(data.f[[#This Row],[عمود2]]/30)*data.f[[#This Row],[أيام الغياب]] -> 0 | BT78: =IF(data.f[[#This Row],[أيام الغياب]]=1,data.f[[#This Row],[الحافز]]*20%,IF(data.f[[#This Row],[أيام الغياب]]=2,data.f[[#This Row],[الحافز]]*30%,IF(data.f[[#This Row],[أيام الغياب]]>2,data.f[[#This Row],[الحافز]]*100%,""))) ->  | BU78: =IF(data.f[[#This Row],[عدد أيام الأجازات]]<=4,data.f[[#This Row],[الحافز]]*0,IF(data.f[[#This Row],[عدد أيام الأجازات]]=5,data.f[[#This Row],[الحافز]]*20%,IF(data.f[[#This Row],[عدد أيام الأجازات]]=6,data.f[[#This Row],[الحافز]]*40%,IF(data.f[[#This Row],[عدد أيام الأجازات]]=7,data.f[[#This Row],[الحافز]]*50%,IF(data.f[[#This Row],[عدد أيام الأجازات]]>7,data.f[[#This Row],[الحافز]]*100%,""))))) -> 0 | BV78: =IF(data.f[[#This Row],[أيام أجازات بعد السنوية]]<=2,data.f[[#This Row],[الحافز]]*0,IF(data.f[[#This Row],[أيام أجازات بعد السنوية]]=3,data.f[[#This Row],[الحافز]]*30%,IF(data.f[[#This Row],[أيام أجازات بعد السنوية]]=4,data.f[[#This Row],[الحافز]]*40%,IF(data.f[[#This Row],[أيام أجازات بعد السنوية]]=5,data.f[[#This Row],[الحافز]]*50%,IF(data.f[[#This Row],[أيام أجازات بعد السنوية]]>5,data.f[[#This Row],[الحافز]]*100%,""))))) -> 0 | BW78: 0 | BX78: 0 | BZ78: 3 | CA78: 0 | CK78: 4 | CT78: =data.f[[#This Row],[متوسط المنحة]] -> 232 | CU78: =SUM(data.f[[#This Row],[تامينات 2025]:[عمود1]]) -> 575.464585 | CV78: =data.f[[#This Row],[إجمالي المستحق]]-data.f[[#This Row],[إجمالي المستقطع]] -> 6424.535415
A79: =IF(D79='المقابل النقدي للفنين'!$F$2,COUNTIF($D$4:D79,D79),"") ->  | B79: 202067 | C79: 1141 | D79: =VLOOKUP(data.f[[#This Row],[كود الشركة]],'التعامل المالي'!$B$3:$E$1478,3,FALSE) -> بنك مصر2 | E79: عبد الرحمن عبد الله عبده أبو العينين | F79: 27804011305591 | G79: فنى | I79: الرابعة | J79: الرابعة | K79: حرفى ميكانيكى | L79: الإدارة العامة | M79: =data.f[[#This Row],[كود الشركة]]&data.f[[#This Row],[اسم الموظف]]&data.f[[#This Row],[الشركة المدمجة]]&data.f[[#This Row],[الدرجة]]&data.f[[#This Row],[ترقية 7/2025]]&data.f[[#This Row],[الوظيفة]]&data.f[[#This Row],[مكان العمل]] -> 202067عبد الرحمن عبد الله عبده أبو العينينالرابعةالرابعةحرفى ميكانيكىالإدارة العامة | N79: =IF(data.f[[#This Row],[ترقية 7/2025]]<>"","نعم","") -> نعم | O79: 1070.48 | P79: =IF(data.f[[#This Row],[استعلام ترقية]]="نعم",data.f[[#This Row],[الأجر الأساسي]]*110%+data.f[[#This Row],[الأجر الأساسي]]*7%,data.f[[#This Row],[الأجر الأساسي]]*110%) -> 1252.4616 | R79: =data.f[[#This Row],[أساسي 7/2025]]*135% -> 1690.82316 | S79: =data.f[[#This Row],[أساسي 7/2025]]*15% -> 187.86924 | T79: 0 | V79: =IF(data.f[[#This Row],[التصنيف الادارى]]="فنى",data.f[[#This Row],[أساسي 7/2025]]*15%,0) -> 187.86924 | W79: 300 | AH79: 0 | AI79: =SUM(data.f[[#This Row],[بدل مخاطر مواني 30%]:[بدل تباع]]) -> 487.86924 | AJ79: 38.08 | AK79: 42.17 | AL79: 65 | AM79: 0 | AN79: 200 | AO79: 25.07 | AP79: 38.16 | AQ79: 49 | AR79: 69.91 | AS79: 74.8 | AT79: 80.04 | AV79: 53.524 | AW79: 600 | AX79: 10 | AY79: =SUM(data.f[[#This Row],[علاوة 2014]:[علاوة اجتماعية]]) -> 1345.754 | AZ79: 10 | BB79: 225.3642 | BF79: =SUM(data.f[[#This Row],[أساسي 7/2025]:[حافز موانى]],data.f[[#This Row],[إجمالي بدلات]],data.f[[#This Row],[إجمالي علاوات]],data.f[[#This Row],[م. عيد العمال]:[متوسط المنحة]]) -> 5200.14144 | BG79: =IF(data.f[[#This Row],[الإجمالي]]<7000,7000-data.f[[#This Row],[الإجمالي]],0) -> 1799.85856 | BH79: =SUM(data.f[[#This Row],[رد مستحقات]:[مكمل الأجر]]) -> 7000 | BL79: 18 | BM79: 18 | BN79: 569.58 | BR79: =((data.f[[#This Row],[إجمالي المستحق]]-(data.f[[#This Row],[الحافز]]+data.f[[#This Row],[عمود2]]+data.f[[#This Row],[متوسط المنحة]]))/30)*data.f[[#This Row],[أيام الغياب]] -> 0 | BS79: =(data.f[[#This Row],[عمود2]]/30)*data.f[[#This Row],[أيام الغياب]] -> 0 | BT79: =IF(data.f[[#This Row],[أيام الغياب]]=1,data.f[[#This Row],[الحافز]]*20%,IF(data.f[[#This Row],[أيام الغياب]]=2,data.f[[#This Row],[الحافز]]*30%,IF(data.f[[#This Row],[أيام الغياب]]>2,data.f[[#This Row],[الحافز]]*100%,""))) ->  | BU79: =IF(data.f[[#This Row],[عدد أيام الأجازات]]<=4,data.f[[#This Row],[الحافز]]*0,IF(data.f[[#This Row],[عدد أيام الأجازات]]=5,data.f[[#This Row],[الحافز]]*20%,IF(data.f[[#This Row],[عدد أيام الأجازات]]=6,data.f[[#This Row],[الحافز]]*40%,IF(data.f[[#This Row],[عدد أيام الأجازات]]=7,data.f[[#This Row],[الحافز]]*50%,IF(data.f[[#This Row],[عدد أيام الأجازات]]>7,data.f[[#This Row],[الحافز]]*100%,""))))) -> 0 | BV79: =IF(data.f[[#This Row],[أيام أجازات بعد السنوية]]<=2,data.f[[#This Row],[الحافز]]*0,IF(data.f[[#This Row],[أيام أجازات بعد السنوية]]=3,data.f[[#This Row],[الحافز]]*30%,IF(data.f[[#This Row],[أيام أجازات بعد السنوية]]=4,data.f[[#This Row],[الحافز]]*40%,IF(data.f[[#This Row],[أيام أجازات بعد السنوية]]=5,data.f[[#This Row],[الحافز]]*50%,IF(data.f[[#This Row],[أيام أجازات بعد السنوية]]>5,data.f[[#This Row],[الحافز]]*100%,""))))) -> 0 | BW79: 0 | BX79: 0 | BZ79: 3 | CA79: 0 | CK79: 3 | CT79: =data.f[[#This Row],[متوسط المنحة]] -> 225.3642 | CU79: =SUM(data.f[[#This Row],[تامينات 2025]:[عمود1]]) -> 575.58 | CV79: =data.f[[#This Row],[إجمالي المستحق]]-data.f[[#This Row],[إجمالي المستقطع]] -> 6424.42
A80: =IF(D80='المقابل النقدي للفنين'!$F$2,COUNTIF($D$4:D80,D80),"") ->  | B80: 202068 | D80: =VLOOKUP(data.f[[#This Row],[كود الشركة]],'التعامل المالي'!$B$3:$E$1478,3,FALSE) ->  | E80: عبد الرحمن إبراهيـم بشنـدي إبراهيم | M80: =data.f[[#This Row],[كود الشركة]]&data.f[[#This Row],[اسم الموظف]]&data.f[[#This Row],[الشركة المدمجة]]&data.f[[#This Row],[الدرجة]]&data.f[[#This Row],[ترقية 7/2025]]&data.f[[#This Row],[الوظيفة]]&data.f[[#This Row],[مكان العمل]] -> 202068عبد الرحمن إبراهيـم بشنـدي إبراهيم | N80: =IF(data.f[[#This Row],[ترقية 7/2025]]<>"","نعم","") ->  | O80: 2029.15 | P80: =IF(data.f[[#This Row],[استعلام ترقية]]="نعم",data.f[[#This Row],[الأجر الأساسي]]*110%+data.f[[#This Row],[الأجر الأساسي]]*7%,data.f[[#This Row],[الأجر الأساسي]]*110%) -> 2232.065 | R80: =data.f[[#This Row],[أساسي 7/2025]]*135% -> 3013.28775 | S80: =data.f[[#This Row],[أساسي 7/2025]]*15% -> 334.80975 | T80: 0 | V80: =IF(data.f[[#This Row],[التصنيف الادارى]]="فنى",data.f[[#This Row],[أساسي 7/2025]]*15%,0) ->  | W80: 300 | AH80: 0 | AI80: =SUM(data.f[[#This Row],[بدل مخاطر مواني 30%]:[بدل تباع]]) ->  | AY80: =SUM(data.f[[#This Row],[علاوة 2014]:[علاوة اجتماعية]]) -> 0 | AZ80: 10 | BF80: =SUM(data.f[[#This Row],[أساسي 7/2025]:[حافز موانى]],data.f[[#This Row],[إجمالي بدلات]],data.f[[#This Row],[إجمالي علاوات]],data.f[[#This Row],[م. عيد العمال]:[متوسط المنحة]]) ->  | BG80: =IF(data.f[[#This Row],[الإجمالي]]<7000,7000-data.f[[#This Row],[الإجمالي]],0) ->  | BH80: =SUM(data.f[[#This Row],[رد مستحقات]:[مكمل الأجر]]) ->  | BL80: 18 | BM80: 18 | BR80: =((data.f[[#This Row],[إجمالي المستحق]]-(data.f[[#This Row],[الحافز]]+data.f[[#This Row],[عمود2]]+data.f[[#This Row],[متوسط المنحة]]))/30)*data.f[[#This Row],[أيام الغياب]] ->  | BS80: =(data.f[[#This Row],[عمود2]]/30)*data.f[[#This Row],[أيام الغياب]] -> 0 | BT80: =IF(data.f[[#This Row],[أيام الغياب]]=1,data.f[[#This Row],[الحافز]]*20%,IF(data.f[[#This Row],[أيام الغياب]]=2,data.f[[#This Row],[الحافز]]*30%,IF(data.f[[#This Row],[أيام الغياب]]>2,data.f[[#This Row],[الحافز]]*100%,""))) ->  | BU80: =IF(data.f[[#This Row],[عدد أيام الأجازات]]<=4,data.f[[#This Row],[الحافز]]*0,IF(data.f[[#This Row],[عدد أيام الأجازات]]=5,data.f[[#This Row],[الحافز]]*20%,IF(data.f[[#This Row],[عدد أيام الأجازات]]=6,data.f[[#This Row],[الحافز]]*40%,IF(data.f[[#This Row],[عدد أيام الأجازات]]=7,data.f[[#This Row],[الحافز]]*50%,IF(data.f[[#This Row],[عدد أيام الأجازات]]>7,data.f[[#This Row],[الحافز]]*100%,""))))) -> 0 | BV80: =IF(data.f[[#This Row],[أيام أجازات بعد السنوية]]<=2,data.f[[#This Row],[الحافز]]*0,IF(data.f[[#This Row],[أيام أجازات بعد السنوية]]=3,data.f[[#This Row],[الحافز]]*30%,IF(data.f[[#This Row],[أيام أجازات بعد السنوية]]=4,data.f[[#This Row],[الحافز]]*40%,IF(data.f[[#This Row],[أيام أجازات بعد السنوية]]=5,data.f[[#This Row],[الحافز]]*50%,IF(data.f[[#This Row],[أيام أجازات بعد السنوية]]>5,data.f[[#This Row],[الحافز]]*100%,""))))) -> 0 | BZ80: 3 | CT80: =data.f[[#This Row],[متوسط المنحة]] ->  | CU80: =SUM(data.f[[#This Row],[تامينات 2025]:[عمود1]]) ->  | CV80: =data.f[[#This Row],[إجمالي المستحق]]-data.f[[#This Row],[إجمالي المستقطع]] -> 
A81: =IF(D81='المقابل النقدي للفنين'!$F$2,COUNTIF($D$4:D81,D81),"") ->  | B81: 202069 | C81: 1147 | D81: =VLOOKUP(data.f[[#This Row],[كود الشركة]],'التعامل المالي'!$B$3:$E$1478,3,FALSE) -> بنك مصر2 | E81: خالد محمد محمد بكير | F81: 26602120100457 | G81: فنى | I81: الاولى | M81: =data.f[[#This Row],[كود الشركة]]&data.f[[#This Row],[اسم الموظف]]&data.f[[#This Row],[الشركة المدمجة]]&data.f[[#This Row],[الدرجة]]&data.f[[#This Row],[ترقية 7/2025]]&data.f[[#This Row],[الوظيفة]]&data.f[[#This Row],[مكان العمل]] -> 202069خالد محمد محمد بكيرالاولى | N81: =IF(data.f[[#This Row],[ترقية 7/2025]]<>"","نعم","") ->  | O81: 2332.45 | P81: =IF(data.f[[#This Row],[استعلام ترقية]]="نعم",data.f[[#This Row],[الأجر الأساسي]]*110%+data.f[[#This Row],[الأجر الأساسي]]*7%,data.f[[#This Row],[الأجر الأساسي]]*110%) -> 2565.695 | R81: =data.f[[#This Row],[أساسي 7/2025]]*135% -> 3463.68825 | S81: =data.f[[#This Row],[أساسي 7/2025]]*15% -> 384.85425 | T81: 0 | V81: =IF(data.f[[#This Row],[التصنيف الادارى]]="فنى",data.f[[#This Row],[أساسي 7/2025]]*15%,0) -> 384.85425 | W81: 300 | AH81: 0 | AI81: =SUM(data.f[[#This Row],[بدل مخاطر مواني 30%]:[بدل تباع]]) -> 684.85425 | AJ81: 77.1 | AK81: 85.91 | AL81: 103.24 | AM81: 0 | AN81: 190 | AO81: 46.63 | AP81: 83.15 | AQ81: 106.76 | AR81: 152.32 | AS81: 162.98 | AT81: 174.39 | AV81: 116.6225 | AW81: 600 | AX81: 10 | AY81: =SUM(data.f[[#This Row],[علاوة 2014]:[علاوة اجتماعية]]) -> 1909.1025 | AZ81: 10 | BB81: 491.0421 | BF81: =SUM(data.f[[#This Row],[أساسي 7/2025]:[حافز موانى]],data.f[[#This Row],[إجمالي بدلات]],data.f[[#This Row],[إجمالي علاوات]],data.f[[#This Row],[م. عيد العمال]:[متوسط المنحة]]) -> 9509.23635 | BG81: =IF(data.f[[#This Row],[الإجمالي]]<7000,7000-data.f[[#This Row],[الإجمالي]],0) -> 0 | BH81: =SUM(data.f[[#This Row],[رد مستحقات]:[مكمل الأجر]]) -> 9509.23635 | BL81: 18 | BM81: 18 | BN81: 870.6785742 | BR81: =((data.f[[#This Row],[إجمالي المستحق]]-(data.f[[#This Row],[الحافز]]+data.f[[#This Row],[عمود2]]+data.f[[#This Row],[متوسط المنحة]]))/30)*data.f[[#This Row],[أيام الغياب]] -> 0 | BS81: =(data.f[[#This Row],[عمود2]]/30)*data.f[[#This Row],[أيام الغياب]] -> 0 | BT81: =IF(data.f[[#This Row],[أيام الغياب]]=1,data.f[[#This Row],[الحافز]]*20%,IF(data.f[[#This Row],[أيام الغياب]]=2,data.f[[#This Row],[الحافز]]*30%,IF(data.f[[#This Row],[أيام الغياب]]>2,data.f[[#This Row],[الحافز]]*100%,""))) ->  | BU81: =IF(data.f[[#This Row],[عدد أيام الأجازات]]<=4,data.f[[#This Row],[الحافز]]*0,IF(data.f[[#This Row],[عدد أيام الأجازات]]=5,data.f[[#This Row],[الحافز]]*20%,IF(data.f[[#This Row],[عدد أيام الأجازات]]=6,data.f[[#This Row],[الحافز]]*40%,IF(data.f[[#This Row],[عدد أيام الأجازات]]=7,data.f[[#This Row],[الحافز]]*50%,IF(data.f[[#This Row],[عدد أيام الأجازات]]>7,data.f[[#This Row],[الحافز]]*100%,""))))) -> 0 | BV81: =IF(data.f[[#This Row],[أيام أجازات بعد السنوية]]<=2,data.f[[#This Row],[الحافز]]*0,IF(data.f[[#This Row],[أيام أجازات بعد السنوية]]=3,data.f[[#This Row],[الحافز]]*30%,IF(data.f[[#This Row],[أيام أجازات بعد السنوية]]=4,data.f[[#This Row],[الحافز]]*40%,IF(data.f[[#This Row],[أيام أجازات بعد السنوية]]=5,data.f[[#This Row],[الحافز]]*50%,IF(data.f[[#This Row],[أيام أجازات بعد السنوية]]>5,data.f[[#This Row],[الحافز]]*100%,""))))) -> 0 | BW81: 0 | BX81: 0 | BZ81: 3 | CA81: 0 | CK81: 5 | CT81: =data.f[[#This Row],[متوسط المنحة]] -> 491.0421 | CU81: =SUM(data.f[[#This Row],[تامينات 2025]:[عمود1]]) -> 878.6785742 | CV81: =data.f[[#This Row],[إجمالي المستحق]]-data.f[[#This Row],[إجمالي المستقطع]] -> 8630.557776
A82: =IF(D82='المقابل النقدي للفنين'!$F$2,COUNTIF($D$4:D82,D82),"") ->  | B82: 202070 | C82: 1168 | D82: =VLOOKUP(data.f[[#This Row],[كود الشركة]],'التعامل المالي'!$B$3:$E$1478,3,FALSE) -> بنك مصر2 | E82: محمود زكريا محمود يونس | F82: 27312100103277 | G82: فنى | I82: الثانية | J82: الثانية | K82: ميكانيكى | L82: محطة الخدمة | M82: =data.f[[#This Row],[كود الشركة]]&data.f[[#This Row],[اسم الموظف]]&data.f[[#This Row],[الشركة المدمجة]]&data.f[[#This Row],[الدرجة]]&data.f[[#This Row],[ترقية 7/2025]]&data.f[[#This Row],[الوظيفة]]&data.f[[#This Row],[مكان العمل]] -> 202070محمود زكريا محمود يونسالثانيةالثانيةميكانيكىمحطة الخدمة | N82: =IF(data.f[[#This Row],[ترقية 7/2025]]<>"","نعم","") -> نعم | O82: 1879.01 | P82: =IF(data.f[[#This Row],[استعلام ترقية]]="نعم",data.f[[#This Row],[الأجر الأساسي]]*110%+data.f[[#This Row],[الأجر الأساسي]]*7%,data.f[[#This Row],[الأجر الأساسي]]*110%) -> 2198.4417 | R82: =data.f[[#This Row],[أساسي 7/2025]]*135% -> 2967.896295 | S82: =data.f[[#This Row],[أساسي 7/2025]]*15% -> 329.766255 | T82: 0 | V82: =IF(data.f[[#This Row],[التصنيف الادارى]]="فنى",data.f[[#This Row],[أساسي 7/2025]]*15%,0) -> 329.766255 | W82: 300 | AH82: 0 | AI82: =SUM(data.f[[#This Row],[بدل مخاطر مواني 30%]:[بدل تباع]]) -> 629.766255 | AJ82: 62.21 | AK82: 69.28 | AL82: 83.14 | AM82: 0 | AN82: 190 | AO82: 37.56 | AP82: 66.99 | AQ82: 86.01 | AR82: 122.71 | AS82: 131.3 | AT82: 140.49 | AV82: 93.9505 | AW82: 600 | AX82: 10 | AY82: =SUM(data.f[[#This Row],[علاوة 2014]:[علاوة اجتماعية]]) -> 1693.6405 | AZ82: 10 | BB82: 395.5811 | BF82: =SUM(data.f[[#This Row],[أساسي 7/2025]:[حافز موانى]],data.f[[#This Row],[إجمالي بدلات]],data.f[[#This Row],[إجمالي علاوات]],data.f[[#This Row],[م. عيد العمال]:[متوسط المنحة]]) -> 8225.092105 | BG82: =IF(data.f[[#This Row],[الإجمالي]]<7000,7000-data.f[[#This Row],[الإجمالي]],0) -> 0 | BH82: =SUM(data.f[[#This Row],[رد مستحقات]:[مكمل الأجر]]) -> 8225.092105 | BL82: 18 | BM82: 18 | BN82: 718.752085 | BR82: =((data.f[[#This Row],[إجمالي المستحق]]-(data.f[[#This Row],[الحافز]]+data.f[[#This Row],[عمود2]]+data.f[[#This Row],[متوسط المنحة]]))/30)*data.f[[#This Row],[أيام الغياب]] -> 0 | BS82: =(data.f[[#This Row],[عمود2]]/30)*data.f[[#This Row],[أيام الغياب]] -> 0 | BT82: =IF(data.f[[#This Row],[أيام الغياب]]=1,data.f[[#This Row],[الحافز]]*20%,IF(data.f[[#This Row],[أيام الغياب]]=2,data.f[[#This Row],[الحافز]]*30%,IF(data.f[[#This Row],[أيام الغياب]]>2,data.f[[#This Row],[الحافز]]*100%,""))) ->  | BU82: =IF(data.f[[#This Row],[عدد أيام الأجازات]]<=4,data.f[[#This Row],[الحافز]]*0,IF(data.f[[#This Row],[عدد أيام الأجازات]]=5,data.f[[#This Row],[الحافز]]*20%,IF(data.f[[#This Row],[عدد أيام الأجازات]]=6,data.f[[#This Row],[الحافز]]*40%,IF(data.f[[#This Row],[عدد أيام الأجازات]]=7,data.f[[#This Row],[الحافز]]*50%,IF(data.f[[#This Row],[عدد أيام الأجازات]]>7,data.f[[#This Row],[الحافز]]*100%,""))))) -> 0 | BV82: =IF(data.f[[#This Row],[أيام أجازات بعد السنوية]]<=2,data.f[[#This Row],[الحافز]]*0,IF(data.f[[#This Row],[أيام أجازات بعد السنوية]]=3,data.f[[#This Row],[الحافز]]*30%,IF(data.f[[#This Row],[أيام أجازات بعد السنوية]]=4,data.f[[#This Row],[الحافز]]*40%,IF(data.f[[#This Row],[أيام أجازات بعد السنوية]]=5,data.f[[#This Row],[الحافز]]*50%,IF(data.f[[#This Row],[أيام أجازات بعد السنوية]]>5,data.f[[#This Row],[الحافز]]*100%,""))))) -> 0 | BW82: 0 | BX82: 0 | BZ82: 3 | CA82: 0 | CK82: 3 | CT82: =data.f[[#This Row],[متوسط المنحة]] -> 395.5811 | CU82: =SUM(data.f[[#This Row],[تامينات 2025]:[عمود1]]) -> 724.752085 | CV82: =data.f[[#This Row],[إجمالي المستحق]]-data.f[[#This Row],[إجمالي المستقطع]] -> 7500.34002
A83: =IF(D83='المقابل النقدي للفنين'!$F$2,COUNTIF($D$4:D83,D83),"") ->  | B83: 202071 | C83: 1155 | D83: =VLOOKUP(data.f[[#This Row],[كود الشركة]],'التعامل المالي'!$B$3:$E$1478,3,FALSE) -> بنك مصر2 | E83: أشرف هاشم عثمان عبد المغيث | F83: 27003190101755 | G83: فنى | I83: الثالثة | J83: الثالثة | K83: حرفى نقاش دوكو | L83: الادارة العامة | M83: =data.f[[#This Row],[كود الشركة]]&data.f[[#This Row],[اسم الموظف]]&data.f[[#This Row],[الشركة المدمجة]]&data.f[[#This Row],[الدرجة]]&data.f[[#This Row],[ترقية 7/2025]]&data.f[[#This Row],[الوظيفة]]&data.f[[#This Row],[مكان العمل]] -> 202071أشرف هاشم عثمان عبد المغيثالثالثةالثالثةحرفى نقاش دوكوالادارة العامة | N83: =IF(data.f[[#This Row],[ترقية 7/2025]]<>"","نعم","") -> نعم | O83: 1092.43 | P83: =IF(data.f[[#This Row],[استعلام ترقية]]="نعم",data.f[[#This Row],[الأجر الأساسي]]*110%+data.f[[#This Row],[الأجر الأساسي]]*7%,data.f[[#This Row],[الأجر الأساسي]]*110%) -> 1278.1431 | R83: =data.f[[#This Row],[أساسي 7/2025]]*135% -> 1725.493185 | S83: =data.f[[#This Row],[أساسي 7/2025]]*15% -> 191.721465 | T83: 0 | V83: =IF(data.f[[#This Row],[التصنيف الادارى]]="فنى",data.f[[#This Row],[أساسي 7/2025]]*15%,0) -> 191.721465 | W83: 300 | AH83: 0 | AI83: =SUM(data.f[[#This Row],[بدل مخاطر مواني 30%]:[بدل تباع]]) -> 491.721465 | AJ83: 38.89 | AK83: 43.11 | AL83: 65 | AM83: 0 | AN83: 200 | AO83: 24.04 | AP83: 38.94 | AQ83: 50 | AR83: 71.34 | AS83: 76.33 | AT83: 81.67 | AV83: 54.6215 | AW83: 600 | AX83: 10 | AY83: =SUM(data.f[[#This Row],[علاوة 2014]:[علاوة اجتماعية]]) -> 1353.9415 | AZ83: 10 | BB83: 229.9853 | BF83: =SUM(data.f[[#This Row],[أساسي 7/2025]:[حافز موانى]],data.f[[#This Row],[إجمالي بدلات]],data.f[[#This Row],[إجمالي علاوات]],data.f[[#This Row],[م. عيد العمال]:[متوسط المنحة]]) -> 5281.006015 | BG83: =IF(data.f[[#This Row],[الإجمالي]]<7000,7000-data.f[[#This Row],[الإجمالي]],0) -> 1718.993985 | BH83: =SUM(data.f[[#This Row],[رد مستحقات]:[مكمل الأجر]]) -> 7000 | BL83: 18 | BM83: 18 | BN83: 568.3172021 | BR83: =((data.f[[#This Row],[إجمالي المستحق]]-(data.f[[#This Row],[الحافز]]+data.f[[#This Row],[عمود2]]+data.f[[#This Row],[متوسط المنحة]]))/30)*data.f[[#This Row],[أيام الغياب]] -> 0 | BS83: =(data.f[[#This Row],[عمود2]]/30)*data.f[[#This Row],[أيام الغياب]] -> 0 | BT83: =IF(data.f[[#This Row],[أيام الغياب]]=1,data.f[[#This Row],[الحافز]]*20%,IF(data.f[[#This Row],[أيام الغياب]]=2,data.f[[#This Row],[الحافز]]*30%,IF(data.f[[#This Row],[أيام الغياب]]>2,data.f[[#This Row],[الحافز]]*100%,""))) ->  | BU83: =IF(data.f[[#This Row],[عدد أيام الأجازات]]<=4,data.f[[#This Row],[الحافز]]*0,IF(data.f[[#This Row],[عدد أيام الأجازات]]=5,data.f[[#This Row],[الحافز]]*20%,IF(data.f[[#This Row],[عدد أيام الأجازات]]=6,data.f[[#This Row],[الحافز]]*40%,IF(data.f[[#This Row],[عدد أيام الأجازات]]=7,data.f[[#This Row],[الحافز]]*50%,IF(data.f[[#This Row],[عدد أيام الأجازات]]>7,data.f[[#This Row],[الحافز]]*100%,""))))) -> 0 | BV83: =IF(data.f[[#This Row],[أيام أجازات بعد السنوية]]<=2,data.f[[#This Row],[الحافز]]*0,IF(data.f[[#This Row],[أيام أجازات بعد السنوية]]=3,data.f[[#This Row],[الحافز]]*30%,IF(data.f[[#This Row],[أيام أجازات بعد السنوية]]=4,data.f[[#This Row],[الحافز]]*40%,IF(data.f[[#This Row],[أيام أجازات بعد السنوية]]=5,data.f[[#This Row],[الحافز]]*50%,IF(data.f[[#This Row],[أيام أجازات بعد السنوية]]>5,data.f[[#This Row],[الحافز]]*100%,""))))) -> 0 | BW83: 0 | BX83: 0 | BZ83: 3 | CA83: 0 | CK83: 3 | CT83: =data.f[[#This Row],[متوسط المنحة]] -> 229.9853 | CU83: =SUM(data.f[[#This Row],[تامينات 2025]:[عمود1]]) -> 574.3172021 | CV83: =data.f[[#This Row],[إجمالي المستحق]]-data.f[[#This Row],[إجمالي المستقطع]] -> 6425.682798
A84: =IF(D84='المقابل النقدي للفنين'!$F$2,COUNTIF($D$4:D84,D84),"") ->  | B84: 202072 | C84: 1313 | D84: =VLOOKUP(data.f[[#This Row],[كود الشركة]],'التعامل المالي'!$B$3:$E$1478,3,FALSE) -> بنك مصر2 | E84: محمود رزق إبراهيم هيكل | F84: 27608010101695 | G84: فنى | I84: الثالثة | J84: الثالثة | K84: حرفى سروجى | L84: الادارة العامة بالورش المركزية | M84: =data.f[[#This Row],[كود الشركة]]&data.f[[#This Row],[اسم الموظف]]&data.f[[#This Row],[الشركة المدمجة]]&data.f[[#This Row],[الدرجة]]&data.f[[#This Row],[ترقية 7/2025]]&data.f[[#This Row],[الوظيفة]]&data.f[[#This Row],[مكان العمل]] -> 202072محمود رزق إبراهيم هيكلالثالثةالثالثةحرفى سروجىالادارة العامة بالورش المركزية | N84: =IF(data.f[[#This Row],[ترقية 7/2025]]<>"","نعم","") -> نعم | O84: 1092.43 | P84: =IF(data.f[[#This Row],[استعلام ترقية]]="نعم",data.f[[#This Row],[الأجر الأساسي]]*110%+data.f[[#This Row],[الأجر الأساسي]]*7%,data.f[[#This Row],[الأجر الأساسي]]*110%) -> 1278.1431 | R84: =data.f[[#This Row],[أساسي 7/2025]]*135% -> 1725.493185 | S84: =data.f[[#This Row],[أساسي 7/2025]]*15% -> 191.721465 | T84: 0 | V84: =IF(data.f[[#This Row],[التصنيف الادارى]]="فنى",data.f[[#This Row],[أساسي 7/2025]]*15%,0) -> 191.721465 | W84: 300 | AH84: 0 | AI84: =SUM(data.f[[#This Row],[بدل مخاطر مواني 30%]:[بدل تباع]]) -> 491.721465 | AJ84: 38.89 | AK84: 43.11 | AL84: 65 | AM84: 0 | AN84: 200 | AO84: 24.04 | AP84: 38.94 | AQ84: 50 | AR84: 71.34 | AS84: 76.33 | AT84: 81.68 | AV84: 54.6215 | AW84: 600 | AX84: 10 | AY84: =SUM(data.f[[#This Row],[علاوة 2014]:[علاوة اجتماعية]]) -> 1353.9515 | AZ84: 10 | BB84: 229.9853 | BF84: =SUM(data.f[[#This Row],[أساسي 7/2025]:[حافز موانى]],data.f[[#This Row],[إجمالي بدلات]],data.f[[#This Row],[إجمالي علاوات]],data.f[[#This Row],[م. عيد العمال]:[متوسط المنحة]]) -> 5281.016015 | BG84: =IF(data.f[[#This Row],[الإجمالي]]<7000,7000-data.f[[#This Row],[الإجمالي]],0) -> 1718.983985 | BH84: =SUM(data.f[[#This Row],[رد مستحقات]:[مكمل الأجر]]) -> 7000 | BL84: 18 | BM84: 18 | BN84: 569.399585 | BR84: =((data.f[[#This Row],[إجمالي المستحق]]-(data.f[[#This Row],[الحافز]]+data.f[[#This Row],[عمود2]]+data.f[[#This Row],[متوسط المنحة]]))/30)*data.f[[#This Row],[أيام الغياب]] -> 0 | BS84: =(data.f[[#This Row],[عمود2]]/30)*data.f[[#This Row],[أيام الغياب]] -> 0 | BT84: =IF(data.f[[#This Row],[أيام الغياب]]=1,data.f[[#This Row],[الحافز]]*20%,IF(data.f[[#This Row],[أيام الغياب]]=2,data.f[[#This Row],[الحافز]]*30%,IF(data.f[[#This Row],[أيام الغياب]]>2,data.f[[#This Row],[الحافز]]*100%,""))) ->  | BU84: =IF(data.f[[#This Row],[عدد أيام الأجازات]]<=4,data.f[[#This Row],[الحافز]]*0,IF(data.f[[#This Row],[عدد أيام الأجازات]]=5,data.f[[#This Row],[الحافز]]*20%,IF(data.f[[#This Row],[عدد أيام الأجازات]]=6,data.f[[#This Row],[الحافز]]*40%,IF(data.f[[#This Row],[عدد أيام الأجازات]]=7,data.f[[#This Row],[الحافز]]*50%,IF(data.f[[#This Row],[عدد أيام الأجازات]]>7,data.f[[#This Row],[الحافز]]*100%,""))))) -> 0 | BV84: =IF(data.f[[#This Row],[أيام أجازات بعد السنوية]]<=2,data.f[[#This Row],[الحافز]]*0,IF(data.f[[#This Row],[أيام أجازات بعد السنوية]]=3,data.f[[#This Row],[الحافز]]*30%,IF(data.f[[#This Row],[أيام أجازات بعد السنوية]]=4,data.f[[#This Row],[الحافز]]*40%,IF(data.f[[#This Row],[أيام أجازات بعد السنوية]]=5,data.f[[#This Row],[الحافز]]*50%,IF(data.f[[#This Row],[أيام أجازات بعد السنوية]]>5,data.f[[#This Row],[الحافز]]*100%,""))))) -> 0 | BW84: 0 | BX84: 0 | BZ84: 3 | CA84: 0 | CK84: 3 | CT84: =data.f[[#This Row],[متوسط المنحة]] -> 229.9853 | CU84: =SUM(data.f[[#This Row],[تامينات 2025]:[عمود1]]) -> 575.399585 | CV84: =data.f[[#This Row],[إجمالي المستحق]]-data.f[[#This Row],[إجمالي المستقطع]] -> 6424.600415
A85: =IF(D85='المقابل النقدي للفنين'!$F$2,COUNTIF($D$4:D85,D85),"") ->  | B85: 202073 | C85: 1163 | D85: =VLOOKUP(data.f[[#This Row],[كود الشركة]],'التعامل المالي'!$B$3:$E$1478,3,FALSE) -> بنك مصر2 | E85: عبد اللاه محمد خميس صالح | F85: 27204090101435 | G85: فنى | I85: الثالثة | M85: =data.f[[#This Row],[كود الشركة]]&data.f[[#This Row],[اسم الموظف]]&data.f[[#This Row],[الشركة المدمجة]]&data.f[[#This Row],[الدرجة]]&data.f[[#This Row],[ترقية 7/2025]]&data.f[[#This Row],[الوظيفة]]&data.f[[#This Row],[مكان العمل]] -> 202073عبد اللاه محمد خميس صالحالثالثة | N85: =IF(data.f[[#This Row],[ترقية 7/2025]]<>"","نعم","") ->  | O85: 989.69 | P85: =IF(data.f[[#This Row],[استعلام ترقية]]="نعم",data.f[[#This Row],[الأجر الأساسي]]*110%+data.f[[#This Row],[الأجر الأساسي]]*7%,data.f[[#This Row],[الأجر الأساسي]]*110%) -> 1088.659 | R85: =data.f[[#This Row],[أساسي 7/2025]]*135% -> 1469.68965 | S85: =data.f[[#This Row],[أساسي 7/2025]]*15% -> 163.29885 | T85: 0 | V85: =IF(data.f[[#This Row],[التصنيف الادارى]]="فنى",data.f[[#This Row],[أساسي 7/2025]]*15%,0) -> 163.29885 | W85: 300 | AH85: 0 | AI85: =SUM(data.f[[#This Row],[بدل مخاطر مواني 30%]:[بدل تباع]]) -> 463.29885 | AJ85: 32.5 | AK85: 36.38 | AL85: 65 | AM85: 0 | AN85: 200 | AO85: 28.84 | AP85: 35.28 | AQ85: 45.3 | AR85: 64.63 | AS85: 69.15 | AT85: 85.25 | AV85: 51.031 | AW85: 600 | AX85: 8 | AY85: =SUM(data.f[[#This Row],[علاوة 2014]:[علاوة اجتماعية]]) -> 1321.361 | AZ85: 10 | BB85: 208.94 | BF85: =SUM(data.f[[#This Row],[أساسي 7/2025]:[حافز موانى]],data.f[[#This Row],[إجمالي بدلات]],data.f[[#This Row],[إجمالي علاوات]],data.f[[#This Row],[م. عيد العمال]:[متوسط المنحة]]) -> 4725.24735 | BG85: =IF(data.f[[#This Row],[الإجمالي]]<7000,7000-data.f[[#This Row],[الإجمالي]],0) -> 2274.75265 | BH85: =SUM(data.f[[#This Row],[رد مستحقات]:[مكمل الأجر]]) -> 7000 | BL85: 18 | BM85: 18 | BN85: 574.3814893 | BR85: =((data.f[[#This Row],[إجمالي المستحق]]-(data.f[[#This Row],[الحافز]]+data.f[[#This Row],[عمود2]]+data.f[[#This Row],[متوسط المنحة]]))/30)*data.f[[#This Row],[أيام الغياب]] -> 0 | BS85: =(data.f[[#This Row],[عمود2]]/30)*data.f[[#This Row],[أيام الغياب]] -> 0 | BT85: =IF(data.f[[#This Row],[أيام الغياب]]=1,data.f[[#This Row],[الحافز]]*20%,IF(data.f[[#This Row],[أيام الغياب]]=2,data.f[[#This Row],[الحافز]]*30%,IF(data.f[[#This Row],[أيام الغياب]]>2,data.f[[#This Row],[الحافز]]*100%,""))) ->  | BU85: =IF(data.f[[#This Row],[عدد أيام الأجازات]]<=4,data.f[[#This Row],[الحافز]]*0,IF(data.f[[#This Row],[عدد أيام الأجازات]]=5,data.f[[#This Row],[الحافز]]*20%,IF(data.f[[#This Row],[عدد أيام الأجازات]]=6,data.f[[#This Row],[الحافز]]*40%,IF(data.f[[#This Row],[عدد أيام الأجازات]]=7,data.f[[#This Row],[الحافز]]*50%,IF(data.f[[#This Row],[عدد أيام الأجازات]]>7,data.f[[#This Row],[الحافز]]*100%,""))))) -> 0 | BV85: =IF(data.f[[#This Row],[أيام أجازات بعد السنوية]]<=2,data.f[[#This Row],[الحافز]]*0,IF(data.f[[#This Row],[أيام أجازات بعد السنوية]]=3,data.f[[#This Row],[الحافز]]*30%,IF(data.f[[#This Row],[أيام أجازات بعد السنوية]]=4,data.f[[#This Row],[الحافز]]*40%,IF(data.f[[#This Row],[أيام أجازات بعد السنوية]]=5,data.f[[#This Row],[الحافز]]*50%,IF(data.f[[#This Row],[أيام أجازات بعد السنوية]]>5,data.f[[#This Row],[الحافز]]*100%,""))))) -> 0 | BW85: 0 | BX85: 0 | BZ85: 3 | CA85: 0 | CK85: 3 | CT85: =data.f[[#This Row],[متوسط المنحة]] -> 208.94 | CU85: =SUM(data.f[[#This Row],[تامينات 2025]:[عمود1]]) -> 580.3814893 | CV85: =data.f[[#This Row],[إجمالي المستحق]]-data.f[[#This Row],[إجمالي المستقطع]] -> 6419.618511
